Workbook

Sheet Filtro
A1: COMUNA/ ESTABLECIMIENTO | B1: (Todas)
A2: Mes | B2: (Todas)
A4: Etiquetas de fila | B4: Suma de Col01 | C4: Suma de Col02 | D4: Suma de Col03 | E4: Suma de Col04 | F4: Suma de Col05 | G4: Suma de Col06 | H4: Suma de Col07 | I4: Suma de Col08 | J4: Suma de Col09 | K4: Suma de Col10 | L4: Suma de Col11 | M4: Suma de Col12 | N4: Suma de Col13 | O4: Suma de Col14 | P4: Suma de Col15 | Q4: Suma de Col16 | R4: Suma de Col17 | S4: Suma de Col18 | T4: Suma de Col19 | U4: Suma de Col20 | V4: Suma de Col21 | W4: Suma de Col22 | X4: Suma de Col23 | Y4: Suma de Col24 | Z4: Suma de Col25 | AA4: Suma de Col26 | AB4: Suma de Col27 | AC4: Suma de Col28 | AD4: Suma de Col29 | AE4: Suma de Col30 | AF4: Suma de Col31 | AG4: Suma de Col32 | AH4: Suma de Col33 | AI4: Suma de Col34 | AJ4: Suma de Col35 | AK4: Suma de Col36 | AL4: Suma de Col37 | AM4: Suma de Col38 | AN4: Suma de Col39 | AO4: Suma de Col40 | AP4: Suma de Col41 | AQ4: Suma de col42 | AR4: Suma de col43 | AS4: Suma de col44 | AT4: Suma de col45 | AU4: Suma de col46 | AV4: Cuenta de col47 | AW4: Cuenta de col48 | AX4: Cuenta de col49
A5: P1010100 | B5: 10203 | C5: 0 | D5: 70 | E5: 733 | F5: 1796 | G5: 1963 | H5: 1851 | I5: 1621 | J5: 1319 | K5: 850 | M5: 169 | N5: 142 | O5: 6
A6: P1010201 | B6: 16735 | C6: 223 | D6: 2883 | E6: 3222 | F6: 2985 | G6: 2691 | H6: 2048 | I6: 1586 | J6: 870 | K6: 227 | M6: 148 | N6: 267 | O6: 3
A7: P1010202 | B7: 4731 | C7: 8 | D7: 137 | E7: 466 | F7: 689 | G7: 674 | H7: 581 | I7: 716 | J7: 1004 | K7: 456 | M7: 39 | N7: 116 | O7: 0
A8: P1010203 | B8: 8171 | C8: 80 | D8: 1300 | E8: 1999 | F8: 1761 | G8: 1289 | H8: 885 | I8: 578 | J8: 247 | K8: 32 | M8: 94 | N8: 182 | O8: 2
A9: P1010301 | B9: 1490 | C9: 15 | D9: 142 | E9: 209 | F9: 224 | G9: 233 | H9: 188 | I9: 173 | J9: 155 | K9: 141 | L9: 10 | M9: 3 | N9: 46 | O9: 2
A10: P1010302 | B10: 360 | C10: 16 | D10: 154 | E10: 57 | F10: 41 | G10: 30 | H10: 14 | I10: 18 | J10: 11 | K10: 11 | L10: 8 | M10: 1 | N10: 17 | O10: 7
A11: P1020100 | B11: 5 | C11: 5 | D11: 0 | E11: 5 | F11: 0
A12: P1020200 | B12: 261 | C12: 116 | D12: 8 | E12: 63 | F12: 11
A13: P1030101 | B13: 1114 | C13: 0 | D13: 47 | E13: 210 | F13: 351 | G13: 301 | H13: 160 | I13: 44 | J13: 1 | K13: 0
A14: P1030102 | B14: 1011 | C14: 3 | D14: 74 | E14: 242 | F14: 281 | G14: 241 | H14: 132 | I14: 36 | J14: 2 | K14: 0
A15: P1030103 | B15: 862 | C15: 2 | D15: 123 | E15: 251 | F15: 248 | G15: 159 | H15: 62 | I15: 16 | J15: 1 | K15: 0
A16: P1030104 | B16: 71 | C16: 0 | D16: 17 | E16: 25 | F16: 15 | G16: 9 | H16: 4 | I16: 1 | J16: 0 | K16: 0
A17: P1030201 | B17: 91 | C17: 0 | D17: 10 | E17: 32 | F17: 20 | G17: 16 | H17: 9 | I17: 4 | J17: 0 | K17: 0
A18: P1030202 | B18: 108 | C18: 0 | D18: 14 | E18: 35 | F18: 29 | G18: 19 | H18: 11 | I18: 0 | J18: 0 | K18: 0
A19: P1030203 | B19: 100 | C19: 0 | D19: 20 | E19: 33 | F19: 26 | G19: 14 | H19: 5 | I19: 2 | J19: 0 | K19: 0
A20: P1030204 | B20: 27 | C20: 0 | D20: 7 | E20: 12 | F20: 3 | G20: 2 | H20: 2 | I20: 1 | J20: 0 | K20: 0
A21: P1030301 | B21: 2257
A22: P1030303 | B22: 31
A23: P1030304 | B23: 155
A24: P1030401 | B24: 61
A25: P1030403 | B25: 500
A26: P1030404 | B26: 1404
A27: P1040500 | B27: 9895 | C27: 91 | D27: 1743 | E27: 2635 | F27: 2359 | G27: 1534 | H27: 927 | I27: 434 | J27: 154 | K27: 18 | M27: 91 | N27: 421 | O27: 5
A28: P1040501 | B28: 728 | C28: 205 | D28: 15 | E28: 189 | F28: 78
A29: P1040502 | B29: 199 | C29: 199
A30: P1040503 | B30: 86 | C30: 172
A31: P1040504 | B31: 39 | C31: 117
A32: P1040505 | B32: 22 | C32: 47
A33: P1040506 | B33: 25
A34: P1040507 | B34: 10
A35: P1040508 | B35: 11777 | C35: 82 | D35: 1214 | E35: 2205 | F35: 2486 | G35: 1898 | H35: 2014 | I35: 909 | J35: 747 | K35: 222 | M35: 132 | N35: 469 | O35: 5
A36: P1050100 | B36: 33
A37: P1050101 | B37: 433
A38: P1050102 | B38: 333
A39: P1050103 | B39: 32
A40: P1050104 | B40: 45
A41: P1060010 | B41: 2586 | C41: 0 | D41: 19 | E41: 84 | F41: 126 | G41: 215 | H41: 350 | I41: 580 | J41: 712 | K41: 422 | L41: 78 | M41: 6 | N41: 5 | O41: 0
A42: P1060020 | B42: 217 | C42: 1 | D42: 35 | E42: 69 | F42: 49 | G42: 30 | H42: 22 | I42: 7 | J42: 4 | K42: 0 | L42: 0 | M42: 4 | N42: 9 | O42: 0
A43: P1060040 | B43: 1430
A44: P1060050 | B44: 357
A45: P1060060 | B45: 196
A46: P1060070 | B46: 86
A47: P1060080 | B47: 47
A48: P1060090 | B48: 4660 | C48: 128 | D48: 1560 | E48: 945 | F48: 752 | G48: 504 | H48: 344 | I48: 194 | J48: 153 | K48: 77 | L48: 3 | M48: 26 | N48: 83 | O48: 4
A49: P1060100 | B49: 895 | C49: 191 | D49: 10 | E49: 299 | F49: 120
A50: P1060101 | B50: 710 | C50: 167 | D50: 14 | E50: 246 | F50: 89
A51: P1060102 | B51: 358 | C51: 93 | D51: 7 | E51: 165 | F51: 48
A52: P1060103 | B52: 97 | C52: 33 | D52: 1 | E52: 70 | F52: 9
A53: P1060104 | B53: 4 | C53: 2 | D53: 0 | E53: 3 | F53: 0
A54: P1060106 | B54: 11 | C54: 1 | D54: 0 | E54: 2
A55: P1060107 | B55: 184 | C55: 122 | D55: 44 | E55: 81
A56: P1060108 | B56: 512 | C56: 322 | D56: 116 | E56: 240
A57: P1060109 | B57: 615 | C57: 370 | D57: 150 | E57: 342
A58: P1060110 | B58: 496 | C58: 322 | D58: 102 | E58: 251
A59: P1060111 | B59: 233 | C59: 140 | D59: 63 | E59: 108
A60: P1060112 | B60: 64 | C60: 51 | D60: 18 | E60: 25
A61: P1060113 | B61: 3 | C61: 2 | D61: 2 | E61: 0
A62: P1060114 | B62: 2 | C62: 1 | D62: 1
A63: P1060115 | B63: 104
A64: P1060116 | B64: 327
A65: P1060117 | B65: 21
A66: P1060118 | B66: 8
A67: P1060119 | B67: 8
A68: P1060120 | B68: 22
A69: P1060121 | B69: 12
A70: P1060122 | B70: 18
A71: P1060123 | B71: 19
A72: P1060124 | B72: 261 | C72: 0 | D72: 9 | E72: 47 | F72: 62 | G72: 64 | H72: 37 | I72: 38 | J72: 1 | K72: 3 | M72: 7 | N72: 11 | O72: 0
A73: P11000140 | B73: 110 | C73: 1 | D73: 109 | E73: 0 | F73: 2 | G73: 0 | H73: 13 | I73: 0 | J73: 24 | K73: 1 | L73: 25 | M73: 0 | N73: 6 | O73: 0 | P73: 19 | Q73: 0 | R73: 13 | S73: 0 | T73: 6 | U73: 0 | V73: 1 | W73: 0 | X73: 0 | Y73: 0 | Z73: 0 | AA73: 0 | AB73: 0 | AC73: 0 | AD73: 0 | AE73: 0 | AF73: 0 | AG73: 0 | AH73: 0 | AI73: 0 | AJ73: 83
A74: P11000150 | B74: 2 | D74: 2 | R74: 1 | X74: 1 | AQ74: 0 | AR74: 0 | AS74: 0 | AT74: 1 | AU74: 0
A75: P11000160 | B75: 14 | D75: 14 | T75: 6 | V75: 8 | AQ75: 0 | AR75: 0 | AS75: 0 | AT75: 1 | AU75: 0
A76: P11000170 | B76: 3746 | C76: 2949 | D76: 797 | E76: 0 | F76: 0 | G76: 0 | H76: 0 | I76: 3 | J76: 1 | K76: 3 | L76: 3 | M76: 1 | N76: 6 | O76: 18 | P76: 18 | Q76: 186 | R76: 15 | S76: 468 | T76: 75 | U76: 546 | V76: 119 | W76: 475 | X76: 126 | Y76: 326 | Z76: 100 | AA76: 289 | AB76: 83 | AC76: 229 | AD76: 99 | AE76: 180 | AF76: 68 | AG76: 113 | AH76: 46 | AI76: 55 | AJ76: 24 | AK76: 31 | AL76: 8 | AM76: 24 | AN76: 3 | AO76: 2 | AP76: 3 | AQ76: 0 | AR76: 37 | AS76: 0 | AT76: 280 | AU76: 0
A77: P11000180 | B77: 135 | C77: 104 | D77: 31 | E77: 0 | F77: 0 | G77: 0 | H77: 0 | I77: 0 | J77: 0 | K77: 0 | L77: 2 | M77: 0 | N77: 4 | O77: 1 | P77: 0 | Q77: 11 | R77: 2 | S77: 22 | T77: 2 | U77: 34 | V77: 6 | W77: 22 | X77: 0 | Y77: 9 | Z77: 9 | AA77: 5 | AB77: 3 | AC77: 0 | AD77: 3 | AE77: 0 | AF77: 0 | AG77: 0 | AH77: 0 | AI77: 0 | AJ77: 0 | AK77: 0 | AL77: 0 | AM77: 0 | AN77: 0 | AO77: 0 | AP77: 0 | AQ77: 0 | AR77: 0 | AS77: 0 | AT77: 18 | AU77: 0
A78: P1200100 | B78: 1 | C78: 0 | D78: 7 | E78: 6
A79: P1200110 | B79: 3 | C79: 1 | D79: 189 | E79: 143
A80: P1200120 | B80: 6 | C80: 4 | D80: 425 | E80: 347
A81: P1200130 | B81: 7 | C81: 2 | D81: 517 | E81: 436
A82: P1200140 | B82: 8 | C82: 6 | D82: 400 | E82: 308
A83: P1200150 | B83: 7 | C83: 5 | D83: 191 | E83: 147
A84: P1200160 | B84: 1 | C84: 0 | D84: 56 | E84: 46
A85: P1200170 | B85: 0 | C85: 0 | D85: 1 | E85: 1
A86: P1200190 | B86: 1246 | C86: 23 | D86: 313 | E86: 324 | F86: 253 | G86: 190 | H86: 95 | I86: 40 | J86: 7 | K86: 1 | M86: 9 | N86: 52 | O86: 0
A87: P1200200 | B87: 622 | C87: 15 | D87: 215 | E87: 146 | F87: 90 | G87: 64 | H87: 37 | I87: 28 | J87: 17 | K87: 8 | L87: 2 | M87: 0 | N87: 48 | O87: 2
A88: P1200210 | B88: 98 | C88: 4 | D88: 47 | E88: 18 | F88: 10 | G88: 4 | H88: 1 | I88: 3 | J88: 6 | K88: 0 | L88: 5 | M88: 0 | N88: 2 | O88: 0
A89: P1200220 | B89: 1090 | C89: 0 | D89: 10 | E89: 44 | F89: 54 | G89: 73 | H89: 98 | I89: 190 | J89: 216 | K89: 218 | L89: 187 | M89: 20 | N89: 42 | O89: 1
A90: P1200230 | B90: 29 | C90: 2 | D90: 4 | E90: 1 | F90: 4 | G90: 1 | H90: 0 | I90: 7 | J90: 4 | K90: 1 | L90: 5 | M90: 0 | N90: 0 | O90: 1
A91: P1200240 | B91: 2736 | C91: 0 | D91: 0 | E91: 22 | F91: 138 | G91: 316 | H91: 549 | I91: 586 | J91: 524 | K91: 601 | M91: 42 | N91: 40 | O91: 4
A92: P1200250 | B92: 139 | C92: 0 | D92: 0 | E92: 0 | F92: 1 | G92: 6 | H92: 25 | I92: 41 | J92: 40 | K92: 26 | M92: 0 | N92: 4 | O92: 0
A93: P1200260 | B93: 43 | C93: 0 | D93: 6 | E93: 14 | F93: 12 | G93: 5 | H93: 6 | I93: 0 | J93: 0 | K93: 0 | L93: 0 | M93: 0 | N93: 1 | O93: 0
A94: P1200270 | B94: 549 | C94: 3 | D94: 52 | E94: 141 | F94: 159 | G94: 97 | H94: 70 | I94: 21 | J94: 3 | K94: 3 | L94: 0 | M94: 9 | N94: 16 | O94: 1
A95: P1200280 | B95: 40 | C95: 0 | D95: 10 | E95: 17 | F95: 10 | G95: 3 | H95: 0 | I95: 1
A96: P1200290 | B96: 60 | C96: 0 | D96: 16 | E96: 20 | F96: 22 | G96: 2 | H96: 0 | I96: 0
A97: P1200300 | B97: 18 | C97: 1 | D97: 6 | E97: 10 | F97: 1 | G97: 0 | H97: 0 | I97: 1
A98: P1200310 | B98: 4 | C98: 0 | D98: 2 | E98: 2 | F98: 0 | G98: 0 | H98: 0 | I98: 0
A99: P1200320 | B99: 1 | C99: 0 | D99: 0 | E99: 1 | F99: 0 | G99: 0 | H99: 0 | I99: 0
A100: P1200330 | B100: 150 | C100: 1 | D100: 39 | E100: 65 | F100: 39 | G100: 6 | H100: 3 | I100: 1
A101: P1200340 | B101: 1
A102: P1200350 | B102: 90 | C102: 0 | D102: 13 | E102: 26 | F102: 19 | G102: 11 | H102: 7 | I102: 8 | J102: 2 | K102: 4 | L102: 0 | M102: 0 | N102: 0 | O102: 0
A103: P1206010 | B103: 12274 | C103: 0
A104: P1206020 | B104: 11263 | C104: 0
A105: P1206030 | B105: 10189 | C105: 0
A106: P1206040 | B106: 9739 | C106: 0
A107: P1206050 | B107: 9628 | C107: 0
A108: P1206060 | B108: 9588 | C108: 0
A109: P1206070 | B109: 8297 | C109: 0
A110: P1206080 | B110: 6270 | C110: 0
A111: P1207010 | B111: 1365 | C111: 1244 | D111: 52 | E111: 46 | F111: 3 | G111: 6 | H111: 5 | I111: 9 | J111: 0 | K111: 0 | L111: 0
A112: P1207020 | B112: 1355 | C112: 1246 | D112: 49 | E112: 28 | F112: 7 | G112: 4 | H112: 7 | I112: 14 | J112: 0 | K112: 0 | L112: 0
A113: P1207030 | B113: 5980
A114: P1207040 | B114: 4248
A115: P1207050 | B115: 2147
A116: P1207060 | B116: 852
A117: P1207070 | B117: 322
A118: P1207080 | B118: 129
A119: P1207090 | B119: 6405
A120: P1207100 | B120: 4631
A121: P1207110 | B121: 1932
A122: P1207120 | B122: 548
A123: P1207130 | B123: 199
A124: P1207140 | B124: 77
A125: P1207150 | B125: 9841 | C125: 0
A126: P1207160 | B126: 2252 | C126: 0
A127: P1207170 | B127: 1124 | C127: 1031 | D127: 37 | E127: 38 | F127: 5 | G127: 0 | H127: 7 | I127: 6 | J127: 0 | K127: 0 | L127: 0
A128: P1207180 | B128: 21573
A129: P1207190 | B129: 511
A130: P1208020 | B130: 1387 | C130: 1254 | D130: 48 | E130: 24 | F130: 40 | G130: 5 | H130: 4 | I130: 12 | J130: 0 | K130: 0 | L130: 0
A131: P1208030 | B131: 1243 | C131: 1141 | D131: 54 | E131: 28 | F131: 5 | G131: 4 | H131: 3 | I131: 8 | J131: 0 | K131: 0 | L131: 0
A132: P1208040 | B132: 1168 | C132: 1064 | D132: 56 | E132: 35 | F132: 1 | G132: 4 | H132: 1 | I132: 7 | J132: 0 | K132: 0 | L132: 0
A133: P1208050 | B133: 1011 | C133: 934 | D133: 40 | E133: 29 | F133: 1 | G133: 2 | H133: 1 | I133: 3 | J133: 1 | K133: 0 | L133: 0
A134: P1208060 | B134: 922 | C134: 834 | D134: 39 | E134: 33 | F134: 1 | G134: 3 | H134: 5 | I134: 4 | J134: 3 | K134: 0 | L134: 0
A135: P1208070 | B135: 576 | C135: 521 | D135: 29 | E135: 20 | F135: 0 | G135: 3 | H135: 0 | I135: 1 | J135: 2 | K135: 0 | L135: 0
A136: P1208080 | B136: 221 | C136: 191 | D136: 15 | E136: 8 | F136: 0 | G136: 2 | H136: 0 | I136: 3 | J136: 2 | K136: 0 | L136: 0
A137: P1208090 | B137: 82 | C137: 74 | D137: 4 | E137: 3 | F137: 0 | G137: 1 | H137: 0 | I137: 0 | J137: 0 | K137: 0 | L137: 0
A138: P1208100 | B138: 28 | C138: 26 | D138: 1 | E138: 1 | F138: 0 | G138: 0 | H138: 0 | I138: 0 | J138: 0 | K138: 0 | L138: 0
A139: P1220020 | B139: 9320
A140: P1220030 | B140: 6957
A141: P1220070 | B141: 21529
A142: P1220090 | B142: 7349
A143: P1220093 | B143: 4 | C143: 3 | H143: 1
A144: P1220094 | B144: 1 | I144: 1
A145: P1220095 | B145: 1 | C145: 1
A146: P1220096 | B146: 2 | C146: 2 | D146: 0 | E146: 0 | F146: 0 | G146: 0 | H146: 0 | I146: 0 | J146: 0 | K146: 0 | L146: 0
A147: P1220097 | B147: 3 | C147: 3 | D147: 0 | E147: 0 | F147: 0 | G147: 0 | H147: 0 | I147: 0 | J147: 0 | K147: 0 | L147: 0
A148: P1220099 | B148: 1 | C148: 1
A149: P1220100 | B149: 2 | C149: 2
A150: P1230001 | B150: 663 | C150: 0
A151: P1230002 | B151: 223 | C151: 0
A152: P1230003 | B152: 65 | C152: 0
A153: P1230004 | B153: 10 | C153: 9 | D153: 1 | E153: 0 | F153: 0 | G153: 0 | H153: 0 | I153: 0 | J153: 0 | K153: 0 | L153: 0
A154: P1240010 | B154: 632 | C154: 0
A155: P1240011 | B155: 638 | C155: 0
A156: P1240012 | B156: 539 | C156: 0
A157: P1240013 | B157: 535 | C157: 0
A158: P1240014 | B158: 497 | C158: 0
A159: P1240015 | B159: 471 | C159: 0
A160: P1240016 | B160: 311 | C160: 0
A161: P1240017 | B161: 600 | C161: 478 | D161: 26 | E161: 7 | F161: 89 | G161: 0
A162: P1240018 | B162: 613 | C162: 528 | D162: 20 | E162: 8 | F162: 57 | G162: 0
A163: P1240019 | B163: 500 | C163: 415 | D163: 19 | E163: 4 | F163: 62 | G163: 0
A164: P1240020 | B164: 495 | C164: 444 | D164: 7 | E164: 4 | F164: 40 | G164: 0
A165: P1240021 | B165: 471 | C165: 440 | D165: 5 | E165: 2 | F165: 24 | G165: 0
A166: P1240022 | B166: 441 | C166: 405 | D166: 3 | E166: 3 | F166: 30 | G166: 0
A167: P1240023 | B167: 289 | C167: 264 | D167: 6 | E167: 2 | F167: 17 | G167: 0
A168: P1240024 | B168: 4 | C168: 3 | D168: 0 | E168: 0 | F168: 1 | G168: 0
A169: P1240025 | B169: 2 | C169: 2 | F169: 0
A170: P1240028 | B170: 5 | C170: 5 | D170: 0 | E170: 0 | F170: 0 | G170: 0
A171: P1240029 | B171: 4 | C171: 3 | D171: 1 | E171: 0 | F171: 0 | G171: 0
A172: P1240030 | B172: 5 | C172: 5 | D172: 0 | E172: 0 | F172: 0 | G172: 0
A173: P1240031 | B173: 3 | C173: 3 | D173: 0 | E173: 0 | F173: 0 | G173: 0
A174: P1240032 | B174: 8 | C174: 8 | D174: 0 | E174: 0 | F174: 0 | G174: 0
A175: P1240033 | B175: 6 | C175: 6 | D175: 0 | E175: 0 | F175: 0 | G175: 0
A176: P1240034 | B176: 2 | C176: 2 | D176: 0 | E176: 0 | F176: 0 | G176: 0
A177: P1310010 | B177: 5255 | C177: 2717 | D177: 2538 | E177: 2507 | F177: 2464 | G177: 173 | H177: 69 | I177: 37 | J177: 5 | K177: 31
A178: P1310020 | B178: 1958 | C178: 952 | D178: 1006 | E178: 157 | F178: 113 | G178: 309 | H178: 325 | I178: 299 | J178: 291 | K178: 183 | L178: 271 | M178: 4 | N178: 5 | O178: 0 | P178: 1 | Q178: 24
A179: P1310030 | B179: 232 | C179: 132 | D179: 100 | E179: 23 | F179: 15 | G179: 29 | H179: 30 | I179: 37 | J179: 32 | K179: 43 | L179: 23 | M179: 0 | N179: 0 | O179: 0 | P179: 0 | Q179: 5
A180: P1310040 | B180: 37 | C180: 30 | D180: 7 | I180: 1 | K180: 18 | L180: 6 | M180: 11 | N180: 1 | Q180: 0
A181: P1310050 | B181: 127 | C181: 2 | D181: 125 | I181: 1 | J181: 24 | K181: 1 | L181: 99 | M181: 0 | N181: 2 | O181: 0 | P181: 0 | Q181: 1
A182: P1310060 | B182: 9 | C182: 0 | D182: 9 | I182: 0 | J182: 2 | K182: 0 | L182: 7 | M182: 0 | N182: 0 | O182: 0 | P182: 0 | Q182: 0
A183: P1310070 | B183: 540 | C183: 271 | D183: 269 | E183: 121 | F183: 110 | G183: 150 | H183: 159 | Q183: 6
A184: P1310080 | B184: 135 | C184: 61 | D184: 74 | I184: 31 | J184: 33 | K184: 29 | L184: 41 | M184: 1 | N184: 0 | O184: 0 | P184: 0 | Q184: 0
A185: P1310090 | B185: 559 | C185: 279 | D185: 280 | E185: 9 | F185: 5 | G185: 88 | H185: 89 | I185: 111 | J185: 96 | K185: 66 | L185: 85 | M185: 5 | N185: 2 | O185: 0 | P185: 3 | Q185: 2
A186: P1320010 | B186: 282 | C186: 131 | D186: 151 | E186: 30 | F186: 23 | G186: 44 | H186: 36 | I186: 37 | J186: 41 | K186: 14 | L186: 32 | M186: 3 | N186: 10 | O186: 3 | P186: 9 | Q186: 1
A187: P1320020 | B187: 423 | C187: 210 | D187: 213 | E187: 178 | F187: 205 | G187: 32 | H187: 8 | I187: 0 | J187: 0 | K187: 2
A188: P1320030 | B188: 101 | C188: 59 | D188: 42 | E188: 0 | F188: 0 | G188: 12 | H188: 0 | I188: 28 | J188: 15 | K188: 19 | L188: 26 | M188: 0 | N188: 0 | O188: 0 | P188: 1 | Q188: 2
A189: P1320040 | B189: 69 | C189: 50 | D189: 19 | E189: 4 | F189: 0 | G189: 10 | H189: 2 | I189: 23 | J189: 10 | K189: 13 | L189: 6 | M189: 0 | N189: 0 | O189: 0 | P189: 1 | Q189: 0
A190: P1320060 | B190: 1 | C190: 0 | D190: 1 | L190: 1 | Q190: 0
A191: P1320080 | B191: 12 | C191: 12 | D191: 0 | E191: 6 | G191: 6 | Q191: 0
A192: P1320090 | B192: 6 | C192: 4 | D192: 2 | I192: 4 | J192: 2 | Q192: 0
A193: P1320100 | B193: 50 | C193: 15 | D193: 35 | E193: 0 | F193: 0 | G193: 4 | H193: 5 | I193: 5 | J193: 15 | K193: 6 | L193: 13 | P193: 2 | Q193: 0
A194: P1320110 | B194: 6 | C194: 4 | D194: 2 | E194: 1 | G194: 2 | H194: 1 | J194: 1 | K194: 1 | Q194: 0
A195: P1600100 | B195: 10104 | C195: 25 | D195: 938 | E195: 1484 | F195: 1771 | G195: 1684 | H195: 1596 | I195: 1142 | J195: 919 | K195: 545
A196: P1600101 | B196: 11766 | C196: 58 | D196: 1507 | E196: 1736 | F196: 2152 | G196: 1917 | H196: 1751 | I196: 1215 | J196: 918 | K196: 512
A197: P1600102 | B197: 11429 | C197: 118 | D197: 1994 | E197: 2139 | F197: 2092 | G197: 1683 | H197: 1484 | I197: 870 | J197: 661 | K197: 388
A198: P1600103 | B198: 619 | C198: 18 | D198: 173 | E198: 160 | F198: 95 | G198: 85 | H198: 55 | I198: 15 | J198: 13 | K198: 5
A199: P2060000 | B199: 34669 | C199: 17577 | D199: 17092 | E199: 117 | F199: 163 | G199: 216 | H199: 189 | I199: 261 | J199: 246 | K199: 276 | L199: 268 | M199: 272 | N199: 274 | O199: 268 | P199: 293 | Q199: 470 | R199: 455 | S199: 1360 | T199: 1302 | U199: 1807 | V199: 1792 | W199: 1992 | X199: 1823 | Y199: 3494 | Z199: 3356 | AA199: 1940 | AB199: 1853 | AC199: 1610 | AD199: 1559 | AE199: 3494 | AF199: 3519 | AG199: 71 | AH199: 74 | AI199: 224 | AJ199: 245
A200: P2070101 | B200: 1604 | C200: 885 | D200: 719 | G200: 9 | H200: 9 | I200: 14 | J200: 15 | K200: 18 | L200: 10 | M200: 13 | N200: 16 | O200: 8 | P200: 10 | Q200: 23 | R200: 17 | S200: 68 | T200: 55 | U200: 97 | V200: 63 | W200: 81 | X200: 68 | Y200: 193 | Z200: 142 | AA200: 102 | AB200: 75 | AC200: 86 | AD200: 65 | AE200: 173 | AF200: 174 | AG200: 5 | AH200: 3 | AI200: 11 | AJ200: 17
A201: P2070102 | B201: 190 | C201: 104 | D201: 86 | G201: 2 | H201: 2 | I201: 3 | J201: 2 | K201: 0 | L201: 3 | M201: 1 | N201: 2 | O201: 2 | P201: 1 | Q201: 1 | R201: 1 | S201: 11 | T201: 4 | U201: 10 | V201: 6 | W201: 14 | X201: 9 | Y201: 26 | Z201: 20 | AA201: 7 | AB201: 11 | AC201: 14 | AD201: 5 | AE201: 13 | AF201: 20 | AG201: 2 | AH201: 0 | AI201: 1 | AJ201: 2
... 351 more rows

Sheet P1
D6: REM-P1. POBLACIÓN EN CONTROL PROGRAMA DE SALUD DE LA MUJER
B7: ATENCIÓN PRIMARIA DE SALUD
B8: SECCION A: POBLACIÓN EN CONTROL SEGÚN MÉTODO DE REGULACIÓN DE FERTILIDAD Y SALUD SEXUAL
B9: MÉTODOS | D9: TOTAL | E9: GRUPO DE EDAD (en años) | O9: Pueblos Originarios | P9: Población Migrantes | Q9: PV-VIH (personas viviendo con VIH)
E10: Menor de 15 años | F10: 15 a 19 años | G10: 20 a 24 años | H10: 25 a 29 años | I10: 30 a 34 años | J10: 35 a 39 años | K10: 40 a 44 años | L10: 45 a 49 años | M10: 50 a 54 años | N10: 55 y más años
A11: P1010100 | B11: D . I . U T con Cobre | D11: =IFERROR(VLOOKUP($A11,Filtro!$A$4:$AX$552,2,FALSE),0) -> 10203 | E11: =IFERROR(VLOOKUP($A11,Filtro!$A$4:$AX$552,3,FALSE),0) -> 0 | F11: =IFERROR(VLOOKUP($A11,Filtro!$A$4:$AX$552,4,FALSE),0) -> 70 | G11: =IFERROR(VLOOKUP($A11,Filtro!$A$4:$AX$552,5,FALSE),0) -> 733 | H11: =IFERROR(VLOOKUP($A11,Filtro!$A$4:$AX$552,6,FALSE),0) -> 1796 | I11: =IFERROR(VLOOKUP($A11,Filtro!$A$4:$AX$552,7,FALSE),0) -> 1963 | J11: =IFERROR(VLOOKUP($A11,Filtro!$A$4:$AX$552,8,FALSE),0) -> 1851 | K11: =IFERROR(VLOOKUP($A11,Filtro!$A$4:$AX$552,9,FALSE),0) -> 1621 | L11: =IFERROR(VLOOKUP($A11,Filtro!$A$4:$AX$552,10,FALSE),0) -> 1319 | M11: =IFERROR(VLOOKUP($A11,Filtro!$A$4:$AX$552,11,FALSE),0) -> 850 | N11: =IFERROR(VLOOKUP($A11,Filtro!$A$4:$AX$552,12,FALSE),0) -> 0 | O11: =IFERROR(VLOOKUP($A11,Filtro!$A$4:$AX$552,13,FALSE),0) -> 169 | P11: =IFERROR(VLOOKUP($A11,Filtro!$A$4:$AX$552,14,FALSE),0) -> 142 | Q11: =IFERROR(VLOOKUP($A11,Filtro!$A$4:$AX$552,15,FALSE),0) -> 6 | R11: =($CA11&$CB11&$CC11&$CD11&$CE11&$CF11&$CG11&$CH11&$CI11&$CJ11&$CL11&$CM11&$CN11&$CO11&$CP11&$CQ11&$CR11&$CS11&$CT11&$CU11&$CV11&$CW11&$CX11&$CY11&$CZ11) ->  | CA11: =IF(DA11=1,"* La celda 'Pueblos Originarios' debe ser menor o igual al Total en control. ","") ->  | CB11: =IF(DB11=1,"* La celda 'Población Migrantes' debe ser menor o igual al Total en control. ","") ->  | CC11: =IF(DC11=1,"* No olvide escribir en la celda de 'Pueblos Originarios' (Digite CERO si no tiene). ","") ->  | CD11: =IF(DD11=1,"* No olvide escribir en la celda de 'Población Migrantes' (Digite CERO si no tiene). ","") ->  | DA11: =IF($O11>$D11,1,0) -> 0 | DB11: =IF($P11>$D11,1,0) -> 0 | DC11: =IF(AND(D11<>0,O11=""),1,0) -> 0 | DD11: =IF(AND(D11<>0,P11=""),1,0) -> 0
A12: P1060124 | B12: D . I . U con Levonorgestrel | D12: =IFERROR(VLOOKUP($A12,Filtro!$A$4:$AX$552,2,FALSE),0) -> 261 | E12: =IFERROR(VLOOKUP($A12,Filtro!$A$4:$AX$552,3,FALSE),0) -> 0 | F12: =IFERROR(VLOOKUP($A12,Filtro!$A$4:$AX$552,4,FALSE),0) -> 9 | G12: =IFERROR(VLOOKUP($A12,Filtro!$A$4:$AX$552,5,FALSE),0) -> 47 | H12: =IFERROR(VLOOKUP($A12,Filtro!$A$4:$AX$552,6,FALSE),0) -> 62 | I12: =IFERROR(VLOOKUP($A12,Filtro!$A$4:$AX$552,7,FALSE),0) -> 64 | J12: =IFERROR(VLOOKUP($A12,Filtro!$A$4:$AX$552,8,FALSE),0) -> 37 | K12: =IFERROR(VLOOKUP($A12,Filtro!$A$4:$AX$552,9,FALSE),0) -> 38 | L12: =IFERROR(VLOOKUP($A12,Filtro!$A$4:$AX$552,10,FALSE),0) -> 1 | M12: =IFERROR(VLOOKUP($A12,Filtro!$A$4:$AX$552,11,FALSE),0) -> 3 | N12: =IFERROR(VLOOKUP($A12,Filtro!$A$4:$AX$552,12,FALSE),0) -> 0 | O12: =IFERROR(VLOOKUP($A12,Filtro!$A$4:$AX$552,13,FALSE),0) -> 7 | P12: =IFERROR(VLOOKUP($A12,Filtro!$A$4:$AX$552,14,FALSE),0) -> 11 | Q12: =IFERROR(VLOOKUP($A12,Filtro!$A$4:$AX$552,15,FALSE),0) -> 0 | CA12: =IF(DA12=1,"* La celda 'Pueblos Originarios' debe ser menor o igual al Total en control. ","") ->  | CB12: =IF(DB12=1,"* La celda 'Población Migrantes' debe ser menor o igual al Total en control. ","") ->  | CC12: =IF(DC12=1,"* No olvide escribir en la celda de 'Pueblos Originarios' (Digite CERO si no tiene). ","") ->  | CD12: =IF(DD12=1,"* No olvide escribir en la celda de 'Población Migrantes' (Digite CERO si no tiene). ","") ->  | DA12: =IF($O12>$D12,1,0) -> 0 | DB12: =IF($P12>$D12,1,0) -> 0 | DC12: 0 | DD12: 0
A13: P1010201 | B13: HORMONAL | C13: Oral Combinado | D13: =IFERROR(VLOOKUP($A13,Filtro!$A$4:$AX$552,2,FALSE),0) -> 16735 | E13: =IFERROR(VLOOKUP($A13,Filtro!$A$4:$AX$552,3,FALSE),0) -> 223 | F13: =IFERROR(VLOOKUP($A13,Filtro!$A$4:$AX$552,4,FALSE),0) -> 2883 | G13: =IFERROR(VLOOKUP($A13,Filtro!$A$4:$AX$552,5,FALSE),0) -> 3222 | H13: =IFERROR(VLOOKUP($A13,Filtro!$A$4:$AX$552,6,FALSE),0) -> 2985 | I13: =IFERROR(VLOOKUP($A13,Filtro!$A$4:$AX$552,7,FALSE),0) -> 2691 | J13: =IFERROR(VLOOKUP($A13,Filtro!$A$4:$AX$552,8,FALSE),0) -> 2048 | K13: =IFERROR(VLOOKUP($A13,Filtro!$A$4:$AX$552,9,FALSE),0) -> 1586 | L13: =IFERROR(VLOOKUP($A13,Filtro!$A$4:$AX$552,10,FALSE),0) -> 870 | M13: =IFERROR(VLOOKUP($A13,Filtro!$A$4:$AX$552,11,FALSE),0) -> 227 | N13: =IFERROR(VLOOKUP($A13,Filtro!$A$4:$AX$552,12,FALSE),0) -> 0 | O13: =IFERROR(VLOOKUP($A13,Filtro!$A$4:$AX$552,13,FALSE),0) -> 148 | P13: =IFERROR(VLOOKUP($A13,Filtro!$A$4:$AX$552,14,FALSE),0) -> 267 | Q13: =IFERROR(VLOOKUP($A13,Filtro!$A$4:$AX$552,15,FALSE),0) -> 3 | DA13: 0 | DB13: 0 | DC13: 0 | DD13: 0
A14: P1010202 | C14: Oral Progestágeno | D14: =IFERROR(VLOOKUP($A14,Filtro!$A$4:$AX$552,2,FALSE),0) -> 4731 | E14: =IFERROR(VLOOKUP($A14,Filtro!$A$4:$AX$552,3,FALSE),0) -> 8 | F14: =IFERROR(VLOOKUP($A14,Filtro!$A$4:$AX$552,4,FALSE),0) -> 137 | G14: =IFERROR(VLOOKUP($A14,Filtro!$A$4:$AX$552,5,FALSE),0) -> 466 | H14: =IFERROR(VLOOKUP($A14,Filtro!$A$4:$AX$552,6,FALSE),0) -> 689 | I14: =IFERROR(VLOOKUP($A14,Filtro!$A$4:$AX$552,7,FALSE),0) -> 674 | J14: =IFERROR(VLOOKUP($A14,Filtro!$A$4:$AX$552,8,FALSE),0) -> 581 | K14: =IFERROR(VLOOKUP($A14,Filtro!$A$4:$AX$552,9,FALSE),0) -> 716 | L14: =IFERROR(VLOOKUP($A14,Filtro!$A$4:$AX$552,10,FALSE),0) -> 1004 | M14: =IFERROR(VLOOKUP($A14,Filtro!$A$4:$AX$552,11,FALSE),0) -> 456 | N14: =IFERROR(VLOOKUP($A14,Filtro!$A$4:$AX$552,12,FALSE),0) -> 0 | O14: =IFERROR(VLOOKUP($A14,Filtro!$A$4:$AX$552,13,FALSE),0) -> 39 | P14: =IFERROR(VLOOKUP($A14,Filtro!$A$4:$AX$552,14,FALSE),0) -> 116 | Q14: =IFERROR(VLOOKUP($A14,Filtro!$A$4:$AX$552,15,FALSE),0) -> 0 | DA14: 0 | DB14: 0 | DC14: 0 | DD14: 0
A15: P1010203 | C15: Inyectable Combinado | D15: =IFERROR(VLOOKUP($A15,Filtro!$A$4:$AX$552,2,FALSE),0) -> 8171 | E15: =IFERROR(VLOOKUP($A15,Filtro!$A$4:$AX$552,3,FALSE),0) -> 80 | F15: =IFERROR(VLOOKUP($A15,Filtro!$A$4:$AX$552,4,FALSE),0) -> 1300 | G15: =IFERROR(VLOOKUP($A15,Filtro!$A$4:$AX$552,5,FALSE),0) -> 1999 | H15: =IFERROR(VLOOKUP($A15,Filtro!$A$4:$AX$552,6,FALSE),0) -> 1761 | I15: =IFERROR(VLOOKUP($A15,Filtro!$A$4:$AX$552,7,FALSE),0) -> 1289 | J15: =IFERROR(VLOOKUP($A15,Filtro!$A$4:$AX$552,8,FALSE),0) -> 885 | K15: =IFERROR(VLOOKUP($A15,Filtro!$A$4:$AX$552,9,FALSE),0) -> 578 | L15: =IFERROR(VLOOKUP($A15,Filtro!$A$4:$AX$552,10,FALSE),0) -> 247 | M15: =IFERROR(VLOOKUP($A15,Filtro!$A$4:$AX$552,11,FALSE),0) -> 32 | N15: =IFERROR(VLOOKUP($A15,Filtro!$A$4:$AX$552,12,FALSE),0) -> 0 | O15: =IFERROR(VLOOKUP($A15,Filtro!$A$4:$AX$552,13,FALSE),0) -> 94 | P15: =IFERROR(VLOOKUP($A15,Filtro!$A$4:$AX$552,14,FALSE),0) -> 182 | Q15: =IFERROR(VLOOKUP($A15,Filtro!$A$4:$AX$552,15,FALSE),0) -> 2 | DA15: 0 | DB15: 0 | DC15: 0 | DD15: 0
A16: P1040508 | C16: Inyectable Progestágeno | D16: =IFERROR(VLOOKUP($A16,Filtro!$A$4:$AX$552,2,FALSE),0) -> 11777 | E16: =IFERROR(VLOOKUP($A16,Filtro!$A$4:$AX$552,3,FALSE),0) -> 82 | F16: =IFERROR(VLOOKUP($A16,Filtro!$A$4:$AX$552,4,FALSE),0) -> 1214 | G16: =IFERROR(VLOOKUP($A16,Filtro!$A$4:$AX$552,5,FALSE),0) -> 2205 | H16: =IFERROR(VLOOKUP($A16,Filtro!$A$4:$AX$552,6,FALSE),0) -> 2486 | I16: =IFERROR(VLOOKUP($A16,Filtro!$A$4:$AX$552,7,FALSE),0) -> 1898 | J16: =IFERROR(VLOOKUP($A16,Filtro!$A$4:$AX$552,8,FALSE),0) -> 2014 | K16: =IFERROR(VLOOKUP($A16,Filtro!$A$4:$AX$552,9,FALSE),0) -> 909 | L16: =IFERROR(VLOOKUP($A16,Filtro!$A$4:$AX$552,10,FALSE),0) -> 747 | M16: =IFERROR(VLOOKUP($A16,Filtro!$A$4:$AX$552,11,FALSE),0) -> 222 | N16: =IFERROR(VLOOKUP($A16,Filtro!$A$4:$AX$552,12,FALSE),0) -> 0 | O16: =IFERROR(VLOOKUP($A16,Filtro!$A$4:$AX$552,13,FALSE),0) -> 132 | P16: =IFERROR(VLOOKUP($A16,Filtro!$A$4:$AX$552,14,FALSE),0) -> 469 | Q16: =IFERROR(VLOOKUP($A16,Filtro!$A$4:$AX$552,15,FALSE),0) -> 5 | DA16: 0 | DB16: 0 | DC16: 0 | DD16: 0
A17: P1040500 | C17: Implante Etonogestrel (3 años) | D17: =IFERROR(VLOOKUP($A17,Filtro!$A$4:$AX$552,2,FALSE),0) -> 9895 | E17: =IFERROR(VLOOKUP($A17,Filtro!$A$4:$AX$552,3,FALSE),0) -> 91 | F17: =IFERROR(VLOOKUP($A17,Filtro!$A$4:$AX$552,4,FALSE),0) -> 1743 | G17: =IFERROR(VLOOKUP($A17,Filtro!$A$4:$AX$552,5,FALSE),0) -> 2635 | H17: =IFERROR(VLOOKUP($A17,Filtro!$A$4:$AX$552,6,FALSE),0) -> 2359 | I17: =IFERROR(VLOOKUP($A17,Filtro!$A$4:$AX$552,7,FALSE),0) -> 1534 | J17: =IFERROR(VLOOKUP($A17,Filtro!$A$4:$AX$552,8,FALSE),0) -> 927 | K17: =IFERROR(VLOOKUP($A17,Filtro!$A$4:$AX$552,9,FALSE),0) -> 434 | L17: =IFERROR(VLOOKUP($A17,Filtro!$A$4:$AX$552,10,FALSE),0) -> 154 | M17: =IFERROR(VLOOKUP($A17,Filtro!$A$4:$AX$552,11,FALSE),0) -> 18 | N17: =IFERROR(VLOOKUP($A17,Filtro!$A$4:$AX$552,12,FALSE),0) -> 0 | O17: =IFERROR(VLOOKUP($A17,Filtro!$A$4:$AX$552,13,FALSE),0) -> 91 | P17: =IFERROR(VLOOKUP($A17,Filtro!$A$4:$AX$552,14,FALSE),0) -> 421 | Q17: =IFERROR(VLOOKUP($A17,Filtro!$A$4:$AX$552,15,FALSE),0) -> 5 | CA17: =IF(DA17=1,"* La celda 'Pueblos Originarios' debe ser menor o igual al Total en control. ","") ->  | CB17: =IF(DB17=1,"* La celda 'Población Migrantes' debe ser menor o igual al Total en control. ","") ->  | CC17: =IF(DC17=1,"* No olvide escribir en la celda de 'Pueblos Originarios' (Digite CERO si no tiene). ","") ->  | CD17: =IF(DD17=1,"* No olvide escribir en la celda de 'Población Migrantes' (Digite CERO si no tiene). ","") ->  | DA17: 0 | DB17: 0 | DC17: 0 | DD17: 0
A18: P1200190 | C18: Implante Levonorgestrel (5 años) | D18: =IFERROR(VLOOKUP($A18,Filtro!$A$4:$AX$552,2,FALSE),0) -> 1246 | E18: =IFERROR(VLOOKUP($A18,Filtro!$A$4:$AX$552,3,FALSE),0) -> 23 | F18: =IFERROR(VLOOKUP($A18,Filtro!$A$4:$AX$552,4,FALSE),0) -> 313 | G18: =IFERROR(VLOOKUP($A18,Filtro!$A$4:$AX$552,5,FALSE),0) -> 324 | H18: =IFERROR(VLOOKUP($A18,Filtro!$A$4:$AX$552,6,FALSE),0) -> 253 | I18: =IFERROR(VLOOKUP($A18,Filtro!$A$4:$AX$552,7,FALSE),0) -> 190 | J18: =IFERROR(VLOOKUP($A18,Filtro!$A$4:$AX$552,8,FALSE),0) -> 95 | K18: =IFERROR(VLOOKUP($A18,Filtro!$A$4:$AX$552,9,FALSE),0) -> 40 | L18: =IFERROR(VLOOKUP($A18,Filtro!$A$4:$AX$552,10,FALSE),0) -> 7 | M18: =IFERROR(VLOOKUP($A18,Filtro!$A$4:$AX$552,11,FALSE),0) -> 1 | N18: =IFERROR(VLOOKUP($A18,Filtro!$A$4:$AX$552,12,FALSE),0) -> 0 | O18: =IFERROR(VLOOKUP($A18,Filtro!$A$4:$AX$552,13,FALSE),0) -> 9 | P18: =IFERROR(VLOOKUP($A18,Filtro!$A$4:$AX$552,14,FALSE),0) -> 52 | Q18: =IFERROR(VLOOKUP($A18,Filtro!$A$4:$AX$552,15,FALSE),0) -> 0 | CA18: =IF(DA18=1,"* La celda 'Pueblos Originarios' debe ser menor o igual al Total en control. ","") ->  | CB18: =IF(DB18=1,"* La celda 'Población Migrantes' debe ser menor o igual al Total en control. ","") ->  | CC18: =IF(DC18=1,"* No olvide escribir en la celda de 'Pueblos Originarios' (Digite CERO si no tiene). ","") ->  | CD18: =IF(DD18=1,"* No olvide escribir en la celda de 'Población Migrantes' (Digite CERO si no tiene). ","") ->  | DA18: 0 | DB18: 0 | DC18: 0 | DD18: 0
A19: P1010301 | B19: SÓLO PRESERVATIVO MAC | C19: Mujer | D19: =IFERROR(VLOOKUP($A19,Filtro!$A$4:$AX$552,2,FALSE),0) -> 1490 | E19: =IFERROR(VLOOKUP($A19,Filtro!$A$4:$AX$552,3,FALSE),0) -> 15 | F19: =IFERROR(VLOOKUP($A19,Filtro!$A$4:$AX$552,4,FALSE),0) -> 142 | G19: =IFERROR(VLOOKUP($A19,Filtro!$A$4:$AX$552,5,FALSE),0) -> 209 | H19: =IFERROR(VLOOKUP($A19,Filtro!$A$4:$AX$552,6,FALSE),0) -> 224 | I19: =IFERROR(VLOOKUP($A19,Filtro!$A$4:$AX$552,7,FALSE),0) -> 233 | J19: =IFERROR(VLOOKUP($A19,Filtro!$A$4:$AX$552,8,FALSE),0) -> 188 | K19: =IFERROR(VLOOKUP($A19,Filtro!$A$4:$AX$552,9,FALSE),0) -> 173 | L19: =IFERROR(VLOOKUP($A19,Filtro!$A$4:$AX$552,10,FALSE),0) -> 155 | M19: =IFERROR(VLOOKUP($A19,Filtro!$A$4:$AX$552,11,FALSE),0) -> 141 | N19: =IFERROR(VLOOKUP($A19,Filtro!$A$4:$AX$552,12,FALSE),0) -> 10 | O19: =IFERROR(VLOOKUP($A19,Filtro!$A$4:$AX$552,13,FALSE),0) -> 3 | P19: =IFERROR(VLOOKUP($A19,Filtro!$A$4:$AX$552,14,FALSE),0) -> 46 | Q19: =IFERROR(VLOOKUP($A19,Filtro!$A$4:$AX$552,15,FALSE),0) -> 2 | DA19: 0 | DB19: 0 | DC19: 0 | DD19: 0
A20: P1010302 | C20: Hombres | D20: =IFERROR(VLOOKUP($A20,Filtro!$A$4:$AX$552,2,FALSE),0) -> 360 | E20: =IFERROR(VLOOKUP($A20,Filtro!$A$4:$AX$552,3,FALSE),0) -> 16 | F20: =IFERROR(VLOOKUP($A20,Filtro!$A$4:$AX$552,4,FALSE),0) -> 154 | G20: =IFERROR(VLOOKUP($A20,Filtro!$A$4:$AX$552,5,FALSE),0) -> 57 | H20: =IFERROR(VLOOKUP($A20,Filtro!$A$4:$AX$552,6,FALSE),0) -> 41 | I20: =IFERROR(VLOOKUP($A20,Filtro!$A$4:$AX$552,7,FALSE),0) -> 30 | J20: =IFERROR(VLOOKUP($A20,Filtro!$A$4:$AX$552,8,FALSE),0) -> 14 | K20: =IFERROR(VLOOKUP($A20,Filtro!$A$4:$AX$552,9,FALSE),0) -> 18 | L20: =IFERROR(VLOOKUP($A20,Filtro!$A$4:$AX$552,10,FALSE),0) -> 11 | M20: =IFERROR(VLOOKUP($A20,Filtro!$A$4:$AX$552,11,FALSE),0) -> 11 | N20: =IFERROR(VLOOKUP($A20,Filtro!$A$4:$AX$552,12,FALSE),0) -> 8 | O20: =IFERROR(VLOOKUP($A20,Filtro!$A$4:$AX$552,13,FALSE),0) -> 1 | P20: =IFERROR(VLOOKUP($A20,Filtro!$A$4:$AX$552,14,FALSE),0) -> 17 | Q20: =IFERROR(VLOOKUP($A20,Filtro!$A$4:$AX$552,15,FALSE),0) -> 7 | DA20: 0 | DB20: 0 | DC20: 0 | DD20: 0
A21: P1200240 | B21: ESTERILIZACIÓN QUIRURGICA | C21: Mujer | D21: =IFERROR(VLOOKUP($A21,Filtro!$A$4:$AX$552,2,FALSE),0) -> 2736 | E21: =IFERROR(VLOOKUP($A21,Filtro!$A$4:$AX$552,3,FALSE),0) -> 0 | F21: =IFERROR(VLOOKUP($A21,Filtro!$A$4:$AX$552,4,FALSE),0) -> 0 | G21: =IFERROR(VLOOKUP($A21,Filtro!$A$4:$AX$552,5,FALSE),0) -> 22 | H21: =IFERROR(VLOOKUP($A21,Filtro!$A$4:$AX$552,6,FALSE),0) -> 138 | I21: =IFERROR(VLOOKUP($A21,Filtro!$A$4:$AX$552,7,FALSE),0) -> 316 | J21: =IFERROR(VLOOKUP($A21,Filtro!$A$4:$AX$552,8,FALSE),0) -> 549 | K21: =IFERROR(VLOOKUP($A21,Filtro!$A$4:$AX$552,9,FALSE),0) -> 586 | L21: =IFERROR(VLOOKUP($A21,Filtro!$A$4:$AX$552,10,FALSE),0) -> 524 | M21: =IFERROR(VLOOKUP($A21,Filtro!$A$4:$AX$552,11,FALSE),0) -> 601 | N21: =IFERROR(VLOOKUP($A21,Filtro!$A$4:$AX$552,12,FALSE),0) -> 0 | O21: =IFERROR(VLOOKUP($A21,Filtro!$A$4:$AX$552,13,FALSE),0) -> 42 | P21: =IFERROR(VLOOKUP($A21,Filtro!$A$4:$AX$552,14,FALSE),0) -> 40 | Q21: =IFERROR(VLOOKUP($A21,Filtro!$A$4:$AX$552,15,FALSE),0) -> 4 | CA21: =IF(DA21=1,"* La celda 'Pueblos Originarios' debe ser menor o igual al Total en control. ","") ->  | CB21: =IF(DB21=1,"* La celda 'Población Migrantes' debe ser menor o igual al Total en control. ","") ->  | CC21: =IF(DC21=1,"* No olvide escribir en la celda de 'Pueblos Originarios' (Digite CERO si no tiene). ","") ->  | CD21: =IF(DD21=1,"* No olvide escribir en la celda de 'Población Migrantes' (Digite CERO si no tiene). ","") ->  | DA21: 0 | DB21: 0 | DC21: 0 | DD21: 0
A22: P1200250 | C22: Hombres | D22: =IFERROR(VLOOKUP($A22,Filtro!$A$4:$AX$552,2,FALSE),0) -> 139 | E22: =IFERROR(VLOOKUP($A22,Filtro!$A$4:$AX$552,3,FALSE),0) -> 0 | F22: =IFERROR(VLOOKUP($A22,Filtro!$A$4:$AX$552,4,FALSE),0) -> 0 | G22: =IFERROR(VLOOKUP($A22,Filtro!$A$4:$AX$552,5,FALSE),0) -> 0 | H22: =IFERROR(VLOOKUP($A22,Filtro!$A$4:$AX$552,6,FALSE),0) -> 1 | I22: =IFERROR(VLOOKUP($A22,Filtro!$A$4:$AX$552,7,FALSE),0) -> 6 | J22: =IFERROR(VLOOKUP($A22,Filtro!$A$4:$AX$552,8,FALSE),0) -> 25 | K22: =IFERROR(VLOOKUP($A22,Filtro!$A$4:$AX$552,9,FALSE),0) -> 41 | L22: =IFERROR(VLOOKUP($A22,Filtro!$A$4:$AX$552,10,FALSE),0) -> 40 | M22: =IFERROR(VLOOKUP($A22,Filtro!$A$4:$AX$552,11,FALSE),0) -> 26 | N22: =IFERROR(VLOOKUP($A22,Filtro!$A$4:$AX$552,12,FALSE),0) -> 0 | O22: =IFERROR(VLOOKUP($A22,Filtro!$A$4:$AX$552,13,FALSE),0) -> 0 | P22: =IFERROR(VLOOKUP($A22,Filtro!$A$4:$AX$552,14,FALSE),0) -> 4 | Q22: =IFERROR(VLOOKUP($A22,Filtro!$A$4:$AX$552,15,FALSE),0) -> 0 | CA22: =IF(DA22=1,"* La celda 'Pueblos Originarios' debe ser menor o igual al Total en control. ","") ->  | CB22: =IF(DB22=1,"* La celda 'Población Migrantes' debe ser menor o igual al Total en control. ","") ->  | CC22: =IF(DC22=1,"* No olvide escribir en la celda de 'Pueblos Originarios' (Digite CERO si no tiene). ","") ->  | CD22: =IF(DD22=1,"* No olvide escribir en la celda de 'Población Migrantes' (Digite CERO si no tiene). ","") ->  | DA22: 0 | DB22: 0 | DC22: 0 | DD22: 0
B23: TOTAL | D23: =SUM(E23:N23) -> 67744 | E23: =SUM(E11:E22) -> 538 | F23: =SUM(F11:F22) -> 7965 | G23: =SUM(G11:G22) -> 11919 | H23: 12795 | I23: 10888 | J23: 9214 | K23: 6740 | L23: 5079 | M23: 2588 | N23: =SUM(N19:N20) -> 18 | O23: =SUM(O11:O22) -> 735 | P23: =SUM(P11:P22) -> 1767 | Q23: =SUM(Q11:Q22) -> 34
A24: P1060010 | B24: Mujeres en control que padecen enfermedad cardiovascular (DM-HTA) | D24: =IFERROR(VLOOKUP($A24,Filtro!$A$4:$AX$552,2,FALSE),0) -> 2586 | E24: =IFERROR(VLOOKUP($A24,Filtro!$A$4:$AX$552,3,FALSE),0) -> 0 | F24: =IFERROR(VLOOKUP($A24,Filtro!$A$4:$AX$552,4,FALSE),0) -> 19 | G24: =IFERROR(VLOOKUP($A24,Filtro!$A$4:$AX$552,5,FALSE),0) -> 84 | H24: =IFERROR(VLOOKUP($A24,Filtro!$A$4:$AX$552,6,FALSE),0) -> 126 | I24: =IFERROR(VLOOKUP($A24,Filtro!$A$4:$AX$552,7,FALSE),0) -> 215 | J24: =IFERROR(VLOOKUP($A24,Filtro!$A$4:$AX$552,8,FALSE),0) -> 350 | K24: =IFERROR(VLOOKUP($A24,Filtro!$A$4:$AX$552,9,FALSE),0) -> 580 | L24: =IFERROR(VLOOKUP($A24,Filtro!$A$4:$AX$552,10,FALSE),0) -> 712 | M24: =IFERROR(VLOOKUP($A24,Filtro!$A$4:$AX$552,11,FALSE),0) -> 422 | N24: =IFERROR(VLOOKUP($A24,Filtro!$A$4:$AX$552,12,FALSE),0) -> 78 | O24: =IFERROR(VLOOKUP($A24,Filtro!$A$4:$AX$552,13,FALSE),0) -> 6 | P24: =IFERROR(VLOOKUP($A24,Filtro!$A$4:$AX$552,14,FALSE),0) -> 5 | Q24: =IFERROR(VLOOKUP($A24,Filtro!$A$4:$AX$552,15,FALSE),0) -> 0 | CA24: =IF(DA24=1,"* La celda 'Pueblos Originarios' debe ser menor o igual al Total en control. ","") ->  | CB24: =IF(DB24=1,"* La celda 'Población Migrantes' debe ser menor o igual al Total en control. ","") ->  | CC24: =IF(DC24=1,"* No olvide escribir en la celda de 'Pueblos Originarios' (Digite CERO si no tiene). ","") ->  | CD24: =IF(DD24=1,"* No olvide escribir en la celda de 'Población Migrantes' (Digite CERO si no tiene). ","") ->  | CE24: =IF(DE24=1,CONCATENATE("* ",$B24," ",E$10," no debe ser mayor que total mujeres con método reg. Fecundidad."), "") ->  | CN24: * Mujeres en control que padecen enfermedad cardiovascular (DM-HTA) 55 y más años no debe ser mayor que total mujeres con método reg. Fecundidad. | CR24: =IF(DR24=1,CONCATENATE("* ",$B24," ",#REF!," no debe ser mayor que total mujeres con método reg. Fecundidad."), "") ->  | DA24: =IF(AND(D24<>0,O24=""),1,0) -> 0 | DB24: =IF(AND(D24<>0,P24=""),1,0) -> 0 | DC24: =IF(O24>D24,1,0) -> 0 | DD24: =IF(P24>D24,1,0) -> 0 | DE24: =IF(E24>(E11+E12+E13+E14+E15+E16+E17+E18+E19+E21),1, 0) -> 0 | DF24: 0 | DG24: 0 | DH24: 0 | DI24: 0 | DJ24: 0 | DK24: 0 | DL24: 0 | DM24: 0 | DN24: 1 | DO24: 0 | DP24: 0 | DQ24: 0
A25: P1060020 | B25: Mujeres con Retiro de Implante Anticipado en el semestre (antes de los 3 años) | D25: =IFERROR(VLOOKUP($A25,Filtro!$A$4:$AX$552,2,FALSE),0) -> 217 | E25: =IFERROR(VLOOKUP($A25,Filtro!$A$4:$AX$552,3,FALSE),0) -> 1 | F25: =IFERROR(VLOOKUP($A25,Filtro!$A$4:$AX$552,4,FALSE),0) -> 35 | G25: =IFERROR(VLOOKUP($A25,Filtro!$A$4:$AX$552,5,FALSE),0) -> 69 | H25: =IFERROR(VLOOKUP($A25,Filtro!$A$4:$AX$552,6,FALSE),0) -> 49 | I25: =IFERROR(VLOOKUP($A25,Filtro!$A$4:$AX$552,7,FALSE),0) -> 30 | J25: =IFERROR(VLOOKUP($A25,Filtro!$A$4:$AX$552,8,FALSE),0) -> 22 | K25: =IFERROR(VLOOKUP($A25,Filtro!$A$4:$AX$552,9,FALSE),0) -> 7 | L25: =IFERROR(VLOOKUP($A25,Filtro!$A$4:$AX$552,10,FALSE),0) -> 4 | M25: =IFERROR(VLOOKUP($A25,Filtro!$A$4:$AX$552,11,FALSE),0) -> 0 | N25: =IFERROR(VLOOKUP($A25,Filtro!$A$4:$AX$552,12,FALSE),0) -> 0 | O25: =IFERROR(VLOOKUP($A25,Filtro!$A$4:$AX$552,13,FALSE),0) -> 4 | P25: =IFERROR(VLOOKUP($A25,Filtro!$A$4:$AX$552,14,FALSE),0) -> 9 | Q25: =IFERROR(VLOOKUP($A25,Filtro!$A$4:$AX$552,15,FALSE),0) -> 0 | CA25: =IF(DA25=1,"* La celda 'Pueblos Originarios' debe ser menor o igual al Total en control. ","") ->  | CB25: =IF(DB25=1,"* La celda 'Población Migrantes' debe ser menor o igual al Total en control. ","") ->  | CC25: =IF(DC25=1,"* No olvide escribir en la celda de 'Pueblos Originarios' (Digite CERO si no tiene). ","") ->  | CD25: =IF(DD25=1,"* No olvide escribir en la celda de 'Población Migrantes' (Digite CERO si no tiene). ","") ->  | CE25: =IF(DE25=1,CONCATENATE("* ",$B25," ",E$10," no debe ser mayor que total mujeres en Método Hormonal con Implante Etonogestrel (3 años)."), "") ->  | CR25: =IF(DR25=1,CONCATENATE("* ",$B25," ",#REF!," no debe ser mayor que total mujeres en Método Hormonal con Implante Etonogestrel (3 años)."), "") ->  | DA25: 0 | DB25: 0 | DC25: 0 | DD25: 0 | DE25: =IF(E25>(E17),1,0) -> 0 | DF25: 0 | DG25: 0 | DH25: 0 | DI25: 0 | DJ25: 0 | DK25: 0 | DL25: 0 | DM25: =IF(M25>(M17),"* Mujeres con Retiro de Implante Anticipado en el semestre (antes de los 3 años) de 50 a 54 años no debe ser mayor que total mujeres en Método Hormonal con Implante Etonogestrel (3 años). ",0) -> 0 | DO25: =IF(O25>(O17),1,0) -> 0 | DP25: 0 | DQ25: 0
A26: P1200260 | B26: Mujeres con Retiro de Implante Anticipado en el semestre (antes de los 5 años) | D26: =IFERROR(VLOOKUP($A26,Filtro!$A$4:$AX$552,2,FALSE),0) -> 43 | E26: =IFERROR(VLOOKUP($A26,Filtro!$A$4:$AX$552,3,FALSE),0) -> 0 | F26: =IFERROR(VLOOKUP($A26,Filtro!$A$4:$AX$552,4,FALSE),0) -> 6 | G26: =IFERROR(VLOOKUP($A26,Filtro!$A$4:$AX$552,5,FALSE),0) -> 14 | H26: =IFERROR(VLOOKUP($A26,Filtro!$A$4:$AX$552,6,FALSE),0) -> 12 | I26: =IFERROR(VLOOKUP($A26,Filtro!$A$4:$AX$552,7,FALSE),0) -> 5 | J26: =IFERROR(VLOOKUP($A26,Filtro!$A$4:$AX$552,8,FALSE),0) -> 6 | K26: =IFERROR(VLOOKUP($A26,Filtro!$A$4:$AX$552,9,FALSE),0) -> 0 | L26: =IFERROR(VLOOKUP($A26,Filtro!$A$4:$AX$552,10,FALSE),0) -> 0 | M26: =IFERROR(VLOOKUP($A26,Filtro!$A$4:$AX$552,11,FALSE),0) -> 0 | N26: =IFERROR(VLOOKUP($A26,Filtro!$A$4:$AX$552,12,FALSE),0) -> 0 | O26: =IFERROR(VLOOKUP($A26,Filtro!$A$4:$AX$552,13,FALSE),0) -> 0 | P26: =IFERROR(VLOOKUP($A26,Filtro!$A$4:$AX$552,14,FALSE),0) -> 1 | Q26: =IFERROR(VLOOKUP($A26,Filtro!$A$4:$AX$552,15,FALSE),0) -> 0 | CE26: =IF(DE26=1,CONCATENATE("* ",$B26," ",E$10," no debe ser mayor que total mujeres en Método Hormonal con Implante Etonogestrel (5 años)."), "") ->  | CR26: =IF(DR26=1,CONCATENATE("* ",$B26," ",#REF!," no debe ser mayor que total mujeres en Método Hormonal con Implante Etonogestrel (5 años)."), "") ->  | DA26: 0 | DB26: 0 | DC26: 0 | DD26: 0 | DE26: 0 | DF26: 0 | DG26: 0 | DH26: 0 | DI26: 0 | DJ26: 0 | DK26: 0 | DL26: 0 | DM26: =IF(M26>(M18),"* Mujeres con Retiro de Implante Anticipado en el semestre (antes de los 5 años) de 50 a 54 años no debe ser mayor que total mujeres en Método Hormonal con Implante Etonogestrel (5 años). ",0) -> 0 | DO26: 0 | DP26: 0 | DQ26: 0
A27: P1060090 | B27: Método de Regulación de Fertilidad más Preservativo | D27: =IFERROR(VLOOKUP($A27,Filtro!$A$4:$AX$552,2,FALSE),0) -> 4660 | E27: =IFERROR(VLOOKUP($A27,Filtro!$A$4:$AX$552,3,FALSE),0) -> 128 | F27: =IFERROR(VLOOKUP($A27,Filtro!$A$4:$AX$552,4,FALSE),0) -> 1560 | G27: =IFERROR(VLOOKUP($A27,Filtro!$A$4:$AX$552,5,FALSE),0) -> 945 | H27: =IFERROR(VLOOKUP($A27,Filtro!$A$4:$AX$552,6,FALSE),0) -> 752 | I27: =IFERROR(VLOOKUP($A27,Filtro!$A$4:$AX$552,7,FALSE),0) -> 504 | J27: =IFERROR(VLOOKUP($A27,Filtro!$A$4:$AX$552,8,FALSE),0) -> 344 | K27: =IFERROR(VLOOKUP($A27,Filtro!$A$4:$AX$552,9,FALSE),0) -> 194 | L27: =IFERROR(VLOOKUP($A27,Filtro!$A$4:$AX$552,10,FALSE),0) -> 153 | M27: =IFERROR(VLOOKUP($A27,Filtro!$A$4:$AX$552,11,FALSE),0) -> 77 | N27: =IFERROR(VLOOKUP($A27,Filtro!$A$4:$AX$552,12,FALSE),0) -> 3 | O27: =IFERROR(VLOOKUP($A27,Filtro!$A$4:$AX$552,13,FALSE),0) -> 26 | P27: =IFERROR(VLOOKUP($A27,Filtro!$A$4:$AX$552,14,FALSE),0) -> 83 | Q27: =IFERROR(VLOOKUP($A27,Filtro!$A$4:$AX$552,15,FALSE),0) -> 4 | CE27: =IF(DE27=1,CONCATENATE("* ",$B27," ",E$10," no debe ser mayor que total mujeres con Método Preservativo MAC."), "") -> * Método de Regulación de Fertilidad más Preservativo Menor de 15 años no debe ser mayor que total mujeres con Método Preservativo MAC. | CF27: * Método de Regulación de Fertilidad más Preservativo 15 a 19 años no debe ser mayor que total mujeres con Método Preservativo MAC. | CG27: * Método de Regulación de Fertilidad más Preservativo 20 a 24 años no debe ser mayor que total mujeres con Método Preservativo MAC. | CH27: * Método de Regulación de Fertilidad más Preservativo 25 a 29 años no debe ser mayor que total mujeres con Método Preservativo MAC. | CI27: * Método de Regulación de Fertilidad más Preservativo 30 a 34 años no debe ser mayor que total mujeres con Método Preservativo MAC. | CJ27: * Método de Regulación de Fertilidad más Preservativo 35 a 39 años no debe ser mayor que total mujeres con Método Preservativo MAC. | CK27: * Método de Regulación de Fertilidad más Preservativo 40 a 44 años no debe ser mayor que total mujeres con Método Preservativo MAC. | CO27: * Método de Regulación de Fertilidad más Preservativo no debe ser mayor que total mujeres con Método Preservativo MAC. | CP27: * Método de Regulación de Fertilidad más Preservativo no debe ser mayor que total mujeres con Método Preservativo MAC. | CQ27: * Método de Regulación de Fertilidad más Preservativo no debe ser mayor que total mujeres con Método Preservativo MAC. | CR27: =IF(DR27=1,CONCATENATE("* ",$B27," ",#REF!," no debe ser mayor que total mujeres con Método Preservativo MAC."), "") ->  | DA27: 0 | DB27: 0 | DC27: 0 | DD27: 0 | DE27: 1 | DF27: 1 | DG27: 1 | DH27: 1 | DI27: 1 | DJ27: 1 | DK27: 1 | DL27: 0 | DM27: =IF(M27>(M19),1,0) -> 0 | DN27: =IF(N27>(N19),1,0) -> 0 | DO27: 1 | DP27: 1 | DQ27: 1
A28: P1200270 | B28: Gestantes que reciben preservativo | D28: =IFERROR(VLOOKUP($A28,Filtro!$A$4:$AX$552,2,FALSE),0) -> 549 | E28: =IFERROR(VLOOKUP($A28,Filtro!$A$4:$AX$552,3,FALSE),0) -> 3 | F28: =IFERROR(VLOOKUP($A28,Filtro!$A$4:$AX$552,4,FALSE),0) -> 52 | G28: =IFERROR(VLOOKUP($A28,Filtro!$A$4:$AX$552,5,FALSE),0) -> 141 | H28: =IFERROR(VLOOKUP($A28,Filtro!$A$4:$AX$552,6,FALSE),0) -> 159 | I28: =IFERROR(VLOOKUP($A28,Filtro!$A$4:$AX$552,7,FALSE),0) -> 97 | J28: =IFERROR(VLOOKUP($A28,Filtro!$A$4:$AX$552,8,FALSE),0) -> 70 | K28: =IFERROR(VLOOKUP($A28,Filtro!$A$4:$AX$552,9,FALSE),0) -> 21 | L28: =IFERROR(VLOOKUP($A28,Filtro!$A$4:$AX$552,10,FALSE),0) -> 3 | M28: =IFERROR(VLOOKUP($A28,Filtro!$A$4:$AX$552,11,FALSE),0) -> 3 | N28: =IFERROR(VLOOKUP($A28,Filtro!$A$4:$AX$552,12,FALSE),0) -> 0 | O28: =IFERROR(VLOOKUP($A28,Filtro!$A$4:$AX$552,13,FALSE),0) -> 9 | P28: =IFERROR(VLOOKUP($A28,Filtro!$A$4:$AX$552,14,FALSE),0) -> 16 | Q28: =IFERROR(VLOOKUP($A28,Filtro!$A$4:$AX$552,15,FALSE),0) -> 1 | DA28: 0 | DB28: 0 | DC28: 0 | DD28: 0
A29: P1200200 | B29: PRESERVATIVO/PRACTICA SEXUAL SEGURA | C29: Mujer | D29: =IFERROR(VLOOKUP($A29,Filtro!$A$4:$AX$552,2,FALSE),0) -> 622 | E29: =IFERROR(VLOOKUP($A29,Filtro!$A$4:$AX$552,3,FALSE),0) -> 15 | F29: =IFERROR(VLOOKUP($A29,Filtro!$A$4:$AX$552,4,FALSE),0) -> 215 | G29: =IFERROR(VLOOKUP($A29,Filtro!$A$4:$AX$552,5,FALSE),0) -> 146 | H29: =IFERROR(VLOOKUP($A29,Filtro!$A$4:$AX$552,6,FALSE),0) -> 90 | I29: =IFERROR(VLOOKUP($A29,Filtro!$A$4:$AX$552,7,FALSE),0) -> 64 | J29: =IFERROR(VLOOKUP($A29,Filtro!$A$4:$AX$552,8,FALSE),0) -> 37 | K29: =IFERROR(VLOOKUP($A29,Filtro!$A$4:$AX$552,9,FALSE),0) -> 28 | L29: =IFERROR(VLOOKUP($A29,Filtro!$A$4:$AX$552,10,FALSE),0) -> 17 | M29: =IFERROR(VLOOKUP($A29,Filtro!$A$4:$AX$552,11,FALSE),0) -> 8 | N29: =IFERROR(VLOOKUP($A29,Filtro!$A$4:$AX$552,12,FALSE),0) -> 2 | O29: =IFERROR(VLOOKUP($A29,Filtro!$A$4:$AX$552,13,FALSE),0) -> 0 | P29: =IFERROR(VLOOKUP($A29,Filtro!$A$4:$AX$552,14,FALSE),0) -> 48 | Q29: =IFERROR(VLOOKUP($A29,Filtro!$A$4:$AX$552,15,FALSE),0) -> 2 | CA29: =IF(DA29=1,"* La celda 'Pueblos Originarios' debe ser menor o igual al Total en control. ","") ->  | CB29: =IF(DB29=1,"* La celda 'Población Migrantes' debe ser menor o igual al Total en control. ","") ->  | CC29: =IF(DC29=1,"* No olvide escribir en la celda de 'Pueblos Originarios' (Digite CERO si no tiene). ","") ->  | CD29: =IF(DD29=1,"* No olvide escribir en la celda de 'Población Migrantes' (Digite CERO si no tiene). ","") ->  | DA29: 0 | DB29: 0 | DC29: 0 | DD29: 0
A30: P1200210 | C30: Hombres | D30: =IFERROR(VLOOKUP($A30,Filtro!$A$4:$AX$552,2,FALSE),0) -> 98 | E30: =IFERROR(VLOOKUP($A30,Filtro!$A$4:$AX$552,3,FALSE),0) -> 4 | F30: =IFERROR(VLOOKUP($A30,Filtro!$A$4:$AX$552,4,FALSE),0) -> 47 | G30: =IFERROR(VLOOKUP($A30,Filtro!$A$4:$AX$552,5,FALSE),0) -> 18 | H30: =IFERROR(VLOOKUP($A30,Filtro!$A$4:$AX$552,6,FALSE),0) -> 10 | I30: =IFERROR(VLOOKUP($A30,Filtro!$A$4:$AX$552,7,FALSE),0) -> 4 | J30: =IFERROR(VLOOKUP($A30,Filtro!$A$4:$AX$552,8,FALSE),0) -> 1 | K30: =IFERROR(VLOOKUP($A30,Filtro!$A$4:$AX$552,9,FALSE),0) -> 3 | L30: =IFERROR(VLOOKUP($A30,Filtro!$A$4:$AX$552,10,FALSE),0) -> 6 | M30: =IFERROR(VLOOKUP($A30,Filtro!$A$4:$AX$552,11,FALSE),0) -> 0 | N30: =IFERROR(VLOOKUP($A30,Filtro!$A$4:$AX$552,12,FALSE),0) -> 5 | O30: =IFERROR(VLOOKUP($A30,Filtro!$A$4:$AX$552,13,FALSE),0) -> 0 | P30: =IFERROR(VLOOKUP($A30,Filtro!$A$4:$AX$552,14,FALSE),0) -> 2 | Q30: =IFERROR(VLOOKUP($A30,Filtro!$A$4:$AX$552,15,FALSE),0) -> 0 | CA30: =IF(DA30=1,"* La celda 'Pueblos Originarios' debe ser menor o igual al Total en control. ","") ->  | CB30: =IF(DB30=1,"* La celda 'Población Migrantes' debe ser menor o igual al Total en control. ","") ->  | CC30: =IF(DC30=1,"* No olvide escribir en la celda de 'Pueblos Originarios' (Digite CERO si no tiene). ","") ->  | CD30: =IF(DD30=1,"* No olvide escribir en la celda de 'Población Migrantes' (Digite CERO si no tiene). ","") ->  | DA30: =IF(AND(D30<>0,O30=""),1,0) -> 0 | DB30: =IF(AND(D30<>0,P30=""),1,0) -> 0 | DC30: =IF(O30>D30,1,0) -> 0 | DD30: =IF(P30>D30,1,0) -> 0
A31: P1200220 | B31: LUBRICANTES | C31: Mujer | D31: =IFERROR(VLOOKUP($A31,Filtro!$A$4:$AX$552,2,FALSE),0) -> 1090 | E31: =IFERROR(VLOOKUP($A31,Filtro!$A$4:$AX$552,3,FALSE),0) -> 0 | F31: =IFERROR(VLOOKUP($A31,Filtro!$A$4:$AX$552,4,FALSE),0) -> 10 | G31: =IFERROR(VLOOKUP($A31,Filtro!$A$4:$AX$552,5,FALSE),0) -> 44 | H31: =IFERROR(VLOOKUP($A31,Filtro!$A$4:$AX$552,6,FALSE),0) -> 54 | I31: =IFERROR(VLOOKUP($A31,Filtro!$A$4:$AX$552,7,FALSE),0) -> 73 | J31: =IFERROR(VLOOKUP($A31,Filtro!$A$4:$AX$552,8,FALSE),0) -> 98 | K31: =IFERROR(VLOOKUP($A31,Filtro!$A$4:$AX$552,9,FALSE),0) -> 190 | L31: =IFERROR(VLOOKUP($A31,Filtro!$A$4:$AX$552,10,FALSE),0) -> 216 | M31: =IFERROR(VLOOKUP($A31,Filtro!$A$4:$AX$552,11,FALSE),0) -> 218 | N31: =IFERROR(VLOOKUP($A31,Filtro!$A$4:$AX$552,12,FALSE),0) -> 187 | O31: =IFERROR(VLOOKUP($A31,Filtro!$A$4:$AX$552,13,FALSE),0) -> 20 | P31: =IFERROR(VLOOKUP($A31,Filtro!$A$4:$AX$552,14,FALSE),0) -> 42 | Q31: =IFERROR(VLOOKUP($A31,Filtro!$A$4:$AX$552,15,FALSE),0) -> 1 | DA31: =IF(AND(D31<>0,O31=""),1,0) -> 0 | DB31: =IF(AND(D31<>0,P31=""),1,0) -> 0 | DC31: =IF(O31>D31,1,0) -> 0 | DD31: =IF(P31>D31,1,0) -> 0
A32: P1200230 | C32: Hombres | D32: =IFERROR(VLOOKUP($A32,Filtro!$A$4:$AX$552,2,FALSE),0) -> 29 | E32: =IFERROR(VLOOKUP($A32,Filtro!$A$4:$AX$552,3,FALSE),0) -> 2 | F32: =IFERROR(VLOOKUP($A32,Filtro!$A$4:$AX$552,4,FALSE),0) -> 4 | G32: =IFERROR(VLOOKUP($A32,Filtro!$A$4:$AX$552,5,FALSE),0) -> 1 | H32: =IFERROR(VLOOKUP($A32,Filtro!$A$4:$AX$552,6,FALSE),0) -> 4 | I32: =IFERROR(VLOOKUP($A32,Filtro!$A$4:$AX$552,7,FALSE),0) -> 1 | J32: =IFERROR(VLOOKUP($A32,Filtro!$A$4:$AX$552,8,FALSE),0) -> 0 | K32: =IFERROR(VLOOKUP($A32,Filtro!$A$4:$AX$552,9,FALSE),0) -> 7 | L32: =IFERROR(VLOOKUP($A32,Filtro!$A$4:$AX$552,10,FALSE),0) -> 4 | M32: =IFERROR(VLOOKUP($A32,Filtro!$A$4:$AX$552,11,FALSE),0) -> 1 | N32: =IFERROR(VLOOKUP($A32,Filtro!$A$4:$AX$552,12,FALSE),0) -> 5 | O32: =IFERROR(VLOOKUP($A32,Filtro!$A$4:$AX$552,13,FALSE),0) -> 0 | P32: =IFERROR(VLOOKUP($A32,Filtro!$A$4:$AX$552,14,FALSE),0) -> 0 | Q32: =IFERROR(VLOOKUP($A32,Filtro!$A$4:$AX$552,15,FALSE),0) -> 1 | DA32: =IF(AND(D32<>0,O32=""),1,0) -> 0 | DB32: =IF(AND(D32<>0,P32=""),1,0) -> 0 | DC32: =IF(O32>D32,1,0) -> 0 | DD32: =IF(P32>D32,1,0) -> 0
A33: P1200350 | B33: CONDON FEMENINO | D33: =IFERROR(VLOOKUP($A33,Filtro!$A$4:$AX$552,2,FALSE),0) -> 90 | E33: =IFERROR(VLOOKUP($A33,Filtro!$A$4:$AX$552,3,FALSE),0) -> 0 | F33: =IFERROR(VLOOKUP($A33,Filtro!$A$4:$AX$552,4,FALSE),0) -> 13 | G33: =IFERROR(VLOOKUP($A33,Filtro!$A$4:$AX$552,5,FALSE),0) -> 26 | H33: =IFERROR(VLOOKUP($A33,Filtro!$A$4:$AX$552,6,FALSE),0) -> 19 | I33: =IFERROR(VLOOKUP($A33,Filtro!$A$4:$AX$552,7,FALSE),0) -> 11 | J33: =IFERROR(VLOOKUP($A33,Filtro!$A$4:$AX$552,8,FALSE),0) -> 7 | K33: =IFERROR(VLOOKUP($A33,Filtro!$A$4:$AX$552,9,FALSE),0) -> 8 | L33: =IFERROR(VLOOKUP($A33,Filtro!$A$4:$AX$552,10,FALSE),0) -> 2 | M33: =IFERROR(VLOOKUP($A33,Filtro!$A$4:$AX$552,11,FALSE),0) -> 4 | N33: =IFERROR(VLOOKUP($A33,Filtro!$A$4:$AX$552,12,FALSE),0) -> 0 | O33: =IFERROR(VLOOKUP($A33,Filtro!$A$4:$AX$552,13,FALSE),0) -> 0 | P33: =IFERROR(VLOOKUP($A33,Filtro!$A$4:$AX$552,14,FALSE),0) -> 0 | Q33: =IFERROR(VLOOKUP($A33,Filtro!$A$4:$AX$552,15,FALSE),0) -> 0 | R33: =($CA33&$CB33&$CC33&$CD33&$CE33&$CF33&$CG33&$CH33&$CI33&$CJ33&$CL33&$CM33&$CN33&$CO33&$CP33&$CQ33&$CR33&$CS33&$CT33&$CU33&$CV33&$CW33&$CX33&$CY33&$CZ33) ->  | DA33: =IF(AND(D33<>0,O33=""),1,0) -> 0 | DB33: =IF(AND(D33<>0,P33=""),1,0) -> 0 | DC33: =IF(O33>D33,1,0) -> 0 | DD33: =IF(P33>D33,1,0) -> 0
B34: SECCION B: GESTANTES EN CONTROL CON RIESGO PSICOSOCIAL
B35: GRUPOS DE EDAD | C35: TOTAL DE GESTANTES EN CONTROL | D35: EN RIESGO PSICO- SOCIAL | E35: QUE PRESENTAN VIOLENCIA DE GÉNERO | F35: GESTANTES QUE PRESENTAN ARO | G35: POBLACION MIGRANTES
A37: P1020100 | B37: Menos de 15 años | C37: =IFERROR(VLOOKUP($A37,Filtro!$A$4:$AX$552,2,FALSE),0) -> 5 | D37: =IFERROR(VLOOKUP($A37,Filtro!$A$4:$AX$552,3,FALSE),0) -> 5 | E37: =IFERROR(VLOOKUP($A37,Filtro!$A$4:$AX$552,4,FALSE),0) -> 0 | F37: =IFERROR(VLOOKUP($A37,Filtro!$A$4:$AX$552,5,FALSE),0) -> 5 | G37: =IFERROR(VLOOKUP($A37,Filtro!$A$4:$AX$552,6,FALSE),0) -> 0 | H37: =($CB37&$CC37&$CD37&$CE37&$CF37&$CG37&$CH37&$CI37&$CJ37&$CK37&$CM37&$CN37&$CO37&$CP37&$CQ37&$CR37&$CS37&$CT37&$CU37&$CV37&$CW37&$CX37&$CY37&$CZ37&$DA37) ->  | CB37: =IF($D37<$E37,"* Las Gestantes Menores de 15 años con violencia de género deben estar incluidas en las Gestantes con riesgo psicosocial. ","") ->  | CC37: =IF($C37<$D37,"* Las Gestantes Menores de 15 años con Riesgo Psicosocial deben estar incluidas en el Total de Gestantes en Control misma edad. ","") ->  | CD37: =IF($C37<$F37,"* Las Gestantes Menores de 15 años que presentan ARO deben estar incluidas en el Total de Gestantes en Control misma edad. ","") ->  | CE37: =IF($C37<$G37,"* Las Gestantes Menores de 15 años que pertenecen a 'Población Migrantes' deben estar incluidas en el Total de Gestantes en Control misma edad. ","") ->  | CG37: =IF(AND(C37<>0,G37=""),"* No olvide escribir en la celda de 'Población Migrantes' (Digite CERO si no tiene). ","") ->  | DB37: =IF($D37<$E37,1,0) -> 0 | DC37: =IF($C37<$D37,1,0) -> 0 | DD37: =IF($C37<$F37,1,0) -> 0 | DE37: =IF($C37<$G37,1,0) -> 0 | DG37: =IF(AND(C37<>0,G37=""),1,0) -> 0
A38: P1020200 | B38: 15 a 19 años | C38: =IFERROR(VLOOKUP($A38,Filtro!$A$4:$AX$552,2,FALSE),0) -> 261 | D38: =IFERROR(VLOOKUP($A38,Filtro!$A$4:$AX$552,3,FALSE),0) -> 116 | E38: =IFERROR(VLOOKUP($A38,Filtro!$A$4:$AX$552,4,FALSE),0) -> 8 | F38: =IFERROR(VLOOKUP($A38,Filtro!$A$4:$AX$552,5,FALSE),0) -> 63 | G38: =IFERROR(VLOOKUP($A38,Filtro!$A$4:$AX$552,6,FALSE),0) -> 11 | CB38: =IF($D38<$E38,"* Las Gestantes de 15 a 19 años con violencia de género deben estar incluidas en las Gestantes con riesgo psicosocial. ","") ->  | CC38: =IF($C38<$D38,"* Las Gestantes de 15 a 19 años con Riesgo Psicosocial deben estar incluidas en el Total de Gestantes en Control misma edad. ","") ->  | CD38: =IF($C38<$F38,"* Las Gestantes de 15 a 19 años que presentan ARO deben estar incluidas en el Total de Gestantes en Control misma edad. ","") ->  | CE38: =IF($C38<$G38,"* Las Gestantes de 15 a 19 años que pertenecen a 'Población Migrantes' deben estar incluidas en el Total de Gestantes en Control misma edad. ","") ->  | DB38: 0 | DC38: 0 | DD38: 0 | DE38: 0 | DG38: 0
A39: P1040501 | B39: 20 a 24 años | C39: =IFERROR(VLOOKUP($A39,Filtro!$A$4:$AX$552,2,FALSE),0) -> 728 | D39: =IFERROR(VLOOKUP($A39,Filtro!$A$4:$AX$552,3,FALSE),0) -> 205 | E39: =IFERROR(VLOOKUP($A39,Filtro!$A$4:$AX$552,4,FALSE),0) -> 15 | F39: =IFERROR(VLOOKUP($A39,Filtro!$A$4:$AX$552,5,FALSE),0) -> 189 | G39: =IFERROR(VLOOKUP($A39,Filtro!$A$4:$AX$552,6,FALSE),0) -> 78 | CB39: =IF($D39<$E39,"* Las Gestantes de 20 a 24 años con violencia de género deben estar incluidas en las Gestantes con riesgo psicosocial. ","") ->  | CC39: =IF($C39<$D39,"* Las Gestantes de 20 a 24 años con Riesgo Psicosocial deben estar incluidas en el Total de Gestantes en Control misma edad. ","") ->  | CD39: =IF($C39<$F39,"* Las Gestantes de 20 a 24 años que presentan ARO deben estar incluidas en el Total de Gestantes en Control misma edad. ","") ->  | CE39: =IF($C39<$G39,"* Las Gestantes de 20 a 24 años que pertenecen a 'Población Migrantes' deben estar incluidas en el Total de Gestantes en Control misma edad. ","") ->  | DB39: 0 | DC39: 0 | DD39: 0 | DE39: 0 | DG39: 0
A40: P1060100 | B40: 25 a 29 años | C40: =IFERROR(VLOOKUP($A40,Filtro!$A$4:$AX$552,2,FALSE),0) -> 895 | D40: =IFERROR(VLOOKUP($A40,Filtro!$A$4:$AX$552,3,FALSE),0) -> 191 | E40: =IFERROR(VLOOKUP($A40,Filtro!$A$4:$AX$552,4,FALSE),0) -> 10 | F40: =IFERROR(VLOOKUP($A40,Filtro!$A$4:$AX$552,5,FALSE),0) -> 299 | G40: =IFERROR(VLOOKUP($A40,Filtro!$A$4:$AX$552,6,FALSE),0) -> 120 | CB40: =IF($D40<$E40,"* Las Gestantes de 25 a 29 años con violencia de género deben estar incluidas en las Gestantes con riesgo psicosocial. ","") ->  | CC40: =IF($C40<$D40,"* Las Gestantes de 25 a 29 años con Riesgo Psicosocial deben estar incluidas en el Total de Gestantes en Control misma edad. ","") ->  | CD40: =IF($C40<$F40,"* Las Gestantes de 25 a 29 años que presentan ARO deben estar incluidas en el Total de Gestantes en Control misma edad. ","") ->  | CE40: =IF($C40<$G40,"* Las Gestantes de 25 a 29 años que pertenecen a 'Población Migrantes' deben estar incluidas en el Total de Gestantes en Control misma edad. ","") ->  | DB40: 0 | DC40: 0 | DD40: 0 | DE40: 0 | DG40: 0
A41: P1060101 | B41: 30 a 34 años | C41: =IFERROR(VLOOKUP($A41,Filtro!$A$4:$AX$552,2,FALSE),0) -> 710 | D41: =IFERROR(VLOOKUP($A41,Filtro!$A$4:$AX$552,3,FALSE),0) -> 167 | E41: =IFERROR(VLOOKUP($A41,Filtro!$A$4:$AX$552,4,FALSE),0) -> 14 | F41: =IFERROR(VLOOKUP($A41,Filtro!$A$4:$AX$552,5,FALSE),0) -> 246 | G41: =IFERROR(VLOOKUP($A41,Filtro!$A$4:$AX$552,6,FALSE),0) -> 89 | CB41: =IF($D41<$E41,"* Las Gestantes de 30 a 34 años con violencia de género deben estar incluidas en las Gestantes con riesgo psicosocial. ","") ->  | CC41: =IF($C41<$D41,"* Las Gestantes de 30 a 34 años con Riesgo Psicosocial deben estar incluidas en el Total de Gestantes en Control misma edad. ","") ->  | CD41: =IF($C41<$F41,"* Las Gestantes de 30 a 34 años que presentan ARO deben estar incluidas en el Total de Gestantes en Control misma edad. ","") ->  | CE41: =IF($C41<$G41,"* Las Gestantes de 30 a 34 años que pertenecen a 'Población Migrantes' deben estar incluidas en el Total de Gestantes en Control misma edad. ","") ->  | DB41: 0 | DC41: 0 | DD41: 0 | DE41: 0 | DG41: 0
A42: P1060102 | B42: 35 a 39 años | C42: =IFERROR(VLOOKUP($A42,Filtro!$A$4:$AX$552,2,FALSE),0) -> 358 | D42: =IFERROR(VLOOKUP($A42,Filtro!$A$4:$AX$552,3,FALSE),0) -> 93 | E42: =IFERROR(VLOOKUP($A42,Filtro!$A$4:$AX$552,4,FALSE),0) -> 7 | F42: =IFERROR(VLOOKUP($A42,Filtro!$A$4:$AX$552,5,FALSE),0) -> 165 | G42: =IFERROR(VLOOKUP($A42,Filtro!$A$4:$AX$552,6,FALSE),0) -> 48 | CB42: =IF($D42<$E42,"* Las Gestantes de 35 a 39 años con violencia de género deben estar incluidas en las Gestantes con riesgo psicosocial. ","") ->  | CC42: =IF($C42<$D42,"* Las Gestantes de 35 a 39 años con Riesgo Psicosocial deben estar incluidas en el Total de Gestantes en Control misma edad. ","") ->  | CD42: =IF($C42<$F42,"* Las Gestantes de 35 a 39 años que presentan ARO deben estar incluidas en el Total de Gestantes en Control misma edad. ","") ->  | CE42: =IF($C42<$G42,"* Las Gestantes de 35 a 39 años que pertenecen a 'Población Migrantes' deben estar incluidas en el Total de Gestantes en Control misma edad. ","") ->  | DB42: 0 | DC42: 0 | DD42: 0 | DE42: 0 | DG42: 0
A43: P1060103 | B43: 40 a 44 años | C43: =IFERROR(VLOOKUP($A43,Filtro!$A$4:$AX$552,2,FALSE),0) -> 97 | D43: =IFERROR(VLOOKUP($A43,Filtro!$A$4:$AX$552,3,FALSE),0) -> 33 | E43: =IFERROR(VLOOKUP($A43,Filtro!$A$4:$AX$552,4,FALSE),0) -> 1 | F43: =IFERROR(VLOOKUP($A43,Filtro!$A$4:$AX$552,5,FALSE),0) -> 70 | G43: =IFERROR(VLOOKUP($A43,Filtro!$A$4:$AX$552,6,FALSE),0) -> 9 | CB43: =IF($D43<$E43,"* Las Gestantes de 40 a 44 años con violencia de género deben estar incluidas en las Gestantes con riesgo psicosocial. ","") ->  | CC43: =IF($C43<$D43,"* Las Gestantes de 40 a 44 años con Riesgo Psicosocial deben estar incluidas en el Total de Gestantes en Control misma edad. ","") ->  | CD43: =IF($C43<$F43,"* Las Gestantes de 40 a 44 años que presentan ARO deben estar incluidas en el Total de Gestantes en Control misma edad. ","") ->  | CE43: =IF($C43<$G43,"* Las Gestantes de 40 a 44 años que pertenecen a 'Población Migrantes' deben estar incluidas en el Total de Gestantes en Control misma edad. ","") ->  | DB43: 0 | DC43: 0 | DD43: 0 | DE43: 0 | DG43: 0
A44: P1060104 | B44: 45 a 49 años | C44: =IFERROR(VLOOKUP($A44,Filtro!$A$4:$AX$552,2,FALSE),0) -> 4 | D44: =IFERROR(VLOOKUP($A44,Filtro!$A$4:$AX$552,3,FALSE),0) -> 2 | E44: =IFERROR(VLOOKUP($A44,Filtro!$A$4:$AX$552,4,FALSE),0) -> 0 | F44: =IFERROR(VLOOKUP($A44,Filtro!$A$4:$AX$552,5,FALSE),0) -> 3 | G44: =IFERROR(VLOOKUP($A44,Filtro!$A$4:$AX$552,6,FALSE),0) -> 0 | CB44: =IF($D44<$E44,"* Las Gestantes de 45 a 49 años con violencia de género deben estar incluidas en las Gestantes con riesgo psicosocial. ","") ->  | CC44: =IF($C44<$D44,"* Las Gestantes de 45 a 49 años con Riesgo Psicosocial deben estar incluidas en el Total de Gestantes en Control misma edad. ","") ->  | CD44: =IF($C44<$F44,"* Las Gestantes de 45 a 49 años que presentan ARO deben estar incluidas en el Total de Gestantes en Control misma edad. ","") ->  | CE44: =IF($C44<$G44,"* Las Gestantes de 45 a 49 años que pertenecen a 'Población Migrantes' deben estar incluidas en el Total de Gestantes en Control misma edad. ","") ->  | DB44: 0 | DC44: 0 | DD44: 0 | DE44: 0 | DG44: 0
A45: P1060105 | B45: 50 a 54 años | C45: =IFERROR(VLOOKUP($A45,Filtro!$A$4:$AX$552,2,FALSE),0) -> 0 | D45: =IFERROR(VLOOKUP($A45,Filtro!$A$4:$AX$552,3,FALSE),0) -> 0 | E45: =IFERROR(VLOOKUP($A45,Filtro!$A$4:$AX$552,4,FALSE),0) -> 0 | F45: =IFERROR(VLOOKUP($A45,Filtro!$A$4:$AX$552,5,FALSE),0) -> 0 | G45: =IFERROR(VLOOKUP($A45,Filtro!$A$4:$AX$552,6,FALSE),0) -> 0 | CB45: =IF($D45<$E45,"* Las Gestantes de 50 a 54 años con violencia de género deben estar incluidas en las Gestantes con riesgo psicosocial. ","") ->  | CC45: =IF($C45<$D45,"* Las Gestantes de 50 a 54 años con Riesgo Psicosocial deben estar incluidas en el Total de Gestantes en Control misma edad. ","") ->  | CD45: =IF($C45<$F45,"* Las Gestantes de 50 a 54 años que presentan ARO deben estar incluidas en el Total de Gestantes en Control misma edad. ","") ->  | CE45: =IF($C45<$G45,"* Las Gestantes de 50 a 54 años que pertenecen a 'Población Migrantes' deben estar incluidas en el Total de Gestantes en Control misma edad. ","") ->  | DB45: 0 | DC45: 0 | DD45: 0 | DE45: 0 | DG45: 0
B46: TOTAL | C46: =SUM(C37:C45) -> 3058 | D46: =SUM(D37:D45) -> 812 | E46: =SUM(E37:E45) -> 55 | F46: =SUM(F37:F45) -> 1040 | G46: =SUM(G37:G45) -> 355
B47: SECCION C: GESTANTES EN RIESGO PSICOSOCIAL CON VISITA DOMICILIARIA INTEGRAL REALIZADA EN EL SEMESTRE
B48: N° VDI | C48: N° Gestantes con VDI | D48: TOTAL de Visitas
A50: P1040502 | B50: 1 Visita | C50: =IFERROR(VLOOKUP($A50,Filtro!$A$4:$AX$552,2,FALSE),0) -> 199 | D50: =IFERROR(VLOOKUP($A50,Filtro!$A$4:$AX$552,3,FALSE),0) -> 199 | E50: =($CB50&$CC50&$CD50&$CE50&$CF50&$CG50&$CH50&$CI50&$CJ50&$CK50&$CM50&$CN50&$CO50&$CP50&$CQ50&$CR50&$CS50&$CT50&$CU50&$CV50&$CW50&$CX50&$CY50&$CZ50&$DA50) ->  | CB50: =IF($D$50<>$C$50*1,"* NO ALTERE LAS FÓRMULAS, el Total de Visitas equivale a 1 visita por gestante. ","") ->  | DB50: =IF($D$50<>$C$50*1,1,0) -> 0
A51: P1040503 | B51: 2 Visitas | C51: =IFERROR(VLOOKUP($A51,Filtro!$A$4:$AX$552,2,FALSE),0) -> 86 | D51: =IFERROR(VLOOKUP($A51,Filtro!$A$4:$AX$552,3,FALSE),0) -> 172 | CB51: =IF($D$51<>$C$51*2,"* NO ALTERE LAS FÓRMULAS, el Total de Visitas equivale a 2 visitas por gestante. ","") ->  | DB51: =IF($D$51<>$C$51*2,1,0) -> 0
A52: P1040504 | B52: 3 Visitas | C52: =IFERROR(VLOOKUP($A52,Filtro!$A$4:$AX$552,2,FALSE),0) -> 39 | D52: =IFERROR(VLOOKUP($A52,Filtro!$A$4:$AX$552,3,FALSE),0) -> 117 | CB52: =IF($D$52<>$C$52*3,"* NO ALTERE LAS FÓRMULAS, el Total de Visitas equivale a 3 visitas por gestante. ","") ->  | DB52: =IF($D$52<>$C$52*3,1,0) -> 0
A53: P1040505 | B53: 4 y más visitas | C53: =IFERROR(VLOOKUP($A53,Filtro!$A$4:$AX$552,2,FALSE),0) -> 22 | D53: =IFERROR(VLOOKUP($A53,Filtro!$A$4:$AX$552,3,FALSE),0) -> 47
B54: TOTAL | C54: =SUM(C50:C53) -> 346 | D54: =SUM(D50:D53) -> 535
B55: SECCION D: GESTANTES Y MUJERES DE 8° MES POST-PARTO EN CONTROL, SEGÚN ESTADO NUTRICIONAL
B56: POBLACION | C56: ESTADO NUTRICIONAL | D56: TOTAL | E56: GRUPOS DE EDAD (en años)
E57: Menos 15 años | F57: 15 a 19 años | G57: 20 a 24 años | H57: 25 a 29 años | I57: 30 a 34 años | J57: 35 a 39 años | K57: 40 a 44 años | L57: 45 a 49 años | M57: 50 a 54 años
A58: P1030101 | B58: GESTANTES EN CONTROL (Información a la fecha de corte) | C58: OBESA | D58: =IFERROR(VLOOKUP($A58,Filtro!$A$4:$AX$552,2,FALSE),0) -> 1114 | E58: =IFERROR(VLOOKUP($A58,Filtro!$A$4:$AX$552,3,FALSE),0) -> 0 | F58: =IFERROR(VLOOKUP($A58,Filtro!$A$4:$AX$552,4,FALSE),0) -> 47 | G58: =IFERROR(VLOOKUP($A58,Filtro!$A$4:$AX$552,5,FALSE),0) -> 210 | H58: =IFERROR(VLOOKUP($A58,Filtro!$A$4:$AX$552,6,FALSE),0) -> 351 | I58: =IFERROR(VLOOKUP($A58,Filtro!$A$4:$AX$552,7,FALSE),0) -> 301 | J58: =IFERROR(VLOOKUP($A58,Filtro!$A$4:$AX$552,8,FALSE),0) -> 160 | K58: =IFERROR(VLOOKUP($A58,Filtro!$A$4:$AX$552,9,FALSE),0) -> 44 | L58: =IFERROR(VLOOKUP($A58,Filtro!$A$4:$AX$552,10,FALSE),0) -> 1 | M58: =IFERROR(VLOOKUP($A58,Filtro!$A$4:$AX$552,11,FALSE),0) -> 0 | N58: =($CB58&$CC58&$CD58&$CE58&$CF58&$CG58&$CH58&$CI58&$CJ58&$CK58&$CM58&$CN58&$CO58&$CP58&$CQ58&$CR58&$CS58&$CT58&$CU58&$CV58&$CW58&$CX58&$CY58&$CZ58&$DA58) -> 
A59: P1030102 | C59: SOBREPESO | D59: =IFERROR(VLOOKUP($A59,Filtro!$A$4:$AX$552,2,FALSE),0) -> 1011 | E59: =IFERROR(VLOOKUP($A59,Filtro!$A$4:$AX$552,3,FALSE),0) -> 3 | F59: =IFERROR(VLOOKUP($A59,Filtro!$A$4:$AX$552,4,FALSE),0) -> 74 | G59: =IFERROR(VLOOKUP($A59,Filtro!$A$4:$AX$552,5,FALSE),0) -> 242 | H59: =IFERROR(VLOOKUP($A59,Filtro!$A$4:$AX$552,6,FALSE),0) -> 281 | I59: =IFERROR(VLOOKUP($A59,Filtro!$A$4:$AX$552,7,FALSE),0) -> 241 | J59: =IFERROR(VLOOKUP($A59,Filtro!$A$4:$AX$552,8,FALSE),0) -> 132 | K59: =IFERROR(VLOOKUP($A59,Filtro!$A$4:$AX$552,9,FALSE),0) -> 36 | L59: =IFERROR(VLOOKUP($A59,Filtro!$A$4:$AX$552,10,FALSE),0) -> 2 | M59: =IFERROR(VLOOKUP($A59,Filtro!$A$4:$AX$552,11,FALSE),0) -> 0
A60: P1030103 | C60: NORMAL | D60: =IFERROR(VLOOKUP($A60,Filtro!$A$4:$AX$552,2,FALSE),0) -> 862 | E60: =IFERROR(VLOOKUP($A60,Filtro!$A$4:$AX$552,3,FALSE),0) -> 2 | F60: =IFERROR(VLOOKUP($A60,Filtro!$A$4:$AX$552,4,FALSE),0) -> 123 | G60: =IFERROR(VLOOKUP($A60,Filtro!$A$4:$AX$552,5,FALSE),0) -> 251 | H60: =IFERROR(VLOOKUP($A60,Filtro!$A$4:$AX$552,6,FALSE),0) -> 248 | I60: =IFERROR(VLOOKUP($A60,Filtro!$A$4:$AX$552,7,FALSE),0) -> 159 | J60: =IFERROR(VLOOKUP($A60,Filtro!$A$4:$AX$552,8,FALSE),0) -> 62 | K60: =IFERROR(VLOOKUP($A60,Filtro!$A$4:$AX$552,9,FALSE),0) -> 16 | L60: =IFERROR(VLOOKUP($A60,Filtro!$A$4:$AX$552,10,FALSE),0) -> 1 | M60: =IFERROR(VLOOKUP($A60,Filtro!$A$4:$AX$552,11,FALSE),0) -> 0
A61: P1030104 | C61: BAJO PESO | D61: =IFERROR(VLOOKUP($A61,Filtro!$A$4:$AX$552,2,FALSE),0) -> 71 | E61: =IFERROR(VLOOKUP($A61,Filtro!$A$4:$AX$552,3,FALSE),0) -> 0 | F61: =IFERROR(VLOOKUP($A61,Filtro!$A$4:$AX$552,4,FALSE),0) -> 17 | G61: =IFERROR(VLOOKUP($A61,Filtro!$A$4:$AX$552,5,FALSE),0) -> 25 | H61: =IFERROR(VLOOKUP($A61,Filtro!$A$4:$AX$552,6,FALSE),0) -> 15 | I61: =IFERROR(VLOOKUP($A61,Filtro!$A$4:$AX$552,7,FALSE),0) -> 9 | J61: =IFERROR(VLOOKUP($A61,Filtro!$A$4:$AX$552,8,FALSE),0) -> 4 | K61: =IFERROR(VLOOKUP($A61,Filtro!$A$4:$AX$552,9,FALSE),0) -> 1 | L61: =IFERROR(VLOOKUP($A61,Filtro!$A$4:$AX$552,10,FALSE),0) -> 0 | M61: =IFERROR(VLOOKUP($A61,Filtro!$A$4:$AX$552,11,FALSE),0) -> 0
C62: TOTAL | D62: =SUM(E62:M62) -> 3058 | E62: =SUM(E58:E61) -> 5 | F62: =SUM(F58:F61) -> 261 | G62: 728 | H62: 895 | I62: 710 | J62: 358 | K62: 97 | L62: 4 | M62: 0 | CB62: =IF($C$37<>$E62,"* Las Gestantes Menores de 15 años, según Estado Nutricional debe ser igual al Total de gestantes en Control de esa edad en Sección B. ","") ->  | CC62: =IF($C$38<>$F62,"* Las gestantes 15-19 años, según Estado Nutricional debe ser igual al Total de gestantes en Control de esa edad en Sección B. ","") ->  | CD62: =IF($C$39<>$G62,"* Las gestantes20-24 años, según Estado Nutricional debe ser igual al Total de gestantes en Control de esa edad en Sección B. ","") ->  | CE62: =IF($C$40<>$H62,"* Las gestantes 25-29 años, según Estado Nutricional debe ser igual al Total de gestantes en Control de esa edad en Sección B. ","") ->  | CF62: =IF($C$41<>$I62,"* Las gestantes30-34 años, según Estado Nutricional debe ser igual al Total de gestantes en Control de esa edad en Sección B. ","") ->  | CG62: =IF($C$42<>$J62,"* Las gestantes 35-39 años, según Estado Nutricional debe ser igual al Total de gestantes en Control de esa edad en Sección B. ","") ->  | CH62: =IF($C$43<>$K62,"* Las gestantes 40-44 años, según Estado Nutricional debe ser igual al Total de gestantes en Control de esa edad en Sección B. ","") ->  | CI62: =IF($C$44<>$L62,"* Las gestantes 45-49 años, según Estado Nutricional debe ser igual al Total de gestantes en Control de esa edad en Sección B. ","") ->  | CJ62: =IF($C$45<>$M62,"* Las gestantes 50-54 años, según Estado Nutricional debe ser igual al Total de gestantes en Control de esa edad en Sección B. ","") ->  | DB62: =IF($C$37<>$E62,1,0) -> 0 | DC62: =IF($C$38<>$F62,1,0) -> 0 | DD62: =IF($C$39<>$G62,1,0) -> 0 | DE62: =IF($C$40<>$H62,1,0) -> 0 | DF62: =IF($C$41<>$I62,1,0) -> 0 | DG62: =IF($C$42<>$J62,1,0) -> 0 | DH62: =IF($C$43<>$K62,1,0) -> 0 | DI62: =IF($C$44<>$L62,1,0) -> 0 | DJ62: =IF($C$45<>$M62,1,0) -> 0
A63: P1030201 | B63: CONTROL AL 8º MES POST-PARTO (Información del semestre) | C63: OBESA | D63: =IFERROR(VLOOKUP($A63,Filtro!$A$4:$AX$552,2,FALSE),0) -> 91 | E63: =IFERROR(VLOOKUP($A63,Filtro!$A$4:$AX$552,3,FALSE),0) -> 0 | F63: =IFERROR(VLOOKUP($A63,Filtro!$A$4:$AX$552,4,FALSE),0) -> 10 | G63: =IFERROR(VLOOKUP($A63,Filtro!$A$4:$AX$552,5,FALSE),0) -> 32 | H63: =IFERROR(VLOOKUP($A63,Filtro!$A$4:$AX$552,6,FALSE),0) -> 20 | I63: =IFERROR(VLOOKUP($A63,Filtro!$A$4:$AX$552,7,FALSE),0) -> 16 | J63: =IFERROR(VLOOKUP($A63,Filtro!$A$4:$AX$552,8,FALSE),0) -> 9 | K63: =IFERROR(VLOOKUP($A63,Filtro!$A$4:$AX$552,9,FALSE),0) -> 4 | L63: =IFERROR(VLOOKUP($A63,Filtro!$A$4:$AX$552,10,FALSE),0) -> 0 | M63: =IFERROR(VLOOKUP($A63,Filtro!$A$4:$AX$552,11,FALSE),0) -> 0
A64: P1030202 | C64: SOBREPESO | D64: =IFERROR(VLOOKUP($A64,Filtro!$A$4:$AX$552,2,FALSE),0) -> 108 | E64: =IFERROR(VLOOKUP($A64,Filtro!$A$4:$AX$552,3,FALSE),0) -> 0 | F64: =IFERROR(VLOOKUP($A64,Filtro!$A$4:$AX$552,4,FALSE),0) -> 14 | G64: =IFERROR(VLOOKUP($A64,Filtro!$A$4:$AX$552,5,FALSE),0) -> 35 | H64: =IFERROR(VLOOKUP($A64,Filtro!$A$4:$AX$552,6,FALSE),0) -> 29 | I64: =IFERROR(VLOOKUP($A64,Filtro!$A$4:$AX$552,7,FALSE),0) -> 19 | J64: =IFERROR(VLOOKUP($A64,Filtro!$A$4:$AX$552,8,FALSE),0) -> 11 | K64: =IFERROR(VLOOKUP($A64,Filtro!$A$4:$AX$552,9,FALSE),0) -> 0 | L64: =IFERROR(VLOOKUP($A64,Filtro!$A$4:$AX$552,10,FALSE),0) -> 0 | M64: =IFERROR(VLOOKUP($A64,Filtro!$A$4:$AX$552,11,FALSE),0) -> 0
A65: P1030203 | C65: NORMAL | D65: =IFERROR(VLOOKUP($A65,Filtro!$A$4:$AX$552,2,FALSE),0) -> 100 | E65: =IFERROR(VLOOKUP($A65,Filtro!$A$4:$AX$552,3,FALSE),0) -> 0 | F65: =IFERROR(VLOOKUP($A65,Filtro!$A$4:$AX$552,4,FALSE),0) -> 20 | G65: =IFERROR(VLOOKUP($A65,Filtro!$A$4:$AX$552,5,FALSE),0) -> 33 | H65: =IFERROR(VLOOKUP($A65,Filtro!$A$4:$AX$552,6,FALSE),0) -> 26 | I65: =IFERROR(VLOOKUP($A65,Filtro!$A$4:$AX$552,7,FALSE),0) -> 14 | J65: =IFERROR(VLOOKUP($A65,Filtro!$A$4:$AX$552,8,FALSE),0) -> 5 | K65: =IFERROR(VLOOKUP($A65,Filtro!$A$4:$AX$552,9,FALSE),0) -> 2 | L65: =IFERROR(VLOOKUP($A65,Filtro!$A$4:$AX$552,10,FALSE),0) -> 0 | M65: =IFERROR(VLOOKUP($A65,Filtro!$A$4:$AX$552,11,FALSE),0) -> 0
A66: P1030204 | C66: BAJO PESO | D66: =IFERROR(VLOOKUP($A66,Filtro!$A$4:$AX$552,2,FALSE),0) -> 27 | E66: =IFERROR(VLOOKUP($A66,Filtro!$A$4:$AX$552,3,FALSE),0) -> 0 | F66: =IFERROR(VLOOKUP($A66,Filtro!$A$4:$AX$552,4,FALSE),0) -> 7 | G66: =IFERROR(VLOOKUP($A66,Filtro!$A$4:$AX$552,5,FALSE),0) -> 12 | H66: =IFERROR(VLOOKUP($A66,Filtro!$A$4:$AX$552,6,FALSE),0) -> 3 | I66: =IFERROR(VLOOKUP($A66,Filtro!$A$4:$AX$552,7,FALSE),0) -> 2 | J66: =IFERROR(VLOOKUP($A66,Filtro!$A$4:$AX$552,8,FALSE),0) -> 2 | K66: =IFERROR(VLOOKUP($A66,Filtro!$A$4:$AX$552,9,FALSE),0) -> 1 | L66: =IFERROR(VLOOKUP($A66,Filtro!$A$4:$AX$552,10,FALSE),0) -> 0 | M66: =IFERROR(VLOOKUP($A66,Filtro!$A$4:$AX$552,11,FALSE),0) -> 0
C67: TOTAL | D67: =SUM(E67:M67) -> 326 | E67: =SUM(E63:E66) -> 0 | F67: =SUM(F63:F66) -> 51 | G67: =SUM(G63:G66) -> 112 | H67: =SUM(H63:H66) -> 78 | I67: 51 | J67: 27 | K67: =SUM(K63:K66) -> 7 | L67: 0 | M67: 0
B68: SECCION E: MUJERES Y GESTANTES EN CONTROL CON CONSULTA NUTRICIONAL
B69: MUJERES | C69: TOTAL
A70: P1050100 | B70: Gestantes con malnutrición por déficit (bajo peso) | C70: =IFERROR(VLOOKUP($A70,Filtro!$A$4:$AX$552,2,FALSE),0) -> 33 | D70: =($CB70&$CC70&$CD70&$CE70&$CF70&$CG70&$CH70&$CI70&$CJ70&$CK70&$CM70&$CN70&$CO70&$CP70&$CQ70&$CR70&$CS70&$CT70&$CU70&$CV70&$CW70&$CX70&$CY70&$CZ70&$DA70) ->  | CB70: =IF($C$70<=$D$61,"","* Gestantes malnutricion no debe ser mayor que Gestantes en Control Bajo Peso (Seccion D). ") ->  | DB70: =IF($C$70<=$D$61,0,1) -> 0
A71: P1050101 | B71: Gestantes con malnutrición por exceso - Obesa | C71: =IFERROR(VLOOKUP($A71,Filtro!$A$4:$AX$552,2,FALSE),0) -> 433 | CB71: =IF($C$71<=$D$58,"","* Gestantes malnutricion no debe ser mayor que Gestantes en Control Obesa (Seccion D). ") ->  | DB71: =IF($C$71<=$D$58,0,1) -> 0
A72: P1050102 | B72: Gestantes con malnutrición por exceso - Sobrepeso | C72: =IFERROR(VLOOKUP($A72,Filtro!$A$4:$AX$552,2,FALSE),0) -> 333 | CB72: =IF($C$72<=$D$59,"","* Gestantes malnutricion no debe ser mayor que Gestantes en Control Sobrepeso (Seccion D). ") ->  | DB72: =IF($C$72<=$D$59,0,1) -> 0
A73: P1050103 | B73: En 3º mes post parto | C73: =IFERROR(VLOOKUP($A73,Filtro!$A$4:$AX$552,2,FALSE),0) -> 32
A74: P1050104 | B74: En 6º mes post parto | C74: =IFERROR(VLOOKUP($A74,Filtro!$A$4:$AX$552,2,FALSE),0) -> 45
B75: SECCION F: MUJERES EN CONTROL DE CLIMATERIO
B76: Población | C76: 45 a 64 años
A77: P1030301 | B77: Población en Control | C77: =IFERROR(VLOOKUP($A77,Filtro!$A$4:$AX$552,2,FALSE),0) -> 2257 | D77: =($CB77&$CC77&$CD77&$CE77&$CF77&$CG77&$CH77&$CI77&$CJ77&$CK77&$CM77&$CN77&$CO77&$CP77&$CQ77&$CR77&$CS77&$CT77&$CU77&$CV77&$CW77&$CX77&$CY77&$CZ77&$DA77) -> 
A78: P1060040 | B78: Mujeres con pauta aplicada MRS* | C78: =IFERROR(VLOOKUP($A78,Filtro!$A$4:$AX$552,2,FALSE),0) -> 1430 | CB78: =IF($C78>$C77,"* El Nº de mujeres con pauta aplicada MRS no debe ser mayor a la población de mujeres en control por climaterio. ","") ->  | DB78: =IF($C78>$C77,1,0) -> 0
A79: P1060050 | B79: Mujeres con puntaje elevado de MRS* | C79: =IFERROR(VLOOKUP($A79,Filtro!$A$4:$AX$552,2,FALSE),0) -> 357 | CB79: =IF($C79>$C78,"* El Nº de mujeres con puntaje elevado de MRS no debe ser mayor al Nº de mujeres con pauta aplicada MRS. ","") ->  | DB79: =IF($C79>$C78,1,0) -> 0
A80: P1060060 | B80: Mujeres con aplicación de terapia hormonal de reemplazo según MRS* | C80: =IFERROR(VLOOKUP($A80,Filtro!$A$4:$AX$552,2,FALSE),0) -> 196 | CB80: =IF($C80>$C79,"* El Nº de mujeres con aplicación de terapia hormonal de reemplazo según MRS no debe ser mayor que el numero de mujeres con puntaje elevado de MRS. ","") ->  | DB80: =IF($C80>$C79,1,0) -> 0
A81: P1200340 | B81: Talleres educativos | C81: =IFERROR(VLOOKUP($A81,Filtro!$A$4:$AX$552,2,FALSE),0) -> 1
B82: * MRS: Menopause Rating Scale
B83: SECCION F.1: POBLACIÓN EN CONTROL CLIMATERIO SEGÚN TIPO TERAPIA REEMPLAZO HORMONAL
B84: MÉTODOS | D84: TOTAL | E84: GRUPO DE EDAD (en años) | J84: Pueblos Originarios | K84: Población Migrantes
E85: Menor de 45 años | F85: 45 a 49 años | G85: 50 a 54 años | H85: 55 a 60 años | I85: 60 a 64 años
A86: P1200280 | B86: Estradiol Micronizado 1mg | D86: =IFERROR(VLOOKUP($A86,Filtro!$A$4:$AX$552,2,FALSE),0) -> 40 | E86: =IFERROR(VLOOKUP($A86,Filtro!$A$4:$AX$552,3,FALSE),0) -> 0 | F86: =IFERROR(VLOOKUP($A86,Filtro!$A$4:$AX$552,4,FALSE),0) -> 10 | G86: =IFERROR(VLOOKUP($A86,Filtro!$A$4:$AX$552,5,FALSE),0) -> 17 | H86: =IFERROR(VLOOKUP($A86,Filtro!$A$4:$AX$552,6,FALSE),0) -> 10 | I86: =IFERROR(VLOOKUP($A86,Filtro!$A$4:$AX$552,7,FALSE),0) -> 3 | J86: =IFERROR(VLOOKUP($A86,Filtro!$A$4:$AX$552,8,FALSE),0) -> 0 | K86: =IFERROR(VLOOKUP($A86,Filtro!$A$4:$AX$552,9,FALSE),0) -> 1 | L86: =($CB86&$CC86&$CD86&$CE86&$CF86&$CG86&$CH86&$CI86&$CJ86&$CK86&$CM86&$CN86&$CO86&$CP86&$CQ86&$CR86&$CS86&$CT86&$CU86&$CV86&$CW86&$CX86&$CY86&$CZ86&$DA86) ->  | CB86: =IF($J86>$D86,"* La celda 'Pueblos Originarios' debe ser menor o igual al Total en control. ","") ->  | CC86: =IF($K86>$D86,"* La celda 'Población Migrantes' debe ser menor o igual al Total en control. ","") ->  | CD86: =IF(AND($D86<>0,$J86=""),"* No olvide escribir en la celda de 'Pueblos Originarios' (Digite CERO si no tiene). ","") ->  | CE86: =IF(AND($D86<>0,$K86=""),"* No olvide escribir en la celda de 'Población Migrantes' (Digite CERO si no tiene). ","") ->  | DB86: =IF($J86>$D86,1,0) -> 0 | DC86: =IF($K86>$D86,1,0) -> 0 | DD86: =IF(AND($D86<>0,$J86=""),1,0) -> 0 | DE86: =IF(AND($D86<>0,$K86=""),1,0) -> 0
A87: P1200290 | B87: Estradiol Gel | D87: =IFERROR(VLOOKUP($A87,Filtro!$A$4:$AX$552,2,FALSE),0) -> 60 | E87: =IFERROR(VLOOKUP($A87,Filtro!$A$4:$AX$552,3,FALSE),0) -> 0 | F87: =IFERROR(VLOOKUP($A87,Filtro!$A$4:$AX$552,4,FALSE),0) -> 16 | G87: =IFERROR(VLOOKUP($A87,Filtro!$A$4:$AX$552,5,FALSE),0) -> 20 | H87: =IFERROR(VLOOKUP($A87,Filtro!$A$4:$AX$552,6,FALSE),0) -> 22 | I87: =IFERROR(VLOOKUP($A87,Filtro!$A$4:$AX$552,7,FALSE),0) -> 2 | J87: =IFERROR(VLOOKUP($A87,Filtro!$A$4:$AX$552,8,FALSE),0) -> 0 | K87: =IFERROR(VLOOKUP($A87,Filtro!$A$4:$AX$552,9,FALSE),0) -> 0 | CB87: =IF($J87>$D87,"* La celda 'Pueblos Originarios' debe ser menor o igual al Total en control. ","") ->  | CC87: =IF($K87>$D87,"* La celda 'Población Migrantes' debe ser menor o igual al Total en control. ","") ->  | CD87: =IF(AND($D87<>0,$J87=""),"* No olvide escribir en la celda de 'Pueblos Originarios' (Digite CERO si no tiene). ","") ->  | CE87: =IF(AND($D87<>0,$K87=""),"* No olvide escribir en la celda de 'Población Migrantes' (Digite CERO si no tiene). ","") ->  | DB87: =IF($J87>$D87,1,0) -> 0 | DC87: =IF($K87>$D87,1,0) -> 0 | DD87: =IF(AND($D87<>0,$J87=""),1,0) -> 0 | DE87: =IF(AND($D87<>0,$K87=""),1,0) -> 0
A88: P1200300 | B88: Progesterona Micronizada 100mg | D88: =IFERROR(VLOOKUP($A88,Filtro!$A$4:$AX$552,2,FALSE),0) -> 18 | E88: =IFERROR(VLOOKUP($A88,Filtro!$A$4:$AX$552,3,FALSE),0) -> 1 | F88: =IFERROR(VLOOKUP($A88,Filtro!$A$4:$AX$552,4,FALSE),0) -> 6 | G88: =IFERROR(VLOOKUP($A88,Filtro!$A$4:$AX$552,5,FALSE),0) -> 10 | H88: =IFERROR(VLOOKUP($A88,Filtro!$A$4:$AX$552,6,FALSE),0) -> 1 | I88: =IFERROR(VLOOKUP($A88,Filtro!$A$4:$AX$552,7,FALSE),0) -> 0 | J88: =IFERROR(VLOOKUP($A88,Filtro!$A$4:$AX$552,8,FALSE),0) -> 0 | K88: =IFERROR(VLOOKUP($A88,Filtro!$A$4:$AX$552,9,FALSE),0) -> 1 | DB88: 0 | DC88: 0 | DD88: 0 | DE88: 0
A89: P1200310 | B89: Progesterona Micronizada 200mg | D89: =IFERROR(VLOOKUP($A89,Filtro!$A$4:$AX$552,2,FALSE),0) -> 4 | E89: =IFERROR(VLOOKUP($A89,Filtro!$A$4:$AX$552,3,FALSE),0) -> 0 | F89: =IFERROR(VLOOKUP($A89,Filtro!$A$4:$AX$552,4,FALSE),0) -> 2 | G89: =IFERROR(VLOOKUP($A89,Filtro!$A$4:$AX$552,5,FALSE),0) -> 2 | H89: =IFERROR(VLOOKUP($A89,Filtro!$A$4:$AX$552,6,FALSE),0) -> 0 | I89: =IFERROR(VLOOKUP($A89,Filtro!$A$4:$AX$552,7,FALSE),0) -> 0 | J89: =IFERROR(VLOOKUP($A89,Filtro!$A$4:$AX$552,8,FALSE),0) -> 0 | K89: =IFERROR(VLOOKUP($A89,Filtro!$A$4:$AX$552,9,FALSE),0) -> 0 | DB89: 0 | DC89: 0 | DD89: 0 | DE89: 0
A90: P1200320 | B90: Nomegestrol 5mg comp. | D90: =IFERROR(VLOOKUP($A90,Filtro!$A$4:$AX$552,2,FALSE),0) -> 1 | E90: =IFERROR(VLOOKUP($A90,Filtro!$A$4:$AX$552,3,FALSE),0) -> 0 | F90: =IFERROR(VLOOKUP($A90,Filtro!$A$4:$AX$552,4,FALSE),0) -> 0 | G90: =IFERROR(VLOOKUP($A90,Filtro!$A$4:$AX$552,5,FALSE),0) -> 1 | H90: =IFERROR(VLOOKUP($A90,Filtro!$A$4:$AX$552,6,FALSE),0) -> 0 | I90: =IFERROR(VLOOKUP($A90,Filtro!$A$4:$AX$552,7,FALSE),0) -> 0 | J90: =IFERROR(VLOOKUP($A90,Filtro!$A$4:$AX$552,8,FALSE),0) -> 0 | K90: =IFERROR(VLOOKUP($A90,Filtro!$A$4:$AX$552,9,FALSE),0) -> 0 | DB90: 0 | DC90: 0 | DD90: 0 | DE90: 0
A91: P1200330 | B91: Tibolona 2,5mg comp. | D91: =IFERROR(VLOOKUP($A91,Filtro!$A$4:$AX$552,2,FALSE),0) -> 150 | E91: =IFERROR(VLOOKUP($A91,Filtro!$A$4:$AX$552,3,FALSE),0) -> 1 | F91: =IFERROR(VLOOKUP($A91,Filtro!$A$4:$AX$552,4,FALSE),0) -> 39 | G91: =IFERROR(VLOOKUP($A91,Filtro!$A$4:$AX$552,5,FALSE),0) -> 65 | H91: =IFERROR(VLOOKUP($A91,Filtro!$A$4:$AX$552,6,FALSE),0) -> 39 | I91: =IFERROR(VLOOKUP($A91,Filtro!$A$4:$AX$552,7,FALSE),0) -> 6 | J91: =IFERROR(VLOOKUP($A91,Filtro!$A$4:$AX$552,8,FALSE),0) -> 3 | K91: =IFERROR(VLOOKUP($A91,Filtro!$A$4:$AX$552,9,FALSE),0) -> 1 | DB91: 0 | DC91: 0 | DD91: 0 | DE91: 0
B92: Total | D92: =SUM(E92:I92) -> 273 | E92: =SUM(E86:E91) -> 2 | F92: =SUM(F86:F91) -> 73 | G92: 115 | H92: 72 | I92: 11 | J92: 3 | K92: 3
B93: SECCION G: GESTANTES EN CONTROL CON ECOGRAFÍA POR TRIMESTRE DE GESTACION (EN EL SEMESTRE)
B94: Población | C94: Primer trimestre | D94: Segundo trimestre | E94: Tercer trimestre | F94: Total de Gestantes con Ecografías del extrasistema
A95: P1060106 | B95: Menor de 15 | C95: =IFERROR(VLOOKUP($A95,Filtro!$A$4:$AX$552,2,FALSE),0) -> 11 | D95: =IFERROR(VLOOKUP($A95,Filtro!$A$4:$AX$552,3,FALSE),0) -> 1 | E95: =IFERROR(VLOOKUP($A95,Filtro!$A$4:$AX$552,4,FALSE),0) -> 0 | F95: =IFERROR(VLOOKUP($A95,Filtro!$A$4:$AX$552,5,FALSE),0) -> 2 | G95: =($CB95&$CC95&$CD95&$CE95&$CF95&$CG95&$CH95&$CI95&$CJ95&$CK95&$CM95&$CN95&$CO95&$CP95&$CQ95&$CR95&$CS95&$CT95&$CU95&$CV95&$CW95&$CX95&$CY95&$CZ95&$DA95) ->  | CB95: =IF($F95>$C95+$D95+$E95, "* El total de ecografías realizadas en el extrasistema en menores de 15 años, no puede ser mayor al nº de ecografias realizadas en los tres trimestres. ", "") ->  | DB95: =IF($F95>$C95+$D95+$E95, 1,0) -> 0
A96: P1060107 | B96: 15 - 19 | C96: =IFERROR(VLOOKUP($A96,Filtro!$A$4:$AX$552,2,FALSE),0) -> 184 | D96: =IFERROR(VLOOKUP($A96,Filtro!$A$4:$AX$552,3,FALSE),0) -> 122 | E96: =IFERROR(VLOOKUP($A96,Filtro!$A$4:$AX$552,4,FALSE),0) -> 44 | F96: =IFERROR(VLOOKUP($A96,Filtro!$A$4:$AX$552,5,FALSE),0) -> 81 | CB96: =IF($F96>$C96+$D96+$E96, "* El total de ecografías realizadas en el extrasistema en menores de 15-19 años, no puede ser mayor al nº de ecografias realizadas en los tres trimestres. ", "") ->  | DB96: =IF($F96>$C96+$D96+$E96, 1,0) -> 0
A97: P1060108 | B97: 20 - 24 | C97: =IFERROR(VLOOKUP($A97,Filtro!$A$4:$AX$552,2,FALSE),0) -> 512 | D97: =IFERROR(VLOOKUP($A97,Filtro!$A$4:$AX$552,3,FALSE),0) -> 322 | E97: =IFERROR(VLOOKUP($A97,Filtro!$A$4:$AX$552,4,FALSE),0) -> 116 | F97: =IFERROR(VLOOKUP($A97,Filtro!$A$4:$AX$552,5,FALSE),0) -> 240 | CB97: =IF($F97>$C97+$D97+$E97, "* El total de ecografías realizadas en el extrasistema en menores de 20-24 años, no puede ser mayor al nº de ecografias realizadas en los tres trimestres. ", "") ->  | DB97: 0
A98: P1060109 | B98: 25 - 29 | C98: =IFERROR(VLOOKUP($A98,Filtro!$A$4:$AX$552,2,FALSE),0) -> 615 | D98: =IFERROR(VLOOKUP($A98,Filtro!$A$4:$AX$552,3,FALSE),0) -> 370 | E98: =IFERROR(VLOOKUP($A98,Filtro!$A$4:$AX$552,4,FALSE),0) -> 150 | F98: =IFERROR(VLOOKUP($A98,Filtro!$A$4:$AX$552,5,FALSE),0) -> 342 | CB98: =IF($F98>$C98+$D98+$E98, "* El total de ecografías realizadas en el extrasistema en menores de 28-29 años, no puede ser mayor al nº de ecografias realizadas en los tres trimestres. ", "") ->  | DB98: 0
A99: P1060110 | B99: 30 - 34 | C99: =IFERROR(VLOOKUP($A99,Filtro!$A$4:$AX$552,2,FALSE),0) -> 496 | D99: =IFERROR(VLOOKUP($A99,Filtro!$A$4:$AX$552,3,FALSE),0) -> 322 | E99: =IFERROR(VLOOKUP($A99,Filtro!$A$4:$AX$552,4,FALSE),0) -> 102 | F99: =IFERROR(VLOOKUP($A99,Filtro!$A$4:$AX$552,5,FALSE),0) -> 251 | CB99: =IF($F99>$C99+$D99+$E99, "* El total de ecografías realizadas en el extrasistema en menores de 30-34 años, no puede ser mayor al nº de ecografias realizadas en los tres trimestres. ", "") ->  | DB99: 0
A100: P1060111 | B100: 35 - 39 | C100: =IFERROR(VLOOKUP($A100,Filtro!$A$4:$AX$552,2,FALSE),0) -> 233 | D100: =IFERROR(VLOOKUP($A100,Filtro!$A$4:$AX$552,3,FALSE),0) -> 140 | E100: =IFERROR(VLOOKUP($A100,Filtro!$A$4:$AX$552,4,FALSE),0) -> 63 | F100: =IFERROR(VLOOKUP($A100,Filtro!$A$4:$AX$552,5,FALSE),0) -> 108 | CB100: =IF($F100>$C100+$D100+$E100, "* El total de ecografías realizadas en el extrasistema en menores de 35-39 años, no puede ser mayor al nº de ecografias realizadas en los tres trimestres. ", "") ->  | DB100: 0
A101: P1060112 | B101: 40 - 44 | C101: =IFERROR(VLOOKUP($A101,Filtro!$A$4:$AX$552,2,FALSE),0) -> 64 | D101: =IFERROR(VLOOKUP($A101,Filtro!$A$4:$AX$552,3,FALSE),0) -> 51 | E101: =IFERROR(VLOOKUP($A101,Filtro!$A$4:$AX$552,4,FALSE),0) -> 18 | F101: =IFERROR(VLOOKUP($A101,Filtro!$A$4:$AX$552,5,FALSE),0) -> 25 | CB101: =IF($F101>$C101+$D101+$E101, "* El total de ecografías realizadas en el extrasistema en menores de 40-44 años, no puede ser mayor al nº de ecografias realizadas en los tres trimestres. ", "") ->  | DB101: 0
A102: P1060113 | B102: 45 - 49 | C102: =IFERROR(VLOOKUP($A102,Filtro!$A$4:$AX$552,2,FALSE),0) -> 3 | D102: =IFERROR(VLOOKUP($A102,Filtro!$A$4:$AX$552,3,FALSE),0) -> 2 | E102: =IFERROR(VLOOKUP($A102,Filtro!$A$4:$AX$552,4,FALSE),0) -> 2 | F102: =IFERROR(VLOOKUP($A102,Filtro!$A$4:$AX$552,5,FALSE),0) -> 0 | CB102: =IF($F102>$C102+$D102+$E102, "* El total de ecografías realizadas en el extrasistema en menores de 45-49 años, no puede ser mayor al nº de ecografias realizadas en los tres trimestres. ", "") ->  | DB102: 0
A103: P1060114 | B103: 50 - 54 | C103: =IFERROR(VLOOKUP($A103,Filtro!$A$4:$AX$552,2,FALSE),0) -> 2 | D103: =IFERROR(VLOOKUP($A103,Filtro!$A$4:$AX$552,3,FALSE),0) -> 1 | E103: =IFERROR(VLOOKUP($A103,Filtro!$A$4:$AX$552,4,FALSE),0) -> 1 | F103: =IFERROR(VLOOKUP($A103,Filtro!$A$4:$AX$552,5,FALSE),0) -> 0 | CB103: =IF($F103>$C103+$D103+$E103, "* El total de ecografías realizadas en el extrasistema en menores de 50-54 años, no puede ser mayor al nº de ecografias realizadas en los tres trimestres. ", "") ->  | DB103: 0
B104: TOTAL | C104: =SUM(C95:C103) -> 2120 | D104: =SUM(D95:D103) -> 1331 | E104: =SUM(E95:E103) -> 496 | F104: =SUM(F95:F103) -> 1049
B105: SECCION H: GESTANTES EN CONTROL DE ENFERMEDADES TRANSMISIBLES (HEPATITIS B, CHAGAS)
C106: HEPATITIS B | E106: CHAGAS
B107: Población | C107: Solicitados | D107: Informados | E107: Solicitados | F107: Informados
A108: P1200100 | B108: Menor de 15 | C108: =IFERROR(VLOOKUP($A108,Filtro!$A$4:$AX$552,2,FALSE),0) -> 1 | D108: =IFERROR(VLOOKUP($A108,Filtro!$A$4:$AX$552,3,FALSE),0) -> 0 | E108: =IFERROR(VLOOKUP($A108,Filtro!$A$4:$AX$552,4,FALSE),0) -> 7 | F108: =IFERROR(VLOOKUP($A108,Filtro!$A$4:$AX$552,5,FALSE),0) -> 6 | G108: =($CB108&$CC108&$CD108&$CE108&$CF108&$CG108&$CH108&$CI108&$CJ108&$CK108&$CM108&$CN108&$CO108&$CP108&$CQ108&$CR108&$CS108&$CT108&$CU108&$CV108&$CW108&$CX108&$CY108&$CZ108&$DA108) -> 
A109: P1200110 | B109: 15 - 19 | C109: =IFERROR(VLOOKUP($A109,Filtro!$A$4:$AX$552,2,FALSE),0) -> 3 | D109: =IFERROR(VLOOKUP($A109,Filtro!$A$4:$AX$552,3,FALSE),0) -> 1 | E109: =IFERROR(VLOOKUP($A109,Filtro!$A$4:$AX$552,4,FALSE),0) -> 189 | F109: =IFERROR(VLOOKUP($A109,Filtro!$A$4:$AX$552,5,FALSE),0) -> 143
A110: P1200120 | B110: 20 - 24 | C110: =IFERROR(VLOOKUP($A110,Filtro!$A$4:$AX$552,2,FALSE),0) -> 6 | D110: =IFERROR(VLOOKUP($A110,Filtro!$A$4:$AX$552,3,FALSE),0) -> 4 | E110: =IFERROR(VLOOKUP($A110,Filtro!$A$4:$AX$552,4,FALSE),0) -> 425 | F110: =IFERROR(VLOOKUP($A110,Filtro!$A$4:$AX$552,5,FALSE),0) -> 347
A111: P1200130 | B111: 25 - 29 | C111: =IFERROR(VLOOKUP($A111,Filtro!$A$4:$AX$552,2,FALSE),0) -> 7 | D111: =IFERROR(VLOOKUP($A111,Filtro!$A$4:$AX$552,3,FALSE),0) -> 2 | E111: =IFERROR(VLOOKUP($A111,Filtro!$A$4:$AX$552,4,FALSE),0) -> 517 | F111: =IFERROR(VLOOKUP($A111,Filtro!$A$4:$AX$552,5,FALSE),0) -> 436
A112: P1200140 | B112: 30 - 34 | C112: =IFERROR(VLOOKUP($A112,Filtro!$A$4:$AX$552,2,FALSE),0) -> 8 | D112: =IFERROR(VLOOKUP($A112,Filtro!$A$4:$AX$552,3,FALSE),0) -> 6 | E112: =IFERROR(VLOOKUP($A112,Filtro!$A$4:$AX$552,4,FALSE),0) -> 400 | F112: =IFERROR(VLOOKUP($A112,Filtro!$A$4:$AX$552,5,FALSE),0) -> 308
A113: P1200150 | B113: 35 - 39 | C113: =IFERROR(VLOOKUP($A113,Filtro!$A$4:$AX$552,2,FALSE),0) -> 7 | D113: =IFERROR(VLOOKUP($A113,Filtro!$A$4:$AX$552,3,FALSE),0) -> 5 | E113: =IFERROR(VLOOKUP($A113,Filtro!$A$4:$AX$552,4,FALSE),0) -> 191 | F113: =IFERROR(VLOOKUP($A113,Filtro!$A$4:$AX$552,5,FALSE),0) -> 147
A114: P1200160 | B114: 40 - 44 | C114: =IFERROR(VLOOKUP($A114,Filtro!$A$4:$AX$552,2,FALSE),0) -> 1 | D114: =IFERROR(VLOOKUP($A114,Filtro!$A$4:$AX$552,3,FALSE),0) -> 0 | E114: =IFERROR(VLOOKUP($A114,Filtro!$A$4:$AX$552,4,FALSE),0) -> 56 | F114: =IFERROR(VLOOKUP($A114,Filtro!$A$4:$AX$552,5,FALSE),0) -> 46
A115: P1200170 | B115: 45 - 49 | C115: =IFERROR(VLOOKUP($A115,Filtro!$A$4:$AX$552,2,FALSE),0) -> 0 | D115: =IFERROR(VLOOKUP($A115,Filtro!$A$4:$AX$552,3,FALSE),0) -> 0 | E115: =IFERROR(VLOOKUP($A115,Filtro!$A$4:$AX$552,4,FALSE),0) -> 1 | F115: =IFERROR(VLOOKUP($A115,Filtro!$A$4:$AX$552,5,FALSE),0) -> 1
A116: P1200180 | B116: 50 - 54 | C116: =IFERROR(VLOOKUP($A116,Filtro!$A$4:$AX$552,2,FALSE),0) -> 0 | D116: =IFERROR(VLOOKUP($A116,Filtro!$A$4:$AX$552,3,FALSE),0) -> 0 | E116: =IFERROR(VLOOKUP($A116,Filtro!$A$4:$AX$552,4,FALSE),0) -> 0 | F116: =IFERROR(VLOOKUP($A116,Filtro!$A$4:$AX$552,5,FALSE),0) -> 0
B117: TOTAL | C117: =SUM(C108:C116) -> 33 | D117: =SUM(D108:D116) -> 18 | E117: =SUM(E108:E116) -> 1786 | F117: =SUM(F108:F116) -> 1434
B118: NIVEL SECUNDARIO
B119: SECCIÓN I: POBLACIÓN EN CONTROL POR PATOLOGÍAS DE ALTO RIESGO OBSTÉTRICO
B120: PATOLOGÍA | C120: TOTAL
A121: P1030303 | B121: Preeclampsia (PE) | C121: =IFERROR(VLOOKUP($A121,Filtro!$A$4:$AX$552,2,FALSE),0) -> 31 | D121: =($CB121&$CC121&$CD121&$CE121&$CF121&$CG121&$CH121&$CI121&$CJ121&$CK121&$CM121&$CN121&$CO121&$CP121&$CQ121&$CR121&$CS121&$CT121&$CU121&$CV121&$CW121&$CX121&$CY121&$CZ121&$DA121) -> 
A122: P1060070 | B122: Sindrome Hipertensivo del Embarazo (SHE) | C122: =IFERROR(VLOOKUP($A122,Filtro!$A$4:$AX$552,2,FALSE),0) -> 86
A123: P1030304 | B123: Factores de riesgo y condicionantes de Parto Prematuro | C123: =IFERROR(VLOOKUP($A123,Filtro!$A$4:$AX$552,2,FALSE),0) -> 155
A124: P1030401 | B124: Retardo Crecimiento Intrauterino (RCIU ) | C124: =IFERROR(VLOOKUP($A124,Filtro!$A$4:$AX$552,2,FALSE),0) -> 61
A125: P1040506 | B125: SÍFILIS | C125: =IFERROR(VLOOKUP($A125,Filtro!$A$4:$AX$552,2,FALSE),0) -> 25
A126: P1040507 | B126: VIH | C126: =IFERROR(VLOOKUP($A126,Filtro!$A$4:$AX$552,2,FALSE),0) -> 10
A127: P1060115 | B127: Diabetes Pre Gestacional | C127: =IFERROR(VLOOKUP($A127,Filtro!$A$4:$AX$552,2,FALSE),0) -> 104
A128: P1060116 | B128: Diabetes Gestacional | C128: =IFERROR(VLOOKUP($A128,Filtro!$A$4:$AX$552,2,FALSE),0) -> 327
A129: P1030403 | B129: Cesárea anterior | C129: =IFERROR(VLOOKUP($A129,Filtro!$A$4:$AX$552,2,FALSE),0) -> 500
A130: P1060080 | B130: Malformación Congénita | C130: =IFERROR(VLOOKUP($A130,Filtro!$A$4:$AX$552,2,FALSE),0) -> 47
A131: P1060117 | B131: Anemia | C131: =IFERROR(VLOOKUP($A131,Filtro!$A$4:$AX$552,2,FALSE),0) -> 21
A132: P1060118 | B132: Cardiopatías | C132: =IFERROR(VLOOKUP($A132,Filtro!$A$4:$AX$552,2,FALSE),0) -> 8
A133: P1060119 | B133: Pielonefritis | C133: =IFERROR(VLOOKUP($A133,Filtro!$A$4:$AX$552,2,FALSE),0) -> 8
A134: P1060120 | B134: Rh(-) sensibilizada | C134: =IFERROR(VLOOKUP($A134,Filtro!$A$4:$AX$552,2,FALSE),0) -> 22
A135: P1060121 | B135: Placenta previa | C135: =IFERROR(VLOOKUP($A135,Filtro!$A$4:$AX$552,2,FALSE),0) -> 12
A136: P1060122 | B136: Chagas | C136: =IFERROR(VLOOKUP($A136,Filtro!$A$4:$AX$552,2,FALSE),0) -> 18
A137: P1060123 | B137: Colestasia Intrahépatica de Embarazo | C137: =IFERROR(VLOOKUP($A137,Filtro!$A$4:$AX$552,2,FALSE),0) -> 19
A138: P1030404 | B138: Otras patologías del embarazo | C138: =IFERROR(VLOOKUP($A138,Filtro!$A$4:$AX$552,2,FALSE),0) -> 1404
B139: TOTAL | C139: =SUM(C121:C138) -> 2858
B151: =SUM(D11:Q33,C37:G46,C50:D54,D58:M67,C70:C74,C77:C81,D86:K92,C95:F104,C108:F117,C121:C139) -> 350705 | C151: datos
B152: =SUM(DB$10:EA150) -> 11 | C152: errores

Sheet P2
B6: REM-P2. POBLACIÓN EN CONTROL PROGRAMA DE SALUD DEL NIÑO
B7: SECCION A: POBLACIÓN EN CONTROL, SEGÚN ESTADO NUTRICIONAL PARA NIÑOS MENOR DE UN MES-59 MESES
B8: INDICADOR NUTRICIONAL Y PARÁMETROS DE MEDICIÓN | D8: TOTAL | G8: GRUPOS DE EDAD (en meses - años) Y SEXO | AI8: Pueblos Originarios | AK8: Población Migrantes
G9: Menor de 1 mes | I9: 1 mes | K9: 2 meses | M9: 3 meses | O9: 4 meses | Q9: 5 meses | S9: 6 meses | U9: 7 a 11 meses | W9: 12 a 17 meses | Y9: 18 a 23 meses | AA9: 24 a 35 meses | AC9: 36 a 41 meses | AE9: 42 a 47 meses | AG9: 48 a 59 meses
D10: Ambos sexos | E10: Hombres | F10: Mujeres | G10: Hombres | H10: Mujeres | I10: Hombres | J10: Mujeres | K10: Hombres | L10: Mujeres | M10: Hombres | N10: Mujeres | O10: Hombres | P10: Mujeres | Q10: Hombres | R10: Mujeres | S10: Hombres | T10: Mujeres | U10: Hombres | V10: Mujeres | W10: Hombres | X10: Mujeres | Y10: Hombres | Z10: Mujeres | AA10: Hombres | AB10: Mujeres | AC10: Hombres | AD10: Mujeres | AE10: Hombres | AF10: Mujeres | AG10: Hombres | AH10: Mujeres | AI10: Hombres | AJ10: Mujeres | AK10: Hombres | AL10: Mujeres
A11: P2060000 | B11: TOTAL DE NIÑOS EN CONTROL | D11: =IFERROR(VLOOKUP($A11,Filtro!$A$4:$AX$552,2,FALSE),0) -> 34669 | E11: =IFERROR(VLOOKUP($A11,Filtro!$A$4:$AX$552,3,FALSE),0) -> 17577 | F11: =IFERROR(VLOOKUP($A11,Filtro!$A$4:$AX$552,4,FALSE),0) -> 17092 | G11: =IFERROR(VLOOKUP($A11,Filtro!$A$4:$AX$552,5,FALSE),0) -> 117 | H11: =IFERROR(VLOOKUP($A11,Filtro!$A$4:$AX$552,6,FALSE),0) -> 163 | I11: =IFERROR(VLOOKUP($A11,Filtro!$A$4:$AX$552,7,FALSE),0) -> 216 | J11: =IFERROR(VLOOKUP($A11,Filtro!$A$4:$AX$552,8,FALSE),0) -> 189 | K11: =IFERROR(VLOOKUP($A11,Filtro!$A$4:$AX$552,9,FALSE),0) -> 261 | L11: =IFERROR(VLOOKUP($A11,Filtro!$A$4:$AX$552,10,FALSE),0) -> 246 | M11: =IFERROR(VLOOKUP($A11,Filtro!$A$4:$AX$552,11,FALSE),0) -> 276 | N11: =IFERROR(VLOOKUP($A11,Filtro!$A$4:$AX$552,12,FALSE),0) -> 268 | O11: =IFERROR(VLOOKUP($A11,Filtro!$A$4:$AX$552,13,FALSE),0) -> 272 | P11: =IFERROR(VLOOKUP($A11,Filtro!$A$4:$AX$552,14,FALSE),0) -> 274 | Q11: =IFERROR(VLOOKUP($A11,Filtro!$A$4:$AX$552,15,FALSE),0) -> 268 | R11: =IFERROR(VLOOKUP($A11,Filtro!$A$4:$AX$552,16,FALSE),0) -> 293 | S11: =IFERROR(VLOOKUP($A11,Filtro!$A$4:$AX$552,17,FALSE),0) -> 470 | T11: =IFERROR(VLOOKUP($A11,Filtro!$A$4:$AX$552,18,FALSE),0) -> 455 | U11: =IFERROR(VLOOKUP($A11,Filtro!$A$4:$AX$552,19,FALSE),0) -> 1360 | V11: =IFERROR(VLOOKUP($A11,Filtro!$A$4:$AX$552,20,FALSE),0) -> 1302 | W11: =IFERROR(VLOOKUP($A11,Filtro!$A$4:$AX$552,21,FALSE),0) -> 1807 | X11: =IFERROR(VLOOKUP($A11,Filtro!$A$4:$AX$552,22,FALSE),0) -> 1792 | Y11: =IFERROR(VLOOKUP($A11,Filtro!$A$4:$AX$552,23,FALSE),0) -> 1992 | Z11: =IFERROR(VLOOKUP($A11,Filtro!$A$4:$AX$552,24,FALSE),0) -> 1823 | AA11: =IFERROR(VLOOKUP($A11,Filtro!$A$4:$AX$552,25,FALSE),0) -> 3494 | AB11: =IFERROR(VLOOKUP($A11,Filtro!$A$4:$AX$552,26,FALSE),0) -> 3356 | AC11: =IFERROR(VLOOKUP($A11,Filtro!$A$4:$AX$552,27,FALSE),0) -> 1940 | AD11: =IFERROR(VLOOKUP($A11,Filtro!$A$4:$AX$552,28,FALSE),0) -> 1853 | AE11: =IFERROR(VLOOKUP($A11,Filtro!$A$4:$AX$552,29,FALSE),0) -> 1610 | AF11: =IFERROR(VLOOKUP($A11,Filtro!$A$4:$AX$552,30,FALSE),0) -> 1559 | AG11: =IFERROR(VLOOKUP($A11,Filtro!$A$4:$AX$552,31,FALSE),0) -> 3494 | AH11: =IFERROR(VLOOKUP($A11,Filtro!$A$4:$AX$552,32,FALSE),0) -> 3519 | AI11: =IFERROR(VLOOKUP($A11,Filtro!$A$4:$AX$552,33,FALSE),0) -> 71 | AJ11: =IFERROR(VLOOKUP($A11,Filtro!$A$4:$AX$552,34,FALSE),0) -> 74 | AK11: =IFERROR(VLOOKUP($A11,Filtro!$A$4:$AX$552,35,FALSE),0) -> 224 | AL11: =IFERROR(VLOOKUP($A11,Filtro!$A$4:$AX$552,36,FALSE),0) -> 245 | AM11: =AY11 & AZ11 & BA11 & BB11 & BC11 & BD11 & BE11 & BF11 & BD12 & AY12 & AZ12 & BA12 & BB12 & BC12 & BE12 & BF12 & BG12 & BF13 & BG13 ->  | AY11: =IF($I$11+$J$11<>$I$39+$J$39,"* El Total de niños (as) en Control de 1 mes debe ser igual al Total de niños(as) según Diagnóstico Nutricional Integrado. ","") ->  | AZ11: =IF($K$11+$L$11<>$K$39+$L$39,"* El Total de niños (as) en Control de 2 meses debe ser igual al Total de niños(as) según Diagnóstico Nutricional Integrado. ","") ->  | BA11: =IF($M$11+$N$11<>$M$39+$N$39,"* El Total de niños (as) en Control de 3 meses debe ser igual al Total de niños(as) según Diagnóstico Nutricional Integrado. ","") ->  | BB11: =IF($O$11+$P$11<>$O$39+$P$39,"* El Total de niños (as) en Control de 4 meses debe ser igual al Total de niños(as) según Diagnóstico Nutricional Integrado. ","") ->  | BC11: =IF($Q$11+$R$11<>$Q$39+$R$39,"* El Total de niños (as) en Control de 5 meses debe ser igual al Total de niños(as) según Diagnóstico Nutricional Integrado. ","") ->  | BD11: =IF($S$11+$T$11<>$S$39+$T$39,"* El Total de niños (as) en Control de 6 meses debe ser igual al Total de niños(as) según Diagnóstico Nutricional Integrado. ","") ->  | BE11: =IF($U$11+$V$11<>$U$39+$V$39,"* El Total de niños (as) en Control de 7 a 11 meses debe ser igual al Total de niños(as) según Diagnóstico Nutricional Integrado. ","") ->  | BF11: =IF($W$11+$X$11<>$W$39+$X$39,"* El Total de niños (as) en Control de 12 a 17 meses debe ser igual al Total de niños(as) según Diagnóstico Nutricional Integrado. ","") ->  | BI11: =IF($I$11+$J$11<>$I$39+$J$39,1,0) -> 0 | BJ11: =IF($K$11+$L$11<>$K$39+$L$39,1,0) -> 0 | BK11: =IF($M$11+$N$11<>$M$39+$N$39,1,0) -> 0 | BL11: =IF($O$11+$P$11<>$O$39+$P$39,1,0) -> 0 | BM11: =IF($Q$11+$R$11<>$Q$39+$R$39,1,0) -> 0 | BN11: =IF($S$11+$T$11<>$S$39+$T$39,1,0) -> 0 | BO11: =IF($U$11+$V$11<>$U$39+$V$39,1,0) -> 0 | BP11: =IF($W$11+$X$11<>$W$39+$X$39,1,0) -> 0
A12: P2400100 | B12: INDICADOR PESO/EDAD | C12: + 2 D.S. (>= +2.0) | D12: =IFERROR(VLOOKUP($A12,Filtro!$A$4:$AX$552,2,FALSE),0) -> 2566 | E12: =IFERROR(VLOOKUP($A12,Filtro!$A$4:$AX$552,3,FALSE),0) -> 1400 | F12: =IFERROR(VLOOKUP($A12,Filtro!$A$4:$AX$552,4,FALSE),0) -> 1166 | G12: =IFERROR(VLOOKUP($A12,Filtro!$A$4:$AX$552,5,FALSE),0) -> 0 | H12: =IFERROR(VLOOKUP($A12,Filtro!$A$4:$AX$552,6,FALSE),0) -> 0 | I12: =IFERROR(VLOOKUP($A12,Filtro!$A$4:$AX$552,7,FALSE),0) -> 3 | J12: =IFERROR(VLOOKUP($A12,Filtro!$A$4:$AX$552,8,FALSE),0) -> 4 | K12: =IFERROR(VLOOKUP($A12,Filtro!$A$4:$AX$552,9,FALSE),0) -> 11 | L12: =IFERROR(VLOOKUP($A12,Filtro!$A$4:$AX$552,10,FALSE),0) -> 7 | M12: =IFERROR(VLOOKUP($A12,Filtro!$A$4:$AX$552,11,FALSE),0) -> 18 | N12: =IFERROR(VLOOKUP($A12,Filtro!$A$4:$AX$552,12,FALSE),0) -> 12 | O12: =IFERROR(VLOOKUP($A12,Filtro!$A$4:$AX$552,13,FALSE),0) -> 9 | P12: =IFERROR(VLOOKUP($A12,Filtro!$A$4:$AX$552,14,FALSE),0) -> 9 | Q12: =IFERROR(VLOOKUP($A12,Filtro!$A$4:$AX$552,15,FALSE),0) -> 26 | R12: =IFERROR(VLOOKUP($A12,Filtro!$A$4:$AX$552,16,FALSE),0) -> 14 | S12: =IFERROR(VLOOKUP($A12,Filtro!$A$4:$AX$552,17,FALSE),0) -> 27 | T12: =IFERROR(VLOOKUP($A12,Filtro!$A$4:$AX$552,18,FALSE),0) -> 27 | U12: =IFERROR(VLOOKUP($A12,Filtro!$A$4:$AX$552,19,FALSE),0) -> 126 | V12: =IFERROR(VLOOKUP($A12,Filtro!$A$4:$AX$552,20,FALSE),0) -> 93 | W12: =IFERROR(VLOOKUP($A12,Filtro!$A$4:$AX$552,21,FALSE),0) -> 136 | X12: =IFERROR(VLOOKUP($A12,Filtro!$A$4:$AX$552,22,FALSE),0) -> 111 | Y12: =IFERROR(VLOOKUP($A12,Filtro!$A$4:$AX$552,23,FALSE),0) -> 151 | Z12: =IFERROR(VLOOKUP($A12,Filtro!$A$4:$AX$552,24,FALSE),0) -> 124 | AA12: =IFERROR(VLOOKUP($A12,Filtro!$A$4:$AX$552,25,FALSE),0) -> 292 | AB12: =IFERROR(VLOOKUP($A12,Filtro!$A$4:$AX$552,26,FALSE),0) -> 240 | AC12: =IFERROR(VLOOKUP($A12,Filtro!$A$4:$AX$552,27,FALSE),0) -> 140 | AD12: =IFERROR(VLOOKUP($A12,Filtro!$A$4:$AX$552,28,FALSE),0) -> 142 | AE12: =IFERROR(VLOOKUP($A12,Filtro!$A$4:$AX$552,29,FALSE),0) -> 123 | AF12: =IFERROR(VLOOKUP($A12,Filtro!$A$4:$AX$552,30,FALSE),0) -> 115 | AG12: =IFERROR(VLOOKUP($A12,Filtro!$A$4:$AX$552,31,FALSE),0) -> 338 | AH12: =IFERROR(VLOOKUP($A12,Filtro!$A$4:$AX$552,32,FALSE),0) -> 268 | AI12: =IFERROR(VLOOKUP($A12,Filtro!$A$4:$AX$552,33,FALSE),0) -> 11 | AJ12: =IFERROR(VLOOKUP($A12,Filtro!$A$4:$AX$552,34,FALSE),0) -> 2 | AK12: =IFERROR(VLOOKUP($A12,Filtro!$A$4:$AX$552,35,FALSE),0) -> 12 | AL12: =IFERROR(VLOOKUP($A12,Filtro!$A$4:$AX$552,36,FALSE),0) -> 5 | AM12: =AY12 & AZ12 & BA12 & BB12 & BC12 & BD12 & BE12 & BF12 & BD13 & AY13 & AZ13 & BA13 & BB13 & BC13 & BE13 & BF13 & BG13 & BF14 & BG14 ->  | AY12: =IF($Y$11+$Z$11<>$Y$39+$Z$39,"* El Total de niños (as) en Control de 18 a 23 meses debe ser igual al Total de niños(as) según Diagnóstico Nutricional Integrado. ","") ->  | AZ12: =IF($AA$11+$AB$11<>$AA$39+$AB$39,"* El Total de niños (as) en Control de 24 a 35 meses debe ser igual al Total de niños(as) según Diagnóstico Nutricional Integrado. ","") ->  | BA12: =IF($AC$11+$AD$11<>$AC$39+$AD$39,"* El Total de niños (as) en Control de 36 a 41 meses debe ser igual al Total de niños(as) según Diagnóstico Nutricional Integrado. ","") ->  | BB12: =IF($AE$11+$AF$11<>$AE$39+$AF$39,"* El Total de niños (as) en Control de 42 a 47 meses debe ser igual al Total de niños(as) según Diagnóstico Nutricional Integrado. ","") ->  | BC12: =IF($AG$11+$AH$11<>$AG$39+$AH$39,"* El Total de niños (as) en Control de 48 a 59 meses debe ser igual al Total de niños(as) según Diagnóstico Nutricional Integrado. ","") ->  | BD12: =IF($D11>=$AI11+$AJ11,"","* El Total de Pueblos Originarios no debe ser mayor al total de niños en control. ") ->  | BE12: =IF($D11>=$AK11+$AL11,"","* El Total de Población Migrantes no debe ser mayor al total de niños en control. ") ->  | BF12: =IF($AI$11+$AJ$11<>$AI$39+$AJ$39,"* El Total de niños (as) en Control de Pueblos Originarios debe ser igual al Total de niños(as) según Diagnóstico Nutricional Integrado. ","") ->  | BG12: =IF($AK$11+$AL$11<>$AK$39+$AL$39,"* El Total de niños (as) en Control de Población Migrantes debe ser igual al Total de niños(as) según Diagnóstico Nutricional Integrado. ","") ->  | BI12: =IF($Y$11+$Z$11<>$Y$39+$Z$39,1,0) -> 0 | BJ12: =IF($AA$11+$AB$11<>$AA$39+$AB$39,1,0) -> 0 | BK12: =IF($AC$11+$AD$11<>$AC$39+$AD$39,1,0) -> 0 | BL12: =IF($AE$11+$AF$11<>$AE$39+$AF$39,1,0) -> 0 | BM12: =IF($AG$11+$AH$11<>$AG$39+$AH$39,1,0) -> 0 | BN12: =IF($D11>=$AI11+$AJ11,0,1) -> 0 | BO12: =IF($D11>=$AK11+$AL11,0,1) -> 0 | BP12: =IF($AI$11+$AJ$11<>$AI$39+$AJ$39,1,0) -> 0 | BQ12: =IF($AK$11+$AL$11<>$AK$39+$AL$39,1,0) -> 0
A13: P2400110 | C13: + 1 D.S. (+1.0 a +1.9) | D13: =IFERROR(VLOOKUP($A13,Filtro!$A$4:$AX$552,2,FALSE),0) -> 6693 | E13: =IFERROR(VLOOKUP($A13,Filtro!$A$4:$AX$552,3,FALSE),0) -> 3360 | F13: =IFERROR(VLOOKUP($A13,Filtro!$A$4:$AX$552,4,FALSE),0) -> 3333 | G13: =IFERROR(VLOOKUP($A13,Filtro!$A$4:$AX$552,5,FALSE),0) -> 0 | H13: =IFERROR(VLOOKUP($A13,Filtro!$A$4:$AX$552,6,FALSE),0) -> 0 | I13: =IFERROR(VLOOKUP($A13,Filtro!$A$4:$AX$552,7,FALSE),0) -> 21 | J13: =IFERROR(VLOOKUP($A13,Filtro!$A$4:$AX$552,8,FALSE),0) -> 18 | K13: =IFERROR(VLOOKUP($A13,Filtro!$A$4:$AX$552,9,FALSE),0) -> 39 | L13: =IFERROR(VLOOKUP($A13,Filtro!$A$4:$AX$552,10,FALSE),0) -> 21 | M13: =IFERROR(VLOOKUP($A13,Filtro!$A$4:$AX$552,11,FALSE),0) -> 52 | N13: =IFERROR(VLOOKUP($A13,Filtro!$A$4:$AX$552,12,FALSE),0) -> 38 | O13: =IFERROR(VLOOKUP($A13,Filtro!$A$4:$AX$552,13,FALSE),0) -> 49 | P13: =IFERROR(VLOOKUP($A13,Filtro!$A$4:$AX$552,14,FALSE),0) -> 48 | Q13: =IFERROR(VLOOKUP($A13,Filtro!$A$4:$AX$552,15,FALSE),0) -> 57 | R13: =IFERROR(VLOOKUP($A13,Filtro!$A$4:$AX$552,16,FALSE),0) -> 52 | S13: =IFERROR(VLOOKUP($A13,Filtro!$A$4:$AX$552,17,FALSE),0) -> 87 | T13: =IFERROR(VLOOKUP($A13,Filtro!$A$4:$AX$552,18,FALSE),0) -> 99 | U13: =IFERROR(VLOOKUP($A13,Filtro!$A$4:$AX$552,19,FALSE),0) -> 270 | V13: =IFERROR(VLOOKUP($A13,Filtro!$A$4:$AX$552,20,FALSE),0) -> 253 | W13: =IFERROR(VLOOKUP($A13,Filtro!$A$4:$AX$552,21,FALSE),0) -> 391 | X13: =IFERROR(VLOOKUP($A13,Filtro!$A$4:$AX$552,22,FALSE),0) -> 421 | Y13: =IFERROR(VLOOKUP($A13,Filtro!$A$4:$AX$552,23,FALSE),0) -> 402 | Z13: =IFERROR(VLOOKUP($A13,Filtro!$A$4:$AX$552,24,FALSE),0) -> 394 | AA13: =IFERROR(VLOOKUP($A13,Filtro!$A$4:$AX$552,25,FALSE),0) -> 699 | AB13: =IFERROR(VLOOKUP($A13,Filtro!$A$4:$AX$552,26,FALSE),0) -> 653 | AC13: =IFERROR(VLOOKUP($A13,Filtro!$A$4:$AX$552,27,FALSE),0) -> 342 | AD13: =IFERROR(VLOOKUP($A13,Filtro!$A$4:$AX$552,28,FALSE),0) -> 360 | AE13: =IFERROR(VLOOKUP($A13,Filtro!$A$4:$AX$552,29,FALSE),0) -> 295 | AF13: =IFERROR(VLOOKUP($A13,Filtro!$A$4:$AX$552,30,FALSE),0) -> 302 | AG13: =IFERROR(VLOOKUP($A13,Filtro!$A$4:$AX$552,31,FALSE),0) -> 656 | AH13: =IFERROR(VLOOKUP($A13,Filtro!$A$4:$AX$552,32,FALSE),0) -> 674 | AI13: =IFERROR(VLOOKUP($A13,Filtro!$A$4:$AX$552,33,FALSE),0) -> 11 | AJ13: =IFERROR(VLOOKUP($A13,Filtro!$A$4:$AX$552,34,FALSE),0) -> 19 | AK13: =IFERROR(VLOOKUP($A13,Filtro!$A$4:$AX$552,35,FALSE),0) -> 23 | AL13: =IFERROR(VLOOKUP($A13,Filtro!$A$4:$AX$552,36,FALSE),0) -> 34 | BF13: =IF(AND(E11<>0,AI11=""), "* No olvide escribir en la celda de Pueblos Originarios (Digite CERO si no tiene). ",IF(AND(F11<>0,AJ11=""), "* No olvide escribir en la celda de Pueblos Originarios (Digite CERO si no tiene). ","")) ->  | BG13: =IF(AND(E11<>0,AK11=""), "* No olvide escribir en la celda de Población Migrantes (Digite CERO si no tiene). ",IF(AND(F11<>0,AL11=""), "* No olvide escribir en la celda de Población Migrantes (Digite CERO si no tiene). ","")) ->  | BP13: =IF(AND(E11<>0,AI11=""), 1,IF(AND(F11<>0,AJ11=""), 1,0)) -> 0 | BQ13: =IF(AND(E11<>0,AK11=""), 1,IF(AND(F11<>0,AL11=""), 1,0)) -> 0
C14: TOTAL | D14: =SUM(E14:F14) -> 9259 | E14: =+I14+K14+M14+O14+Q14+S14+U14+W14+Y14+AA14+AC14+AE14+AG14 -> 4760 | F14: 4499 | I14: =+SUM(I12:I13) -> 24 | J14: =+SUM(J12:J13) -> 22 | K14: 50 | L14: 28 | M14: 70 | N14: 50 | O14: 58 | P14: 57 | Q14: 83 | R14: 66 | S14: 114 | T14: 126 | U14: 396 | V14: =+SUM(V12:V13) -> 346 | W14: =SUM(W12:W13) -> 527 | X14: =SUM(X12:X13) -> 532 | Y14: =SUM(Y12:Y13) -> 553 | Z14: 518 | AA14: 991 | AB14: 893 | AC14: 482 | AD14: 502 | AE14: 418 | AF14: 417 | AG14: 994 | AH14: 942 | AI14: =+SUM(AI12:AI13) -> 22 | AJ14: =+SUM(AJ12:AJ13) -> 21 | AK14: =+SUM(AK12:AK13) -> 35 | AL14: =+SUM(AL12:AL13) -> 39 | AM14: ="" & AY14 & AZ14 ->  | AY14: =IF($D14>=$AI14+$AJ14,"","* El Total de Pueblos Originarios no debe ser mayor al Total Indicador peso/edad") ->  | AZ14: =IF($D14>=$AK14+$AL14,"","* El Total de Población Migrante no debe ser mayor al Total Indicador peso/edad") ->  | BB14: =IF(AND(E12<>0,AI12=""), "* No olvide escribir en la celda de Pueblos Originarios (Digite CERO si no tiene). ",IF(AND(F12<>0,AJ12=""), "* No olvide escribir en la celda de Pueblos Originarios (Digite CERO si no tiene). ","")) ->  | BC14: =IF(AND(E12<>0,AK12=""), "* No olvide escribir en la celda de Población Migrantes (Digite CERO si no tiene). ",IF(AND(F12<>0,AL12=""), "* No olvide escribir en la celda de Población Migrantes (Digite CERO si no tiene). ","")) ->  | BD14: =IF(AND(E13<>0,AI13=""), "* No olvide escribir en la celda de Pueblos Originarios (Digite CERO si no tiene). ",IF(AND(F13<>0,AJ13=""), "* No olvide escribir en la celda de Pueblos Originarios (Digite CERO si no tiene). ","")) ->  | BE14: =IF(AND(E13<>0,AK13=""), "* No olvide escribir en la celda de Población Migrantes (Digite CERO si no tiene). ",IF(AND(F13<>0,AL13=""), "* No olvide escribir en la celda de Población Migrantes (Digite CERO si no tiene). ","")) ->  | BI14: =IF($D14>=$AI14+$AJ14,0,1) -> 0 | BJ14: =IF($D14>=$AK14+$AL14,0,1) -> 0 | BM14: =IF(AND(E12<>0,AI12=""), 1,IF(AND(F12<>0,AJ12=""), 1,0)) -> 0 | BN14: =IF(AND(E12<>0,AK12=""), 1,IF(AND(F12<>0,AL12=""), 1,0)) -> 0 | BO14: =IF(AND(E13<>0,AK13=""), 1,IF(AND(F13<>0,AL13=""), 1,0)) -> 0 | BP14: =IF(AND(E13<>0,AK13=""), 1,IF(AND(F13<>0,AL13=""), 1,0)) -> 0
A15: P2070101 | C15: - 1 D.S. (-1.0 a -1.9) | D15: =IFERROR(VLOOKUP($A15,Filtro!$A$4:$AX$552,2,FALSE),0) -> 1604 | E15: =IFERROR(VLOOKUP($A15,Filtro!$A$4:$AX$552,3,FALSE),0) -> 885 | F15: =IFERROR(VLOOKUP($A15,Filtro!$A$4:$AX$552,4,FALSE),0) -> 719 | G15: =IFERROR(VLOOKUP($A15,Filtro!$A$4:$AX$552,5,FALSE),0) -> 0 | H15: =IFERROR(VLOOKUP($A15,Filtro!$A$4:$AX$552,6,FALSE),0) -> 0 | I15: =IFERROR(VLOOKUP($A15,Filtro!$A$4:$AX$552,7,FALSE),0) -> 9 | J15: =IFERROR(VLOOKUP($A15,Filtro!$A$4:$AX$552,8,FALSE),0) -> 9 | K15: =IFERROR(VLOOKUP($A15,Filtro!$A$4:$AX$552,9,FALSE),0) -> 14 | L15: =IFERROR(VLOOKUP($A15,Filtro!$A$4:$AX$552,10,FALSE),0) -> 15 | M15: =IFERROR(VLOOKUP($A15,Filtro!$A$4:$AX$552,11,FALSE),0) -> 18 | N15: =IFERROR(VLOOKUP($A15,Filtro!$A$4:$AX$552,12,FALSE),0) -> 10 | O15: =IFERROR(VLOOKUP($A15,Filtro!$A$4:$AX$552,13,FALSE),0) -> 13 | P15: =IFERROR(VLOOKUP($A15,Filtro!$A$4:$AX$552,14,FALSE),0) -> 16 | Q15: =IFERROR(VLOOKUP($A15,Filtro!$A$4:$AX$552,15,FALSE),0) -> 8 | R15: =IFERROR(VLOOKUP($A15,Filtro!$A$4:$AX$552,16,FALSE),0) -> 10 | S15: =IFERROR(VLOOKUP($A15,Filtro!$A$4:$AX$552,17,FALSE),0) -> 23 | T15: =IFERROR(VLOOKUP($A15,Filtro!$A$4:$AX$552,18,FALSE),0) -> 17 | U15: =IFERROR(VLOOKUP($A15,Filtro!$A$4:$AX$552,19,FALSE),0) -> 68 | V15: =IFERROR(VLOOKUP($A15,Filtro!$A$4:$AX$552,20,FALSE),0) -> 55 | W15: =IFERROR(VLOOKUP($A15,Filtro!$A$4:$AX$552,21,FALSE),0) -> 97 | X15: =IFERROR(VLOOKUP($A15,Filtro!$A$4:$AX$552,22,FALSE),0) -> 63 | Y15: =IFERROR(VLOOKUP($A15,Filtro!$A$4:$AX$552,23,FALSE),0) -> 81 | Z15: =IFERROR(VLOOKUP($A15,Filtro!$A$4:$AX$552,24,FALSE),0) -> 68 | AA15: =IFERROR(VLOOKUP($A15,Filtro!$A$4:$AX$552,25,FALSE),0) -> 193 | AB15: =IFERROR(VLOOKUP($A15,Filtro!$A$4:$AX$552,26,FALSE),0) -> 142 | AC15: =IFERROR(VLOOKUP($A15,Filtro!$A$4:$AX$552,27,FALSE),0) -> 102 | AD15: =IFERROR(VLOOKUP($A15,Filtro!$A$4:$AX$552,28,FALSE),0) -> 75 | AE15: =IFERROR(VLOOKUP($A15,Filtro!$A$4:$AX$552,29,FALSE),0) -> 86 | AF15: =IFERROR(VLOOKUP($A15,Filtro!$A$4:$AX$552,30,FALSE),0) -> 65 | AG15: =IFERROR(VLOOKUP($A15,Filtro!$A$4:$AX$552,31,FALSE),0) -> 173 | AH15: =IFERROR(VLOOKUP($A15,Filtro!$A$4:$AX$552,32,FALSE),0) -> 174 | AI15: =IFERROR(VLOOKUP($A15,Filtro!$A$4:$AX$552,33,FALSE),0) -> 5 | AJ15: =IFERROR(VLOOKUP($A15,Filtro!$A$4:$AX$552,34,FALSE),0) -> 3 | AK15: =IFERROR(VLOOKUP($A15,Filtro!$A$4:$AX$552,35,FALSE),0) -> 11 | AL15: =IFERROR(VLOOKUP($A15,Filtro!$A$4:$AX$552,36,FALSE),0) -> 17 | AM15: =AY15 & AZ15 & BA15 & BB15 & BC15 & BD15 & BE15 & BF15 & BD16 & AY16 & AZ16 & BA16 & BB16 & BC16 & BE16 & BF16 & BG16 & BF17 & BG17 ->  | AY15: =IF($D17>=$AI17+$AJ17,"","* El Total de Pueblos Originarios no debe ser mayor al Total Indicador peso/edad") ->  | AZ15: =IF($D17>=$AK17+$AL17,"","* El Total de Población Migrante no debe ser mayor al Total Indicador peso/edad") ->  | BF15: =IF(AND(E15<>0,AI15=""), "* No olvide escribir en la celda de Pueblos Originarios (Digite CERO si no tiene). ",IF(AND(F15<>0,AJ15=""), "* No olvide escribir en la celda de Pueblos Originarios (Digite CERO si no tiene). ","")) ->  | BG15: =IF(AND(E15<>0,AK15=""), "* No olvide escribir en la celda de Población Migrantes (Digite CERO si no tiene). ",IF(AND(F15<>0,AL15=""), "* No olvide escribir en la celda de Población Migrantes (Digite CERO si no tiene). ","")) ->  | BI15: =IF($D17>=$AI17+$AJ17,0,1) -> 0 | BJ15: =IF($D17>=$AK17+$AL17,0,1) -> 0 | BP15: =IF(AND(E15<>0,AI15=""), 1,IF(AND(F15<>0,AJ15=""), 1,0)) -> 0 | BQ15: =IF(AND(E15<>0,AK15=""), 1,IF(AND(F15<>0,AL15=""), 1,0)) -> 0
A16: P2070102 | C16: - 2 D.S. (<= -2.0) | D16: =IFERROR(VLOOKUP($A16,Filtro!$A$4:$AX$552,2,FALSE),0) -> 190 | E16: =IFERROR(VLOOKUP($A16,Filtro!$A$4:$AX$552,3,FALSE),0) -> 104 | F16: =IFERROR(VLOOKUP($A16,Filtro!$A$4:$AX$552,4,FALSE),0) -> 86 | G16: =IFERROR(VLOOKUP($A16,Filtro!$A$4:$AX$552,5,FALSE),0) -> 0 | H16: =IFERROR(VLOOKUP($A16,Filtro!$A$4:$AX$552,6,FALSE),0) -> 0 | I16: =IFERROR(VLOOKUP($A16,Filtro!$A$4:$AX$552,7,FALSE),0) -> 2 | J16: =IFERROR(VLOOKUP($A16,Filtro!$A$4:$AX$552,8,FALSE),0) -> 2 | K16: =IFERROR(VLOOKUP($A16,Filtro!$A$4:$AX$552,9,FALSE),0) -> 3 | L16: =IFERROR(VLOOKUP($A16,Filtro!$A$4:$AX$552,10,FALSE),0) -> 2 | M16: =IFERROR(VLOOKUP($A16,Filtro!$A$4:$AX$552,11,FALSE),0) -> 0 | N16: =IFERROR(VLOOKUP($A16,Filtro!$A$4:$AX$552,12,FALSE),0) -> 3 | O16: =IFERROR(VLOOKUP($A16,Filtro!$A$4:$AX$552,13,FALSE),0) -> 1 | P16: =IFERROR(VLOOKUP($A16,Filtro!$A$4:$AX$552,14,FALSE),0) -> 2 | Q16: =IFERROR(VLOOKUP($A16,Filtro!$A$4:$AX$552,15,FALSE),0) -> 2 | R16: =IFERROR(VLOOKUP($A16,Filtro!$A$4:$AX$552,16,FALSE),0) -> 1 | S16: =IFERROR(VLOOKUP($A16,Filtro!$A$4:$AX$552,17,FALSE),0) -> 1 | T16: =IFERROR(VLOOKUP($A16,Filtro!$A$4:$AX$552,18,FALSE),0) -> 1 | U16: =IFERROR(VLOOKUP($A16,Filtro!$A$4:$AX$552,19,FALSE),0) -> 11 | V16: =IFERROR(VLOOKUP($A16,Filtro!$A$4:$AX$552,20,FALSE),0) -> 4 | W16: =IFERROR(VLOOKUP($A16,Filtro!$A$4:$AX$552,21,FALSE),0) -> 10 | X16: =IFERROR(VLOOKUP($A16,Filtro!$A$4:$AX$552,22,FALSE),0) -> 6 | Y16: =IFERROR(VLOOKUP($A16,Filtro!$A$4:$AX$552,23,FALSE),0) -> 14 | Z16: =IFERROR(VLOOKUP($A16,Filtro!$A$4:$AX$552,24,FALSE),0) -> 9 | AA16: =IFERROR(VLOOKUP($A16,Filtro!$A$4:$AX$552,25,FALSE),0) -> 26 | AB16: =IFERROR(VLOOKUP($A16,Filtro!$A$4:$AX$552,26,FALSE),0) -> 20 | AC16: =IFERROR(VLOOKUP($A16,Filtro!$A$4:$AX$552,27,FALSE),0) -> 7 | AD16: =IFERROR(VLOOKUP($A16,Filtro!$A$4:$AX$552,28,FALSE),0) -> 11 | AE16: =IFERROR(VLOOKUP($A16,Filtro!$A$4:$AX$552,29,FALSE),0) -> 14 | AF16: =IFERROR(VLOOKUP($A16,Filtro!$A$4:$AX$552,30,FALSE),0) -> 5 | AG16: =IFERROR(VLOOKUP($A16,Filtro!$A$4:$AX$552,31,FALSE),0) -> 13 | AH16: =IFERROR(VLOOKUP($A16,Filtro!$A$4:$AX$552,32,FALSE),0) -> 20 | AI16: =IFERROR(VLOOKUP($A16,Filtro!$A$4:$AX$552,33,FALSE),0) -> 2 | AJ16: =IFERROR(VLOOKUP($A16,Filtro!$A$4:$AX$552,34,FALSE),0) -> 0 | AK16: =IFERROR(VLOOKUP($A16,Filtro!$A$4:$AX$552,35,FALSE),0) -> 1 | AL16: =IFERROR(VLOOKUP($A16,Filtro!$A$4:$AX$552,36,FALSE),0) -> 2 | BF16: =IF(AND(E16<>0,AI16=""), "* No olvide escribir en la celda de Pueblos Originarios (Digite CERO si no tiene). ",IF(AND(F16<>0,AJ16=""), "* No olvide escribir en la celda de Pueblos Originarios (Digite CERO si no tiene). ","")) ->  | BG16: =IF(AND(E16<>0,AK16=""), "* No olvide escribir en la celda de Población Migrantes (Digite CERO si no tiene). ",IF(AND(F16<>0,AL16=""), "* No olvide escribir en la celda de Población Migrantes (Digite CERO si no tiene). ","")) ->  | BP16: =IF(AND(E16<>0,AI16=""), 1,IF(AND(F16<>0,AJ16=""), 1,0)) -> 0 | BQ16: =IF(AND(E16<>0,AK16=""), 1,IF(AND(F16<>0,AL16=""), 1,0)) -> 0
C17: TOTAL | D17: 1794 | E17: 989 | F17: 805 | I17: =SUM(I15:I16) -> 11 | J17: =SUM(J15:J16) -> 11 | K17: 17 | L17: 17 | M17: 18 | N17: 13 | O17: 14 | P17: 18 | Q17: 10 | R17: 11 | S17: 24 | T17: 18 | U17: 79 | V17: 59 | W17: =SUM(W15:W16) -> 107 | X17: =SUM(X15:X16) -> 69 | Y17: 95 | Z17: 77 | AA17: 219 | AB17: 162 | AC17: 109 | AD17: 86 | AE17: 100 | AF17: 70 | AG17: =SUM(AG15:AG16) -> 186 | AH17: 194 | AI17: =SUM(AI15:AI16) -> 7 | AJ17: =SUM(AJ15:AJ16) -> 3 | AK17: =SUM(AK15:AK16) -> 12 | AL17: =SUM(AL15:AL16) -> 19 | AM17: ="" & AY15 & AZ15 -> 
A18: P2070201 | B18: INDICADOR PESO/TALLA | C18: + 2 D.S. (>= +2.0) | D18: =IFERROR(VLOOKUP($A18,Filtro!$A$4:$AX$552,2,FALSE),0) -> 3971 | E18: =IFERROR(VLOOKUP($A18,Filtro!$A$4:$AX$552,3,FALSE),0) -> 2102 | F18: =IFERROR(VLOOKUP($A18,Filtro!$A$4:$AX$552,4,FALSE),0) -> 1869 | G18: =IFERROR(VLOOKUP($A18,Filtro!$A$4:$AX$552,5,FALSE),0) -> 0 | H18: =IFERROR(VLOOKUP($A18,Filtro!$A$4:$AX$552,6,FALSE),0) -> 0 | I18: =IFERROR(VLOOKUP($A18,Filtro!$A$4:$AX$552,7,FALSE),0) -> 5 | J18: =IFERROR(VLOOKUP($A18,Filtro!$A$4:$AX$552,8,FALSE),0) -> 3 | K18: =IFERROR(VLOOKUP($A18,Filtro!$A$4:$AX$552,9,FALSE),0) -> 25 | L18: =IFERROR(VLOOKUP($A18,Filtro!$A$4:$AX$552,10,FALSE),0) -> 19 | M18: =IFERROR(VLOOKUP($A18,Filtro!$A$4:$AX$552,11,FALSE),0) -> 28 | N18: =IFERROR(VLOOKUP($A18,Filtro!$A$4:$AX$552,12,FALSE),0) -> 11 | O18: =IFERROR(VLOOKUP($A18,Filtro!$A$4:$AX$552,13,FALSE),0) -> 20 | P18: =IFERROR(VLOOKUP($A18,Filtro!$A$4:$AX$552,14,FALSE),0) -> 21 | Q18: =IFERROR(VLOOKUP($A18,Filtro!$A$4:$AX$552,15,FALSE),0) -> 35 | R18: =IFERROR(VLOOKUP($A18,Filtro!$A$4:$AX$552,16,FALSE),0) -> 17 | S18: =IFERROR(VLOOKUP($A18,Filtro!$A$4:$AX$552,17,FALSE),0) -> 42 | T18: =IFERROR(VLOOKUP($A18,Filtro!$A$4:$AX$552,18,FALSE),0) -> 47 | U18: =IFERROR(VLOOKUP($A18,Filtro!$A$4:$AX$552,19,FALSE),0) -> 173 | V18: =IFERROR(VLOOKUP($A18,Filtro!$A$4:$AX$552,20,FALSE),0) -> 150 | W18: =IFERROR(VLOOKUP($A18,Filtro!$A$4:$AX$552,21,FALSE),0) -> 219 | X18: =IFERROR(VLOOKUP($A18,Filtro!$A$4:$AX$552,22,FALSE),0) -> 198 | Y18: =IFERROR(VLOOKUP($A18,Filtro!$A$4:$AX$552,23,FALSE),0) -> 243 | Z18: =IFERROR(VLOOKUP($A18,Filtro!$A$4:$AX$552,24,FALSE),0) -> 205 | AA18: =IFERROR(VLOOKUP($A18,Filtro!$A$4:$AX$552,25,FALSE),0) -> 403 | AB18: =IFERROR(VLOOKUP($A18,Filtro!$A$4:$AX$552,26,FALSE),0) -> 352 | AC18: =IFERROR(VLOOKUP($A18,Filtro!$A$4:$AX$552,27,FALSE),0) -> 231 | AD18: =IFERROR(VLOOKUP($A18,Filtro!$A$4:$AX$552,28,FALSE),0) -> 204 | AE18: =IFERROR(VLOOKUP($A18,Filtro!$A$4:$AX$552,29,FALSE),0) -> 177 | AF18: =IFERROR(VLOOKUP($A18,Filtro!$A$4:$AX$552,30,FALSE),0) -> 178 | AG18: =IFERROR(VLOOKUP($A18,Filtro!$A$4:$AX$552,31,FALSE),0) -> 501 | AH18: =IFERROR(VLOOKUP($A18,Filtro!$A$4:$AX$552,32,FALSE),0) -> 464 | AI18: =IFERROR(VLOOKUP($A18,Filtro!$A$4:$AX$552,33,FALSE),0) -> 13 | AJ18: =IFERROR(VLOOKUP($A18,Filtro!$A$4:$AX$552,34,FALSE),0) -> 10 | AK18: =IFERROR(VLOOKUP($A18,Filtro!$A$4:$AX$552,35,FALSE),0) -> 11 | AL18: =IFERROR(VLOOKUP($A18,Filtro!$A$4:$AX$552,36,FALSE),0) -> 10 | AM18: =AY18 & AZ18 & BA18 & BB18 & BC18 & BD18 & BE18 & BF18 & BD19 & AY19 & AZ19 & BA19 & BB19 & BC19 & BE19 & BF19 & BG19 & BF20 & BG20 ->  | BF18: =IF(AND(E18<>0,AI18=""), "* No olvide escribir en la celda de Pueblos Originarios (Digite CERO si no tiene). ",IF(AND(F18<>0,AJ18=""), "* No olvide escribir en la celda de Pueblos Originarios (Digite CERO si no tiene). ","")) ->  | BG18: =IF(AND(E18<>0,AK18=""), "* No olvide escribir en la celda de Población Migrantes (Digite CERO si no tiene). ",IF(AND(F18<>0,AL18=""), "* No olvide escribir en la celda de Población Migrantes (Digite CERO si no tiene). ","")) ->  | BP18: =IF(AND(E18<>0,AI18=""), 1,IF(AND(F18<>0,AJ18=""), 1,0)) -> 0 | BQ18: =IF(AND(E18<>0,AK18=""), 1,IF(AND(F18<>0,AL18=""), 1,0)) -> 0
A19: P2070202 | C19: + 1 D.S. (+1.0 a +1.9) | D19: =IFERROR(VLOOKUP($A19,Filtro!$A$4:$AX$552,2,FALSE),0) -> 8319 | E19: =IFERROR(VLOOKUP($A19,Filtro!$A$4:$AX$552,3,FALSE),0) -> 4176 | F19: =IFERROR(VLOOKUP($A19,Filtro!$A$4:$AX$552,4,FALSE),0) -> 4143 | G19: =IFERROR(VLOOKUP($A19,Filtro!$A$4:$AX$552,5,FALSE),0) -> 0 | H19: =IFERROR(VLOOKUP($A19,Filtro!$A$4:$AX$552,6,FALSE),0) -> 0 | I19: =IFERROR(VLOOKUP($A19,Filtro!$A$4:$AX$552,7,FALSE),0) -> 28 | J19: =IFERROR(VLOOKUP($A19,Filtro!$A$4:$AX$552,8,FALSE),0) -> 23 | K19: =IFERROR(VLOOKUP($A19,Filtro!$A$4:$AX$552,9,FALSE),0) -> 52 | L19: =IFERROR(VLOOKUP($A19,Filtro!$A$4:$AX$552,10,FALSE),0) -> 34 | M19: =IFERROR(VLOOKUP($A19,Filtro!$A$4:$AX$552,11,FALSE),0) -> 76 | N19: =IFERROR(VLOOKUP($A19,Filtro!$A$4:$AX$552,12,FALSE),0) -> 63 | O19: =IFERROR(VLOOKUP($A19,Filtro!$A$4:$AX$552,13,FALSE),0) -> 66 | P19: =IFERROR(VLOOKUP($A19,Filtro!$A$4:$AX$552,14,FALSE),0) -> 64 | Q19: =IFERROR(VLOOKUP($A19,Filtro!$A$4:$AX$552,15,FALSE),0) -> 74 | R19: =IFERROR(VLOOKUP($A19,Filtro!$A$4:$AX$552,16,FALSE),0) -> 95 | S19: =IFERROR(VLOOKUP($A19,Filtro!$A$4:$AX$552,17,FALSE),0) -> 121 | T19: =IFERROR(VLOOKUP($A19,Filtro!$A$4:$AX$552,18,FALSE),0) -> 131 | U19: =IFERROR(VLOOKUP($A19,Filtro!$A$4:$AX$552,19,FALSE),0) -> 386 | V19: =IFERROR(VLOOKUP($A19,Filtro!$A$4:$AX$552,20,FALSE),0) -> 396 | W19: =IFERROR(VLOOKUP($A19,Filtro!$A$4:$AX$552,21,FALSE),0) -> 491 | X19: =IFERROR(VLOOKUP($A19,Filtro!$A$4:$AX$552,22,FALSE),0) -> 496 | Y19: =IFERROR(VLOOKUP($A19,Filtro!$A$4:$AX$552,23,FALSE),0) -> 505 | Z19: =IFERROR(VLOOKUP($A19,Filtro!$A$4:$AX$552,24,FALSE),0) -> 497 | AA19: =IFERROR(VLOOKUP($A19,Filtro!$A$4:$AX$552,25,FALSE),0) -> 842 | AB19: =IFERROR(VLOOKUP($A19,Filtro!$A$4:$AX$552,26,FALSE),0) -> 810 | AC19: =IFERROR(VLOOKUP($A19,Filtro!$A$4:$AX$552,27,FALSE),0) -> 402 | AD19: =IFERROR(VLOOKUP($A19,Filtro!$A$4:$AX$552,28,FALSE),0) -> 402 | AE19: =IFERROR(VLOOKUP($A19,Filtro!$A$4:$AX$552,29,FALSE),0) -> 354 | AF19: =IFERROR(VLOOKUP($A19,Filtro!$A$4:$AX$552,30,FALSE),0) -> 343 | AG19: =IFERROR(VLOOKUP($A19,Filtro!$A$4:$AX$552,31,FALSE),0) -> 779 | AH19: =IFERROR(VLOOKUP($A19,Filtro!$A$4:$AX$552,32,FALSE),0) -> 789 | AI19: =IFERROR(VLOOKUP($A19,Filtro!$A$4:$AX$552,33,FALSE),0) -> 16 | AJ19: =IFERROR(VLOOKUP($A19,Filtro!$A$4:$AX$552,34,FALSE),0) -> 17 | AK19: =IFERROR(VLOOKUP($A19,Filtro!$A$4:$AX$552,35,FALSE),0) -> 46 | AL19: =IFERROR(VLOOKUP($A19,Filtro!$A$4:$AX$552,36,FALSE),0) -> 44 | BF19: =IF(AND(E19<>0,AI19=""), "* No olvide escribir en la celda de Pueblos Originarios (Digite CERO si no tiene). ",IF(AND(F19<>0,AJ19=""), "* No olvide escribir en la celda de Pueblos Originarios (Digite CERO si no tiene). ","")) ->  | BG19: =IF(AND(E19<>0,AK19=""), "* No olvide escribir en la celda de Población Migrantes (Digite CERO si no tiene). ",IF(AND(F19<>0,AL19=""), "* No olvide escribir en la celda de Población Migrantes (Digite CERO si no tiene). ","")) ->  | BP19: 0 | BQ19: 0
C20: TOTAL | D20: 12290 | E20: 6278 | F20: 6012 | I20: =+SUM(I18:I19) -> 33 | J20: =+SUM(J18:J19) -> 26 | K20: =+SUM(K18:K19) -> 77 | L20: 53 | M20: 104 | N20: 74 | O20: 86 | P20: 85 | Q20: 109 | R20: 112 | S20: 163 | T20: 178 | U20: 559 | V20: 546 | W20: 710 | X20: 694 | Y20: 748 | Z20: 702 | AA20: 1245 | AB20: 1162 | AC20: 633 | AD20: 606 | AE20: 531 | AF20: 521 | AG20: 1280 | AH20: 1253 | AI20: 29 | AJ20: 27 | AK20: 57 | AL20: 54 | AM20: ="" & AY20 & AZ20 ->  | AY20: =IF($D20>=$AI20+$AJ20,"","* El Total de Pueblos Originarios no debe ser mayor al Total Indicador peso/talla") ->  | AZ20: =IF($D20>=$AK20+$AL20,"","* El Total de Población Migrante no debe ser mayor al Total Indicador peso/talla") ->  | BI20: =IF($D20>=$AI20+$AJ20,0,1) -> 0 | BJ20: =IF($D20>=$AK20+$AL20,0,1) -> 0
A21: P2070301 | C21: - 1 D.S. (-1.0 a -1.9) | D21: =IFERROR(VLOOKUP($A21,Filtro!$A$4:$AX$552,2,FALSE),0) -> 850 | E21: =IFERROR(VLOOKUP($A21,Filtro!$A$4:$AX$552,3,FALSE),0) -> 481 | F21: =IFERROR(VLOOKUP($A21,Filtro!$A$4:$AX$552,4,FALSE),0) -> 369 | G21: =IFERROR(VLOOKUP($A21,Filtro!$A$4:$AX$552,5,FALSE),0) -> 0 | H21: =IFERROR(VLOOKUP($A21,Filtro!$A$4:$AX$552,6,FALSE),0) -> 0 | I21: =IFERROR(VLOOKUP($A21,Filtro!$A$4:$AX$552,7,FALSE),0) -> 4 | J21: =IFERROR(VLOOKUP($A21,Filtro!$A$4:$AX$552,8,FALSE),0) -> 9 | K21: =IFERROR(VLOOKUP($A21,Filtro!$A$4:$AX$552,9,FALSE),0) -> 11 | L21: =IFERROR(VLOOKUP($A21,Filtro!$A$4:$AX$552,10,FALSE),0) -> 14 | M21: =IFERROR(VLOOKUP($A21,Filtro!$A$4:$AX$552,11,FALSE),0) -> 13 | N21: =IFERROR(VLOOKUP($A21,Filtro!$A$4:$AX$552,12,FALSE),0) -> 11 | O21: =IFERROR(VLOOKUP($A21,Filtro!$A$4:$AX$552,13,FALSE),0) -> 13 | P21: =IFERROR(VLOOKUP($A21,Filtro!$A$4:$AX$552,14,FALSE),0) -> 14 | Q21: =IFERROR(VLOOKUP($A21,Filtro!$A$4:$AX$552,15,FALSE),0) -> 9 | R21: =IFERROR(VLOOKUP($A21,Filtro!$A$4:$AX$552,16,FALSE),0) -> 5 | S21: =IFERROR(VLOOKUP($A21,Filtro!$A$4:$AX$552,17,FALSE),0) -> 17 | T21: =IFERROR(VLOOKUP($A21,Filtro!$A$4:$AX$552,18,FALSE),0) -> 12 | U21: =IFERROR(VLOOKUP($A21,Filtro!$A$4:$AX$552,19,FALSE),0) -> 49 | V21: =IFERROR(VLOOKUP($A21,Filtro!$A$4:$AX$552,20,FALSE),0) -> 32 | W21: =IFERROR(VLOOKUP($A21,Filtro!$A$4:$AX$552,21,FALSE),0) -> 46 | X21: =IFERROR(VLOOKUP($A21,Filtro!$A$4:$AX$552,22,FALSE),0) -> 41 | Y21: =IFERROR(VLOOKUP($A21,Filtro!$A$4:$AX$552,23,FALSE),0) -> 50 | Z21: =IFERROR(VLOOKUP($A21,Filtro!$A$4:$AX$552,24,FALSE),0) -> 35 | AA21: =IFERROR(VLOOKUP($A21,Filtro!$A$4:$AX$552,25,FALSE),0) -> 96 | AB21: =IFERROR(VLOOKUP($A21,Filtro!$A$4:$AX$552,26,FALSE),0) -> 64 | AC21: =IFERROR(VLOOKUP($A21,Filtro!$A$4:$AX$552,27,FALSE),0) -> 44 | AD21: =IFERROR(VLOOKUP($A21,Filtro!$A$4:$AX$552,28,FALSE),0) -> 42 | AE21: =IFERROR(VLOOKUP($A21,Filtro!$A$4:$AX$552,29,FALSE),0) -> 35 | AF21: =IFERROR(VLOOKUP($A21,Filtro!$A$4:$AX$552,30,FALSE),0) -> 27 | AG21: =IFERROR(VLOOKUP($A21,Filtro!$A$4:$AX$552,31,FALSE),0) -> 94 | AH21: =IFERROR(VLOOKUP($A21,Filtro!$A$4:$AX$552,32,FALSE),0) -> 63 | AI21: =IFERROR(VLOOKUP($A21,Filtro!$A$4:$AX$552,33,FALSE),0) -> 4 | AJ21: =IFERROR(VLOOKUP($A21,Filtro!$A$4:$AX$552,34,FALSE),0) -> 1 | AK21: =IFERROR(VLOOKUP($A21,Filtro!$A$4:$AX$552,35,FALSE),0) -> 5 | AL21: =IFERROR(VLOOKUP($A21,Filtro!$A$4:$AX$552,36,FALSE),0) -> 8 | AM21: =AY21 & AZ21 & BA21 & BB21 & BC21 & BD21 & BE21 & BF21 & BD22 & AY22 & AZ22 & BA22 & BB22 & BC22 & BE22 & BF22 & BG22 & BF23 & BG23 ->  | BF21: =IF(AND(E21<>0,AI21=""), "* No olvide escribir en la celda de Pueblos Originarios (Digite CERO si no tiene). ",IF(AND(F21<>0,AJ21=""), "* No olvide escribir en la celda de Pueblos Originarios (Digite CERO si no tiene). ","")) ->  | BG21: =IF(AND(E21<>0,AK21=""), "* No olvide escribir en la celda de Población Migrantes (Digite CERO si no tiene). ",IF(AND(F21<>0,AL21=""), "* No olvide escribir en la celda de Población Migrantes (Digite CERO si no tiene). ","")) ->  | BP21: =IF(AND(E21<>0,AI21=""), 1,IF(AND(F21<>0,AJ21=""), 1,0)) -> 0 | BQ21: =IF(AND(E21<>0,AK21=""), 1,IF(AND(F21<>0,AL21=""), 1,0)) -> 0
A22: P2070302 | C22: - 2 D.S. (<= -2.0) | D22: =IFERROR(VLOOKUP($A22,Filtro!$A$4:$AX$552,2,FALSE),0) -> 105 | E22: =IFERROR(VLOOKUP($A22,Filtro!$A$4:$AX$552,3,FALSE),0) -> 58 | F22: =IFERROR(VLOOKUP($A22,Filtro!$A$4:$AX$552,4,FALSE),0) -> 47 | G22: =IFERROR(VLOOKUP($A22,Filtro!$A$4:$AX$552,5,FALSE),0) -> 0 | H22: =IFERROR(VLOOKUP($A22,Filtro!$A$4:$AX$552,6,FALSE),0) -> 0 | I22: =IFERROR(VLOOKUP($A22,Filtro!$A$4:$AX$552,7,FALSE),0) -> 3 | J22: =IFERROR(VLOOKUP($A22,Filtro!$A$4:$AX$552,8,FALSE),0) -> 1 | K22: =IFERROR(VLOOKUP($A22,Filtro!$A$4:$AX$552,9,FALSE),0) -> 2 | L22: =IFERROR(VLOOKUP($A22,Filtro!$A$4:$AX$552,10,FALSE),0) -> 1 | M22: =IFERROR(VLOOKUP($A22,Filtro!$A$4:$AX$552,11,FALSE),0) -> 0 | N22: =IFERROR(VLOOKUP($A22,Filtro!$A$4:$AX$552,12,FALSE),0) -> 1 | O22: =IFERROR(VLOOKUP($A22,Filtro!$A$4:$AX$552,13,FALSE),0) -> 2 | P22: =IFERROR(VLOOKUP($A22,Filtro!$A$4:$AX$552,14,FALSE),0) -> 1 | Q22: =IFERROR(VLOOKUP($A22,Filtro!$A$4:$AX$552,15,FALSE),0) -> 1 | R22: =IFERROR(VLOOKUP($A22,Filtro!$A$4:$AX$552,16,FALSE),0) -> 1 | S22: =IFERROR(VLOOKUP($A22,Filtro!$A$4:$AX$552,17,FALSE),0) -> 0 | T22: =IFERROR(VLOOKUP($A22,Filtro!$A$4:$AX$552,18,FALSE),0) -> 2 | U22: =IFERROR(VLOOKUP($A22,Filtro!$A$4:$AX$552,19,FALSE),0) -> 7 | V22: =IFERROR(VLOOKUP($A22,Filtro!$A$4:$AX$552,20,FALSE),0) -> 6 | W22: =IFERROR(VLOOKUP($A22,Filtro!$A$4:$AX$552,21,FALSE),0) -> 3 | X22: =IFERROR(VLOOKUP($A22,Filtro!$A$4:$AX$552,22,FALSE),0) -> 3 | Y22: =IFERROR(VLOOKUP($A22,Filtro!$A$4:$AX$552,23,FALSE),0) -> 8 | Z22: =IFERROR(VLOOKUP($A22,Filtro!$A$4:$AX$552,24,FALSE),0) -> 7 | AA22: =IFERROR(VLOOKUP($A22,Filtro!$A$4:$AX$552,25,FALSE),0) -> 21 | AB22: =IFERROR(VLOOKUP($A22,Filtro!$A$4:$AX$552,26,FALSE),0) -> 8 | AC22: =IFERROR(VLOOKUP($A22,Filtro!$A$4:$AX$552,27,FALSE),0) -> 3 | AD22: =IFERROR(VLOOKUP($A22,Filtro!$A$4:$AX$552,28,FALSE),0) -> 2 | AE22: =IFERROR(VLOOKUP($A22,Filtro!$A$4:$AX$552,29,FALSE),0) -> 4 | AF22: =IFERROR(VLOOKUP($A22,Filtro!$A$4:$AX$552,30,FALSE),0) -> 2 | AG22: =IFERROR(VLOOKUP($A22,Filtro!$A$4:$AX$552,31,FALSE),0) -> 4 | AH22: =IFERROR(VLOOKUP($A22,Filtro!$A$4:$AX$552,32,FALSE),0) -> 12 | AI22: =IFERROR(VLOOKUP($A22,Filtro!$A$4:$AX$552,33,FALSE),0) -> 3 | AJ22: =IFERROR(VLOOKUP($A22,Filtro!$A$4:$AX$552,34,FALSE),0) -> 3 | AK22: =IFERROR(VLOOKUP($A22,Filtro!$A$4:$AX$552,35,FALSE),0) -> 2 | AL22: =IFERROR(VLOOKUP($A22,Filtro!$A$4:$AX$552,36,FALSE),0) -> 2 | BF22: =IF(AND(E22<>0,AI22=""), "* No olvide escribir en la celda de Pueblos Originarios (Digite CERO si no tiene). ",IF(AND(F22<>0,AJ22=""), "* No olvide escribir en la celda de Pueblos Originarios (Digite CERO si no tiene). ","")) ->  | BG22: =IF(AND(E22<>0,AK22=""), "* No olvide escribir en la celda de Población Migrantes (Digite CERO si no tiene). ",IF(AND(F22<>0,AL22=""), "* No olvide escribir en la celda de Población Migrantes (Digite CERO si no tiene). ","")) ->  | BP22: 0 | BQ22: 0
C23: TOTAL | D23: 955 | E23: 539 | F23: 416 | I23: =SUM(I21:I22) -> 7 | J23: =SUM(J21:J22) -> 10 | K23: =SUM(K21:K22) -> 13 | L23: 15 | M23: 13 | N23: 12 | O23: 15 | P23: 15 | Q23: 10 | R23: 6 | S23: 17 | T23: 14 | U23: 56 | V23: 38 | W23: 49 | X23: 44 | Y23: 58 | Z23: 42 | AA23: 117 | AB23: 72 | AC23: 47 | AD23: 44 | AE23: 39 | AF23: 29 | AG23: 98 | AH23: 75 | AI23: 7 | AJ23: 4 | AK23: 7 | AL23: 10 | AM23: ="" & AY23 & AZ23 ->  | AY23: =IF($D23>=$AI23+$AJ23,"","* El Total de Pueblos Originarios no debe ser mayor al Total Indicador peso/talla. ") ->  | AZ23: =IF($D23>=$AK23+$AL23,"","* El Total de Población Migrantes no debe ser mayor al Total Indicador peso/talla. ") ->  | BI23: =IF($D23>=$AI23+$AJ23,0,1) -> 0 | BJ23: =IF($D23>=$AK23+$AL23,0,1) -> 0
A24: P2400120 | B24: INDICADOR TALLA/EDAD | C24: + 2 D.S. (>= +2.0) | D24: =IFERROR(VLOOKUP($A24,Filtro!$A$4:$AX$552,2,FALSE),0) -> 780 | E24: =IFERROR(VLOOKUP($A24,Filtro!$A$4:$AX$552,3,FALSE),0) -> 424 | F24: =IFERROR(VLOOKUP($A24,Filtro!$A$4:$AX$552,4,FALSE),0) -> 356 | G24: =IFERROR(VLOOKUP($A24,Filtro!$A$4:$AX$552,5,FALSE),0) -> 0 | H24: =IFERROR(VLOOKUP($A24,Filtro!$A$4:$AX$552,6,FALSE),0) -> 0 | I24: =IFERROR(VLOOKUP($A24,Filtro!$A$4:$AX$552,7,FALSE),0) -> 2 | J24: =IFERROR(VLOOKUP($A24,Filtro!$A$4:$AX$552,8,FALSE),0) -> 2 | K24: =IFERROR(VLOOKUP($A24,Filtro!$A$4:$AX$552,9,FALSE),0) -> 7 | L24: =IFERROR(VLOOKUP($A24,Filtro!$A$4:$AX$552,10,FALSE),0) -> 5 | M24: =IFERROR(VLOOKUP($A24,Filtro!$A$4:$AX$552,11,FALSE),0) -> 3 | N24: =IFERROR(VLOOKUP($A24,Filtro!$A$4:$AX$552,12,FALSE),0) -> 6 | O24: =IFERROR(VLOOKUP($A24,Filtro!$A$4:$AX$552,13,FALSE),0) -> 5 | P24: =IFERROR(VLOOKUP($A24,Filtro!$A$4:$AX$552,14,FALSE),0) -> 6 | Q24: =IFERROR(VLOOKUP($A24,Filtro!$A$4:$AX$552,15,FALSE),0) -> 8 | R24: =IFERROR(VLOOKUP($A24,Filtro!$A$4:$AX$552,16,FALSE),0) -> 1 | S24: =IFERROR(VLOOKUP($A24,Filtro!$A$4:$AX$552,17,FALSE),0) -> 13 | T24: =IFERROR(VLOOKUP($A24,Filtro!$A$4:$AX$552,18,FALSE),0) -> 13 | U24: =IFERROR(VLOOKUP($A24,Filtro!$A$4:$AX$552,19,FALSE),0) -> 48 | V24: =IFERROR(VLOOKUP($A24,Filtro!$A$4:$AX$552,20,FALSE),0) -> 25 | W24: =IFERROR(VLOOKUP($A24,Filtro!$A$4:$AX$552,21,FALSE),0) -> 43 | X24: =IFERROR(VLOOKUP($A24,Filtro!$A$4:$AX$552,22,FALSE),0) -> 28 | Y24: =IFERROR(VLOOKUP($A24,Filtro!$A$4:$AX$552,23,FALSE),0) -> 42 | Z24: =IFERROR(VLOOKUP($A24,Filtro!$A$4:$AX$552,24,FALSE),0) -> 32 | AA24: =IFERROR(VLOOKUP($A24,Filtro!$A$4:$AX$552,25,FALSE),0) -> 76 | AB24: =IFERROR(VLOOKUP($A24,Filtro!$A$4:$AX$552,26,FALSE),0) -> 73 | AC24: =IFERROR(VLOOKUP($A24,Filtro!$A$4:$AX$552,27,FALSE),0) -> 46 | AD24: =IFERROR(VLOOKUP($A24,Filtro!$A$4:$AX$552,28,FALSE),0) -> 45 | AE24: =IFERROR(VLOOKUP($A24,Filtro!$A$4:$AX$552,29,FALSE),0) -> 46 | AF24: =IFERROR(VLOOKUP($A24,Filtro!$A$4:$AX$552,30,FALSE),0) -> 41 | AG24: =IFERROR(VLOOKUP($A24,Filtro!$A$4:$AX$552,31,FALSE),0) -> 85 | AH24: =IFERROR(VLOOKUP($A24,Filtro!$A$4:$AX$552,32,FALSE),0) -> 79 | AI24: =IFERROR(VLOOKUP($A24,Filtro!$A$4:$AX$552,33,FALSE),0) -> 4 | AJ24: =IFERROR(VLOOKUP($A24,Filtro!$A$4:$AX$552,34,FALSE),0) -> 3 | AK24: =IFERROR(VLOOKUP($A24,Filtro!$A$4:$AX$552,35,FALSE),0) -> 2 | AL24: =IFERROR(VLOOKUP($A24,Filtro!$A$4:$AX$552,36,FALSE),0) -> 2 | AM24: =AY24 & AZ24 & BA24 & BB24 & BC24 & BD24 & BE24 & BF24 & BD25 & AY25 & AZ25 & BA25 & BB25 & BC25 & BE25 & BF25 & BG25 & BF26 & BG26 ->  | BF24: =IF(AND(E24<>0,AI24=""), "* No olvide escribir en la celda de Pueblos Originarios (Digite CERO si no tiene). ",IF(AND(F24<>0,AJ24=""), "* No olvide escribir en la celda de Pueblos Originarios (Digite CERO si no tiene). ","")) ->  | BG24: =IF(AND(E24<>0,AK24=""), "* No olvide escribir en la celda de Población Migrantes (Digite CERO si no tiene). ",IF(AND(F24<>0,AL24=""), "* No olvide escribir en la celda de Población Migrantes (Digite CERO si no tiene). ","")) ->  | BP24: =IF(AND(E24<>0,AI24=""), 1,IF(AND(F24<>0,AJ24=""), 1,0)) -> 0 | BQ24: =IF(AND(E24<>0,AK24=""), 1,IF(AND(F24<>0,AL24=""), 1,0)) -> 0
A25: P2400130 | C25: + 1 D.S. (+1.0 a +1.9) | D25: =IFERROR(VLOOKUP($A25,Filtro!$A$4:$AX$552,2,FALSE),0) -> 3570 | E25: =IFERROR(VLOOKUP($A25,Filtro!$A$4:$AX$552,3,FALSE),0) -> 1849 | F25: =IFERROR(VLOOKUP($A25,Filtro!$A$4:$AX$552,4,FALSE),0) -> 1721 | G25: =IFERROR(VLOOKUP($A25,Filtro!$A$4:$AX$552,5,FALSE),0) -> 0 | H25: =IFERROR(VLOOKUP($A25,Filtro!$A$4:$AX$552,6,FALSE),0) -> 0 | I25: =IFERROR(VLOOKUP($A25,Filtro!$A$4:$AX$552,7,FALSE),0) -> 12 | J25: =IFERROR(VLOOKUP($A25,Filtro!$A$4:$AX$552,8,FALSE),0) -> 15 | K25: =IFERROR(VLOOKUP($A25,Filtro!$A$4:$AX$552,9,FALSE),0) -> 20 | L25: =IFERROR(VLOOKUP($A25,Filtro!$A$4:$AX$552,10,FALSE),0) -> 16 | M25: =IFERROR(VLOOKUP($A25,Filtro!$A$4:$AX$552,11,FALSE),0) -> 31 | N25: =IFERROR(VLOOKUP($A25,Filtro!$A$4:$AX$552,12,FALSE),0) -> 23 | O25: =IFERROR(VLOOKUP($A25,Filtro!$A$4:$AX$552,13,FALSE),0) -> 25 | P25: =IFERROR(VLOOKUP($A25,Filtro!$A$4:$AX$552,14,FALSE),0) -> 31 | Q25: =IFERROR(VLOOKUP($A25,Filtro!$A$4:$AX$552,15,FALSE),0) -> 34 | R25: =IFERROR(VLOOKUP($A25,Filtro!$A$4:$AX$552,16,FALSE),0) -> 38 | S25: =IFERROR(VLOOKUP($A25,Filtro!$A$4:$AX$552,17,FALSE),0) -> 47 | T25: =IFERROR(VLOOKUP($A25,Filtro!$A$4:$AX$552,18,FALSE),0) -> 60 | U25: =IFERROR(VLOOKUP($A25,Filtro!$A$4:$AX$552,19,FALSE),0) -> 144 | V25: =IFERROR(VLOOKUP($A25,Filtro!$A$4:$AX$552,20,FALSE),0) -> 151 | W25: =IFERROR(VLOOKUP($A25,Filtro!$A$4:$AX$552,21,FALSE),0) -> 176 | X25: =IFERROR(VLOOKUP($A25,Filtro!$A$4:$AX$552,22,FALSE),0) -> 180 | Y25: =IFERROR(VLOOKUP($A25,Filtro!$A$4:$AX$552,23,FALSE),0) -> 195 | Z25: =IFERROR(VLOOKUP($A25,Filtro!$A$4:$AX$552,24,FALSE),0) -> 169 | AA25: =IFERROR(VLOOKUP($A25,Filtro!$A$4:$AX$552,25,FALSE),0) -> 386 | AB25: =IFERROR(VLOOKUP($A25,Filtro!$A$4:$AX$552,26,FALSE),0) -> 344 | AC25: =IFERROR(VLOOKUP($A25,Filtro!$A$4:$AX$552,27,FALSE),0) -> 200 | AD25: =IFERROR(VLOOKUP($A25,Filtro!$A$4:$AX$552,28,FALSE),0) -> 239 | AE25: =IFERROR(VLOOKUP($A25,Filtro!$A$4:$AX$552,29,FALSE),0) -> 168 | AF25: =IFERROR(VLOOKUP($A25,Filtro!$A$4:$AX$552,30,FALSE),0) -> 164 | AG25: =IFERROR(VLOOKUP($A25,Filtro!$A$4:$AX$552,31,FALSE),0) -> 411 | AH25: =IFERROR(VLOOKUP($A25,Filtro!$A$4:$AX$552,32,FALSE),0) -> 291 | AI25: =IFERROR(VLOOKUP($A25,Filtro!$A$4:$AX$552,33,FALSE),0) -> 12 | AJ25: =IFERROR(VLOOKUP($A25,Filtro!$A$4:$AX$552,34,FALSE),0) -> 9 | AK25: =IFERROR(VLOOKUP($A25,Filtro!$A$4:$AX$552,35,FALSE),0) -> 17 | AL25: =IFERROR(VLOOKUP($A25,Filtro!$A$4:$AX$552,36,FALSE),0) -> 13 | BF25: =IF(AND(E25<>0,AI25=""), "* No olvide escribir en la celda de Pueblos Originarios (Digite CERO si no tiene). ",IF(AND(F25<>0,AJ25=""), "* No olvide escribir en la celda de Pueblos Originarios (Digite CERO si no tiene). ","")) ->  | BG25: =IF(AND(E25<>0,AK25=""), "* No olvide escribir en la celda de Población Migrantes (Digite CERO si no tiene). ",IF(AND(F25<>0,AL25=""), "* No olvide escribir en la celda de Población Migrantes (Digite CERO si no tiene). ","")) ->  | BP25: 0 | BQ25: 0
C26: TOTAL | D26: 4350 | E26: 2273 | F26: 2077 | I26: =SUM(I24:I25) -> 14 | J26: =SUM(J24:J25) -> 17 | K26: 27 | L26: 21 | M26: 34 | N26: 29 | O26: 30 | P26: 37 | Q26: 42 | R26: 39 | S26: 60 | T26: 73 | U26: 192 | V26: 176 | W26: 219 | X26: 208 | Y26: 237 | Z26: 201 | AA26: 462 | AB26: 417 | AC26: 246 | AD26: 284 | AE26: 214 | AF26: 205 | AG26: 496 | AH26: 370 | AI26: 16 | AJ26: 12 | AK26: 19 | AL26: 15 | AM26: ="" & AY26 & AZ26 ->  | AY26: =IF($D26>=$AI26+$AJ26,"","* El Total de Pueblos Originarios no debe ser mayor al Total Indicador peso/talla. ") ->  | AZ26: =IF($D26>=$AK26+$AL26,"","* El Total de Población Migrantes no debe ser mayor al Total Indicador peso/talla. ") ->  | BI26: =IF($D26>=$AI26+$AJ26,0,1) -> 0 | BJ26: =IF($D26>=$AK26+$AL26,0,1) -> 0
A27: P2070401 | C27: - 1 D.S. (-1.0 a -1.9) | D27: =IFERROR(VLOOKUP($A27,Filtro!$A$4:$AX$552,2,FALSE),0) -> 4152 | E27: =IFERROR(VLOOKUP($A27,Filtro!$A$4:$AX$552,3,FALSE),0) -> 2221 | F27: =IFERROR(VLOOKUP($A27,Filtro!$A$4:$AX$552,4,FALSE),0) -> 1931 | G27: =IFERROR(VLOOKUP($A27,Filtro!$A$4:$AX$552,5,FALSE),0) -> 0 | H27: =IFERROR(VLOOKUP($A27,Filtro!$A$4:$AX$552,6,FALSE),0) -> 0 | I27: =IFERROR(VLOOKUP($A27,Filtro!$A$4:$AX$552,7,FALSE),0) -> 16 | J27: =IFERROR(VLOOKUP($A27,Filtro!$A$4:$AX$552,8,FALSE),0) -> 14 | K27: =IFERROR(VLOOKUP($A27,Filtro!$A$4:$AX$552,9,FALSE),0) -> 33 | L27: =IFERROR(VLOOKUP($A27,Filtro!$A$4:$AX$552,10,FALSE),0) -> 22 | M27: =IFERROR(VLOOKUP($A27,Filtro!$A$4:$AX$552,11,FALSE),0) -> 31 | N27: =IFERROR(VLOOKUP($A27,Filtro!$A$4:$AX$552,12,FALSE),0) -> 24 | O27: =IFERROR(VLOOKUP($A27,Filtro!$A$4:$AX$552,13,FALSE),0) -> 29 | P27: =IFERROR(VLOOKUP($A27,Filtro!$A$4:$AX$552,14,FALSE),0) -> 28 | Q27: =IFERROR(VLOOKUP($A27,Filtro!$A$4:$AX$552,15,FALSE),0) -> 22 | R27: =IFERROR(VLOOKUP($A27,Filtro!$A$4:$AX$552,16,FALSE),0) -> 23 | S27: =IFERROR(VLOOKUP($A27,Filtro!$A$4:$AX$552,17,FALSE),0) -> 49 | T27: =IFERROR(VLOOKUP($A27,Filtro!$A$4:$AX$552,18,FALSE),0) -> 39 | U27: =IFERROR(VLOOKUP($A27,Filtro!$A$4:$AX$552,19,FALSE),0) -> 180 | V27: =IFERROR(VLOOKUP($A27,Filtro!$A$4:$AX$552,20,FALSE),0) -> 119 | W27: =IFERROR(VLOOKUP($A27,Filtro!$A$4:$AX$552,21,FALSE),0) -> 242 | X27: =IFERROR(VLOOKUP($A27,Filtro!$A$4:$AX$552,22,FALSE),0) -> 183 | Y27: =IFERROR(VLOOKUP($A27,Filtro!$A$4:$AX$552,23,FALSE),0) -> 266 | Z27: =IFERROR(VLOOKUP($A27,Filtro!$A$4:$AX$552,24,FALSE),0) -> 215 | AA27: =IFERROR(VLOOKUP($A27,Filtro!$A$4:$AX$552,25,FALSE),0) -> 483 | AB27: =IFERROR(VLOOKUP($A27,Filtro!$A$4:$AX$552,26,FALSE),0) -> 435 | AC27: =IFERROR(VLOOKUP($A27,Filtro!$A$4:$AX$552,27,FALSE),0) -> 240 | AD27: =IFERROR(VLOOKUP($A27,Filtro!$A$4:$AX$552,28,FALSE),0) -> 221 | AE27: =IFERROR(VLOOKUP($A27,Filtro!$A$4:$AX$552,29,FALSE),0) -> 204 | AF27: =IFERROR(VLOOKUP($A27,Filtro!$A$4:$AX$552,30,FALSE),0) -> 173 | AG27: =IFERROR(VLOOKUP($A27,Filtro!$A$4:$AX$552,31,FALSE),0) -> 426 | AH27: =IFERROR(VLOOKUP($A27,Filtro!$A$4:$AX$552,32,FALSE),0) -> 435 | AI27: =IFERROR(VLOOKUP($A27,Filtro!$A$4:$AX$552,33,FALSE),0) -> 11 | AJ27: =IFERROR(VLOOKUP($A27,Filtro!$A$4:$AX$552,34,FALSE),0) -> 8 | AK27: =IFERROR(VLOOKUP($A27,Filtro!$A$4:$AX$552,35,FALSE),0) -> 27 | AL27: =IFERROR(VLOOKUP($A27,Filtro!$A$4:$AX$552,36,FALSE),0) -> 20 | AM27: =AY27 & AZ27 & BA27 & BB27 & BC27 & BD27 & BE27 & BF27 & BD28 & AY28 & AZ28 & BA28 & BB28 & BC28 & BE28 & BF28 & BG28 & BF29 & BG29 ->  | BF27: =IF(AND(E27<>0,AI27=""), "* No olvide escribir en la celda de Pueblos Originarios (Digite CERO si no tiene). ",IF(AND(F27<>0,AJ27=""), "* No olvide escribir en la celda de Pueblos Originarios (Digite CERO si no tiene). ","")) ->  | BG27: =IF(AND(E27<>0,AK27=""), "* No olvide escribir en la celda de Población Migrantes (Digite CERO si no tiene). ",IF(AND(F27<>0,AL27=""), "* No olvide escribir en la celda de Población Migrantes (Digite CERO si no tiene). ","")) ->  | BP27: =IF(AND(E27<>0,AI27=""), 1,IF(AND(F27<>0,AJ27=""), 1,0)) -> 0 | BQ27: =IF(AND(E27<>0,AK27=""), 1,IF(AND(F27<>0,AL27=""), 1,0)) -> 0
A28: P2070402 | C28: - 2 D.S. (<= -2.0) | D28: =IFERROR(VLOOKUP($A28,Filtro!$A$4:$AX$552,2,FALSE),0) -> 654 | E28: =IFERROR(VLOOKUP($A28,Filtro!$A$4:$AX$552,3,FALSE),0) -> 362 | F28: =IFERROR(VLOOKUP($A28,Filtro!$A$4:$AX$552,4,FALSE),0) -> 292 | G28: =IFERROR(VLOOKUP($A28,Filtro!$A$4:$AX$552,5,FALSE),0) -> 0 | H28: =IFERROR(VLOOKUP($A28,Filtro!$A$4:$AX$552,6,FALSE),0) -> 0 | I28: =IFERROR(VLOOKUP($A28,Filtro!$A$4:$AX$552,7,FALSE),0) -> 4 | J28: =IFERROR(VLOOKUP($A28,Filtro!$A$4:$AX$552,8,FALSE),0) -> 2 | K28: =IFERROR(VLOOKUP($A28,Filtro!$A$4:$AX$552,9,FALSE),0) -> 4 | L28: =IFERROR(VLOOKUP($A28,Filtro!$A$4:$AX$552,10,FALSE),0) -> 4 | M28: =IFERROR(VLOOKUP($A28,Filtro!$A$4:$AX$552,11,FALSE),0) -> 2 | N28: =IFERROR(VLOOKUP($A28,Filtro!$A$4:$AX$552,12,FALSE),0) -> 4 | O28: =IFERROR(VLOOKUP($A28,Filtro!$A$4:$AX$552,13,FALSE),0) -> 6 | P28: =IFERROR(VLOOKUP($A28,Filtro!$A$4:$AX$552,14,FALSE),0) -> 3 | Q28: =IFERROR(VLOOKUP($A28,Filtro!$A$4:$AX$552,15,FALSE),0) -> 6 | R28: =IFERROR(VLOOKUP($A28,Filtro!$A$4:$AX$552,16,FALSE),0) -> 3 | S28: =IFERROR(VLOOKUP($A28,Filtro!$A$4:$AX$552,17,FALSE),0) -> 4 | T28: =IFERROR(VLOOKUP($A28,Filtro!$A$4:$AX$552,18,FALSE),0) -> 7 | U28: =IFERROR(VLOOKUP($A28,Filtro!$A$4:$AX$552,19,FALSE),0) -> 28 | V28: =IFERROR(VLOOKUP($A28,Filtro!$A$4:$AX$552,20,FALSE),0) -> 15 | W28: =IFERROR(VLOOKUP($A28,Filtro!$A$4:$AX$552,21,FALSE),0) -> 40 | X28: =IFERROR(VLOOKUP($A28,Filtro!$A$4:$AX$552,22,FALSE),0) -> 29 | Y28: =IFERROR(VLOOKUP($A28,Filtro!$A$4:$AX$552,23,FALSE),0) -> 54 | Z28: =IFERROR(VLOOKUP($A28,Filtro!$A$4:$AX$552,24,FALSE),0) -> 35 | AA28: =IFERROR(VLOOKUP($A28,Filtro!$A$4:$AX$552,25,FALSE),0) -> 90 | AB28: =IFERROR(VLOOKUP($A28,Filtro!$A$4:$AX$552,26,FALSE),0) -> 81 | AC28: =IFERROR(VLOOKUP($A28,Filtro!$A$4:$AX$552,27,FALSE),0) -> 46 | AD28: =IFERROR(VLOOKUP($A28,Filtro!$A$4:$AX$552,28,FALSE),0) -> 23 | AE28: =IFERROR(VLOOKUP($A28,Filtro!$A$4:$AX$552,29,FALSE),0) -> 29 | AF28: =IFERROR(VLOOKUP($A28,Filtro!$A$4:$AX$552,30,FALSE),0) -> 22 | AG28: =IFERROR(VLOOKUP($A28,Filtro!$A$4:$AX$552,31,FALSE),0) -> 49 | AH28: =IFERROR(VLOOKUP($A28,Filtro!$A$4:$AX$552,32,FALSE),0) -> 64 | AI28: =IFERROR(VLOOKUP($A28,Filtro!$A$4:$AX$552,33,FALSE),0) -> 5 | AJ28: =IFERROR(VLOOKUP($A28,Filtro!$A$4:$AX$552,34,FALSE),0) -> 7 | AK28: =IFERROR(VLOOKUP($A28,Filtro!$A$4:$AX$552,35,FALSE),0) -> 7 | AL28: =IFERROR(VLOOKUP($A28,Filtro!$A$4:$AX$552,36,FALSE),0) -> 5 | BF28: =IF(AND(E28<>0,AI28=""), "* No olvide escribir en la celda de Pueblos Originarios (Digite CERO si no tiene). ",IF(AND(F28<>0,AJ28=""), "* No olvide escribir en la celda de Pueblos Originarios (Digite CERO si no tiene). ","")) ->  | BG28: =IF(AND(E28<>0,AK28=""), "* No olvide escribir en la celda de Población Migrantes (Digite CERO si no tiene). ",IF(AND(F28<>0,AL28=""), "* No olvide escribir en la celda de Población Migrantes (Digite CERO si no tiene). ","")) ->  | BP28: 0 | BQ28: 0
C29: TOTAL | D29: 4806 | E29: 2583 | F29: 2223 | I29: =SUM(I27:I28) -> 20 | J29: =SUM(J27:J28) -> 16 | K29: 37 | L29: 26 | M29: 33 | N29: 28 | O29: 35 | P29: 31 | Q29: 28 | R29: 26 | S29: 53 | T29: 46 | U29: 208 | V29: 134 | W29: 282 | X29: 212 | Y29: 320 | Z29: 250 | AA29: 573 | AB29: 516 | AC29: 286 | AD29: 244 | AE29: 233 | AF29: 195 | AG29: 475 | AH29: 499 | AI29: 16 | AJ29: 15 | AK29: 34 | AL29: 25 | AM29: ="" & AY29 & AZ29 ->  | AY29: =IF($D29>=$AI29+$AJ29,"","* El Total de Pueblos Originarios no debe ser mayor al Total Indicador peso/talla. ") ->  | AZ29: =IF($D29>=$AK29+$AL29,"","* El Total de Población Migrantes no debe ser mayor al Total Indicador peso/talla. ") ->  | BI29: =IF($D29>=$AI29+$AJ29,0,1) -> 0 | BJ29: =IF($D29>=$AK29+$AL29,0,1) -> 0
A30: P2400140 | C30: PROMEDIO (-0,9 A + 0,9) | D30: =IFERROR(VLOOKUP($A30,Filtro!$A$4:$AX$552,2,FALSE),0) -> 16731 | E30: =IFERROR(VLOOKUP($A30,Filtro!$A$4:$AX$552,3,FALSE),0) -> 8282 | F30: =IFERROR(VLOOKUP($A30,Filtro!$A$4:$AX$552,4,FALSE),0) -> 8449 | G30: =IFERROR(VLOOKUP($A30,Filtro!$A$4:$AX$552,5,FALSE),0) -> 0 | H30: =IFERROR(VLOOKUP($A30,Filtro!$A$4:$AX$552,6,FALSE),0) -> 0 | I30: =IFERROR(VLOOKUP($A30,Filtro!$A$4:$AX$552,7,FALSE),0) -> 120 | J30: =IFERROR(VLOOKUP($A30,Filtro!$A$4:$AX$552,8,FALSE),0) -> 95 | K30: =IFERROR(VLOOKUP($A30,Filtro!$A$4:$AX$552,9,FALSE),0) -> 127 | L30: =IFERROR(VLOOKUP($A30,Filtro!$A$4:$AX$552,10,FALSE),0) -> 125 | M30: =IFERROR(VLOOKUP($A30,Filtro!$A$4:$AX$552,11,FALSE),0) -> 142 | N30: =IFERROR(VLOOKUP($A30,Filtro!$A$4:$AX$552,12,FALSE),0) -> 130 | O30: =IFERROR(VLOOKUP($A30,Filtro!$A$4:$AX$552,13,FALSE),0) -> 120 | P30: =IFERROR(VLOOKUP($A30,Filtro!$A$4:$AX$552,14,FALSE),0) -> 121 | Q30: =IFERROR(VLOOKUP($A30,Filtro!$A$4:$AX$552,15,FALSE),0) -> 125 | R30: =IFERROR(VLOOKUP($A30,Filtro!$A$4:$AX$552,16,FALSE),0) -> 147 | S30: =IFERROR(VLOOKUP($A30,Filtro!$A$4:$AX$552,17,FALSE),0) -> 211 | T30: =IFERROR(VLOOKUP($A30,Filtro!$A$4:$AX$552,18,FALSE),0) -> 189 | U30: =IFERROR(VLOOKUP($A30,Filtro!$A$4:$AX$552,19,FALSE),0) -> 584 | V30: =IFERROR(VLOOKUP($A30,Filtro!$A$4:$AX$552,20,FALSE),0) -> 629 | W30: =IFERROR(VLOOKUP($A30,Filtro!$A$4:$AX$552,21,FALSE),0) -> 859 | X30: =IFERROR(VLOOKUP($A30,Filtro!$A$4:$AX$552,22,FALSE),0) -> 912 | Y30: =IFERROR(VLOOKUP($A30,Filtro!$A$4:$AX$552,23,FALSE),0) -> 932 | Z30: =IFERROR(VLOOKUP($A30,Filtro!$A$4:$AX$552,24,FALSE),0) -> 941 | AA30: =IFERROR(VLOOKUP($A30,Filtro!$A$4:$AX$552,25,FALSE),0) -> 1671 | AB30: =IFERROR(VLOOKUP($A30,Filtro!$A$4:$AX$552,26,FALSE),0) -> 1630 | AC30: =IFERROR(VLOOKUP($A30,Filtro!$A$4:$AX$552,27,FALSE),0) -> 884 | AD30: =IFERROR(VLOOKUP($A30,Filtro!$A$4:$AX$552,28,FALSE),0) -> 845 | AE30: =IFERROR(VLOOKUP($A30,Filtro!$A$4:$AX$552,29,FALSE),0) -> 801 | AF30: =IFERROR(VLOOKUP($A30,Filtro!$A$4:$AX$552,30,FALSE),0) -> 843 | AG30: =IFERROR(VLOOKUP($A30,Filtro!$A$4:$AX$552,31,FALSE),0) -> 1706 | AH30: =IFERROR(VLOOKUP($A30,Filtro!$A$4:$AX$552,32,FALSE),0) -> 1842 | AI30: =IFERROR(VLOOKUP($A30,Filtro!$A$4:$AX$552,33,FALSE),0) -> 25 | AJ30: =IFERROR(VLOOKUP($A30,Filtro!$A$4:$AX$552,34,FALSE),0) -> 23 | AK30: =IFERROR(VLOOKUP($A30,Filtro!$A$4:$AX$552,35,FALSE),0) -> 109 | AL30: =IFERROR(VLOOKUP($A30,Filtro!$A$4:$AX$552,36,FALSE),0) -> 114 | AM30: =AY30 & AZ30 & BA30 & BB30 & BC30 & BD30 & BE30 & BF30 & BD31 & AY31 & AZ31 & BA31 & BB31 & BC31 & BE31 & BF31 & BG31 & BF32 & BG32 ->  | BF30: =IF(AND(E30<>0,AI30=""), "* No olvide escribir en la celda de Pueblos Originarios (Digite CERO si no tiene). ",IF(AND(F30<>0,AJ30=""), "* No olvide escribir en la celda de Pueblos Originarios (Digite CERO si no tiene). ","")) ->  | BG30: =IF(AND(E30<>0,AK30=""), "* No olvide escribir en la celda de Población Migrantes (Digite CERO si no tiene). ",IF(AND(F30<>0,AL30=""), "* No olvide escribir en la celda de Población Migrantes (Digite CERO si no tiene). ","")) ->  | BP30: =IF(AND(E30<>0,AI30=""), 1,IF(AND(F30<>0,AJ30=""), 1,0)) -> 0 | BQ30: =IF(AND(E30<>0,AK30=""), 1,IF(AND(F30<>0,AL30=""), 1,0)) -> 0
A31: P2070501 | B31: DIAGNOSTICO NUTRICIONAL INTEGRADO | C31: RIESGO DE DESNUTRIR/ DEFICIT PONDERAL* | D31: =IFERROR(VLOOKUP($A31,Filtro!$A$4:$AX$552,2,FALSE),0) -> 782 | E31: =IFERROR(VLOOKUP($A31,Filtro!$A$4:$AX$552,3,FALSE),0) -> 445 | F31: =IFERROR(VLOOKUP($A31,Filtro!$A$4:$AX$552,4,FALSE),0) -> 337 | G31: =IFERROR(VLOOKUP($A31,Filtro!$A$4:$AX$552,5,FALSE),0) -> 0 | H31: =IFERROR(VLOOKUP($A31,Filtro!$A$4:$AX$552,6,FALSE),0) -> 0 | I31: =IFERROR(VLOOKUP($A31,Filtro!$A$4:$AX$552,7,FALSE),0) -> 10 | J31: =IFERROR(VLOOKUP($A31,Filtro!$A$4:$AX$552,8,FALSE),0) -> 7 | K31: =IFERROR(VLOOKUP($A31,Filtro!$A$4:$AX$552,9,FALSE),0) -> 12 | L31: =IFERROR(VLOOKUP($A31,Filtro!$A$4:$AX$552,10,FALSE),0) -> 10 | M31: =IFERROR(VLOOKUP($A31,Filtro!$A$4:$AX$552,11,FALSE),0) -> 8 | N31: =IFERROR(VLOOKUP($A31,Filtro!$A$4:$AX$552,12,FALSE),0) -> 11 | O31: =IFERROR(VLOOKUP($A31,Filtro!$A$4:$AX$552,13,FALSE),0) -> 13 | P31: =IFERROR(VLOOKUP($A31,Filtro!$A$4:$AX$552,14,FALSE),0) -> 12 | Q31: =IFERROR(VLOOKUP($A31,Filtro!$A$4:$AX$552,15,FALSE),0) -> 5 | R31: =IFERROR(VLOOKUP($A31,Filtro!$A$4:$AX$552,16,FALSE),0) -> 5 | S31: =IFERROR(VLOOKUP($A31,Filtro!$A$4:$AX$552,17,FALSE),0) -> 19 | T31: =IFERROR(VLOOKUP($A31,Filtro!$A$4:$AX$552,18,FALSE),0) -> 15 | U31: =IFERROR(VLOOKUP($A31,Filtro!$A$4:$AX$552,19,FALSE),0) -> 60 | V31: =IFERROR(VLOOKUP($A31,Filtro!$A$4:$AX$552,20,FALSE),0) -> 36 | W31: =IFERROR(VLOOKUP($A31,Filtro!$A$4:$AX$552,21,FALSE),0) -> 41 | X31: =IFERROR(VLOOKUP($A31,Filtro!$A$4:$AX$552,22,FALSE),0) -> 38 | Y31: =IFERROR(VLOOKUP($A31,Filtro!$A$4:$AX$552,23,FALSE),0) -> 42 | Z31: =IFERROR(VLOOKUP($A31,Filtro!$A$4:$AX$552,24,FALSE),0) -> 33 | AA31: =IFERROR(VLOOKUP($A31,Filtro!$A$4:$AX$552,25,FALSE),0) -> 83 | AB31: =IFERROR(VLOOKUP($A31,Filtro!$A$4:$AX$552,26,FALSE),0) -> 57 | AC31: =IFERROR(VLOOKUP($A31,Filtro!$A$4:$AX$552,27,FALSE),0) -> 36 | AD31: =IFERROR(VLOOKUP($A31,Filtro!$A$4:$AX$552,28,FALSE),0) -> 37 | AE31: =IFERROR(VLOOKUP($A31,Filtro!$A$4:$AX$552,29,FALSE),0) -> 34 | AF31: =IFERROR(VLOOKUP($A31,Filtro!$A$4:$AX$552,30,FALSE),0) -> 24 | AG31: =IFERROR(VLOOKUP($A31,Filtro!$A$4:$AX$552,31,FALSE),0) -> 82 | AH31: =IFERROR(VLOOKUP($A31,Filtro!$A$4:$AX$552,32,FALSE),0) -> 52 | AI31: =IFERROR(VLOOKUP($A31,Filtro!$A$4:$AX$552,33,FALSE),0) -> 4 | AJ31: =IFERROR(VLOOKUP($A31,Filtro!$A$4:$AX$552,34,FALSE),0) -> 2 | AK31: =IFERROR(VLOOKUP($A31,Filtro!$A$4:$AX$552,35,FALSE),0) -> 5 | AL31: =IFERROR(VLOOKUP($A31,Filtro!$A$4:$AX$552,36,FALSE),0) -> 10 | BF31: =IF(AND(E31<>0,AI31=""), "* No olvide escribir en la celda de Pueblos Originarios (Digite CERO si no tiene). ",IF(AND(F31<>0,AJ31=""), "* No olvide escribir en la celda de Pueblos Originarios (Digite CERO si no tiene). ","")) ->  | BG31: =IF(AND(E31<>0,AK31=""), "* No olvide escribir en la celda de Población Migrantes (Digite CERO si no tiene). ",IF(AND(F31<>0,AL31=""), "* No olvide escribir en la celda de Población Migrantes (Digite CERO si no tiene). ","")) ->  | BP31: 0 | BQ31: 0
A32: P2070502 | C32: DESNUTRIDO | D32: =IFERROR(VLOOKUP($A32,Filtro!$A$4:$AX$552,2,FALSE),0) -> 90 | E32: =IFERROR(VLOOKUP($A32,Filtro!$A$4:$AX$552,3,FALSE),0) -> 51 | F32: =IFERROR(VLOOKUP($A32,Filtro!$A$4:$AX$552,4,FALSE),0) -> 39 | G32: =IFERROR(VLOOKUP($A32,Filtro!$A$4:$AX$552,5,FALSE),0) -> 0 | H32: =IFERROR(VLOOKUP($A32,Filtro!$A$4:$AX$552,6,FALSE),0) -> 0 | I32: =IFERROR(VLOOKUP($A32,Filtro!$A$4:$AX$552,7,FALSE),0) -> 2 | J32: =IFERROR(VLOOKUP($A32,Filtro!$A$4:$AX$552,8,FALSE),0) -> 1 | K32: =IFERROR(VLOOKUP($A32,Filtro!$A$4:$AX$552,9,FALSE),0) -> 3 | L32: =IFERROR(VLOOKUP($A32,Filtro!$A$4:$AX$552,10,FALSE),0) -> 0 | M32: =IFERROR(VLOOKUP($A32,Filtro!$A$4:$AX$552,11,FALSE),0) -> 0 | N32: =IFERROR(VLOOKUP($A32,Filtro!$A$4:$AX$552,12,FALSE),0) -> 2 | O32: =IFERROR(VLOOKUP($A32,Filtro!$A$4:$AX$552,13,FALSE),0) -> 0 | P32: =IFERROR(VLOOKUP($A32,Filtro!$A$4:$AX$552,14,FALSE),0) -> 3 | Q32: =IFERROR(VLOOKUP($A32,Filtro!$A$4:$AX$552,15,FALSE),0) -> 4 | R32: =IFERROR(VLOOKUP($A32,Filtro!$A$4:$AX$552,16,FALSE),0) -> 1 | S32: =IFERROR(VLOOKUP($A32,Filtro!$A$4:$AX$552,17,FALSE),0) -> 1 | T32: =IFERROR(VLOOKUP($A32,Filtro!$A$4:$AX$552,18,FALSE),0) -> 3 | U32: =IFERROR(VLOOKUP($A32,Filtro!$A$4:$AX$552,19,FALSE),0) -> 7 | V32: =IFERROR(VLOOKUP($A32,Filtro!$A$4:$AX$552,20,FALSE),0) -> 4 | W32: =IFERROR(VLOOKUP($A32,Filtro!$A$4:$AX$552,21,FALSE),0) -> 1 | X32: =IFERROR(VLOOKUP($A32,Filtro!$A$4:$AX$552,22,FALSE),0) -> 3 | Y32: =IFERROR(VLOOKUP($A32,Filtro!$A$4:$AX$552,23,FALSE),0) -> 9 | Z32: =IFERROR(VLOOKUP($A32,Filtro!$A$4:$AX$552,24,FALSE),0) -> 8 | AA32: =IFERROR(VLOOKUP($A32,Filtro!$A$4:$AX$552,25,FALSE),0) -> 9 | AB32: =IFERROR(VLOOKUP($A32,Filtro!$A$4:$AX$552,26,FALSE),0) -> 8 | AC32: =IFERROR(VLOOKUP($A32,Filtro!$A$4:$AX$552,27,FALSE),0) -> 3 | AD32: =IFERROR(VLOOKUP($A32,Filtro!$A$4:$AX$552,28,FALSE),0) -> 1 | AE32: =IFERROR(VLOOKUP($A32,Filtro!$A$4:$AX$552,29,FALSE),0) -> 2 | AF32: =IFERROR(VLOOKUP($A32,Filtro!$A$4:$AX$552,30,FALSE),0) -> 2 | AG32: =IFERROR(VLOOKUP($A32,Filtro!$A$4:$AX$552,31,FALSE),0) -> 10 | AH32: =IFERROR(VLOOKUP($A32,Filtro!$A$4:$AX$552,32,FALSE),0) -> 3 | AI32: =IFERROR(VLOOKUP($A32,Filtro!$A$4:$AX$552,33,FALSE),0) -> 0 | AJ32: =IFERROR(VLOOKUP($A32,Filtro!$A$4:$AX$552,34,FALSE),0) -> 0 | AK32: =IFERROR(VLOOKUP($A32,Filtro!$A$4:$AX$552,35,FALSE),0) -> 0 | AL32: =IFERROR(VLOOKUP($A32,Filtro!$A$4:$AX$552,36,FALSE),0) -> 3 | BF32: =IF(AND(E32<>0,AI32=""), "* No olvide escribir en la celda de Pueblos Originarios (Digite CERO si no tiene). ",IF(AND(F32<>0,AJ32=""), "* No olvide escribir en la celda de Pueblos Originarios (Digite CERO si no tiene). ","")) ->  | BG32: =IF(AND(E32<>0,AK32=""), "* No olvide escribir en la celda de Población Migrantes (Digite CERO si no tiene). ",IF(AND(F32<>0,AL32=""), "* No olvide escribir en la celda de Población Migrantes (Digite CERO si no tiene). ","")) ->  | BP32: 0 | BQ32: 0
A33: P2070503 | C33: SOBREPESO / RIESGO OBESIDAD | D33: =IFERROR(VLOOKUP($A33,Filtro!$A$4:$AX$552,2,FALSE),0) -> 8344 | E33: =IFERROR(VLOOKUP($A33,Filtro!$A$4:$AX$552,3,FALSE),0) -> 4194 | F33: =IFERROR(VLOOKUP($A33,Filtro!$A$4:$AX$552,4,FALSE),0) -> 4150 | G33: =IFERROR(VLOOKUP($A33,Filtro!$A$4:$AX$552,5,FALSE),0) -> 0 | H33: =IFERROR(VLOOKUP($A33,Filtro!$A$4:$AX$552,6,FALSE),0) -> 0 | I33: =IFERROR(VLOOKUP($A33,Filtro!$A$4:$AX$552,7,FALSE),0) -> 25 | J33: =IFERROR(VLOOKUP($A33,Filtro!$A$4:$AX$552,8,FALSE),0) -> 23 | K33: =IFERROR(VLOOKUP($A33,Filtro!$A$4:$AX$552,9,FALSE),0) -> 56 | L33: =IFERROR(VLOOKUP($A33,Filtro!$A$4:$AX$552,10,FALSE),0) -> 36 | M33: =IFERROR(VLOOKUP($A33,Filtro!$A$4:$AX$552,11,FALSE),0) -> 76 | N33: =IFERROR(VLOOKUP($A33,Filtro!$A$4:$AX$552,12,FALSE),0) -> 62 | O33: =IFERROR(VLOOKUP($A33,Filtro!$A$4:$AX$552,13,FALSE),0) -> 71 | P33: =IFERROR(VLOOKUP($A33,Filtro!$A$4:$AX$552,14,FALSE),0) -> 63 | Q33: =IFERROR(VLOOKUP($A33,Filtro!$A$4:$AX$552,15,FALSE),0) -> 72 | R33: =IFERROR(VLOOKUP($A33,Filtro!$A$4:$AX$552,16,FALSE),0) -> 94 | S33: =IFERROR(VLOOKUP($A33,Filtro!$A$4:$AX$552,17,FALSE),0) -> 126 | T33: =IFERROR(VLOOKUP($A33,Filtro!$A$4:$AX$552,18,FALSE),0) -> 131 | U33: =IFERROR(VLOOKUP($A33,Filtro!$A$4:$AX$552,19,FALSE),0) -> 390 | V33: =IFERROR(VLOOKUP($A33,Filtro!$A$4:$AX$552,20,FALSE),0) -> 388 | W33: =IFERROR(VLOOKUP($A33,Filtro!$A$4:$AX$552,21,FALSE),0) -> 496 | X33: =IFERROR(VLOOKUP($A33,Filtro!$A$4:$AX$552,22,FALSE),0) -> 496 | Y33: =IFERROR(VLOOKUP($A33,Filtro!$A$4:$AX$552,23,FALSE),0) -> 503 | Z33: =IFERROR(VLOOKUP($A33,Filtro!$A$4:$AX$552,24,FALSE),0) -> 491 | AA33: =IFERROR(VLOOKUP($A33,Filtro!$A$4:$AX$552,25,FALSE),0) -> 844 | AB33: =IFERROR(VLOOKUP($A33,Filtro!$A$4:$AX$552,26,FALSE),0) -> 814 | AC33: =IFERROR(VLOOKUP($A33,Filtro!$A$4:$AX$552,27,FALSE),0) -> 403 | AD33: =IFERROR(VLOOKUP($A33,Filtro!$A$4:$AX$552,28,FALSE),0) -> 417 | AE33: =IFERROR(VLOOKUP($A33,Filtro!$A$4:$AX$552,29,FALSE),0) -> 356 | AF33: =IFERROR(VLOOKUP($A33,Filtro!$A$4:$AX$552,30,FALSE),0) -> 342 | AG33: =IFERROR(VLOOKUP($A33,Filtro!$A$4:$AX$552,31,FALSE),0) -> 776 | AH33: =IFERROR(VLOOKUP($A33,Filtro!$A$4:$AX$552,32,FALSE),0) -> 793 | AI33: =IFERROR(VLOOKUP($A33,Filtro!$A$4:$AX$552,33,FALSE),0) -> 15 | AJ33: =IFERROR(VLOOKUP($A33,Filtro!$A$4:$AX$552,34,FALSE),0) -> 14 | AK33: =IFERROR(VLOOKUP($A33,Filtro!$A$4:$AX$552,35,FALSE),0) -> 46 | AL33: =IFERROR(VLOOKUP($A33,Filtro!$A$4:$AX$552,36,FALSE),0) -> 50 | BF33: =IF(AND(E33<>0,AI33=""), "* No olvide escribir en la celda de Pueblos Originarios (Digite CERO si no tiene). ",IF(AND(F33<>0,AJ33=""), "* No olvide escribir en la celda de Pueblos Originarios (Digite CERO si no tiene). ","")) ->  | BG33: =IF(AND(E33<>0,AK33=""), "* No olvide escribir en la celda de Población Migrantes (Digite CERO si no tiene). ",IF(AND(F33<>0,AL33=""), "* No olvide escribir en la celda de Población Migrantes (Digite CERO si no tiene). ","")) ->  | BP33: 0 | BQ33: 0
A34: P2070504 | C34: OBESO | D34: =IFERROR(VLOOKUP($A34,Filtro!$A$4:$AX$552,2,FALSE),0) -> 3979 | E34: =IFERROR(VLOOKUP($A34,Filtro!$A$4:$AX$552,3,FALSE),0) -> 2100 | F34: =IFERROR(VLOOKUP($A34,Filtro!$A$4:$AX$552,4,FALSE),0) -> 1879 | G34: =IFERROR(VLOOKUP($A34,Filtro!$A$4:$AX$552,5,FALSE),0) -> 0 | H34: =IFERROR(VLOOKUP($A34,Filtro!$A$4:$AX$552,6,FALSE),0) -> 0 | I34: =IFERROR(VLOOKUP($A34,Filtro!$A$4:$AX$552,7,FALSE),0) -> 5 | J34: =IFERROR(VLOOKUP($A34,Filtro!$A$4:$AX$552,8,FALSE),0) -> 2 | K34: =IFERROR(VLOOKUP($A34,Filtro!$A$4:$AX$552,9,FALSE),0) -> 21 | L34: =IFERROR(VLOOKUP($A34,Filtro!$A$4:$AX$552,10,FALSE),0) -> 19 | M34: =IFERROR(VLOOKUP($A34,Filtro!$A$4:$AX$552,11,FALSE),0) -> 25 | N34: =IFERROR(VLOOKUP($A34,Filtro!$A$4:$AX$552,12,FALSE),0) -> 12 | O34: =IFERROR(VLOOKUP($A34,Filtro!$A$4:$AX$552,13,FALSE),0) -> 19 | P34: =IFERROR(VLOOKUP($A34,Filtro!$A$4:$AX$552,14,FALSE),0) -> 21 | Q34: =IFERROR(VLOOKUP($A34,Filtro!$A$4:$AX$552,15,FALSE),0) -> 35 | R34: =IFERROR(VLOOKUP($A34,Filtro!$A$4:$AX$552,16,FALSE),0) -> 15 | S34: =IFERROR(VLOOKUP($A34,Filtro!$A$4:$AX$552,17,FALSE),0) -> 42 | T34: =IFERROR(VLOOKUP($A34,Filtro!$A$4:$AX$552,18,FALSE),0) -> 48 | U34: =IFERROR(VLOOKUP($A34,Filtro!$A$4:$AX$552,19,FALSE),0) -> 176 | V34: =IFERROR(VLOOKUP($A34,Filtro!$A$4:$AX$552,20,FALSE),0) -> 154 | W34: =IFERROR(VLOOKUP($A34,Filtro!$A$4:$AX$552,21,FALSE),0) -> 217 | X34: =IFERROR(VLOOKUP($A34,Filtro!$A$4:$AX$552,22,FALSE),0) -> 194 | Y34: =IFERROR(VLOOKUP($A34,Filtro!$A$4:$AX$552,23,FALSE),0) -> 250 | Z34: =IFERROR(VLOOKUP($A34,Filtro!$A$4:$AX$552,24,FALSE),0) -> 203 | AA34: =IFERROR(VLOOKUP($A34,Filtro!$A$4:$AX$552,25,FALSE),0) -> 405 | AB34: =IFERROR(VLOOKUP($A34,Filtro!$A$4:$AX$552,26,FALSE),0) -> 354 | AC34: =IFERROR(VLOOKUP($A34,Filtro!$A$4:$AX$552,27,FALSE),0) -> 233 | AD34: =IFERROR(VLOOKUP($A34,Filtro!$A$4:$AX$552,28,FALSE),0) -> 209 | AE34: =IFERROR(VLOOKUP($A34,Filtro!$A$4:$AX$552,29,FALSE),0) -> 176 | AF34: =IFERROR(VLOOKUP($A34,Filtro!$A$4:$AX$552,30,FALSE),0) -> 177 | AG34: =IFERROR(VLOOKUP($A34,Filtro!$A$4:$AX$552,31,FALSE),0) -> 496 | AH34: =IFERROR(VLOOKUP($A34,Filtro!$A$4:$AX$552,32,FALSE),0) -> 471 | AI34: =IFERROR(VLOOKUP($A34,Filtro!$A$4:$AX$552,33,FALSE),0) -> 16 | AJ34: =IFERROR(VLOOKUP($A34,Filtro!$A$4:$AX$552,34,FALSE),0) -> 12 | AK34: =IFERROR(VLOOKUP($A34,Filtro!$A$4:$AX$552,35,FALSE),0) -> 13 | AL34: =IFERROR(VLOOKUP($A34,Filtro!$A$4:$AX$552,36,FALSE),0) -> 13 | BF34: =IF(AND(E34<>0,AI34=""), "* No olvide escribir en la celda de Pueblos Originarios (Digite CERO si no tiene). ",IF(AND(F34<>0,AJ34=""), "* No olvide escribir en la celda de Pueblos Originarios (Digite CERO si no tiene). ","")) ->  | BG34: =IF(AND(E34<>0,AK34=""), "* No olvide escribir en la celda de Población Migrantes (Digite CERO si no tiene). ",IF(AND(F34<>0,AL34=""), "* No olvide escribir en la celda de Población Migrantes (Digite CERO si no tiene). ","")) ->  | BP34: 0 | BQ34: 0
C35: OBESO SEVERO | D35: =IFERROR(VLOOKUP($A35,Filtro!$A$4:$AX$552,2,FALSE),0) -> 0 | E35: =IFERROR(VLOOKUP($A35,Filtro!$A$4:$AX$552,3,FALSE),0) -> 0 | F35: =IFERROR(VLOOKUP($A35,Filtro!$A$4:$AX$552,4,FALSE),0) -> 0 | G35: =IFERROR(VLOOKUP($A35,Filtro!$A$4:$AX$552,5,FALSE),0) -> 0 | H35: =IFERROR(VLOOKUP($A35,Filtro!$A$4:$AX$552,6,FALSE),0) -> 0 | I35: =IFERROR(VLOOKUP($A35,Filtro!$A$4:$AX$552,7,FALSE),0) -> 0 | J35: =IFERROR(VLOOKUP($A35,Filtro!$A$4:$AX$552,8,FALSE),0) -> 0 | K35: =IFERROR(VLOOKUP($A35,Filtro!$A$4:$AX$552,9,FALSE),0) -> 0 | L35: =IFERROR(VLOOKUP($A35,Filtro!$A$4:$AX$552,10,FALSE),0) -> 0 | M35: =IFERROR(VLOOKUP($A35,Filtro!$A$4:$AX$552,11,FALSE),0) -> 0 | N35: =IFERROR(VLOOKUP($A35,Filtro!$A$4:$AX$552,12,FALSE),0) -> 0 | O35: =IFERROR(VLOOKUP($A35,Filtro!$A$4:$AX$552,13,FALSE),0) -> 0 | P35: =IFERROR(VLOOKUP($A35,Filtro!$A$4:$AX$552,14,FALSE),0) -> 0 | Q35: =IFERROR(VLOOKUP($A35,Filtro!$A$4:$AX$552,15,FALSE),0) -> 0 | R35: =IFERROR(VLOOKUP($A35,Filtro!$A$4:$AX$552,16,FALSE),0) -> 0 | S35: =IFERROR(VLOOKUP($A35,Filtro!$A$4:$AX$552,17,FALSE),0) -> 0 | T35: =IFERROR(VLOOKUP($A35,Filtro!$A$4:$AX$552,18,FALSE),0) -> 0 | U35: =IFERROR(VLOOKUP($A35,Filtro!$A$4:$AX$552,19,FALSE),0) -> 0 | V35: =IFERROR(VLOOKUP($A35,Filtro!$A$4:$AX$552,20,FALSE),0) -> 0 | W35: =IFERROR(VLOOKUP($A35,Filtro!$A$4:$AX$552,21,FALSE),0) -> 0 | X35: =IFERROR(VLOOKUP($A35,Filtro!$A$4:$AX$552,22,FALSE),0) -> 0 | Y35: =IFERROR(VLOOKUP($A35,Filtro!$A$4:$AX$552,23,FALSE),0) -> 0 | Z35: =IFERROR(VLOOKUP($A35,Filtro!$A$4:$AX$552,24,FALSE),0) -> 0 | AA35: =IFERROR(VLOOKUP($A35,Filtro!$A$4:$AX$552,25,FALSE),0) -> 0 | AB35: =IFERROR(VLOOKUP($A35,Filtro!$A$4:$AX$552,26,FALSE),0) -> 0 | AC35: =IFERROR(VLOOKUP($A35,Filtro!$A$4:$AX$552,27,FALSE),0) -> 0 | AD35: =IFERROR(VLOOKUP($A35,Filtro!$A$4:$AX$552,28,FALSE),0) -> 0 | AE35: =IFERROR(VLOOKUP($A35,Filtro!$A$4:$AX$552,29,FALSE),0) -> 0 | AF35: =IFERROR(VLOOKUP($A35,Filtro!$A$4:$AX$552,30,FALSE),0) -> 0 | AG35: =IFERROR(VLOOKUP($A35,Filtro!$A$4:$AX$552,31,FALSE),0) -> 0 | AH35: =IFERROR(VLOOKUP($A35,Filtro!$A$4:$AX$552,32,FALSE),0) -> 0 | AI35: =IFERROR(VLOOKUP($A35,Filtro!$A$4:$AX$552,33,FALSE),0) -> 0 | AJ35: =IFERROR(VLOOKUP($A35,Filtro!$A$4:$AX$552,34,FALSE),0) -> 0 | AK35: =IFERROR(VLOOKUP($A35,Filtro!$A$4:$AX$552,35,FALSE),0) -> 0 | AL35: =IFERROR(VLOOKUP($A35,Filtro!$A$4:$AX$552,36,FALSE),0) -> 0
A36: P2070505 | C36: NORMAL | D36: =IFERROR(VLOOKUP($A36,Filtro!$A$4:$AX$552,2,FALSE),0) -> 21157 | E36: =IFERROR(VLOOKUP($A36,Filtro!$A$4:$AX$552,3,FALSE),0) -> 10639 | F36: =IFERROR(VLOOKUP($A36,Filtro!$A$4:$AX$552,4,FALSE),0) -> 10518 | G36: =IFERROR(VLOOKUP($A36,Filtro!$A$4:$AX$552,5,FALSE),0) -> 0 | H36: =IFERROR(VLOOKUP($A36,Filtro!$A$4:$AX$552,6,FALSE),0) -> 0 | I36: =IFERROR(VLOOKUP($A36,Filtro!$A$4:$AX$552,7,FALSE),0) -> 173 | J36: =IFERROR(VLOOKUP($A36,Filtro!$A$4:$AX$552,8,FALSE),0) -> 157 | K36: =IFERROR(VLOOKUP($A36,Filtro!$A$4:$AX$552,9,FALSE),0) -> 167 | L36: =IFERROR(VLOOKUP($A36,Filtro!$A$4:$AX$552,10,FALSE),0) -> 179 | M36: =IFERROR(VLOOKUP($A36,Filtro!$A$4:$AX$552,11,FALSE),0) -> 167 | N36: =IFERROR(VLOOKUP($A36,Filtro!$A$4:$AX$552,12,FALSE),0) -> 179 | O36: =IFERROR(VLOOKUP($A36,Filtro!$A$4:$AX$552,13,FALSE),0) -> 169 | P36: =IFERROR(VLOOKUP($A36,Filtro!$A$4:$AX$552,14,FALSE),0) -> 175 | Q36: =IFERROR(VLOOKUP($A36,Filtro!$A$4:$AX$552,15,FALSE),0) -> 151 | R36: =IFERROR(VLOOKUP($A36,Filtro!$A$4:$AX$552,16,FALSE),0) -> 178 | S36: =IFERROR(VLOOKUP($A36,Filtro!$A$4:$AX$552,17,FALSE),0) -> 282 | T36: =IFERROR(VLOOKUP($A36,Filtro!$A$4:$AX$552,18,FALSE),0) -> 258 | U36: =IFERROR(VLOOKUP($A36,Filtro!$A$4:$AX$552,19,FALSE),0) -> 720 | V36: =IFERROR(VLOOKUP($A36,Filtro!$A$4:$AX$552,20,FALSE),0) -> 720 | W36: =IFERROR(VLOOKUP($A36,Filtro!$A$4:$AX$552,21,FALSE),0) -> 1050 | X36: =IFERROR(VLOOKUP($A36,Filtro!$A$4:$AX$552,22,FALSE),0) -> 1060 | Y36: =IFERROR(VLOOKUP($A36,Filtro!$A$4:$AX$552,23,FALSE),0) -> 1183 | Z36: =IFERROR(VLOOKUP($A36,Filtro!$A$4:$AX$552,24,FALSE),0) -> 1086 | AA36: =IFERROR(VLOOKUP($A36,Filtro!$A$4:$AX$552,25,FALSE),0) -> 2148 | AB36: =IFERROR(VLOOKUP($A36,Filtro!$A$4:$AX$552,26,FALSE),0) -> 2125 | AC36: =IFERROR(VLOOKUP($A36,Filtro!$A$4:$AX$552,27,FALSE),0) -> 1264 | AD36: =IFERROR(VLOOKUP($A36,Filtro!$A$4:$AX$552,28,FALSE),0) -> 1188 | AE36: =IFERROR(VLOOKUP($A36,Filtro!$A$4:$AX$552,29,FALSE),0) -> 1038 | AF36: =IFERROR(VLOOKUP($A36,Filtro!$A$4:$AX$552,30,FALSE),0) -> 1014 | AG36: =IFERROR(VLOOKUP($A36,Filtro!$A$4:$AX$552,31,FALSE),0) -> 2127 | AH36: =IFERROR(VLOOKUP($A36,Filtro!$A$4:$AX$552,32,FALSE),0) -> 2199 | AI36: =IFERROR(VLOOKUP($A36,Filtro!$A$4:$AX$552,33,FALSE),0) -> 37 | AJ36: =IFERROR(VLOOKUP($A36,Filtro!$A$4:$AX$552,34,FALSE),0) -> 45 | AK36: =IFERROR(VLOOKUP($A36,Filtro!$A$4:$AX$552,35,FALSE),0) -> 160 | AL36: =IFERROR(VLOOKUP($A36,Filtro!$A$4:$AX$552,36,FALSE),0) -> 169 | BF36: =IF(AND(E36<>0,AI36=""), "* No olvide escribir en la celda de Pueblos Originarios (Digite CERO si no tiene). ",IF(AND(F36<>0,AJ36=""), "* No olvide escribir en la celda de Pueblos Originarios (Digite CERO si no tiene). ","")) ->  | BG36: =IF(AND(E36<>0,AK36=""), "* No olvide escribir en la celda de Población Migrantes (Digite CERO si no tiene). ",IF(AND(F36<>0,AL36=""), "* No olvide escribir en la celda de Población Migrantes (Digite CERO si no tiene). ","")) ->  | BP36: =IF(AND(E36<>0,AI36=""), 1,IF(AND(F36<>0,AJ36=""), 1,0)) -> 0 | BQ36: =IF(AND(E36<>0,AK36=""), 1,IF(AND(F36<>0,AL36=""), 1,0)) -> 0
C37: SUBTOTAL | D37: =SUM(E37:F37) -> 34352 | E37: =+I37+K37+M37+O37+Q37+S37+U37+W37+Y37+AA37+AC37+AE37+AG37 -> 17429 | F37: 16923 | I37: =SUM(I31:I36) -> 215 | J37: =SUM(J31:J36) -> 190 | K37: 259 | L37: 244 | M37: 276 | N37: 266 | O37: 272 | P37: 274 | Q37: 267 | R37: 293 | S37: 470 | T37: 455 | U37: 1353 | V37: 1302 | W37: 1805 | X37: 1791 | Y37: 1987 | Z37: 1821 | AA37: 3489 | AB37: 3358 | AC37: 1939 | AD37: 1852 | AE37: 1606 | AF37: 1559 | AG37: 3491 | AH37: 3518 | AI37: =SUM(AI31:AI36) -> 72 | AJ37: 73 | AK37: 224 | AL37: 245 | AM37: ="" & AY37 & AZ37 ->  | AY37: =IF($D37>=$AI37+$AJ37,"","* El Total de Pueblos Originarios no debe ser mayor al Total Indicador peso/talla. ") ->  | AZ37: =IF($D37>=$AK37+$AL37,"","* El Total de Población Migrantes no debe ser mayor al Total Indicador peso/talla. ") ->  | BI37: =IF($D37>=$AI37+$AJ37,0,1) -> 0 | BJ37: =IF($D37>=$AK37+$AL37,0,1) -> 0
A38: P2070506 | C38: DESNUTRICIÓN SECUNDARIA | D38: =IFERROR(VLOOKUP($A38,Filtro!$A$4:$AX$552,2,FALSE),0) -> 37 | E38: =IFERROR(VLOOKUP($A38,Filtro!$A$4:$AX$552,3,FALSE),0) -> 28 | F38: =IFERROR(VLOOKUP($A38,Filtro!$A$4:$AX$552,4,FALSE),0) -> 9 | G38: =IFERROR(VLOOKUP($A38,Filtro!$A$4:$AX$552,5,FALSE),0) -> 0 | H38: =IFERROR(VLOOKUP($A38,Filtro!$A$4:$AX$552,6,FALSE),0) -> 0 | I38: =IFERROR(VLOOKUP($A38,Filtro!$A$4:$AX$552,7,FALSE),0) -> 0 | J38: =IFERROR(VLOOKUP($A38,Filtro!$A$4:$AX$552,8,FALSE),0) -> 0 | K38: =IFERROR(VLOOKUP($A38,Filtro!$A$4:$AX$552,9,FALSE),0) -> 2 | L38: =IFERROR(VLOOKUP($A38,Filtro!$A$4:$AX$552,10,FALSE),0) -> 2 | M38: =IFERROR(VLOOKUP($A38,Filtro!$A$4:$AX$552,11,FALSE),0) -> 0 | N38: =IFERROR(VLOOKUP($A38,Filtro!$A$4:$AX$552,12,FALSE),0) -> 2 | O38: =IFERROR(VLOOKUP($A38,Filtro!$A$4:$AX$552,13,FALSE),0) -> 0 | P38: =IFERROR(VLOOKUP($A38,Filtro!$A$4:$AX$552,14,FALSE),0) -> 0 | Q38: =IFERROR(VLOOKUP($A38,Filtro!$A$4:$AX$552,15,FALSE),0) -> 1 | R38: =IFERROR(VLOOKUP($A38,Filtro!$A$4:$AX$552,16,FALSE),0) -> 0 | S38: =IFERROR(VLOOKUP($A38,Filtro!$A$4:$AX$552,17,FALSE),0) -> 0 | T38: =IFERROR(VLOOKUP($A38,Filtro!$A$4:$AX$552,18,FALSE),0) -> 0 | U38: =IFERROR(VLOOKUP($A38,Filtro!$A$4:$AX$552,19,FALSE),0) -> 7 | V38: =IFERROR(VLOOKUP($A38,Filtro!$A$4:$AX$552,20,FALSE),0) -> 0 | W38: =IFERROR(VLOOKUP($A38,Filtro!$A$4:$AX$552,21,FALSE),0) -> 2 | X38: =IFERROR(VLOOKUP($A38,Filtro!$A$4:$AX$552,22,FALSE),0) -> 1 | Y38: =IFERROR(VLOOKUP($A38,Filtro!$A$4:$AX$552,23,FALSE),0) -> 5 | Z38: =IFERROR(VLOOKUP($A38,Filtro!$A$4:$AX$552,24,FALSE),0) -> 2 | AA38: =IFERROR(VLOOKUP($A38,Filtro!$A$4:$AX$552,25,FALSE),0) -> 2 | AB38: =IFERROR(VLOOKUP($A38,Filtro!$A$4:$AX$552,26,FALSE),0) -> 1 | AC38: =IFERROR(VLOOKUP($A38,Filtro!$A$4:$AX$552,27,FALSE),0) -> 1 | AD38: =IFERROR(VLOOKUP($A38,Filtro!$A$4:$AX$552,28,FALSE),0) -> 1 | AE38: =IFERROR(VLOOKUP($A38,Filtro!$A$4:$AX$552,29,FALSE),0) -> 4 | AF38: =IFERROR(VLOOKUP($A38,Filtro!$A$4:$AX$552,30,FALSE),0) -> 0 | AG38: =IFERROR(VLOOKUP($A38,Filtro!$A$4:$AX$552,31,FALSE),0) -> 4 | AH38: =IFERROR(VLOOKUP($A38,Filtro!$A$4:$AX$552,32,FALSE),0) -> 0 | AI38: =IFERROR(VLOOKUP($A38,Filtro!$A$4:$AX$552,33,FALSE),0) -> 0 | AJ38: =IFERROR(VLOOKUP($A38,Filtro!$A$4:$AX$552,34,FALSE),0) -> 0 | AK38: =IFERROR(VLOOKUP($A38,Filtro!$A$4:$AX$552,35,FALSE),0) -> 0 | AL38: =IFERROR(VLOOKUP($A38,Filtro!$A$4:$AX$552,36,FALSE),0) -> 0 | AM38: =AY38 & AZ38 & BA38 & BB38 & BC38 & BD38 & BE38 & BF38 & BD39 & AY39 & AZ39 & BA39 & BB39 & BC39 & BE39 & BF39 & BG39 & BF40 & BG40 ->  | BF38: =IF(AND(E38<>0,AI38=""), "* No olvide escribir en la celda de Pueblos Originarios (Digite CERO si no tiene). ",IF(AND(F38<>0,AJ38=""), "* No olvide escribir en la celda de Pueblos Originarios (Digite CERO si no tiene). ","")) ->  | BG38: =IF(AND(E38<>0,AK38=""), "* No olvide escribir en la celda de Población Migrantes (Digite CERO si no tiene). ",IF(AND(F38<>0,AL38=""), "* No olvide escribir en la celda de Población Migrantes (Digite CERO si no tiene). ","")) ->  | BP38: =IF(AND(E38<>0,AI38=""), 1,IF(AND(F38<>0,AJ38=""), 1,0)) -> 0 | BQ38: =IF(AND(E38<>0,AK38=""), 1,IF(AND(F38<>0,AL38=""), 1,0)) -> 0
C39: T O T A L | D39: =SUM(E39:F39) -> 34389 | E39: 17457 | F39: 16932 | I39: =SUM(I31:I36)+I38 -> 215 | J39: =SUM(J31:J36)+J38 -> 190 | K39: 261 | L39: 246 | M39: 276 | N39: 268 | O39: 272 | P39: 274 | Q39: 268 | R39: 293 | S39: 470 | T39: 455 | U39: 1360 | V39: 1302 | W39: 1807 | X39: 1792 | Y39: 1992 | Z39: 1823 | AA39: 3491 | AB39: 3359 | AC39: 1940 | AD39: 1853 | AE39: 1610 | AF39: 1559 | AG39: 3495 | AH39: 3518 | AI39: 72 | AJ39: 73 | AK39: 224 | AL39: 245 | AM39: ="" & AY39 & AZ39 ->  | AY39: =IF($D39>=$AI39+$AJ39,"","* El Total de Pueblos Originarios no debe ser mayor al Total Indicador peso/talla. ") ->  | AZ39: =IF($D39>=$AK39+$AL39,"","* El Total de Población Migrantes no debe ser mayor al Total Indicador peso/talla. ") ->  | BI39: =IF($D39>=$AI39+$AJ39,0,1) -> 0 | BJ39: =IF($D39>=$AK39+$AL39,0,1) -> 0
B40: SECCION A.1: POBLACIÓN EN CONTROL, SEGÚN ESTADO NUTRICIONAL PARA NIÑOS DE 60 MESES-9 AÑOS 11 MESES
B41: INDICADOR NUTRICIONAL Y PARÁMETROS DE MEDICIÓN | D41: TOTAL | G41: GRUPOS DE EDAD (en meses - años) Y SEXO
G42: 60 a 71 meses | I42: 6 a 9 años 11 meses | K42: Pueblos Originarios | M42: Población Migrantes
D43: Ambos sexos | E43: Hombres | F43: Mujeres | G43: Hombres | H43: Mujeres | I43: Hombres | J43: Mujeres | K43: Hombres | L43: Mujeres | M43: Hombres | N43: Mujeres
A44: P2400150 | B44: TOTAL DE NIÑOS EN CONTROL | D44: =IFERROR(VLOOKUP($A44,Filtro!$A$4:$AX$552,2,FALSE),0) -> 23701 | E44: =IFERROR(VLOOKUP($A44,Filtro!$A$4:$AX$552,3,FALSE),0) -> 12043 | F44: =IFERROR(VLOOKUP($A44,Filtro!$A$4:$AX$552,4,FALSE),0) -> 11658 | G44: =IFERROR(VLOOKUP($A44,Filtro!$A$4:$AX$552,5,FALSE),0) -> 3688 | H44: =IFERROR(VLOOKUP($A44,Filtro!$A$4:$AX$552,6,FALSE),0) -> 3424 | I44: =IFERROR(VLOOKUP($A44,Filtro!$A$4:$AX$552,7,FALSE),0) -> 8355 | J44: =IFERROR(VLOOKUP($A44,Filtro!$A$4:$AX$552,8,FALSE),0) -> 8234 | K44: =IFERROR(VLOOKUP($A44,Filtro!$A$4:$AX$552,9,FALSE),0) -> 36 | L44: =IFERROR(VLOOKUP($A44,Filtro!$A$4:$AX$552,10,FALSE),0) -> 38 | M44: =IFERROR(VLOOKUP($A44,Filtro!$A$4:$AX$552,11,FALSE),0) -> 173 | N44: =IFERROR(VLOOKUP($A44,Filtro!$A$4:$AX$552,12,FALSE),0) -> 144 | O44: =AY44 & AZ44 & BA44 & BB44 & BC44 & BD44 & BF44 & BG44 ->  | AY44: =IF(G44<>G72,"* El Total de niños en control no debe ser distinto al total del Diagnóstico Nutricional Integrado. ","") ->  | AZ44: =IF(H44<>H72,"* El Total de niñas en control no debe ser distinto al total del Diagnóstico Nutricional Integrado. ","") ->  | BA44: =IF(I44<>I72,"* El Total de niños en control no debe ser distinto al total del Diagnóstico Nutricional Integrado. ","") ->  | BB44: =IF(J44<>J72,"* El Total de niñas en control no debe ser distinto al total del Diagnóstico Nutricional Integrado. ","") ->  | BC44: =IF($D44>=$K44+$L44,"","* El Total de Pueblos Originarios no debe ser mayor al total de niños en control. ") ->  | BD44: =IF($D44>=$M44+$N44,"","* El Total de Pueblación Migrantes no debe ser mayor al total de niños en control. ") ->  | BF44: =IF(AND(E44<>0,K44=""), "* No olvide escribir en la celda de Pueblos Originarios (Digite CERO si no tiene). ",IF(AND(F44<>0,L44=""), "* No olvide escribir en la celda de Pueblos Originarios (Digite CERO si no tiene). ","")) ->  | BG44: =IF(AND(E44<>0,M44=""), "* No olvide escribir en la celda de Población Migrantes (Digite CERO si no tiene). ",IF(AND(F44<>0,N44=""), "* No olvide escribir en la celda de Población Migrantes (Digite CERO si no tiene). ","")) ->  | BI44: =IF(G44<>G72,1,0) -> 0 | BJ44: =IF(H44<>H72,1,0) -> 0 | BK44: =IF(I44<>I72,1,0) -> 0 | BL44: =IF(J44<>J72,1,0) -> 0 | BM44: =IF($D44>=$K44+$L44,0,1) -> 0 | BN44: =IF($D44>=$M44+$N44,0,1) -> 0 | BP44: =IF(AND(E44<>0,K44=""), 1,IF(AND(F44<>0,L44=""), 1,0)) -> 0 | BQ44: =IF(AND(E44<>0,M44=""), 1,IF(AND(F44<>0,N44=""), 1,0)) -> 0
A45: P2400160 | B45: INDICADOR IMC / EDAD | C45: + 3 D.S. (>= 3 ) | D45: =IFERROR(VLOOKUP($A45,Filtro!$A$4:$AX$552,2,FALSE),0) -> 871 | E45: =IFERROR(VLOOKUP($A45,Filtro!$A$4:$AX$552,3,FALSE),0) -> 582 | F45: =IFERROR(VLOOKUP($A45,Filtro!$A$4:$AX$552,4,FALSE),0) -> 289 | G45: =IFERROR(VLOOKUP($A45,Filtro!$A$4:$AX$552,5,FALSE),0) -> 68 | H45: =IFERROR(VLOOKUP($A45,Filtro!$A$4:$AX$552,6,FALSE),0) -> 56 | I45: =IFERROR(VLOOKUP($A45,Filtro!$A$4:$AX$552,7,FALSE),0) -> 514 | J45: =IFERROR(VLOOKUP($A45,Filtro!$A$4:$AX$552,8,FALSE),0) -> 233 | K45: =IFERROR(VLOOKUP($A45,Filtro!$A$4:$AX$552,9,FALSE),0) -> 6 | L45: =IFERROR(VLOOKUP($A45,Filtro!$A$4:$AX$552,10,FALSE),0) -> 1 | M45: =IFERROR(VLOOKUP($A45,Filtro!$A$4:$AX$552,11,FALSE),0) -> 4 | N45: =IFERROR(VLOOKUP($A45,Filtro!$A$4:$AX$552,12,FALSE),0) -> 1 | O45: =BF45 & BG45 ->  | BF45: =IF(AND(E45<>0,K45=""), "* No olvide escribir en la celda de Pueblos Originarios (Digite CERO si no tiene). ",IF(AND(F45<>0,L45=""), "* No olvide escribir en la celda de Pueblos Originarios (Digite CERO si no tiene). ","")) ->  | BG45: =IF(AND(E45<>0,M45=""), "* No olvide escribir en la celda de Población Migrantes (Digite CERO si no tiene). ",IF(AND(F45<>0,N45=""), "* No olvide escribir en la celda de Población Migrantes (Digite CERO si no tiene). ","")) ->  | BP45: =IF(AND(E45<>0,K45=""), 1,IF(AND(F45<>0,L45=""), 1,0)) -> 0 | BQ45: =IF(AND(E45<>0,M45=""), 1,IF(AND(F45<>0,N45=""), 1,0)) -> 0
A46: P2400170 | C46: + 2 D.S. (>= +2.0 a +2.9) | D46: =IFERROR(VLOOKUP($A46,Filtro!$A$4:$AX$552,2,FALSE),0) -> 3371 | E46: =IFERROR(VLOOKUP($A46,Filtro!$A$4:$AX$552,3,FALSE),0) -> 1676 | F46: =IFERROR(VLOOKUP($A46,Filtro!$A$4:$AX$552,4,FALSE),0) -> 1695 | G46: =IFERROR(VLOOKUP($A46,Filtro!$A$4:$AX$552,5,FALSE),0) -> 462 | H46: =IFERROR(VLOOKUP($A46,Filtro!$A$4:$AX$552,6,FALSE),0) -> 462 | I46: =IFERROR(VLOOKUP($A46,Filtro!$A$4:$AX$552,7,FALSE),0) -> 1214 | J46: =IFERROR(VLOOKUP($A46,Filtro!$A$4:$AX$552,8,FALSE),0) -> 1233 | K46: =IFERROR(VLOOKUP($A46,Filtro!$A$4:$AX$552,9,FALSE),0) -> 3 | L46: =IFERROR(VLOOKUP($A46,Filtro!$A$4:$AX$552,10,FALSE),0) -> 7 | M46: =IFERROR(VLOOKUP($A46,Filtro!$A$4:$AX$552,11,FALSE),0) -> 7 | N46: =IFERROR(VLOOKUP($A46,Filtro!$A$4:$AX$552,12,FALSE),0) -> 11 | O46: =BF46 & BG46 ->  | BF46: =IF(AND(E46<>0,K46=""), "* No olvide escribir en la celda de Pueblos Originarios (Digite CERO si no tiene). ",IF(AND(F46<>0,L46=""), "* No olvide escribir en la celda de Pueblos Originarios (Digite CERO si no tiene). ","")) ->  | BG46: =IF(AND(E46<>0,M46=""), "* No olvide escribir en la celda de Población Migrantes (Digite CERO si no tiene). ",IF(AND(F46<>0,N46=""), "* No olvide escribir en la celda de Población Migrantes (Digite CERO si no tiene). ","")) ->  | BP46: 0 | BQ46: 0
A47: P2400180 | C47: + 1 D.S. (>= +1.0 a +1.9) | D47: =IFERROR(VLOOKUP($A47,Filtro!$A$4:$AX$552,2,FALSE),0) -> 5147 | E47: =IFERROR(VLOOKUP($A47,Filtro!$A$4:$AX$552,3,FALSE),0) -> 2483 | F47: =IFERROR(VLOOKUP($A47,Filtro!$A$4:$AX$552,4,FALSE),0) -> 2664 | G47: =IFERROR(VLOOKUP($A47,Filtro!$A$4:$AX$552,5,FALSE),0) -> 835 | H47: =IFERROR(VLOOKUP($A47,Filtro!$A$4:$AX$552,6,FALSE),0) -> 777 | I47: =IFERROR(VLOOKUP($A47,Filtro!$A$4:$AX$552,7,FALSE),0) -> 1648 | J47: =IFERROR(VLOOKUP($A47,Filtro!$A$4:$AX$552,8,FALSE),0) -> 1887 | K47: =IFERROR(VLOOKUP($A47,Filtro!$A$4:$AX$552,9,FALSE),0) -> 9 | L47: =IFERROR(VLOOKUP($A47,Filtro!$A$4:$AX$552,10,FALSE),0) -> 6 | M47: =IFERROR(VLOOKUP($A47,Filtro!$A$4:$AX$552,11,FALSE),0) -> 25 | N47: =IFERROR(VLOOKUP($A47,Filtro!$A$4:$AX$552,12,FALSE),0) -> 16 | O47: =BF47 & BG47 ->  | BF47: =IF(AND(E47<>0,K47=""), "* No olvide escribir en la celda de Pueblos Originarios (Digite CERO si no tiene). ",IF(AND(F47<>0,L47=""), "* No olvide escribir en la celda de Pueblos Originarios (Digite CERO si no tiene). ","")) ->  | BG47: =IF(AND(E47<>0,M47=""), "* No olvide escribir en la celda de Población Migrantes (Digite CERO si no tiene). ",IF(AND(F47<>0,N47=""), "* No olvide escribir en la celda de Población Migrantes (Digite CERO si no tiene). ","")) ->  | BP47: 0 | BQ47: 0
C48: TOTAL | D48: =+E48+F48 -> 9389 | E48: =+G48+I48 -> 4741 | F48: =+H48+J48 -> 4648 | G48: =SUM(G45:G47) -> 1365 | H48: =SUM(H45:H47) -> 1295 | I48: 3376 | J48: 3353 | K48: 18 | L48: 14 | M48: 36 | N48: 28 | O48: =BC48 & BD48 ->  | BC48: =IF($D48>=$K48+$L48,"","* El Total de Pueblos Originarios no debe ser mayor al total de niños en control. ") ->  | BD48: =IF($D48>=$M48+$N48,"","* El Total de Pueblación Migrantes no debe ser mayor al total de niños en control. ") ->  | BM48: =IF($D48>=$K48+$L48,0,1) -> 0 | BN48: =IF($D48>=$M48+$N48,0,1) -> 0
A49: P2400190 | C49: - 1 D.S. (<= -1.0 a -1.9) | D49: =IFERROR(VLOOKUP($A49,Filtro!$A$4:$AX$552,2,FALSE),0) -> 569 | E49: =IFERROR(VLOOKUP($A49,Filtro!$A$4:$AX$552,3,FALSE),0) -> 295 | F49: =IFERROR(VLOOKUP($A49,Filtro!$A$4:$AX$552,4,FALSE),0) -> 274 | G49: =IFERROR(VLOOKUP($A49,Filtro!$A$4:$AX$552,5,FALSE),0) -> 81 | H49: =IFERROR(VLOOKUP($A49,Filtro!$A$4:$AX$552,6,FALSE),0) -> 74 | I49: =IFERROR(VLOOKUP($A49,Filtro!$A$4:$AX$552,7,FALSE),0) -> 214 | J49: =IFERROR(VLOOKUP($A49,Filtro!$A$4:$AX$552,8,FALSE),0) -> 200 | K49: =IFERROR(VLOOKUP($A49,Filtro!$A$4:$AX$552,9,FALSE),0) -> 1 | L49: =IFERROR(VLOOKUP($A49,Filtro!$A$4:$AX$552,10,FALSE),0) -> 0 | M49: =IFERROR(VLOOKUP($A49,Filtro!$A$4:$AX$552,11,FALSE),0) -> 9 | N49: =IFERROR(VLOOKUP($A49,Filtro!$A$4:$AX$552,12,FALSE),0) -> 10 | O49: =BF49 & BG49 ->  | BF49: =IF(AND(E49<>0,K49=""), "* No olvide escribir en la celda de Pueblos Originarios (Digite CERO si no tiene). ",IF(AND(F49<>0,L49=""), "* No olvide escribir en la celda de Pueblos Originarios (Digite CERO si no tiene). ","")) ->  | BG49: =IF(AND(E49<>0,M49=""), "* No olvide escribir en la celda de Población Migrantes (Digite CERO si no tiene). ",IF(AND(F49<>0,N49=""), "* No olvide escribir en la celda de Población Migrantes (Digite CERO si no tiene). ","")) ->  | BP49: =IF(AND(E49<>0,K49=""), 1,IF(AND(F49<>0,L49=""), 1,0)) -> 0 | BQ49: =IF(AND(E49<>0,M49=""), 1,IF(AND(F49<>0,N49=""), 1,0)) -> 0
A50: P2400200 | C50: - 2 D.S. (<= -2.0) | D50: =IFERROR(VLOOKUP($A50,Filtro!$A$4:$AX$552,2,FALSE),0) -> 70 | E50: =IFERROR(VLOOKUP($A50,Filtro!$A$4:$AX$552,3,FALSE),0) -> 23 | F50: =IFERROR(VLOOKUP($A50,Filtro!$A$4:$AX$552,4,FALSE),0) -> 47 | G50: =IFERROR(VLOOKUP($A50,Filtro!$A$4:$AX$552,5,FALSE),0) -> 6 | H50: =IFERROR(VLOOKUP($A50,Filtro!$A$4:$AX$552,6,FALSE),0) -> 2 | I50: =IFERROR(VLOOKUP($A50,Filtro!$A$4:$AX$552,7,FALSE),0) -> 17 | J50: =IFERROR(VLOOKUP($A50,Filtro!$A$4:$AX$552,8,FALSE),0) -> 45 | K50: =IFERROR(VLOOKUP($A50,Filtro!$A$4:$AX$552,9,FALSE),0) -> 0 | L50: =IFERROR(VLOOKUP($A50,Filtro!$A$4:$AX$552,10,FALSE),0) -> 0 | M50: =IFERROR(VLOOKUP($A50,Filtro!$A$4:$AX$552,11,FALSE),0) -> 0 | N50: =IFERROR(VLOOKUP($A50,Filtro!$A$4:$AX$552,12,FALSE),0) -> 0 | O50: =BF50 & BG50 ->  | BF50: =IF(AND(E50<>0,K50=""), "* No olvide escribir en la celda de Pueblos Originarios (Digite CERO si no tiene). ",IF(AND(F50<>0,L50=""), "* No olvide escribir en la celda de Pueblos Originarios (Digite CERO si no tiene). ","")) ->  | BG50: =IF(AND(E50<>0,M50=""), "* No olvide escribir en la celda de Población Migrantes (Digite CERO si no tiene). ",IF(AND(F50<>0,N50=""), "* No olvide escribir en la celda de Población Migrantes (Digite CERO si no tiene). ","")) ->  | BP50: 0 | BQ50: 0
C51: TOTAL | D51: 639 | E51: 318 | F51: 321 | G51: =SUM(G49:G50) -> 87 | H51: =SUM(H49:H50) -> 76 | I51: 231 | J51: 245 | K51: 1 | L51: 0 | M51: 9 | N51: 10 | O51: =BC51 & BD51 ->  | BC51: =IF($D51>=$K51+$L51,"","* El Total de Pueblos Originarios no debe ser mayor al total de niños en control. ") ->  | BD51: =IF($D51>=$M51+$N51,"","* El Total de Pueblación Migrantes no debe ser mayor al total de niños en control. ") ->  | BM51: =IF($D51>=$K51+$L51,0,1) -> 0 | BN51: =IF($D51>=$M51+$N51,0,1) -> 0
A52: P2400210 | C52: PROMEDIO (-0,9 A + 0,9) | D52: =IFERROR(VLOOKUP($A52,Filtro!$A$4:$AX$552,2,FALSE),0) -> 9807 | E52: =IFERROR(VLOOKUP($A52,Filtro!$A$4:$AX$552,3,FALSE),0) -> 5022 | F52: =IFERROR(VLOOKUP($A52,Filtro!$A$4:$AX$552,4,FALSE),0) -> 4785 | G52: =IFERROR(VLOOKUP($A52,Filtro!$A$4:$AX$552,5,FALSE),0) -> 1555 | H52: =IFERROR(VLOOKUP($A52,Filtro!$A$4:$AX$552,6,FALSE),0) -> 1397 | I52: =IFERROR(VLOOKUP($A52,Filtro!$A$4:$AX$552,7,FALSE),0) -> 3467 | J52: =IFERROR(VLOOKUP($A52,Filtro!$A$4:$AX$552,8,FALSE),0) -> 3388 | K52: =IFERROR(VLOOKUP($A52,Filtro!$A$4:$AX$552,9,FALSE),0) -> 12 | L52: =IFERROR(VLOOKUP($A52,Filtro!$A$4:$AX$552,10,FALSE),0) -> 16 | M52: =IFERROR(VLOOKUP($A52,Filtro!$A$4:$AX$552,11,FALSE),0) -> 82 | N52: =IFERROR(VLOOKUP($A52,Filtro!$A$4:$AX$552,12,FALSE),0) -> 61 | O52: =BF52 & BG52 ->  | BF52: =IF(AND(E52<>0,K52=""), "* No olvide escribir en la celda de Pueblos Originarios (Digite CERO si no tiene). ",IF(AND(F52<>0,L52=""), "* No olvide escribir en la celda de Pueblos Originarios (Digite CERO si no tiene). ","")) ->  | BG52: =IF(AND(E52<>0,M52=""), "* No olvide escribir en la celda de Población Migrantes (Digite CERO si no tiene). ",IF(AND(F52<>0,N52=""), "* No olvide escribir en la celda de Población Migrantes (Digite CERO si no tiene). ","")) ->  | BP52: =IF(AND(E52<>0,K52=""), 1,IF(AND(F52<>0,L52=""), 1,0)) -> 0 | BQ52: =IF(AND(E52<>0,M52=""), 1,IF(AND(F52<>0,N52=""), 1,0)) -> 0
A53: P2400220 | B53: INDICADOR TALLA/EDAD | C53: + 2 D.S. (>= +2.0) | D53: =IFERROR(VLOOKUP($A53,Filtro!$A$4:$AX$552,2,FALSE),0) -> 630 | E53: =IFERROR(VLOOKUP($A53,Filtro!$A$4:$AX$552,3,FALSE),0) -> 331 | F53: =IFERROR(VLOOKUP($A53,Filtro!$A$4:$AX$552,4,FALSE),0) -> 299 | G53: =IFERROR(VLOOKUP($A53,Filtro!$A$4:$AX$552,5,FALSE),0) -> 74 | H53: =IFERROR(VLOOKUP($A53,Filtro!$A$4:$AX$552,6,FALSE),0) -> 75 | I53: =IFERROR(VLOOKUP($A53,Filtro!$A$4:$AX$552,7,FALSE),0) -> 257 | J53: =IFERROR(VLOOKUP($A53,Filtro!$A$4:$AX$552,8,FALSE),0) -> 224 | K53: =IFERROR(VLOOKUP($A53,Filtro!$A$4:$AX$552,9,FALSE),0) -> 1 | L53: =IFERROR(VLOOKUP($A53,Filtro!$A$4:$AX$552,10,FALSE),0) -> 0 | M53: =IFERROR(VLOOKUP($A53,Filtro!$A$4:$AX$552,11,FALSE),0) -> 0 | N53: =IFERROR(VLOOKUP($A53,Filtro!$A$4:$AX$552,12,FALSE),0) -> 2 | O53: =BF53 & BG53 ->  | BF53: =IF(AND(E53<>0,K53=""), "* No olvide escribir en la celda de Pueblos Originarios (Digite CERO si no tiene). ",IF(AND(F53<>0,L53=""), "* No olvide escribir en la celda de Pueblos Originarios (Digite CERO si no tiene). ","")) ->  | BG53: =IF(AND(E53<>0,M53=""), "* No olvide escribir en la celda de Población Migrantes (Digite CERO si no tiene). ",IF(AND(F53<>0,N53=""), "* No olvide escribir en la celda de Población Migrantes (Digite CERO si no tiene). ","")) ->  | BP53: 0 | BQ53: 0
A54: P2400230 | C54: + 1 D.S. (+1.0 a +1.9) | D54: =IFERROR(VLOOKUP($A54,Filtro!$A$4:$AX$552,2,FALSE),0) -> 2684 | E54: =IFERROR(VLOOKUP($A54,Filtro!$A$4:$AX$552,3,FALSE),0) -> 1361 | F54: =IFERROR(VLOOKUP($A54,Filtro!$A$4:$AX$552,4,FALSE),0) -> 1323 | G54: =IFERROR(VLOOKUP($A54,Filtro!$A$4:$AX$552,5,FALSE),0) -> 397 | H54: =IFERROR(VLOOKUP($A54,Filtro!$A$4:$AX$552,6,FALSE),0) -> 340 | I54: =IFERROR(VLOOKUP($A54,Filtro!$A$4:$AX$552,7,FALSE),0) -> 964 | J54: =IFERROR(VLOOKUP($A54,Filtro!$A$4:$AX$552,8,FALSE),0) -> 983 | K54: =IFERROR(VLOOKUP($A54,Filtro!$A$4:$AX$552,9,FALSE),0) -> 6 | L54: =IFERROR(VLOOKUP($A54,Filtro!$A$4:$AX$552,10,FALSE),0) -> 4 | M54: =IFERROR(VLOOKUP($A54,Filtro!$A$4:$AX$552,11,FALSE),0) -> 17 | N54: =IFERROR(VLOOKUP($A54,Filtro!$A$4:$AX$552,12,FALSE),0) -> 9 | O54: =BF54 & BG54 ->  | BF54: =IF(AND(E54<>0,K54=""), "* No olvide escribir en la celda de Pueblos Originarios (Digite CERO si no tiene). ",IF(AND(F54<>0,L54=""), "* No olvide escribir en la celda de Pueblos Originarios (Digite CERO si no tiene). ","")) ->  | BG54: =IF(AND(E54<>0,M54=""), "* No olvide escribir en la celda de Población Migrantes (Digite CERO si no tiene). ",IF(AND(F54<>0,N54=""), "* No olvide escribir en la celda de Población Migrantes (Digite CERO si no tiene). ","")) ->  | BP54: 0 | BQ54: 0
C55: TOTAL | D55: 3314 | E55: 1692 | F55: 1622 | G55: =SUM(G53:G54) -> 471 | H55: =SUM(H53:H54) -> 415 | I55: 1221 | J55: 1207 | K55: 7 | L55: 4 | M55: 17 | N55: 11 | O55: =BC55 & BD55 ->  | BC55: =IF($D55>=$K55+$L55,"","* El Total de Pueblos Originarios no debe ser mayor al total de niños en control. ") ->  | BD55: =IF($D55>=$M55+$N55,"","* El Total de Pueblación Migrantes no debe ser mayor al total de niños en control. ") ->  | BM55: =IF($D55>=$K55+$L55,0,1) -> 0 | BN55: =IF($D55>=$M55+$N55,0,1) -> 0
A56: P2400240 | C56: - 1 D.S. (-1.0 a -1.9) | D56: =IFERROR(VLOOKUP($A56,Filtro!$A$4:$AX$552,2,FALSE),0) -> 2302 | E56: =IFERROR(VLOOKUP($A56,Filtro!$A$4:$AX$552,3,FALSE),0) -> 1159 | F56: =IFERROR(VLOOKUP($A56,Filtro!$A$4:$AX$552,4,FALSE),0) -> 1143 | G56: =IFERROR(VLOOKUP($A56,Filtro!$A$4:$AX$552,5,FALSE),0) -> 397 | H56: =IFERROR(VLOOKUP($A56,Filtro!$A$4:$AX$552,6,FALSE),0) -> 415 | I56: =IFERROR(VLOOKUP($A56,Filtro!$A$4:$AX$552,7,FALSE),0) -> 762 | J56: =IFERROR(VLOOKUP($A56,Filtro!$A$4:$AX$552,8,FALSE),0) -> 728 | K56: =IFERROR(VLOOKUP($A56,Filtro!$A$4:$AX$552,9,FALSE),0) -> 4 | L56: =IFERROR(VLOOKUP($A56,Filtro!$A$4:$AX$552,10,FALSE),0) -> 1 | M56: =IFERROR(VLOOKUP($A56,Filtro!$A$4:$AX$552,11,FALSE),0) -> 22 | N56: =IFERROR(VLOOKUP($A56,Filtro!$A$4:$AX$552,12,FALSE),0) -> 22 | O56: =BF56 & BG56 ->  | BF56: =IF(AND(E56<>0,K56=""), "* No olvide escribir en la celda de Pueblos Originarios (Digite CERO si no tiene). ",IF(AND(F56<>0,L56=""), "* No olvide escribir en la celda de Pueblos Originarios (Digite CERO si no tiene). ","")) ->  | BG56: =IF(AND(E56<>0,M56=""), "* No olvide escribir en la celda de Población Migrantes (Digite CERO si no tiene). ",IF(AND(F56<>0,N56=""), "* No olvide escribir en la celda de Población Migrantes (Digite CERO si no tiene). ","")) ->  | BP56: =IF(AND(E56<>0,K56=""), 1,IF(AND(F56<>0,L56=""), 1,0)) -> 0 | BQ56: =IF(AND(E56<>0,M56=""), 1,IF(AND(F56<>0,N56=""), 1,0)) -> 0
A57: P2400250 | C57: - 2 D.S. (<= -2.0) | D57: =IFERROR(VLOOKUP($A57,Filtro!$A$4:$AX$552,2,FALSE),0) -> 412 | E57: =IFERROR(VLOOKUP($A57,Filtro!$A$4:$AX$552,3,FALSE),0) -> 165 | F57: =IFERROR(VLOOKUP($A57,Filtro!$A$4:$AX$552,4,FALSE),0) -> 247 | G57: =IFERROR(VLOOKUP($A57,Filtro!$A$4:$AX$552,5,FALSE),0) -> 41 | H57: =IFERROR(VLOOKUP($A57,Filtro!$A$4:$AX$552,6,FALSE),0) -> 39 | I57: =IFERROR(VLOOKUP($A57,Filtro!$A$4:$AX$552,7,FALSE),0) -> 124 | J57: =IFERROR(VLOOKUP($A57,Filtro!$A$4:$AX$552,8,FALSE),0) -> 208 | K57: =IFERROR(VLOOKUP($A57,Filtro!$A$4:$AX$552,9,FALSE),0) -> 0 | L57: =IFERROR(VLOOKUP($A57,Filtro!$A$4:$AX$552,10,FALSE),0) -> 0 | M57: =IFERROR(VLOOKUP($A57,Filtro!$A$4:$AX$552,11,FALSE),0) -> 3 | N57: =IFERROR(VLOOKUP($A57,Filtro!$A$4:$AX$552,12,FALSE),0) -> 0 | O57: =BF57 & BG57 ->  | BF57: =IF(AND(E57<>0,K57=""), "* No olvide escribir en la celda de Pueblos Originarios (Digite CERO si no tiene). ",IF(AND(F57<>0,L57=""), "* No olvide escribir en la celda de Pueblos Originarios (Digite CERO si no tiene). ","")) ->  | BG57: =IF(AND(E57<>0,M57=""), "* No olvide escribir en la celda de Población Migrantes (Digite CERO si no tiene). ",IF(AND(F57<>0,N57=""), "* No olvide escribir en la celda de Población Migrantes (Digite CERO si no tiene). ","")) ->  | BP57: 0 | BQ57: 0
C58: TOTAL | D58: 2714 | E58: 1324 | F58: 1390 | G58: =SUM(G56:G57) -> 438 | H58: =SUM(H56:H57) -> 454 | I58: 886 | J58: 936 | K58: 4 | L58: 1 | M58: 25 | N58: 22 | O58: =BC58 & BD58 ->  | BC58: =IF($D58>=$K58+$L58,"","* El Total de Pueblos Originarios no debe ser mayor al total de niños en control. ") ->  | BD58: =IF($D58>=$M58+$N58,"","* El Total de Pueblación Migrantes no debe ser mayor al total de niños en control. ") ->  | BM58: =IF($D58>=$K58+$L58,0,1) -> 0 | BN58: =IF($D58>=$M58+$N58,0,1) -> 0
A59: P2400260 | C59: PROMEDIO (-0,9 A + 0,9) | D59: =IFERROR(VLOOKUP($A59,Filtro!$A$4:$AX$552,2,FALSE),0) -> 11972 | E59: =IFERROR(VLOOKUP($A59,Filtro!$A$4:$AX$552,3,FALSE),0) -> 6161 | F59: =IFERROR(VLOOKUP($A59,Filtro!$A$4:$AX$552,4,FALSE),0) -> 5811 | G59: =IFERROR(VLOOKUP($A59,Filtro!$A$4:$AX$552,5,FALSE),0) -> 1810 | H59: =IFERROR(VLOOKUP($A59,Filtro!$A$4:$AX$552,6,FALSE),0) -> 1652 | I59: =IFERROR(VLOOKUP($A59,Filtro!$A$4:$AX$552,7,FALSE),0) -> 4351 | J59: =IFERROR(VLOOKUP($A59,Filtro!$A$4:$AX$552,8,FALSE),0) -> 4159 | K59: =IFERROR(VLOOKUP($A59,Filtro!$A$4:$AX$552,9,FALSE),0) -> 20 | L59: =IFERROR(VLOOKUP($A59,Filtro!$A$4:$AX$552,10,FALSE),0) -> 25 | M59: =IFERROR(VLOOKUP($A59,Filtro!$A$4:$AX$552,11,FALSE),0) -> 89 | N59: =IFERROR(VLOOKUP($A59,Filtro!$A$4:$AX$552,12,FALSE),0) -> 63 | O59: =BF59 & BG59 ->  | BF59: =IF(AND(E59<>0,K59=""), "* No olvide escribir en la celda de Pueblos Originarios (Digite CERO si no tiene). ",IF(AND(F59<>0,L59=""), "* No olvide escribir en la celda de Pueblos Originarios (Digite CERO si no tiene). ","")) ->  | BG59: =IF(AND(E59<>0,M59=""), "* No olvide escribir en la celda de Población Migrantes (Digite CERO si no tiene). ",IF(AND(F59<>0,N59=""), "* No olvide escribir en la celda de Población Migrantes (Digite CERO si no tiene). ","")) ->  | BP59: =IF(AND(E59<>0,K59=""), 1,IF(AND(F59<>0,L59=""), 1,0)) -> 0 | BQ59: =IF(AND(E59<>0,M59=""), 1,IF(AND(F59<>0,N59=""), 1,0)) -> 0
A60: P2400270 | B60: INDICADOR PERIMETRO DE CINTURA / EDAD | C60: NORMAL (<p75) | D60: =IFERROR(VLOOKUP($A60,Filtro!$A$4:$AX$552,2,FALSE),0) -> 9177 | E60: =IFERROR(VLOOKUP($A60,Filtro!$A$4:$AX$552,3,FALSE),0) -> 4726 | F60: =IFERROR(VLOOKUP($A60,Filtro!$A$4:$AX$552,4,FALSE),0) -> 4451 | G60: =IFERROR(VLOOKUP($A60,Filtro!$A$4:$AX$552,5,FALSE),0) -> 1332 | H60: =IFERROR(VLOOKUP($A60,Filtro!$A$4:$AX$552,6,FALSE),0) -> 1231 | I60: =IFERROR(VLOOKUP($A60,Filtro!$A$4:$AX$552,7,FALSE),0) -> 3394 | J60: =IFERROR(VLOOKUP($A60,Filtro!$A$4:$AX$552,8,FALSE),0) -> 3220 | K60: =IFERROR(VLOOKUP($A60,Filtro!$A$4:$AX$552,9,FALSE),0) -> 16 | L60: =IFERROR(VLOOKUP($A60,Filtro!$A$4:$AX$552,10,FALSE),0) -> 20 | M60: =IFERROR(VLOOKUP($A60,Filtro!$A$4:$AX$552,11,FALSE),0) -> 52 | N60: =IFERROR(VLOOKUP($A60,Filtro!$A$4:$AX$552,12,FALSE),0) -> 47 | O60: =BF60 & BG60 ->  | BF60: =IF(AND(E60<>0,K60=""), "* No olvide escribir en la celda de Pueblos Originarios (Digite CERO si no tiene). ",IF(AND(F60<>0,L60=""), "* No olvide escribir en la celda de Pueblos Originarios (Digite CERO si no tiene). ","")) ->  | BG60: =IF(AND(E60<>0,M60=""), "* No olvide escribir en la celda de Población Migrantes (Digite CERO si no tiene). ",IF(AND(F60<>0,N60=""), "* No olvide escribir en la celda de Población Migrantes (Digite CERO si no tiene). ","")) ->  | BP60: 0 | BQ60: 0
A61: P2400280 | C61: RIESGO DE OBESIDAD ABDOMINAL (75<p<90) | D61: =IFERROR(VLOOKUP($A61,Filtro!$A$4:$AX$552,2,FALSE),0) -> 2594 | E61: =IFERROR(VLOOKUP($A61,Filtro!$A$4:$AX$552,3,FALSE),0) -> 1231 | F61: =IFERROR(VLOOKUP($A61,Filtro!$A$4:$AX$552,4,FALSE),0) -> 1363 | G61: =IFERROR(VLOOKUP($A61,Filtro!$A$4:$AX$552,5,FALSE),0) -> 400 | H61: =IFERROR(VLOOKUP($A61,Filtro!$A$4:$AX$552,6,FALSE),0) -> 388 | I61: =IFERROR(VLOOKUP($A61,Filtro!$A$4:$AX$552,7,FALSE),0) -> 831 | J61: =IFERROR(VLOOKUP($A61,Filtro!$A$4:$AX$552,8,FALSE),0) -> 975 | K61: =IFERROR(VLOOKUP($A61,Filtro!$A$4:$AX$552,9,FALSE),0) -> 10 | L61: =IFERROR(VLOOKUP($A61,Filtro!$A$4:$AX$552,10,FALSE),0) -> 5 | M61: =IFERROR(VLOOKUP($A61,Filtro!$A$4:$AX$552,11,FALSE),0) -> 10 | N61: =IFERROR(VLOOKUP($A61,Filtro!$A$4:$AX$552,12,FALSE),0) -> 7 | O61: =BF61 & BG61 ->  | BF61: =IF(AND(E61<>0,K61=""), "* No olvide escribir en la celda de Pueblos Originarios (Digite CERO si no tiene). ",IF(AND(F61<>0,L61=""), "* No olvide escribir en la celda de Pueblos Originarios (Digite CERO si no tiene). ","")) ->  | BG61: =IF(AND(E61<>0,M61=""), "* No olvide escribir en la celda de Población Migrantes (Digite CERO si no tiene). ",IF(AND(F61<>0,N61=""), "* No olvide escribir en la celda de Población Migrantes (Digite CERO si no tiene). ","")) ->  | BP61: 0 | BQ61: 0
A62: P2400290 | C62: OBESIDAD ABDOMINAL (>p90) | D62: =IFERROR(VLOOKUP($A62,Filtro!$A$4:$AX$552,2,FALSE),0) -> 2222 | E62: =IFERROR(VLOOKUP($A62,Filtro!$A$4:$AX$552,3,FALSE),0) -> 1162 | F62: =IFERROR(VLOOKUP($A62,Filtro!$A$4:$AX$552,4,FALSE),0) -> 1060 | G62: =IFERROR(VLOOKUP($A62,Filtro!$A$4:$AX$552,5,FALSE),0) -> 234 | H62: =IFERROR(VLOOKUP($A62,Filtro!$A$4:$AX$552,6,FALSE),0) -> 226 | I62: =IFERROR(VLOOKUP($A62,Filtro!$A$4:$AX$552,7,FALSE),0) -> 928 | J62: =IFERROR(VLOOKUP($A62,Filtro!$A$4:$AX$552,8,FALSE),0) -> 834 | K62: =IFERROR(VLOOKUP($A62,Filtro!$A$4:$AX$552,9,FALSE),0) -> 3 | L62: =IFERROR(VLOOKUP($A62,Filtro!$A$4:$AX$552,10,FALSE),0) -> 7 | M62: =IFERROR(VLOOKUP($A62,Filtro!$A$4:$AX$552,11,FALSE),0) -> 4 | N62: =IFERROR(VLOOKUP($A62,Filtro!$A$4:$AX$552,12,FALSE),0) -> 6 | O62: =BF62 & BG62 ->  | BF62: =IF(AND(E62<>0,K62=""), "* No olvide escribir en la celda de Pueblos Originarios (Digite CERO si no tiene). ",IF(AND(F62<>0,L62=""), "* No olvide escribir en la celda de Pueblos Originarios (Digite CERO si no tiene). ","")) ->  | BG62: =IF(AND(E62<>0,M62=""), "* No olvide escribir en la celda de Población Migrantes (Digite CERO si no tiene). ",IF(AND(F62<>0,N62=""), "* No olvide escribir en la celda de Población Migrantes (Digite CERO si no tiene). ","")) ->  | BP62: 0 | BQ62: 0
C63: TOTAL | D63: =+E63+F63 -> 13993 | E63: =+G63+I63 -> 7119 | F63: 6874 | G63: =SUM(G60:G62) -> 1966 | H63: =SUM(H60:H62) -> 1845 | I63: 5153 | J63: 5029 | K63: 29 | L63: 32 | M63: 66 | N63: 60 | O63: =BC63 & BD63 ->  | BC63: =IF($D63>=$K63+$L63,"","* El Total de Pueblos Originarios no debe ser mayor al total de niños en control. ") ->  | BD63: =IF($D63>=$M63+$N63,"","* El Total de Pueblación Migrantes no debe ser mayor al total de niños en control. ") ->  | BM63: =IF($D63>=$K63+$L63,0,1) -> 0 | BN63: =IF($D63>=$M63+$N63,0,1) -> 0
A64: P2400300 | B64: DIAGNOSTICO NUTRICIONAL INTEGRADO | C64: RIESGO DE DESNUTRIR/ DEFICIT PONDERAL* | D64: =IFERROR(VLOOKUP($A64,Filtro!$A$4:$AX$552,2,FALSE),0) -> 476 | E64: =IFERROR(VLOOKUP($A64,Filtro!$A$4:$AX$552,3,FALSE),0) -> 255 | F64: =IFERROR(VLOOKUP($A64,Filtro!$A$4:$AX$552,4,FALSE),0) -> 221 | G64: =IFERROR(VLOOKUP($A64,Filtro!$A$4:$AX$552,5,FALSE),0) -> 68 | H64: =IFERROR(VLOOKUP($A64,Filtro!$A$4:$AX$552,6,FALSE),0) -> 58 | I64: =IFERROR(VLOOKUP($A64,Filtro!$A$4:$AX$552,7,FALSE),0) -> 187 | J64: =IFERROR(VLOOKUP($A64,Filtro!$A$4:$AX$552,8,FALSE),0) -> 163 | K64: =IFERROR(VLOOKUP($A64,Filtro!$A$4:$AX$552,9,FALSE),0) -> 1 | L64: =IFERROR(VLOOKUP($A64,Filtro!$A$4:$AX$552,10,FALSE),0) -> 0 | M64: =IFERROR(VLOOKUP($A64,Filtro!$A$4:$AX$552,11,FALSE),0) -> 6 | N64: =IFERROR(VLOOKUP($A64,Filtro!$A$4:$AX$552,12,FALSE),0) -> 9 | O64: =BF64 & BG64 ->  | BF64: =IF(AND(E64<>0,K64=""), "* No olvide escribir en la celda de Pueblos Originarios (Digite CERO si no tiene). ",IF(AND(F64<>0,L64=""), "* No olvide escribir en la celda de Pueblos Originarios (Digite CERO si no tiene). ","")) ->  | BG64: =IF(AND(E64<>0,M64=""), "* No olvide escribir en la celda de Población Migrantes (Digite CERO si no tiene). ",IF(AND(F64<>0,N64=""), "* No olvide escribir en la celda de Población Migrantes (Digite CERO si no tiene). ","")) ->  | BP64: =IF(AND(E64<>0,K64=""), 1,IF(AND(F64<>0,L64=""), 1,0)) -> 0 | BQ64: =IF(AND(E64<>0,M64=""), 1,IF(AND(F64<>0,N64=""), 1,0)) -> 0
A65: P2400310 | C65: DESNUTRIDO | D65: =IFERROR(VLOOKUP($A65,Filtro!$A$4:$AX$552,2,FALSE),0) -> 59 | E65: =IFERROR(VLOOKUP($A65,Filtro!$A$4:$AX$552,3,FALSE),0) -> 20 | F65: =IFERROR(VLOOKUP($A65,Filtro!$A$4:$AX$552,4,FALSE),0) -> 39 | G65: =IFERROR(VLOOKUP($A65,Filtro!$A$4:$AX$552,5,FALSE),0) -> 3 | H65: =IFERROR(VLOOKUP($A65,Filtro!$A$4:$AX$552,6,FALSE),0) -> 3 | I65: =IFERROR(VLOOKUP($A65,Filtro!$A$4:$AX$552,7,FALSE),0) -> 17 | J65: =IFERROR(VLOOKUP($A65,Filtro!$A$4:$AX$552,8,FALSE),0) -> 36 | K65: =IFERROR(VLOOKUP($A65,Filtro!$A$4:$AX$552,9,FALSE),0) -> 0 | L65: =IFERROR(VLOOKUP($A65,Filtro!$A$4:$AX$552,10,FALSE),0) -> 1 | M65: =IFERROR(VLOOKUP($A65,Filtro!$A$4:$AX$552,11,FALSE),0) -> 0 | N65: =IFERROR(VLOOKUP($A65,Filtro!$A$4:$AX$552,12,FALSE),0) -> 0 | BP65: 0 | BQ65: 0
A66: P2400320 | C66: SOBREPESO / RIESGO OBESIDAD | D66: =IFERROR(VLOOKUP($A66,Filtro!$A$4:$AX$552,2,FALSE),0) -> 5210 | E66: =IFERROR(VLOOKUP($A66,Filtro!$A$4:$AX$552,3,FALSE),0) -> 2519 | F66: =IFERROR(VLOOKUP($A66,Filtro!$A$4:$AX$552,4,FALSE),0) -> 2691 | G66: =IFERROR(VLOOKUP($A66,Filtro!$A$4:$AX$552,5,FALSE),0) -> 848 | H66: =IFERROR(VLOOKUP($A66,Filtro!$A$4:$AX$552,6,FALSE),0) -> 783 | I66: =IFERROR(VLOOKUP($A66,Filtro!$A$4:$AX$552,7,FALSE),0) -> 1671 | J66: =IFERROR(VLOOKUP($A66,Filtro!$A$4:$AX$552,8,FALSE),0) -> 1908 | K66: =IFERROR(VLOOKUP($A66,Filtro!$A$4:$AX$552,9,FALSE),0) -> 10 | L66: =IFERROR(VLOOKUP($A66,Filtro!$A$4:$AX$552,10,FALSE),0) -> 8 | M66: =IFERROR(VLOOKUP($A66,Filtro!$A$4:$AX$552,11,FALSE),0) -> 25 | N66: =IFERROR(VLOOKUP($A66,Filtro!$A$4:$AX$552,12,FALSE),0) -> 18 | BP66: 0 | BQ66: 0
A67: P2400330 | C67: OBESO | D67: =IFERROR(VLOOKUP($A67,Filtro!$A$4:$AX$552,2,FALSE),0) -> 3430 | E67: =IFERROR(VLOOKUP($A67,Filtro!$A$4:$AX$552,3,FALSE),0) -> 1708 | F67: =IFERROR(VLOOKUP($A67,Filtro!$A$4:$AX$552,4,FALSE),0) -> 1722 | G67: =IFERROR(VLOOKUP($A67,Filtro!$A$4:$AX$552,5,FALSE),0) -> 471 | H67: =IFERROR(VLOOKUP($A67,Filtro!$A$4:$AX$552,6,FALSE),0) -> 472 | I67: =IFERROR(VLOOKUP($A67,Filtro!$A$4:$AX$552,7,FALSE),0) -> 1237 | J67: =IFERROR(VLOOKUP($A67,Filtro!$A$4:$AX$552,8,FALSE),0) -> 1250 | K67: =IFERROR(VLOOKUP($A67,Filtro!$A$4:$AX$552,9,FALSE),0) -> 3 | L67: =IFERROR(VLOOKUP($A67,Filtro!$A$4:$AX$552,10,FALSE),0) -> 8 | M67: =IFERROR(VLOOKUP($A67,Filtro!$A$4:$AX$552,11,FALSE),0) -> 8 | N67: =IFERROR(VLOOKUP($A67,Filtro!$A$4:$AX$552,12,FALSE),0) -> 11 | BP67: 0 | BQ67: 0
A68: P2400340 | C68: OBESO SEVERO | D68: =IFERROR(VLOOKUP($A68,Filtro!$A$4:$AX$552,2,FALSE),0) -> 852 | E68: =IFERROR(VLOOKUP($A68,Filtro!$A$4:$AX$552,3,FALSE),0) -> 573 | F68: =IFERROR(VLOOKUP($A68,Filtro!$A$4:$AX$552,4,FALSE),0) -> 279 | G68: =IFERROR(VLOOKUP($A68,Filtro!$A$4:$AX$552,5,FALSE),0) -> 70 | H68: =IFERROR(VLOOKUP($A68,Filtro!$A$4:$AX$552,6,FALSE),0) -> 54 | I68: =IFERROR(VLOOKUP($A68,Filtro!$A$4:$AX$552,7,FALSE),0) -> 503 | J68: =IFERROR(VLOOKUP($A68,Filtro!$A$4:$AX$552,8,FALSE),0) -> 225 | K68: =IFERROR(VLOOKUP($A68,Filtro!$A$4:$AX$552,9,FALSE),0) -> 5 | L68: =IFERROR(VLOOKUP($A68,Filtro!$A$4:$AX$552,10,FALSE),0) -> 1 | M68: =IFERROR(VLOOKUP($A68,Filtro!$A$4:$AX$552,11,FALSE),0) -> 3 | N68: =IFERROR(VLOOKUP($A68,Filtro!$A$4:$AX$552,12,FALSE),0) -> 0 | BP68: 0 | BQ68: 0
A69: P2400350 | C69: NORMAL | D69: =IFERROR(VLOOKUP($A69,Filtro!$A$4:$AX$552,2,FALSE),0) -> 13664 | E69: =IFERROR(VLOOKUP($A69,Filtro!$A$4:$AX$552,3,FALSE),0) -> 6963 | F69: =IFERROR(VLOOKUP($A69,Filtro!$A$4:$AX$552,4,FALSE),0) -> 6701 | G69: =IFERROR(VLOOKUP($A69,Filtro!$A$4:$AX$552,5,FALSE),0) -> 2226 | H69: =IFERROR(VLOOKUP($A69,Filtro!$A$4:$AX$552,6,FALSE),0) -> 2054 | I69: =IFERROR(VLOOKUP($A69,Filtro!$A$4:$AX$552,7,FALSE),0) -> 4737 | J69: =IFERROR(VLOOKUP($A69,Filtro!$A$4:$AX$552,8,FALSE),0) -> 4647 | K69: =IFERROR(VLOOKUP($A69,Filtro!$A$4:$AX$552,9,FALSE),0) -> 16 | L69: =IFERROR(VLOOKUP($A69,Filtro!$A$4:$AX$552,10,FALSE),0) -> 22 | M69: =IFERROR(VLOOKUP($A69,Filtro!$A$4:$AX$552,11,FALSE),0) -> 135 | N69: =IFERROR(VLOOKUP($A69,Filtro!$A$4:$AX$552,12,FALSE),0) -> 105 | BP69: 0 | BQ69: 0
C70: SUBTOTAL | D70: =+E70+F70 -> 23691 | E70: 12038 | F70: 11653 | G70: =SUM(G64:G69) -> 3686 | H70: =SUM(H64:H69) -> 3424 | I70: 8352 | J70: 8229 | K70: 35 | L70: 40 | M70: 177 | N70: 143 | O70: =BC70 & BD70 ->  | BC70: =IF($D70>=$K70+$L70,"","* El Total de Pueblos Originarios no debe ser mayor al total de niños en control. ") ->  | BD70: =IF($D70>=$M70+$N70,"","* El Total de Pueblación Migrantes no debe ser mayor al total de niños en control. ") ->  | BM70: =IF($D70>=$K70+$L70,0,1) -> 0 | BN70: =IF($D70>=$M70+$N70,0,1) -> 0
A71: P2400360 | C71: DESNUTRICIÓN SECUNDARIA | D71: =IFERROR(VLOOKUP($A71,Filtro!$A$4:$AX$552,2,FALSE),0) -> 10 | E71: =IFERROR(VLOOKUP($A71,Filtro!$A$4:$AX$552,3,FALSE),0) -> 5 | F71: =IFERROR(VLOOKUP($A71,Filtro!$A$4:$AX$552,4,FALSE),0) -> 5 | G71: =IFERROR(VLOOKUP($A71,Filtro!$A$4:$AX$552,5,FALSE),0) -> 2 | H71: =IFERROR(VLOOKUP($A71,Filtro!$A$4:$AX$552,6,FALSE),0) -> 0 | I71: =IFERROR(VLOOKUP($A71,Filtro!$A$4:$AX$552,7,FALSE),0) -> 3 | J71: =IFERROR(VLOOKUP($A71,Filtro!$A$4:$AX$552,8,FALSE),0) -> 5 | K71: =IFERROR(VLOOKUP($A71,Filtro!$A$4:$AX$552,9,FALSE),0) -> 0 | L71: =IFERROR(VLOOKUP($A71,Filtro!$A$4:$AX$552,10,FALSE),0) -> 0 | M71: =IFERROR(VLOOKUP($A71,Filtro!$A$4:$AX$552,11,FALSE),0) -> 0 | N71: =IFERROR(VLOOKUP($A71,Filtro!$A$4:$AX$552,12,FALSE),0) -> 0 | O71: =BF71 & BG71 ->  | BF71: =IF(AND(E71<>0,K71=""), "* No olvide escribir en la celda de Pueblos Originarios (Digite CERO si no tiene). ",IF(AND(F71<>0,L71=""), "* No olvide escribir en la celda de Pueblos Originarios (Digite CERO si no tiene). ","")) ->  | BG71: =IF(AND(E71<>0,M71=""), "* No olvide escribir en la celda de Población Migrantes (Digite CERO si no tiene). ",IF(AND(F71<>0,N71=""), "* No olvide escribir en la celda de Población Migrantes (Digite CERO si no tiene). ","")) ->  | BP71: =IF(AND(E71<>0,K71=""), 1,IF(AND(F71<>0,L71=""), 1,0)) -> 0 | BQ71: =IF(AND(E71<>0,M71=""), 1,IF(AND(F71<>0,N71=""), 1,0)) -> 0
C72: T O T A L | D72: =SUM(D64:D69)+D71 -> 23701 | E72: 12043 | F72: 11658 | G72: 3688 | H72: 3424 | I72: 8355 | J72: 8234 | K72: 35 | L72: 40 | M72: 177 | N72: 143 | O72: =BC72 & BD72 ->  | BC72: =IF($D72>=$K72+$L72,"","* El Total de Pueblos Originarios no debe ser mayor al total de niños en control. ") ->  | BD72: =IF($D72>=$M72+$N72,"","* El Total de Pueblación Migrantes no debe ser mayor al total de niños en control. ") ->  | BM72: =IF($D72>=$K72+$L72,0,1) -> 0 | BN72: =IF($D72>=$M72+$N72,0,1) -> 0
B73: NOTA(*): El Diagnóstico Nutricional Integrado de Déficit para los niños (as) 5 años y más denomina Déficit Ponderal al Riesgo de Desnutrir.
B74: SECCION B: POBLACION EN CONTROL SEGÚN RESULTADO DE EVALUACIÓN DEL DESARROLLO PSICOMOTOR
B75: RESULTADO Y GRUPOS DE EDAD | D75: TOTAL | E75: Hombres | F75: Mujeres
A76: P2100200 | B76: RIESGO | C76: Menor de 12 meses | D76: =IFERROR(VLOOKUP($A76,Filtro!$A$4:$AX$552,2,FALSE),0) -> 45 | E76: =IFERROR(VLOOKUP($A76,Filtro!$A$4:$AX$552,3,FALSE),0) -> 13 | F76: =IFERROR(VLOOKUP($A76,Filtro!$A$4:$AX$552,4,FALSE),0) -> 32 | G76: =BC76 & BD76 ->  | BC76: =IF($G11+$I11+$K11+$M11+$O11+$Q11+$S11+$U11<$E76+$E81,"* La suma de Población Masculina Menor de 12 meses según resultado de 'Riesgo y Retraso' no puede ser mayor que la Población Masculina bajo control de la sección A. ","") ->  | BD76: =IF($H11+$J11+$L11+$N11+$P11+$R11+$T11+$V11<$F76+$F81,"* La suma de Población Femenina de Menor de 12 meses según resultado de 'Riesgo y Retraso' no puede ser mayor que la Población Femenina bajo control de la sección A. ","") ->  | BM76: =IF($G11+$I11+$K11+$M11+$O11+$Q11+$S11+$U11<$E76+$E81,1,0) -> 0 | BN76: =IF($H11+$J11+$L11+$N11+$P11+$R11+$T11+$V11<$F76+$F81,1,0) -> 0
A77: P2300100 | C77: 12 a 17 meses | D77: =IFERROR(VLOOKUP($A77,Filtro!$A$4:$AX$552,2,FALSE),0) -> 37 | E77: =IFERROR(VLOOKUP($A77,Filtro!$A$4:$AX$552,3,FALSE),0) -> 19 | F77: =IFERROR(VLOOKUP($A77,Filtro!$A$4:$AX$552,4,FALSE),0) -> 18 | G77: =BC77 & BD77 ->  | BC77: =IF($W$11<$E$77+$E$82,"* La suma de Población Masculina de 12 a 17 meses según resultado de 'Riesgo y Retraso' no puede ser mayor que la Población Masculina bajo control de la sección A. ","") ->  | BD77: =IF($X$11<$F$77+$F$82,"* La suma de Población Femenina de 12 a 17 meses según resultado de 'Riesgo y Retraso' no puede ser mayor que la Población Femenina bajo control de la sección A. ","") ->  | BM77: =IF($W$11<$E$77+$E$82,1,0) -> 0 | BN77: =IF($X$11<$F$77+$F$82,1,0) -> 0
A78: P2300200 | C78: 18 a 23 meses | D78: =IFERROR(VLOOKUP($A78,Filtro!$A$4:$AX$552,2,FALSE),0) -> 118 | E78: =IFERROR(VLOOKUP($A78,Filtro!$A$4:$AX$552,3,FALSE),0) -> 68 | F78: =IFERROR(VLOOKUP($A78,Filtro!$A$4:$AX$552,4,FALSE),0) -> 50 | G78: =BC78 & BD78 ->  | BC78: =IF($Y$11<$E$78+$E$83,"* La suma de Población Masculina de 18 a 23 meses según resultado de 'Riesgo y Retraso' no puede ser mayor que la Población Masculina bajo control de la sección A. ","") ->  | BD78: =IF($Z$11<$F$78+$F$83,"* La suma de Población Femenina de 18 a 23 meses según resultado de 'Riesgo y Retraso' no puede ser mayor que la Población Femenina bajo control de la sección A. ","") ->  | BM78: =IF($Y$11<$E$78+$E$83,1,0) -> 0 | BN78: =IF($Z$11<$F$78+$F$83,1,0) -> 0
A79: P2100400 | C79: 24 a 47 meses | D79: =IFERROR(VLOOKUP($A79,Filtro!$A$4:$AX$552,2,FALSE),0) -> 93 | E79: =IFERROR(VLOOKUP($A79,Filtro!$A$4:$AX$552,3,FALSE),0) -> 60 | F79: =IFERROR(VLOOKUP($A79,Filtro!$A$4:$AX$552,4,FALSE),0) -> 33 | G79: =BC79 & BD79 ->  | BC79: =IF($AA11+$AE11+$AC11<$E79+$E84,"* La suma de Población Masculina de 24 a 47 meses según resultado de 'Riesgo y Retraso' no puede ser mayor que la Población Masculina bajo control de la sección A. ","") ->  | BD79: =IF($AB11+$AF11+$AD11<$F79+$F84,"* La suma de Población Femenina de 24 a 47 meses según resultado de 'Riesgo y Retraso' no puede ser mayor que la Población Femenina bajo control de la sección A. ","") ->  | BM79: =IF($AA11+$AE11+$AC11<$E79+$E84,1,0) -> 0 | BN79: =IF($AB11+$AF11+$AD11<$F79+$F84,1,0) -> 0
A80: P2100500 | C80: 48 a 59 meses | D80: =IFERROR(VLOOKUP($A80,Filtro!$A$4:$AX$552,2,FALSE),0) -> 15 | E80: =IFERROR(VLOOKUP($A80,Filtro!$A$4:$AX$552,3,FALSE),0) -> 14 | F80: =IFERROR(VLOOKUP($A80,Filtro!$A$4:$AX$552,4,FALSE),0) -> 1 | G80: =BC80 & BD80 ->  | BC80: =IF($AG$11<$E$80+$E$85,"* La suma de Población Masculina de 48 a 59 meses según resultado de 'Riesgo y Retraso' no puede ser mayor que la Población Masculina bajo control de la sección A. ","") ->  | BD80: =IF($AH$11<$F$80+$F$85,"* La suma de Población Femenina de 48 a 59 meses según resultado de 'Riesgo y Retraso' no puede ser mayor que la Población Femenina bajo control de la sección A. ","") ->  | BM80: =IF($AG$11<$E$80+$E$85,1,0) -> 0 | BN80: =IF($AH$11<$F$80+$F$85,1,0) -> 0
A81: P2100600 | B81: RETRASO | C81: Menor de 12 meses | D81: =IFERROR(VLOOKUP($A81,Filtro!$A$4:$AX$552,2,FALSE),0) -> 7 | E81: =IFERROR(VLOOKUP($A81,Filtro!$A$4:$AX$552,3,FALSE),0) -> 5 | F81: =IFERROR(VLOOKUP($A81,Filtro!$A$4:$AX$552,4,FALSE),0) -> 2
A82: P2300300 | C82: 12 a 17 meses | D82: =IFERROR(VLOOKUP($A82,Filtro!$A$4:$AX$552,2,FALSE),0) -> 0 | E82: =IFERROR(VLOOKUP($A82,Filtro!$A$4:$AX$552,3,FALSE),0) -> 0 | F82: =IFERROR(VLOOKUP($A82,Filtro!$A$4:$AX$552,4,FALSE),0) -> 0
A83: P2300400 | C83: 18 a 23 meses | D83: =IFERROR(VLOOKUP($A83,Filtro!$A$4:$AX$552,2,FALSE),0) -> 30 | E83: =IFERROR(VLOOKUP($A83,Filtro!$A$4:$AX$552,3,FALSE),0) -> 17 | F83: =IFERROR(VLOOKUP($A83,Filtro!$A$4:$AX$552,4,FALSE),0) -> 13
A84: P2200900 | C84: 24 a 47 meses | D84: =IFERROR(VLOOKUP($A84,Filtro!$A$4:$AX$552,2,FALSE),0) -> 37 | E84: =IFERROR(VLOOKUP($A84,Filtro!$A$4:$AX$552,3,FALSE),0) -> 18 | F84: =IFERROR(VLOOKUP($A84,Filtro!$A$4:$AX$552,4,FALSE),0) -> 19
A85: P2300000 | C85: 48 a 59 meses | D85: =IFERROR(VLOOKUP($A85,Filtro!$A$4:$AX$552,2,FALSE),0) -> 11 | E85: =IFERROR(VLOOKUP($A85,Filtro!$A$4:$AX$552,3,FALSE),0) -> 11 | F85: =IFERROR(VLOOKUP($A85,Filtro!$A$4:$AX$552,4,FALSE),0) -> 0
B86: SECCION C: POBLACIÓN MENOR DE 1 AÑO EN CONTROL, SEGÚN SCORE RIESGO EN IRA Y VISITA DOMICILIARIA INTEGRAL EN EL SEMESTRE
B87: RESULTADO | D87: TOTAL | E87: Diada, menor de 10 días | F87: 1 mes | G87: 2 meses | H87: 3 meses | I87: 4 meses | J87: 5 meses | K87: 6 meses | L87: Total de Niños y Niñas que han recibido VDI
A89: P2090300 | B89: SCORE DE RIESGO | C89: LEVE | D89: =IFERROR(VLOOKUP($A89,Filtro!$A$4:$AX$552,2,FALSE),0) -> 3267 | E89: =IFERROR(VLOOKUP($A89,Filtro!$A$4:$AX$552,3,FALSE),0) -> 505 | F89: =IFERROR(VLOOKUP($A89,Filtro!$A$4:$AX$552,4,FALSE),0) -> 412 | G89: =IFERROR(VLOOKUP($A89,Filtro!$A$4:$AX$552,5,FALSE),0) -> 495 | H89: =IFERROR(VLOOKUP($A89,Filtro!$A$4:$AX$552,6,FALSE),0) -> 372 | I89: =IFERROR(VLOOKUP($A89,Filtro!$A$4:$AX$552,7,FALSE),0) -> 454 | J89: =IFERROR(VLOOKUP($A89,Filtro!$A$4:$AX$552,8,FALSE),0) -> 345 | K89: =IFERROR(VLOOKUP($A89,Filtro!$A$4:$AX$552,9,FALSE),0) -> 684 | L89: =IFERROR(VLOOKUP($A89,Filtro!$A$4:$AX$552,10,FALSE),0) -> 0
A90: P2090400 | C90: MODERADO | D90: =IFERROR(VLOOKUP($A90,Filtro!$A$4:$AX$552,2,FALSE),0) -> 367 | E90: =IFERROR(VLOOKUP($A90,Filtro!$A$4:$AX$552,3,FALSE),0) -> 24 | F90: =IFERROR(VLOOKUP($A90,Filtro!$A$4:$AX$552,4,FALSE),0) -> 45 | G90: =IFERROR(VLOOKUP($A90,Filtro!$A$4:$AX$552,5,FALSE),0) -> 66 | H90: =IFERROR(VLOOKUP($A90,Filtro!$A$4:$AX$552,6,FALSE),0) -> 31 | I90: =IFERROR(VLOOKUP($A90,Filtro!$A$4:$AX$552,7,FALSE),0) -> 64 | J90: =IFERROR(VLOOKUP($A90,Filtro!$A$4:$AX$552,8,FALSE),0) -> 38 | K90: =IFERROR(VLOOKUP($A90,Filtro!$A$4:$AX$552,9,FALSE),0) -> 99 | L90: =IFERROR(VLOOKUP($A90,Filtro!$A$4:$AX$552,10,FALSE),0) -> 59 | BC90: =IF($D90<$L90, "* Niños visitados no puede ser mayor que el total Score Moderado. ","") ->  | BL90: =IF($D90<$L90, 1,0) -> 0
A91: P2100100 | C91: GRAVE | D91: =IFERROR(VLOOKUP($A91,Filtro!$A$4:$AX$552,2,FALSE),0) -> 147 | E91: =IFERROR(VLOOKUP($A91,Filtro!$A$4:$AX$552,3,FALSE),0) -> 8 | F91: =IFERROR(VLOOKUP($A91,Filtro!$A$4:$AX$552,4,FALSE),0) -> 12 | G91: =IFERROR(VLOOKUP($A91,Filtro!$A$4:$AX$552,5,FALSE),0) -> 29 | H91: =IFERROR(VLOOKUP($A91,Filtro!$A$4:$AX$552,6,FALSE),0) -> 16 | I91: =IFERROR(VLOOKUP($A91,Filtro!$A$4:$AX$552,7,FALSE),0) -> 22 | J91: =IFERROR(VLOOKUP($A91,Filtro!$A$4:$AX$552,8,FALSE),0) -> 21 | K91: =IFERROR(VLOOKUP($A91,Filtro!$A$4:$AX$552,9,FALSE),0) -> 39 | L91: =IFERROR(VLOOKUP($A91,Filtro!$A$4:$AX$552,10,FALSE),0) -> 53 | BC91: =IF($D91<$L91, "* Niños visitados no puede ser mayor que el total Score Grave. ","") ->  | BL91: =IF($D91<$L91,1,0) -> 0
C92: TOTAL | D92: =SUM(E92:K92) -> 3781 | E92: =SUM(E89:E91) -> 537 | F92: =SUM(F89:F91) -> 469 | G92: =SUM(G89:G91) -> 590 | H92: 419 | I92: 540 | J92: 404 | K92: 822 | L92: =SUM(L90:L91) -> 112
B93: SECCION D: POBLACIÓN EN CONTROL EN EL SEMESTRE CON CONSULTA NUTRICIONAL, SEGÚN ESTRATEGIA
B94: NIÑO/A CON CONSULTA NUTRICIONAL EN | D94: TOTAL
A96: P2200700 | B96: Del 5to mes | D96: =IFERROR(VLOOKUP($A96,Filtro!$A$4:$AX$552,2,FALSE),0) -> 2610
A97: P2200800 | B97: De los 3 años y 6 meses | D97: =IFERROR(VLOOKUP($A97,Filtro!$A$4:$AX$552,2,FALSE),0) -> 767
B98: SECCION E: POBLACIÓN INASISTENTE A CONTROL DEL NIÑO SANO (AL CORTE)
B99: EDAD | D99: TOTAL
A101: P2300410 | B101: Menor de 6 meses | D101: =IFERROR(VLOOKUP($A101,Filtro!$A$4:$AX$552,2,FALSE),0) -> 172
A102: P2300420 | B102: De 6 a 11 meses | D102: =IFERROR(VLOOKUP($A102,Filtro!$A$4:$AX$552,2,FALSE),0) -> 322
A103: P2300460 | B103: 12 - 17 meses | D103: =IFERROR(VLOOKUP($A103,Filtro!$A$4:$AX$552,2,FALSE),0) -> 853
A104: P2300470 | B104: 18 - 23 meses | D104: =IFERROR(VLOOKUP($A104,Filtro!$A$4:$AX$552,2,FALSE),0) -> 929
A105: P2300480 | B105: 24 - 35 meses | D105: =IFERROR(VLOOKUP($A105,Filtro!$A$4:$AX$552,2,FALSE),0) -> 1944
A106: P2300490 | B106: 36 - 47 meses | D106: =IFERROR(VLOOKUP($A106,Filtro!$A$4:$AX$552,2,FALSE),0) -> 2236
A107: P2300500 | B107: 48 - 59 meses | D107: =IFERROR(VLOOKUP($A107,Filtro!$A$4:$AX$552,2,FALSE),0) -> 2576
A108: P2300510 | B108: 60 - 71 meses | D108: =IFERROR(VLOOKUP($A108,Filtro!$A$4:$AX$552,2,FALSE),0) -> 2878
A109: P2300520 | B109: De 6 a 9 años | D109: =IFERROR(VLOOKUP($A109,Filtro!$A$4:$AX$552,2,FALSE),0) -> 7552
B110: TOTAL | D110: =SUM(D101:D109) -> 19462
B111: SECCION F: POBLACIÓN INFANTIL SEGÚN DIAGNÓSTICO DE PRESIÓN ARTERIAL (Incluida en sección A y A1)
B112: CLASIFICACIÓN | D112: TOTAL | E112: GRUPOS DE EDAD (en meses)
E113: 36 a 47 meses | F113: 48 a 71 meses | G113: 6-9 años
A114: P2300530 | B114: NORMAL (PA menor al percentil 90) | D114: =IFERROR(VLOOKUP($A114,Filtro!$A$4:$AX$552,2,FALSE),0) -> 12545 | E114: =IFERROR(VLOOKUP($A114,Filtro!$A$4:$AX$552,3,FALSE),0) -> 1116 | F114: =IFERROR(VLOOKUP($A114,Filtro!$A$4:$AX$552,4,FALSE),0) -> 4137 | G114: =IFERROR(VLOOKUP($A114,Filtro!$A$4:$AX$552,5,FALSE),0) -> 7292 | H114: =BF114 & BG114 & BH114 ->  | BF114: =IF($E114<=SUM($AC$11:$AF$11),"","* Niños(as) de 36 a 47 ms clasificados debe ser menor o igual al Total de la población de niños bajo control de en sección A misma edad. ") ->  | BG114: =IF($F114<=SUM($AG$11:$AH$11,$G$44:$H$44),"","* Niños(as) de 48 a 71 meses clasificados debe ser menor o igual al Total de la población de niños bajo control de en sección A y A1 de la misma edad. ") ->  | BH114: =IF($G114<=SUM($I$44:$J$44),"","* Niños(as) de 6 a 9 años clasificados debe ser menor o igual al Total de la población de niños bajo control de en sección A1 misma edad ") ->  | BM114: =IF($E114<=SUM($AC$11:$AF$11),0,1) -> 0 | BN114: =IF($F114<=SUM($AG$11:$AH$11,$G$44:$H$44),0,1) -> 0 | BO114: =IF($G114<=SUM($I$44:$J$44),0,1) -> 0
A115: P2300540 | B115: PRE-HIPERTENSIÓN (PA entre percentil 90 al 95) | D115: =IFERROR(VLOOKUP($A115,Filtro!$A$4:$AX$552,2,FALSE),0) -> 523 | E115: =IFERROR(VLOOKUP($A115,Filtro!$A$4:$AX$552,3,FALSE),0) -> 40 | F115: =IFERROR(VLOOKUP($A115,Filtro!$A$4:$AX$552,4,FALSE),0) -> 174 | G115: =IFERROR(VLOOKUP($A115,Filtro!$A$4:$AX$552,5,FALSE),0) -> 309 | H115: =BF115 & BG115 & BH115 ->  | BF115: =IF($E115<=SUM($AC$11:$AF$11),"","* Niños(as) de 36 a 47 ms clasificados debe ser menor o igual al Total de la población de niños bajo control de en sección A misma edad. ") ->  | BG115: =IF($F115<=SUM($AG$11:$AH$11,$G$44:$H$44),"","* Niños(as) de 48 a 71 meses clasificados debe ser menor o igual al Total de la población de niños bajo control de en sección A y A1 de la misma edad. ") ->  | BH115: =IF($G115<=SUM($I$44:$J$44),"","* Niños(as) de 6 a 9 años clasificados debe ser menor o igual al Total de la población de niños bajo control de en sección A1 misma edad ") ->  | BM115: 0 | BN115: 0 | BO115: 0
A116: P2300550 | B116: ETAPA 1 (PA entre percentil 95 al 99) | D116: =IFERROR(VLOOKUP($A116,Filtro!$A$4:$AX$552,2,FALSE),0) -> 139 | E116: =IFERROR(VLOOKUP($A116,Filtro!$A$4:$AX$552,3,FALSE),0) -> 7 | F116: =IFERROR(VLOOKUP($A116,Filtro!$A$4:$AX$552,4,FALSE),0) -> 39 | G116: =IFERROR(VLOOKUP($A116,Filtro!$A$4:$AX$552,5,FALSE),0) -> 93 | H116: =BF116 & BG116 & BH116 ->  | BF116: =IF($E116<=SUM($AC$11:$AF$11),"","* Niños(as) de 36 a 47 ms clasificados debe ser menor o igual al Total de la población de niños bajo control de en sección A misma edad. ") ->  | BG116: =IF($F116<=SUM($AG$11:$AH$11,$G$44:$H$44),"","* Niños(as) de 48 a 71 meses clasificados debe ser menor o igual al Total de la población de niños bajo control de en sección A y A1 de la misma edad. ") ->  | BH116: =IF($G116<=SUM($I$44:$J$44),"","* Niños(as) de 6 a 9 años clasificados debe ser menor o igual al Total de la población de niños bajo control de en sección A1 misma edad ") ->  | BM116: 0 | BN116: 0 | BO116: 0
A117: P2300560 | B117: ETAPA 2 (PA mayor al percentil 99) | D117: =IFERROR(VLOOKUP($A117,Filtro!$A$4:$AX$552,2,FALSE),0) -> 40 | E117: =IFERROR(VLOOKUP($A117,Filtro!$A$4:$AX$552,3,FALSE),0) -> 5 | F117: =IFERROR(VLOOKUP($A117,Filtro!$A$4:$AX$552,4,FALSE),0) -> 6 | G117: =IFERROR(VLOOKUP($A117,Filtro!$A$4:$AX$552,5,FALSE),0) -> 29 | H117: =BF117 & BG117 & BH117 ->  | BF117: =IF($E117<=SUM($AC$11:$AF$11),"","* Niños(as) de 36 a 47 ms clasificados debe ser menor o igual al Total de la población de niños bajo control de en sección A misma edad. ") ->  | BG117: =IF($F117<=SUM($AG$11:$AH$11,$G$44:$H$44),"","* Niños(as) de 48 a 71 meses clasificados debe ser menor o igual al Total de la población de niños bajo control de en sección A y A1 de la misma edad. ") ->  | BH117: =IF($G117<=SUM($I$44:$J$44),"","* Niños(as) de 6 a 9 años clasificados debe ser menor o igual al Total de la población de niños bajo control de en sección A1 misma edad ") ->  | BM117: 0 | BN117: 0 | BO117: 0
B118: TOTAL | D118: =SUM(E118:G118) -> 13247 | E118: =SUM(E114:E117) -> 1168 | F118: =SUM(F114:F117) -> 4356 | G118: =SUM(G114:G117) -> 7723 | H118: =BF118 & BG118 & BH118 ->  | BF118: =IF($E118<=SUM(AC11:AF11),"","* Niños(as) de 36 a 47 ms clasificados debe ser menor o igual al Total de la población de niños bajo control de en sección A misma edad. ") ->  | BG118: =IF($F118<=SUM($AG$11:$AH$11,$G$44:$H$44),"","* Niños(as) de 48 a 71 meses clasificados debe ser menor o igual al Total de la población de niños bajo control de en sección A y A1 de la misma edad. ") ->  | BH118: =IF($G118<=SUM($I$44:$J$44),"","* Niños(as) de 6 a 9 años clasificados debe ser menor o igual al Total de la población de niños bajo control de en sección A1 misma edad ") ->  | BM118: =IF($E118<=SUM($AC$11:$AF$11),0,1) -> 0 | BN118: =IF($F118<=SUM($AG$11:$AH$11,$G$44:$H$44),0,1) -> 0 | BO118: =IF($G118<=SUM($I$44:$J$44),0,1) -> 0
B119: SECCION G: POBLACIÓN INFANTIL EUTRÓFICA, SEGÚN RIESGO DE MALNUTRICIÓN POR EXCESO (Incluida en sección A y A1)
B120: RESULTADO | D120: TOTAL | E120: GRUPOS DE EDAD (en meses)
E121: 4 a 11 meses | F121: 12 a 23 meses | G121: 24 a 35 meses | H121: 36 a 47 meses | I121: 48 a 59 meses | J121: 60 a 71 meses
A122: P2300570 | B122: SIN RIESGO | D122: =IFERROR(VLOOKUP($A122,Filtro!$A$4:$AX$552,2,FALSE),0) -> 7801 | E122: =IFERROR(VLOOKUP($A122,Filtro!$A$4:$AX$552,3,FALSE),0) -> 914 | F122: =IFERROR(VLOOKUP($A122,Filtro!$A$4:$AX$552,4,FALSE),0) -> 1427 | G122: =IFERROR(VLOOKUP($A122,Filtro!$A$4:$AX$552,5,FALSE),0) -> 1572 | H122: =IFERROR(VLOOKUP($A122,Filtro!$A$4:$AX$552,6,FALSE),0) -> 1458 | I122: =IFERROR(VLOOKUP($A122,Filtro!$A$4:$AX$552,7,FALSE),0) -> 1400 | J122: =IFERROR(VLOOKUP($A122,Filtro!$A$4:$AX$552,8,FALSE),0) -> 1030 | K122: =BC122 & BD122 & BE122 & BF122 & BG122 & BH122 ->  | BC122: =IF($E122<=SUM($O$36:$V$36),"","* Niños(as) de 4 a 11 ms clasificados debe ser menor o igual al Total niños diagnostidos en NORMAL sección A misma edad. ") ->  | BD122: =IF($F122<=SUM($W$36:$Z$36),"","* Niños(as) de 12 a 23 ms clasificados debe ser menor o igual al Total niños diagnosticados en NORMAL en sección A misma edad. ") ->  | BE122: =IF($G122<=SUM($AA$36:$AB$36),"","* Niños(as) de 24 a 35 ms clasificados debe ser menor o igual al Total niños diagnosticados en NORMAL en sección A misma edad. ") ->  | BF122: =IF($H122<=SUM($AC$36:$AF$36),"","* Niños(as) de 36 a 47 ms clasificados debe ser menor o igual al Total niños diagnosticos en NORMAL en sección A misma edad. ") ->  | BG122: =IF($I122<=SUM($AG$36:$AH$36),"","* Niños(as) de 48 a 59 ms clasificados debe ser menor o igual al Total niños diagnosticados en NORMAL en sección A misma edad. ") ->  | BH122: =IF($J122<=SUM($G$69:$H$69),"","* Niños(as) de 60 a 71 ms clasificados debe ser menor o igual al Total niños diagnosticados en NORMAL en sección A1 misma edad. ") ->  | BM122: =IF($E122<=SUM($O$36:$V$36),0,1) -> 0 | BN122: =IF($F122<=SUM($W$36:$Z$36),0,1) -> 0 | BO122: =IF($G122<=SUM($AA$36:$AB$36),0,1) -> 0 | BP122: =IF($H122<=SUM($AC$36:$AF$36),0,1) -> 0 | BQ122: =IF($I122<=SUM($AG$36:$AH$36),0,1) -> 0 | BR122: =IF($J122<=SUM($G$69:$H$69),0,1) -> 0
A123: P2300580 | B123: CON RIESGO | D123: =IFERROR(VLOOKUP($A123,Filtro!$A$4:$AX$552,2,FALSE),0) -> 3384 | E123: =IFERROR(VLOOKUP($A123,Filtro!$A$4:$AX$552,3,FALSE),0) -> 394 | F123: =IFERROR(VLOOKUP($A123,Filtro!$A$4:$AX$552,4,FALSE),0) -> 666 | G123: =IFERROR(VLOOKUP($A123,Filtro!$A$4:$AX$552,5,FALSE),0) -> 670 | H123: =IFERROR(VLOOKUP($A123,Filtro!$A$4:$AX$552,6,FALSE),0) -> 630 | I123: =IFERROR(VLOOKUP($A123,Filtro!$A$4:$AX$552,7,FALSE),0) -> 601 | J123: =IFERROR(VLOOKUP($A123,Filtro!$A$4:$AX$552,8,FALSE),0) -> 423 | K123: =BC123 & BD123 & BE123 & BF123 & BG123 & BH123 ->  | BC123: =IF($E123<=SUM($O$36:$V$36),"","* Niños(as) de 4 a 11 ms clasificados debe ser menor o igual al Total niños diagnostidos en NORMAL sección A misma edad. ") ->  | BD123: =IF($F123<=SUM($W$36:$Z$36),"","* Niños(as) de 12 a 23 ms clasificados debe ser menor o igual al Total niños diagnosticados en NORMAL en sección A misma edad. ") ->  | BE123: =IF($G123<=SUM($AA$36:$AB$36),"","* Niños(as) de 24 a 35 ms clasificados debe ser menor o igual al Total niños diagnosticados en NORMAL en sección A misma edad. ") ->  | BF123: =IF($H123<=SUM($AC$36:$AF$36),"","* Niños(as) de 36 a 47 ms clasificados debe ser menor o igual al Total niños diagnosticos en NORMAL en sección A misma edad. ") ->  | BG123: =IF($I123<=SUM($AG$36:$AH$36),"","* Niños(as) de 48 a 59 ms clasificados debe ser menor o igual al Total niños diagnosticados en NORMAL en sección A misma edad. ") ->  | BH123: =IF($J123<=SUM($G$69:$H$69),"","* Niños(as) de 60 a 71 ms clasificados debe ser menor o igual al Total niños diagnosticados en NORMAL en sección A1 misma edad. ") ->  | BM123: 0 | BN123: 0 | BO123: 0 | BP123: 0 | BQ123: 0 | BR123: 0
B124: TOTAL | D124: =SUM(E124:J124) -> 11185 | E124: =SUM(E122:E123) -> 1308 | F124: 2093 | G124: 2242 | H124: 2088 | I124: 2001 | J124: 1453 | K124: =BC124 & BD124 & BE124 & BF124 & BG124 & BH124 ->  | BC124: =IF($E124<=SUM($O$36:$V$36),"","* Niños(as) de 4 a 11 ms clasificados debe ser menor o igual al Total niños diagnostidos en NORMAL sección A misma edad. ") ->  | BD124: =IF($F124<=SUM($W$36:$Z$36),"","* Niños(as) de 12 a 23 ms clasificados debe ser menor o igual al Total niños diagnosticados en NORMAL en sección A misma edad. ") ->  | BE124: =IF($G124<=SUM($AA$36:$AB$36),"","* Niños(as) de 24 a 35 ms clasificados debe ser menor o igual al Total niños diagnosticados en NORMAL en sección A misma edad. ") ->  | BF124: =IF($H124<=SUM($AC$36:$AF$36),"","* Niños(as) de 36 a 47 ms clasificados debe ser menor o igual al Total niños diagnosticos en NORMAL en sección A misma edad. ") ->  | BG124: =IF($I124<=SUM($AG$36:$AH$36),"","* Niños(as) de 48 a 59 ms clasificados debe ser menor o igual al Total niños diagnosticados en NORMAL en sección A misma edad. ") ->  | BH124: =IF($J124<=SUM($G$69:$H$69),"","* Niños(as) de 60 a 71 ms clasificados debe ser menor o igual al Total niños diagnosticados en NORMAL en sección A1 misma edad. ") ->  | BM124: =IF($E124<=SUM($O$36:$V$36),0,1) -> 0 | BN124: =IF($F124<=SUM($W$36:$Z$36),0,1) -> 0 | BO124: =IF($G124<=SUM($AA$36:$AB$36),0,1) -> 0 | BP124: =IF($H124<=SUM($AC$36:$AF$36),0,1) -> 0 | BQ124: =IF($I124<=SUM($AG$36:$AH$36),0,1) -> 0 | BR124: =IF($J124<=SUM($G$69:$H$69),0,1) -> 0
B125: SECCION H: POBLACIÓN INFANTIL SEGÚN DIAGNÓSTICO DE NANEAS (incluidas en sección A y A.1)
B126: DISGNOSTICOS | D126: TOTAL | G126: GRUPOS DE EDAD (en meses - años) Y SEXO | AO126: Pueblos Originarios | AQ126: Población Migrantes
G127: Menor de 1 mes | I127: 1 mes | K127: 2 meses | M127: 3 meses | O127: 4 meses | Q127: 5 meses | S127: 6 meses | U127: 7 a 11 meses | W127: 12 a 17 meses | Y127: 18 a 23 meses | AA127: 24 a 35 meses | AC127: 36 a 41 meses | AE127: 42 a 47 meses | AG127: 48 a 59 meses | AI127: 60 a 71 meses | AK127: 6 a 7 años | AM127: 8 a 9 años
D128: Ambos sexos | E128: Hombres | F128: Mujeres | G128: Hombres | H128: Mujeres | I128: Hombres | J128: Mujeres | K128: Hombres | L128: Mujeres | M128: Hombres | N128: Mujeres | O128: Hombres | P128: Mujeres | Q128: Hombres | R128: Mujeres | S128: Hombres | T128: Mujeres | U128: Hombres | V128: Mujeres | W128: Hombres | X128: Mujeres | Y128: Hombres | Z128: Mujeres | AA128: Hombres | AB128: Mujeres | AC128: Hombres | AD128: Mujeres | AE128: Hombres | AF128: Mujeres | AG128: Hombres | AH128: Mujeres | AI128: Hombres | AJ128: Mujeres | AK128: Hombres | AL128: Mujeres | AM128: Hombres | AN128: Mujeres | AO128: Hombres | AP128: Mujeres | AQ128: Hombres | AR128: Mujeres
A129: P2500100 | B129: PRESIÓN ARTERIAL ELEVADA | D129: =IFERROR(VLOOKUP($A129,Filtro!$A$4:$AX$552,2,FALSE),0) -> 157 | E129: =IFERROR(VLOOKUP($A129,Filtro!$A$4:$AX$552,3,FALSE),0) -> 77 | F129: =IFERROR(VLOOKUP($A129,Filtro!$A$4:$AX$552,4,FALSE),0) -> 80 | G129: =IFERROR(VLOOKUP($A129,Filtro!$A$4:$AX$552,5,FALSE),0) -> 0 | H129: =IFERROR(VLOOKUP($A129,Filtro!$A$4:$AX$552,6,FALSE),0) -> 0 | I129: =IFERROR(VLOOKUP($A129,Filtro!$A$4:$AX$552,7,FALSE),0) -> 0 | J129: =IFERROR(VLOOKUP($A129,Filtro!$A$4:$AX$552,8,FALSE),0) -> 0 | K129: =IFERROR(VLOOKUP($A129,Filtro!$A$4:$AX$552,9,FALSE),0) -> 0 | L129: =IFERROR(VLOOKUP($A129,Filtro!$A$4:$AX$552,10,FALSE),0) -> 0 | M129: =IFERROR(VLOOKUP($A129,Filtro!$A$4:$AX$552,11,FALSE),0) -> 0 | N129: =IFERROR(VLOOKUP($A129,Filtro!$A$4:$AX$552,12,FALSE),0) -> 0 | O129: =IFERROR(VLOOKUP($A129,Filtro!$A$4:$AX$552,13,FALSE),0) -> 0 | P129: =IFERROR(VLOOKUP($A129,Filtro!$A$4:$AX$552,14,FALSE),0) -> 0 | Q129: =IFERROR(VLOOKUP($A129,Filtro!$A$4:$AX$552,15,FALSE),0) -> 0 | R129: =IFERROR(VLOOKUP($A129,Filtro!$A$4:$AX$552,16,FALSE),0) -> 0 | S129: =IFERROR(VLOOKUP($A129,Filtro!$A$4:$AX$552,17,FALSE),0) -> 0 | T129: =IFERROR(VLOOKUP($A129,Filtro!$A$4:$AX$552,18,FALSE),0) -> 0 | U129: =IFERROR(VLOOKUP($A129,Filtro!$A$4:$AX$552,19,FALSE),0) -> 2 | V129: =IFERROR(VLOOKUP($A129,Filtro!$A$4:$AX$552,20,FALSE),0) -> 0 | W129: =IFERROR(VLOOKUP($A129,Filtro!$A$4:$AX$552,21,FALSE),0) -> 2 | X129: =IFERROR(VLOOKUP($A129,Filtro!$A$4:$AX$552,22,FALSE),0) -> 0 | Y129: =IFERROR(VLOOKUP($A129,Filtro!$A$4:$AX$552,23,FALSE),0) -> 0 | Z129: =IFERROR(VLOOKUP($A129,Filtro!$A$4:$AX$552,24,FALSE),0) -> 1 | AA129: =IFERROR(VLOOKUP($A129,Filtro!$A$4:$AX$552,25,FALSE),0) -> 0 | AB129: =IFERROR(VLOOKUP($A129,Filtro!$A$4:$AX$552,26,FALSE),0) -> 0 | AC129: =IFERROR(VLOOKUP($A129,Filtro!$A$4:$AX$552,27,FALSE),0) -> 5 | AD129: =IFERROR(VLOOKUP($A129,Filtro!$A$4:$AX$552,28,FALSE),0) -> 4 | AE129: =IFERROR(VLOOKUP($A129,Filtro!$A$4:$AX$552,29,FALSE),0) -> 0 | AF129: =IFERROR(VLOOKUP($A129,Filtro!$A$4:$AX$552,30,FALSE),0) -> 3 | AG129: =IFERROR(VLOOKUP($A129,Filtro!$A$4:$AX$552,31,FALSE),0) -> 14 | AH129: =IFERROR(VLOOKUP($A129,Filtro!$A$4:$AX$552,32,FALSE),0) -> 8 | AI129: =IFERROR(VLOOKUP($A129,Filtro!$A$4:$AX$552,33,FALSE),0) -> 11 | AJ129: =IFERROR(VLOOKUP($A129,Filtro!$A$4:$AX$552,34,FALSE),0) -> 7 | AK129: =IFERROR(VLOOKUP($A129,Filtro!$A$4:$AX$552,35,FALSE),0) -> 26 | AL129: =IFERROR(VLOOKUP($A129,Filtro!$A$4:$AX$552,36,FALSE),0) -> 41 | AM129: =IFERROR(VLOOKUP($A129,Filtro!$A$4:$AX$552,37,FALSE),0) -> 17 | AN129: =IFERROR(VLOOKUP($A129,Filtro!$A$4:$AX$552,38,FALSE),0) -> 16 | AO129: =IFERROR(VLOOKUP($A129,Filtro!$A$4:$AX$552,39,FALSE),0) -> 0 | AP129: =IFERROR(VLOOKUP($A129,Filtro!$A$4:$AX$552,40,FALSE),0) -> 0 | AQ129: =IFERROR(VLOOKUP($A129,Filtro!$A$4:$AX$552,41,FALSE),0) -> 0 | AR129: =IFERROR(VLOOKUP($A129,Filtro!$A$4:$AX$552,42,FALSE),0) -> 0
A130: P2500200 | B130: DIABETES TIPO I | D130: =IFERROR(VLOOKUP($A130,Filtro!$A$4:$AX$552,2,FALSE),0) -> 4 | E130: =IFERROR(VLOOKUP($A130,Filtro!$A$4:$AX$552,3,FALSE),0) -> 1 | F130: =IFERROR(VLOOKUP($A130,Filtro!$A$4:$AX$552,4,FALSE),0) -> 3 | G130: =IFERROR(VLOOKUP($A130,Filtro!$A$4:$AX$552,5,FALSE),0) -> 0 | H130: =IFERROR(VLOOKUP($A130,Filtro!$A$4:$AX$552,6,FALSE),0) -> 0 | I130: =IFERROR(VLOOKUP($A130,Filtro!$A$4:$AX$552,7,FALSE),0) -> 0 | J130: =IFERROR(VLOOKUP($A130,Filtro!$A$4:$AX$552,8,FALSE),0) -> 0 | K130: =IFERROR(VLOOKUP($A130,Filtro!$A$4:$AX$552,9,FALSE),0) -> 0 | L130: =IFERROR(VLOOKUP($A130,Filtro!$A$4:$AX$552,10,FALSE),0) -> 0 | M130: =IFERROR(VLOOKUP($A130,Filtro!$A$4:$AX$552,11,FALSE),0) -> 0 | N130: =IFERROR(VLOOKUP($A130,Filtro!$A$4:$AX$552,12,FALSE),0) -> 0 | O130: =IFERROR(VLOOKUP($A130,Filtro!$A$4:$AX$552,13,FALSE),0) -> 0 | P130: =IFERROR(VLOOKUP($A130,Filtro!$A$4:$AX$552,14,FALSE),0) -> 0 | Q130: =IFERROR(VLOOKUP($A130,Filtro!$A$4:$AX$552,15,FALSE),0) -> 0 | R130: =IFERROR(VLOOKUP($A130,Filtro!$A$4:$AX$552,16,FALSE),0) -> 0 | S130: =IFERROR(VLOOKUP($A130,Filtro!$A$4:$AX$552,17,FALSE),0) -> 0 | T130: =IFERROR(VLOOKUP($A130,Filtro!$A$4:$AX$552,18,FALSE),0) -> 0 | U130: =IFERROR(VLOOKUP($A130,Filtro!$A$4:$AX$552,19,FALSE),0) -> 0 | V130: =IFERROR(VLOOKUP($A130,Filtro!$A$4:$AX$552,20,FALSE),0) -> 0 | W130: =IFERROR(VLOOKUP($A130,Filtro!$A$4:$AX$552,21,FALSE),0) -> 0 | X130: =IFERROR(VLOOKUP($A130,Filtro!$A$4:$AX$552,22,FALSE),0) -> 0 | Y130: =IFERROR(VLOOKUP($A130,Filtro!$A$4:$AX$552,23,FALSE),0) -> 0 | Z130: =IFERROR(VLOOKUP($A130,Filtro!$A$4:$AX$552,24,FALSE),0) -> 0 | AA130: =IFERROR(VLOOKUP($A130,Filtro!$A$4:$AX$552,25,FALSE),0) -> 0 | AB130: =IFERROR(VLOOKUP($A130,Filtro!$A$4:$AX$552,26,FALSE),0) -> 0 | AC130: =IFERROR(VLOOKUP($A130,Filtro!$A$4:$AX$552,27,FALSE),0) -> 0 | AD130: =IFERROR(VLOOKUP($A130,Filtro!$A$4:$AX$552,28,FALSE),0) -> 3 | AE130: =IFERROR(VLOOKUP($A130,Filtro!$A$4:$AX$552,29,FALSE),0) -> 0 | AF130: =IFERROR(VLOOKUP($A130,Filtro!$A$4:$AX$552,30,FALSE),0) -> 0 | AG130: =IFERROR(VLOOKUP($A130,Filtro!$A$4:$AX$552,31,FALSE),0) -> 0 | AH130: =IFERROR(VLOOKUP($A130,Filtro!$A$4:$AX$552,32,FALSE),0) -> 0 | AI130: =IFERROR(VLOOKUP($A130,Filtro!$A$4:$AX$552,33,FALSE),0) -> 0 | AJ130: =IFERROR(VLOOKUP($A130,Filtro!$A$4:$AX$552,34,FALSE),0) -> 0 | AK130: =IFERROR(VLOOKUP($A130,Filtro!$A$4:$AX$552,35,FALSE),0) -> 1 | AL130: =IFERROR(VLOOKUP($A130,Filtro!$A$4:$AX$552,36,FALSE),0) -> 0 | AM130: =IFERROR(VLOOKUP($A130,Filtro!$A$4:$AX$552,37,FALSE),0) -> 0 | AN130: =IFERROR(VLOOKUP($A130,Filtro!$A$4:$AX$552,38,FALSE),0) -> 0 | AO130: =IFERROR(VLOOKUP($A130,Filtro!$A$4:$AX$552,39,FALSE),0) -> 0 | AP130: =IFERROR(VLOOKUP($A130,Filtro!$A$4:$AX$552,40,FALSE),0) -> 0 | AQ130: =IFERROR(VLOOKUP($A130,Filtro!$A$4:$AX$552,41,FALSE),0) -> 0 | AR130: =IFERROR(VLOOKUP($A130,Filtro!$A$4:$AX$552,42,FALSE),0) -> 1
A131: P2500300 | B131: DIABETES TIPO II | D131: =IFERROR(VLOOKUP($A131,Filtro!$A$4:$AX$552,2,FALSE),0) -> 0 | E131: =IFERROR(VLOOKUP($A131,Filtro!$A$4:$AX$552,3,FALSE),0) -> 0 | F131: =IFERROR(VLOOKUP($A131,Filtro!$A$4:$AX$552,4,FALSE),0) -> 0 | G131: =IFERROR(VLOOKUP($A131,Filtro!$A$4:$AX$552,5,FALSE),0) -> 0 | H131: =IFERROR(VLOOKUP($A131,Filtro!$A$4:$AX$552,6,FALSE),0) -> 0 | I131: =IFERROR(VLOOKUP($A131,Filtro!$A$4:$AX$552,7,FALSE),0) -> 0 | J131: =IFERROR(VLOOKUP($A131,Filtro!$A$4:$AX$552,8,FALSE),0) -> 0 | K131: =IFERROR(VLOOKUP($A131,Filtro!$A$4:$AX$552,9,FALSE),0) -> 0 | L131: =IFERROR(VLOOKUP($A131,Filtro!$A$4:$AX$552,10,FALSE),0) -> 0 | M131: =IFERROR(VLOOKUP($A131,Filtro!$A$4:$AX$552,11,FALSE),0) -> 0 | N131: =IFERROR(VLOOKUP($A131,Filtro!$A$4:$AX$552,12,FALSE),0) -> 0 | O131: =IFERROR(VLOOKUP($A131,Filtro!$A$4:$AX$552,13,FALSE),0) -> 0 | P131: =IFERROR(VLOOKUP($A131,Filtro!$A$4:$AX$552,14,FALSE),0) -> 0 | Q131: =IFERROR(VLOOKUP($A131,Filtro!$A$4:$AX$552,15,FALSE),0) -> 0 | R131: =IFERROR(VLOOKUP($A131,Filtro!$A$4:$AX$552,16,FALSE),0) -> 0 | S131: =IFERROR(VLOOKUP($A131,Filtro!$A$4:$AX$552,17,FALSE),0) -> 0 | T131: =IFERROR(VLOOKUP($A131,Filtro!$A$4:$AX$552,18,FALSE),0) -> 0 | U131: =IFERROR(VLOOKUP($A131,Filtro!$A$4:$AX$552,19,FALSE),0) -> 0 | V131: =IFERROR(VLOOKUP($A131,Filtro!$A$4:$AX$552,20,FALSE),0) -> 0 | W131: =IFERROR(VLOOKUP($A131,Filtro!$A$4:$AX$552,21,FALSE),0) -> 0 | X131: =IFERROR(VLOOKUP($A131,Filtro!$A$4:$AX$552,22,FALSE),0) -> 0 | Y131: =IFERROR(VLOOKUP($A131,Filtro!$A$4:$AX$552,23,FALSE),0) -> 0 | Z131: =IFERROR(VLOOKUP($A131,Filtro!$A$4:$AX$552,24,FALSE),0) -> 0 | AA131: =IFERROR(VLOOKUP($A131,Filtro!$A$4:$AX$552,25,FALSE),0) -> 0 | AB131: =IFERROR(VLOOKUP($A131,Filtro!$A$4:$AX$552,26,FALSE),0) -> 0 | AC131: =IFERROR(VLOOKUP($A131,Filtro!$A$4:$AX$552,27,FALSE),0) -> 0 | AD131: =IFERROR(VLOOKUP($A131,Filtro!$A$4:$AX$552,28,FALSE),0) -> 0 | AE131: =IFERROR(VLOOKUP($A131,Filtro!$A$4:$AX$552,29,FALSE),0) -> 0 | AF131: =IFERROR(VLOOKUP($A131,Filtro!$A$4:$AX$552,30,FALSE),0) -> 0 | AG131: =IFERROR(VLOOKUP($A131,Filtro!$A$4:$AX$552,31,FALSE),0) -> 0 | AH131: =IFERROR(VLOOKUP($A131,Filtro!$A$4:$AX$552,32,FALSE),0) -> 0 | AI131: =IFERROR(VLOOKUP($A131,Filtro!$A$4:$AX$552,33,FALSE),0) -> 0 | AJ131: =IFERROR(VLOOKUP($A131,Filtro!$A$4:$AX$552,34,FALSE),0) -> 0 | AK131: =IFERROR(VLOOKUP($A131,Filtro!$A$4:$AX$552,35,FALSE),0) -> 0 | AL131: =IFERROR(VLOOKUP($A131,Filtro!$A$4:$AX$552,36,FALSE),0) -> 0 | AM131: =IFERROR(VLOOKUP($A131,Filtro!$A$4:$AX$552,37,FALSE),0) -> 0 | AN131: =IFERROR(VLOOKUP($A131,Filtro!$A$4:$AX$552,38,FALSE),0) -> 0 | AO131: =IFERROR(VLOOKUP($A131,Filtro!$A$4:$AX$552,39,FALSE),0) -> 0 | AP131: =IFERROR(VLOOKUP($A131,Filtro!$A$4:$AX$552,40,FALSE),0) -> 0 | AQ131: =IFERROR(VLOOKUP($A131,Filtro!$A$4:$AX$552,41,FALSE),0) -> 0 | AR131: =IFERROR(VLOOKUP($A131,Filtro!$A$4:$AX$552,42,FALSE),0) -> 0
A132: P2500400 | B132: SÍNDROME DE DOWN | D132: =IFERROR(VLOOKUP($A132,Filtro!$A$4:$AX$552,2,FALSE),0) -> 109 | E132: =IFERROR(VLOOKUP($A132,Filtro!$A$4:$AX$552,3,FALSE),0) -> 53 | F132: =IFERROR(VLOOKUP($A132,Filtro!$A$4:$AX$552,4,FALSE),0) -> 56 | G132: =IFERROR(VLOOKUP($A132,Filtro!$A$4:$AX$552,5,FALSE),0) -> 0 | H132: =IFERROR(VLOOKUP($A132,Filtro!$A$4:$AX$552,6,FALSE),0) -> 1 | I132: =IFERROR(VLOOKUP($A132,Filtro!$A$4:$AX$552,7,FALSE),0) -> 1 | J132: =IFERROR(VLOOKUP($A132,Filtro!$A$4:$AX$552,8,FALSE),0) -> 0 | K132: =IFERROR(VLOOKUP($A132,Filtro!$A$4:$AX$552,9,FALSE),0) -> 1 | L132: =IFERROR(VLOOKUP($A132,Filtro!$A$4:$AX$552,10,FALSE),0) -> 1 | M132: =IFERROR(VLOOKUP($A132,Filtro!$A$4:$AX$552,11,FALSE),0) -> 0 | N132: =IFERROR(VLOOKUP($A132,Filtro!$A$4:$AX$552,12,FALSE),0) -> 0 | O132: =IFERROR(VLOOKUP($A132,Filtro!$A$4:$AX$552,13,FALSE),0) -> 0 | P132: =IFERROR(VLOOKUP($A132,Filtro!$A$4:$AX$552,14,FALSE),0) -> 0 | Q132: =IFERROR(VLOOKUP($A132,Filtro!$A$4:$AX$552,15,FALSE),0) -> 1 | R132: =IFERROR(VLOOKUP($A132,Filtro!$A$4:$AX$552,16,FALSE),0) -> 1 | S132: =IFERROR(VLOOKUP($A132,Filtro!$A$4:$AX$552,17,FALSE),0) -> 1 | T132: =IFERROR(VLOOKUP($A132,Filtro!$A$4:$AX$552,18,FALSE),0) -> 4 | U132: =IFERROR(VLOOKUP($A132,Filtro!$A$4:$AX$552,19,FALSE),0) -> 2 | V132: =IFERROR(VLOOKUP($A132,Filtro!$A$4:$AX$552,20,FALSE),0) -> 2 | W132: =IFERROR(VLOOKUP($A132,Filtro!$A$4:$AX$552,21,FALSE),0) -> 1 | X132: =IFERROR(VLOOKUP($A132,Filtro!$A$4:$AX$552,22,FALSE),0) -> 4 | Y132: =IFERROR(VLOOKUP($A132,Filtro!$A$4:$AX$552,23,FALSE),0) -> 2 | Z132: =IFERROR(VLOOKUP($A132,Filtro!$A$4:$AX$552,24,FALSE),0) -> 4 | AA132: =IFERROR(VLOOKUP($A132,Filtro!$A$4:$AX$552,25,FALSE),0) -> 7 | AB132: =IFERROR(VLOOKUP($A132,Filtro!$A$4:$AX$552,26,FALSE),0) -> 5 | AC132: =IFERROR(VLOOKUP($A132,Filtro!$A$4:$AX$552,27,FALSE),0) -> 6 | AD132: =IFERROR(VLOOKUP($A132,Filtro!$A$4:$AX$552,28,FALSE),0) -> 10 | AE132: =IFERROR(VLOOKUP($A132,Filtro!$A$4:$AX$552,29,FALSE),0) -> 2 | AF132: =IFERROR(VLOOKUP($A132,Filtro!$A$4:$AX$552,30,FALSE),0) -> 0 | AG132: =IFERROR(VLOOKUP($A132,Filtro!$A$4:$AX$552,31,FALSE),0) -> 2 | AH132: =IFERROR(VLOOKUP($A132,Filtro!$A$4:$AX$552,32,FALSE),0) -> 10 | AI132: =IFERROR(VLOOKUP($A132,Filtro!$A$4:$AX$552,33,FALSE),0) -> 5 | AJ132: =IFERROR(VLOOKUP($A132,Filtro!$A$4:$AX$552,34,FALSE),0) -> 5 | AK132: =IFERROR(VLOOKUP($A132,Filtro!$A$4:$AX$552,35,FALSE),0) -> 12 | AL132: =IFERROR(VLOOKUP($A132,Filtro!$A$4:$AX$552,36,FALSE),0) -> 5 | AM132: =IFERROR(VLOOKUP($A132,Filtro!$A$4:$AX$552,37,FALSE),0) -> 10 | AN132: =IFERROR(VLOOKUP($A132,Filtro!$A$4:$AX$552,38,FALSE),0) -> 4 | AO132: =IFERROR(VLOOKUP($A132,Filtro!$A$4:$AX$552,39,FALSE),0) -> 1 | AP132: =IFERROR(VLOOKUP($A132,Filtro!$A$4:$AX$552,40,FALSE),0) -> 0 | AQ132: =IFERROR(VLOOKUP($A132,Filtro!$A$4:$AX$552,41,FALSE),0) -> 1 | AR132: =IFERROR(VLOOKUP($A132,Filtro!$A$4:$AX$552,42,FALSE),0) -> 0
A133: P2500500 | B133: TRASTORNO DE ESPECTRO AUTISTA | D133: =IFERROR(VLOOKUP($A133,Filtro!$A$4:$AX$552,2,FALSE),0) -> 205 | E133: =IFERROR(VLOOKUP($A133,Filtro!$A$4:$AX$552,3,FALSE),0) -> 163 | F133: =IFERROR(VLOOKUP($A133,Filtro!$A$4:$AX$552,4,FALSE),0) -> 42 | G133: =IFERROR(VLOOKUP($A133,Filtro!$A$4:$AX$552,5,FALSE),0) -> 0 | H133: =IFERROR(VLOOKUP($A133,Filtro!$A$4:$AX$552,6,FALSE),0) -> 0 | I133: =IFERROR(VLOOKUP($A133,Filtro!$A$4:$AX$552,7,FALSE),0) -> 0 | J133: =IFERROR(VLOOKUP($A133,Filtro!$A$4:$AX$552,8,FALSE),0) -> 0 | K133: =IFERROR(VLOOKUP($A133,Filtro!$A$4:$AX$552,9,FALSE),0) -> 0 | L133: =IFERROR(VLOOKUP($A133,Filtro!$A$4:$AX$552,10,FALSE),0) -> 0 | M133: =IFERROR(VLOOKUP($A133,Filtro!$A$4:$AX$552,11,FALSE),0) -> 0 | N133: =IFERROR(VLOOKUP($A133,Filtro!$A$4:$AX$552,12,FALSE),0) -> 0 | O133: =IFERROR(VLOOKUP($A133,Filtro!$A$4:$AX$552,13,FALSE),0) -> 0 | P133: =IFERROR(VLOOKUP($A133,Filtro!$A$4:$AX$552,14,FALSE),0) -> 0 | Q133: =IFERROR(VLOOKUP($A133,Filtro!$A$4:$AX$552,15,FALSE),0) -> 0 | R133: =IFERROR(VLOOKUP($A133,Filtro!$A$4:$AX$552,16,FALSE),0) -> 0 | S133: =IFERROR(VLOOKUP($A133,Filtro!$A$4:$AX$552,17,FALSE),0) -> 0 | T133: =IFERROR(VLOOKUP($A133,Filtro!$A$4:$AX$552,18,FALSE),0) -> 0 | U133: =IFERROR(VLOOKUP($A133,Filtro!$A$4:$AX$552,19,FALSE),0) -> 0 | V133: =IFERROR(VLOOKUP($A133,Filtro!$A$4:$AX$552,20,FALSE),0) -> 0 | W133: =IFERROR(VLOOKUP($A133,Filtro!$A$4:$AX$552,21,FALSE),0) -> 0 | X133: =IFERROR(VLOOKUP($A133,Filtro!$A$4:$AX$552,22,FALSE),0) -> 0 | Y133: =IFERROR(VLOOKUP($A133,Filtro!$A$4:$AX$552,23,FALSE),0) -> 2 | Z133: =IFERROR(VLOOKUP($A133,Filtro!$A$4:$AX$552,24,FALSE),0) -> 2 | AA133: =IFERROR(VLOOKUP($A133,Filtro!$A$4:$AX$552,25,FALSE),0) -> 11 | AB133: =IFERROR(VLOOKUP($A133,Filtro!$A$4:$AX$552,26,FALSE),0) -> 7 | AC133: =IFERROR(VLOOKUP($A133,Filtro!$A$4:$AX$552,27,FALSE),0) -> 14 | AD133: =IFERROR(VLOOKUP($A133,Filtro!$A$4:$AX$552,28,FALSE),0) -> 8 | AE133: =IFERROR(VLOOKUP($A133,Filtro!$A$4:$AX$552,29,FALSE),0) -> 9 | AF133: =IFERROR(VLOOKUP($A133,Filtro!$A$4:$AX$552,30,FALSE),0) -> 2 | AG133: =IFERROR(VLOOKUP($A133,Filtro!$A$4:$AX$552,31,FALSE),0) -> 27 | AH133: =IFERROR(VLOOKUP($A133,Filtro!$A$4:$AX$552,32,FALSE),0) -> 7 | AI133: =IFERROR(VLOOKUP($A133,Filtro!$A$4:$AX$552,33,FALSE),0) -> 30 | AJ133: =IFERROR(VLOOKUP($A133,Filtro!$A$4:$AX$552,34,FALSE),0) -> 4 | AK133: =IFERROR(VLOOKUP($A133,Filtro!$A$4:$AX$552,35,FALSE),0) -> 46 | AL133: =IFERROR(VLOOKUP($A133,Filtro!$A$4:$AX$552,36,FALSE),0) -> 6 | AM133: =IFERROR(VLOOKUP($A133,Filtro!$A$4:$AX$552,37,FALSE),0) -> 24 | AN133: =IFERROR(VLOOKUP($A133,Filtro!$A$4:$AX$552,38,FALSE),0) -> 6 | AO133: =IFERROR(VLOOKUP($A133,Filtro!$A$4:$AX$552,39,FALSE),0) -> 1 | AP133: =IFERROR(VLOOKUP($A133,Filtro!$A$4:$AX$552,40,FALSE),0) -> 0 | AQ133: =IFERROR(VLOOKUP($A133,Filtro!$A$4:$AX$552,41,FALSE),0) -> 0 | AR133: =IFERROR(VLOOKUP($A133,Filtro!$A$4:$AX$552,42,FALSE),0) -> 0
A134: P2500600 | B134: FIBROSIS QUÍSTICA | D134: =IFERROR(VLOOKUP($A134,Filtro!$A$4:$AX$552,2,FALSE),0) -> 10 | E134: =IFERROR(VLOOKUP($A134,Filtro!$A$4:$AX$552,3,FALSE),0) -> 4 | F134: =IFERROR(VLOOKUP($A134,Filtro!$A$4:$AX$552,4,FALSE),0) -> 6 | G134: =IFERROR(VLOOKUP($A134,Filtro!$A$4:$AX$552,5,FALSE),0) -> 0 | H134: =IFERROR(VLOOKUP($A134,Filtro!$A$4:$AX$552,6,FALSE),0) -> 0 | I134: =IFERROR(VLOOKUP($A134,Filtro!$A$4:$AX$552,7,FALSE),0) -> 0 | J134: =IFERROR(VLOOKUP($A134,Filtro!$A$4:$AX$552,8,FALSE),0) -> 0 | K134: =IFERROR(VLOOKUP($A134,Filtro!$A$4:$AX$552,9,FALSE),0) -> 0 | L134: =IFERROR(VLOOKUP($A134,Filtro!$A$4:$AX$552,10,FALSE),0) -> 0 | M134: =IFERROR(VLOOKUP($A134,Filtro!$A$4:$AX$552,11,FALSE),0) -> 0 | N134: =IFERROR(VLOOKUP($A134,Filtro!$A$4:$AX$552,12,FALSE),0) -> 0 | O134: =IFERROR(VLOOKUP($A134,Filtro!$A$4:$AX$552,13,FALSE),0) -> 0 | P134: =IFERROR(VLOOKUP($A134,Filtro!$A$4:$AX$552,14,FALSE),0) -> 0 | Q134: =IFERROR(VLOOKUP($A134,Filtro!$A$4:$AX$552,15,FALSE),0) -> 0 | R134: =IFERROR(VLOOKUP($A134,Filtro!$A$4:$AX$552,16,FALSE),0) -> 0 | S134: =IFERROR(VLOOKUP($A134,Filtro!$A$4:$AX$552,17,FALSE),0) -> 0 | T134: =IFERROR(VLOOKUP($A134,Filtro!$A$4:$AX$552,18,FALSE),0) -> 0 | U134: =IFERROR(VLOOKUP($A134,Filtro!$A$4:$AX$552,19,FALSE),0) -> 0 | V134: =IFERROR(VLOOKUP($A134,Filtro!$A$4:$AX$552,20,FALSE),0) -> 0 | W134: =IFERROR(VLOOKUP($A134,Filtro!$A$4:$AX$552,21,FALSE),0) -> 2 | X134: =IFERROR(VLOOKUP($A134,Filtro!$A$4:$AX$552,22,FALSE),0) -> 0 | Y134: =IFERROR(VLOOKUP($A134,Filtro!$A$4:$AX$552,23,FALSE),0) -> 0 | Z134: =IFERROR(VLOOKUP($A134,Filtro!$A$4:$AX$552,24,FALSE),0) -> 1 | AA134: =IFERROR(VLOOKUP($A134,Filtro!$A$4:$AX$552,25,FALSE),0) -> 0 | AB134: =IFERROR(VLOOKUP($A134,Filtro!$A$4:$AX$552,26,FALSE),0) -> 1 | AC134: =IFERROR(VLOOKUP($A134,Filtro!$A$4:$AX$552,27,FALSE),0) -> 0 | AD134: =IFERROR(VLOOKUP($A134,Filtro!$A$4:$AX$552,28,FALSE),0) -> 1 | AE134: =IFERROR(VLOOKUP($A134,Filtro!$A$4:$AX$552,29,FALSE),0) -> 2 | AF134: =IFERROR(VLOOKUP($A134,Filtro!$A$4:$AX$552,30,FALSE),0) -> 0 | AG134: =IFERROR(VLOOKUP($A134,Filtro!$A$4:$AX$552,31,FALSE),0) -> 0 | AH134: =IFERROR(VLOOKUP($A134,Filtro!$A$4:$AX$552,32,FALSE),0) -> 0 | AI134: =IFERROR(VLOOKUP($A134,Filtro!$A$4:$AX$552,33,FALSE),0) -> 0 | AJ134: =IFERROR(VLOOKUP($A134,Filtro!$A$4:$AX$552,34,FALSE),0) -> 1 | AK134: =IFERROR(VLOOKUP($A134,Filtro!$A$4:$AX$552,35,FALSE),0) -> 0 | AL134: =IFERROR(VLOOKUP($A134,Filtro!$A$4:$AX$552,36,FALSE),0) -> 1 | AM134: =IFERROR(VLOOKUP($A134,Filtro!$A$4:$AX$552,37,FALSE),0) -> 0 | AN134: =IFERROR(VLOOKUP($A134,Filtro!$A$4:$AX$552,38,FALSE),0) -> 1 | AO134: =IFERROR(VLOOKUP($A134,Filtro!$A$4:$AX$552,39,FALSE),0) -> 0 | AP134: =IFERROR(VLOOKUP($A134,Filtro!$A$4:$AX$552,40,FALSE),0) -> 0 | AQ134: =IFERROR(VLOOKUP($A134,Filtro!$A$4:$AX$552,41,FALSE),0) -> 0 | AR134: =IFERROR(VLOOKUP($A134,Filtro!$A$4:$AX$552,42,FALSE),0) -> 0
A135: P2500700 | B135: PARÁLISIS CEREBRAL | D135: =IFERROR(VLOOKUP($A135,Filtro!$A$4:$AX$552,2,FALSE),0) -> 48 | E135: =IFERROR(VLOOKUP($A135,Filtro!$A$4:$AX$552,3,FALSE),0) -> 30 | F135: =IFERROR(VLOOKUP($A135,Filtro!$A$4:$AX$552,4,FALSE),0) -> 18 | G135: =IFERROR(VLOOKUP($A135,Filtro!$A$4:$AX$552,5,FALSE),0) -> 0 | H135: =IFERROR(VLOOKUP($A135,Filtro!$A$4:$AX$552,6,FALSE),0) -> 0 | I135: =IFERROR(VLOOKUP($A135,Filtro!$A$4:$AX$552,7,FALSE),0) -> 0 | J135: =IFERROR(VLOOKUP($A135,Filtro!$A$4:$AX$552,8,FALSE),0) -> 0 | K135: =IFERROR(VLOOKUP($A135,Filtro!$A$4:$AX$552,9,FALSE),0) -> 0 | L135: =IFERROR(VLOOKUP($A135,Filtro!$A$4:$AX$552,10,FALSE),0) -> 0 | M135: =IFERROR(VLOOKUP($A135,Filtro!$A$4:$AX$552,11,FALSE),0) -> 0 | N135: =IFERROR(VLOOKUP($A135,Filtro!$A$4:$AX$552,12,FALSE),0) -> 0 | O135: =IFERROR(VLOOKUP($A135,Filtro!$A$4:$AX$552,13,FALSE),0) -> 0 | P135: =IFERROR(VLOOKUP($A135,Filtro!$A$4:$AX$552,14,FALSE),0) -> 0 | Q135: =IFERROR(VLOOKUP($A135,Filtro!$A$4:$AX$552,15,FALSE),0) -> 0 | R135: =IFERROR(VLOOKUP($A135,Filtro!$A$4:$AX$552,16,FALSE),0) -> 0 | S135: =IFERROR(VLOOKUP($A135,Filtro!$A$4:$AX$552,17,FALSE),0) -> 0 | T135: =IFERROR(VLOOKUP($A135,Filtro!$A$4:$AX$552,18,FALSE),0) -> 0 | U135: =IFERROR(VLOOKUP($A135,Filtro!$A$4:$AX$552,19,FALSE),0) -> 0 | V135: =IFERROR(VLOOKUP($A135,Filtro!$A$4:$AX$552,20,FALSE),0) -> 0 | W135: =IFERROR(VLOOKUP($A135,Filtro!$A$4:$AX$552,21,FALSE),0) -> 2 | X135: =IFERROR(VLOOKUP($A135,Filtro!$A$4:$AX$552,22,FALSE),0) -> 1 | Y135: =IFERROR(VLOOKUP($A135,Filtro!$A$4:$AX$552,23,FALSE),0) -> 2 | Z135: =IFERROR(VLOOKUP($A135,Filtro!$A$4:$AX$552,24,FALSE),0) -> 0 | AA135: =IFERROR(VLOOKUP($A135,Filtro!$A$4:$AX$552,25,FALSE),0) -> 4 | AB135: =IFERROR(VLOOKUP($A135,Filtro!$A$4:$AX$552,26,FALSE),0) -> 1 | AC135: =IFERROR(VLOOKUP($A135,Filtro!$A$4:$AX$552,27,FALSE),0) -> 6 | AD135: =IFERROR(VLOOKUP($A135,Filtro!$A$4:$AX$552,28,FALSE),0) -> 3 | AE135: =IFERROR(VLOOKUP($A135,Filtro!$A$4:$AX$552,29,FALSE),0) -> 0 | AF135: =IFERROR(VLOOKUP($A135,Filtro!$A$4:$AX$552,30,FALSE),0) -> 1 | AG135: =IFERROR(VLOOKUP($A135,Filtro!$A$4:$AX$552,31,FALSE),0) -> 2 | AH135: =IFERROR(VLOOKUP($A135,Filtro!$A$4:$AX$552,32,FALSE),0) -> 3 | AI135: =IFERROR(VLOOKUP($A135,Filtro!$A$4:$AX$552,33,FALSE),0) -> 3 | AJ135: =IFERROR(VLOOKUP($A135,Filtro!$A$4:$AX$552,34,FALSE),0) -> 2 | AK135: =IFERROR(VLOOKUP($A135,Filtro!$A$4:$AX$552,35,FALSE),0) -> 6 | AL135: =IFERROR(VLOOKUP($A135,Filtro!$A$4:$AX$552,36,FALSE),0) -> 3 | AM135: =IFERROR(VLOOKUP($A135,Filtro!$A$4:$AX$552,37,FALSE),0) -> 5 | AN135: =IFERROR(VLOOKUP($A135,Filtro!$A$4:$AX$552,38,FALSE),0) -> 4 | AO135: =IFERROR(VLOOKUP($A135,Filtro!$A$4:$AX$552,39,FALSE),0) -> 0 | AP135: =IFERROR(VLOOKUP($A135,Filtro!$A$4:$AX$552,40,FALSE),0) -> 0 | AQ135: =IFERROR(VLOOKUP($A135,Filtro!$A$4:$AX$552,41,FALSE),0) -> 2 | AR135: =IFERROR(VLOOKUP($A135,Filtro!$A$4:$AX$552,42,FALSE),0) -> 0
A136: P2500800 | B136: ENFERMEDADES RENALES CRÓNICAS | D136: =IFERROR(VLOOKUP($A136,Filtro!$A$4:$AX$552,2,FALSE),0) -> 15 | E136: =IFERROR(VLOOKUP($A136,Filtro!$A$4:$AX$552,3,FALSE),0) -> 9 | F136: =IFERROR(VLOOKUP($A136,Filtro!$A$4:$AX$552,4,FALSE),0) -> 6 | G136: =IFERROR(VLOOKUP($A136,Filtro!$A$4:$AX$552,5,FALSE),0) -> 0 | H136: =IFERROR(VLOOKUP($A136,Filtro!$A$4:$AX$552,6,FALSE),0) -> 0 | I136: =IFERROR(VLOOKUP($A136,Filtro!$A$4:$AX$552,7,FALSE),0) -> 0 | J136: =IFERROR(VLOOKUP($A136,Filtro!$A$4:$AX$552,8,FALSE),0) -> 0 | K136: =IFERROR(VLOOKUP($A136,Filtro!$A$4:$AX$552,9,FALSE),0) -> 0 | L136: =IFERROR(VLOOKUP($A136,Filtro!$A$4:$AX$552,10,FALSE),0) -> 0 | M136: =IFERROR(VLOOKUP($A136,Filtro!$A$4:$AX$552,11,FALSE),0) -> 0 | N136: =IFERROR(VLOOKUP($A136,Filtro!$A$4:$AX$552,12,FALSE),0) -> 1 | O136: =IFERROR(VLOOKUP($A136,Filtro!$A$4:$AX$552,13,FALSE),0) -> 0 | P136: =IFERROR(VLOOKUP($A136,Filtro!$A$4:$AX$552,14,FALSE),0) -> 0 | Q136: =IFERROR(VLOOKUP($A136,Filtro!$A$4:$AX$552,15,FALSE),0) -> 1 | R136: =IFERROR(VLOOKUP($A136,Filtro!$A$4:$AX$552,16,FALSE),0) -> 0 | S136: =IFERROR(VLOOKUP($A136,Filtro!$A$4:$AX$552,17,FALSE),0) -> 1 | T136: =IFERROR(VLOOKUP($A136,Filtro!$A$4:$AX$552,18,FALSE),0) -> 0 | U136: =IFERROR(VLOOKUP($A136,Filtro!$A$4:$AX$552,19,FALSE),0) -> 0 | V136: =IFERROR(VLOOKUP($A136,Filtro!$A$4:$AX$552,20,FALSE),0) -> 0 | W136: =IFERROR(VLOOKUP($A136,Filtro!$A$4:$AX$552,21,FALSE),0) -> 0 | X136: =IFERROR(VLOOKUP($A136,Filtro!$A$4:$AX$552,22,FALSE),0) -> 0 | Y136: =IFERROR(VLOOKUP($A136,Filtro!$A$4:$AX$552,23,FALSE),0) -> 2 | Z136: =IFERROR(VLOOKUP($A136,Filtro!$A$4:$AX$552,24,FALSE),0) -> 0 | AA136: =IFERROR(VLOOKUP($A136,Filtro!$A$4:$AX$552,25,FALSE),0) -> 3 | AB136: =IFERROR(VLOOKUP($A136,Filtro!$A$4:$AX$552,26,FALSE),0) -> 4 | AC136: =IFERROR(VLOOKUP($A136,Filtro!$A$4:$AX$552,27,FALSE),0) -> 1 | AD136: =IFERROR(VLOOKUP($A136,Filtro!$A$4:$AX$552,28,FALSE),0) -> 0 | AE136: =IFERROR(VLOOKUP($A136,Filtro!$A$4:$AX$552,29,FALSE),0) -> 0 | AF136: =IFERROR(VLOOKUP($A136,Filtro!$A$4:$AX$552,30,FALSE),0) -> 0 | AG136: =IFERROR(VLOOKUP($A136,Filtro!$A$4:$AX$552,31,FALSE),0) -> 0 | AH136: =IFERROR(VLOOKUP($A136,Filtro!$A$4:$AX$552,32,FALSE),0) -> 0 | AI136: =IFERROR(VLOOKUP($A136,Filtro!$A$4:$AX$552,33,FALSE),0) -> 1 | AJ136: =IFERROR(VLOOKUP($A136,Filtro!$A$4:$AX$552,34,FALSE),0) -> 0 | AK136: =IFERROR(VLOOKUP($A136,Filtro!$A$4:$AX$552,35,FALSE),0) -> 0 | AL136: =IFERROR(VLOOKUP($A136,Filtro!$A$4:$AX$552,36,FALSE),0) -> 1 | AM136: =IFERROR(VLOOKUP($A136,Filtro!$A$4:$AX$552,37,FALSE),0) -> 0 | AN136: =IFERROR(VLOOKUP($A136,Filtro!$A$4:$AX$552,38,FALSE),0) -> 0 | AO136: =IFERROR(VLOOKUP($A136,Filtro!$A$4:$AX$552,39,FALSE),0) -> 0 | AP136: =IFERROR(VLOOKUP($A136,Filtro!$A$4:$AX$552,40,FALSE),0) -> 0 | AQ136: =IFERROR(VLOOKUP($A136,Filtro!$A$4:$AX$552,41,FALSE),0) -> 0 | AR136: =IFERROR(VLOOKUP($A136,Filtro!$A$4:$AX$552,42,FALSE),0) -> 0
A137: P2500900 | B137: ENFERMEDADES CARDIACAS CRÓNICAS | D137: =IFERROR(VLOOKUP($A137,Filtro!$A$4:$AX$552,2,FALSE),0) -> 41 | E137: =IFERROR(VLOOKUP($A137,Filtro!$A$4:$AX$552,3,FALSE),0) -> 18 | F137: =IFERROR(VLOOKUP($A137,Filtro!$A$4:$AX$552,4,FALSE),0) -> 23 | G137: =IFERROR(VLOOKUP($A137,Filtro!$A$4:$AX$552,5,FALSE),0) -> 0 | H137: =IFERROR(VLOOKUP($A137,Filtro!$A$4:$AX$552,6,FALSE),0) -> 1 | I137: =IFERROR(VLOOKUP($A137,Filtro!$A$4:$AX$552,7,FALSE),0) -> 1 | J137: =IFERROR(VLOOKUP($A137,Filtro!$A$4:$AX$552,8,FALSE),0) -> 0 | K137: =IFERROR(VLOOKUP($A137,Filtro!$A$4:$AX$552,9,FALSE),0) -> 0 | L137: =IFERROR(VLOOKUP($A137,Filtro!$A$4:$AX$552,10,FALSE),0) -> 0 | M137: =IFERROR(VLOOKUP($A137,Filtro!$A$4:$AX$552,11,FALSE),0) -> 0 | N137: =IFERROR(VLOOKUP($A137,Filtro!$A$4:$AX$552,12,FALSE),0) -> 0 | O137: =IFERROR(VLOOKUP($A137,Filtro!$A$4:$AX$552,13,FALSE),0) -> 0 | P137: =IFERROR(VLOOKUP($A137,Filtro!$A$4:$AX$552,14,FALSE),0) -> 1 | Q137: =IFERROR(VLOOKUP($A137,Filtro!$A$4:$AX$552,15,FALSE),0) -> 0 | R137: =IFERROR(VLOOKUP($A137,Filtro!$A$4:$AX$552,16,FALSE),0) -> 0 | S137: =IFERROR(VLOOKUP($A137,Filtro!$A$4:$AX$552,17,FALSE),0) -> 1 | T137: =IFERROR(VLOOKUP($A137,Filtro!$A$4:$AX$552,18,FALSE),0) -> 0 | U137: =IFERROR(VLOOKUP($A137,Filtro!$A$4:$AX$552,19,FALSE),0) -> 2 | V137: =IFERROR(VLOOKUP($A137,Filtro!$A$4:$AX$552,20,FALSE),0) -> 0 | W137: =IFERROR(VLOOKUP($A137,Filtro!$A$4:$AX$552,21,FALSE),0) -> 1 | X137: =IFERROR(VLOOKUP($A137,Filtro!$A$4:$AX$552,22,FALSE),0) -> 4 | Y137: =IFERROR(VLOOKUP($A137,Filtro!$A$4:$AX$552,23,FALSE),0) -> 1 | Z137: =IFERROR(VLOOKUP($A137,Filtro!$A$4:$AX$552,24,FALSE),0) -> 2 | AA137: =IFERROR(VLOOKUP($A137,Filtro!$A$4:$AX$552,25,FALSE),0) -> 4 | AB137: =IFERROR(VLOOKUP($A137,Filtro!$A$4:$AX$552,26,FALSE),0) -> 2 | AC137: =IFERROR(VLOOKUP($A137,Filtro!$A$4:$AX$552,27,FALSE),0) -> 3 | AD137: =IFERROR(VLOOKUP($A137,Filtro!$A$4:$AX$552,28,FALSE),0) -> 1 | AE137: =IFERROR(VLOOKUP($A137,Filtro!$A$4:$AX$552,29,FALSE),0) -> 0 | AF137: =IFERROR(VLOOKUP($A137,Filtro!$A$4:$AX$552,30,FALSE),0) -> 0 | AG137: =IFERROR(VLOOKUP($A137,Filtro!$A$4:$AX$552,31,FALSE),0) -> 0 | AH137: =IFERROR(VLOOKUP($A137,Filtro!$A$4:$AX$552,32,FALSE),0) -> 4 | AI137: =IFERROR(VLOOKUP($A137,Filtro!$A$4:$AX$552,33,FALSE),0) -> 0 | AJ137: =IFERROR(VLOOKUP($A137,Filtro!$A$4:$AX$552,34,FALSE),0) -> 4 | AK137: =IFERROR(VLOOKUP($A137,Filtro!$A$4:$AX$552,35,FALSE),0) -> 1 | AL137: =IFERROR(VLOOKUP($A137,Filtro!$A$4:$AX$552,36,FALSE),0) -> 4 | AM137: =IFERROR(VLOOKUP($A137,Filtro!$A$4:$AX$552,37,FALSE),0) -> 4 | AN137: =IFERROR(VLOOKUP($A137,Filtro!$A$4:$AX$552,38,FALSE),0) -> 0 | AO137: =IFERROR(VLOOKUP($A137,Filtro!$A$4:$AX$552,39,FALSE),0) -> 0 | AP137: =IFERROR(VLOOKUP($A137,Filtro!$A$4:$AX$552,40,FALSE),0) -> 0 | AQ137: =IFERROR(VLOOKUP($A137,Filtro!$A$4:$AX$552,41,FALSE),0) -> 0 | AR137: =IFERROR(VLOOKUP($A137,Filtro!$A$4:$AX$552,42,FALSE),0) -> 0
A138: P2501000 | B138: ENFERMEDADES GÁSTRICAS CRÓNICAS | D138: =IFERROR(VLOOKUP($A138,Filtro!$A$4:$AX$552,2,FALSE),0) -> 34 | E138: =IFERROR(VLOOKUP($A138,Filtro!$A$4:$AX$552,3,FALSE),0) -> 20 | F138: =IFERROR(VLOOKUP($A138,Filtro!$A$4:$AX$552,4,FALSE),0) -> 14 | G138: =IFERROR(VLOOKUP($A138,Filtro!$A$4:$AX$552,5,FALSE),0) -> 0 | H138: =IFERROR(VLOOKUP($A138,Filtro!$A$4:$AX$552,6,FALSE),0) -> 0 | I138: =IFERROR(VLOOKUP($A138,Filtro!$A$4:$AX$552,7,FALSE),0) -> 0 | J138: =IFERROR(VLOOKUP($A138,Filtro!$A$4:$AX$552,8,FALSE),0) -> 0 | K138: =IFERROR(VLOOKUP($A138,Filtro!$A$4:$AX$552,9,FALSE),0) -> 0 | L138: =IFERROR(VLOOKUP($A138,Filtro!$A$4:$AX$552,10,FALSE),0) -> 0 | M138: =IFERROR(VLOOKUP($A138,Filtro!$A$4:$AX$552,11,FALSE),0) -> 0 | N138: =IFERROR(VLOOKUP($A138,Filtro!$A$4:$AX$552,12,FALSE),0) -> 0 | O138: =IFERROR(VLOOKUP($A138,Filtro!$A$4:$AX$552,13,FALSE),0) -> 0 | P138: =IFERROR(VLOOKUP($A138,Filtro!$A$4:$AX$552,14,FALSE),0) -> 0 | Q138: =IFERROR(VLOOKUP($A138,Filtro!$A$4:$AX$552,15,FALSE),0) -> 0 | R138: =IFERROR(VLOOKUP($A138,Filtro!$A$4:$AX$552,16,FALSE),0) -> 0 | S138: =IFERROR(VLOOKUP($A138,Filtro!$A$4:$AX$552,17,FALSE),0) -> 1 | T138: =IFERROR(VLOOKUP($A138,Filtro!$A$4:$AX$552,18,FALSE),0) -> 1 | U138: =IFERROR(VLOOKUP($A138,Filtro!$A$4:$AX$552,19,FALSE),0) -> 2 | V138: =IFERROR(VLOOKUP($A138,Filtro!$A$4:$AX$552,20,FALSE),0) -> 3 | W138: =IFERROR(VLOOKUP($A138,Filtro!$A$4:$AX$552,21,FALSE),0) -> 1 | X138: =IFERROR(VLOOKUP($A138,Filtro!$A$4:$AX$552,22,FALSE),0) -> 0 | Y138: =IFERROR(VLOOKUP($A138,Filtro!$A$4:$AX$552,23,FALSE),0) -> 6 | Z138: =IFERROR(VLOOKUP($A138,Filtro!$A$4:$AX$552,24,FALSE),0) -> 3 | AA138: =IFERROR(VLOOKUP($A138,Filtro!$A$4:$AX$552,25,FALSE),0) -> 2 | AB138: =IFERROR(VLOOKUP($A138,Filtro!$A$4:$AX$552,26,FALSE),0) -> 0 | AC138: =IFERROR(VLOOKUP($A138,Filtro!$A$4:$AX$552,27,FALSE),0) -> 1 | AD138: =IFERROR(VLOOKUP($A138,Filtro!$A$4:$AX$552,28,FALSE),0) -> 2 | AE138: =IFERROR(VLOOKUP($A138,Filtro!$A$4:$AX$552,29,FALSE),0) -> 0 | AF138: =IFERROR(VLOOKUP($A138,Filtro!$A$4:$AX$552,30,FALSE),0) -> 1 | AG138: =IFERROR(VLOOKUP($A138,Filtro!$A$4:$AX$552,31,FALSE),0) -> 3 | AH138: =IFERROR(VLOOKUP($A138,Filtro!$A$4:$AX$552,32,FALSE),0) -> 3 | AI138: =IFERROR(VLOOKUP($A138,Filtro!$A$4:$AX$552,33,FALSE),0) -> 0 | AJ138: =IFERROR(VLOOKUP($A138,Filtro!$A$4:$AX$552,34,FALSE),0) -> 1 | AK138: =IFERROR(VLOOKUP($A138,Filtro!$A$4:$AX$552,35,FALSE),0) -> 2 | AL138: =IFERROR(VLOOKUP($A138,Filtro!$A$4:$AX$552,36,FALSE),0) -> 0 | AM138: =IFERROR(VLOOKUP($A138,Filtro!$A$4:$AX$552,37,FALSE),0) -> 2 | AN138: =IFERROR(VLOOKUP($A138,Filtro!$A$4:$AX$552,38,FALSE),0) -> 0 | AO138: =IFERROR(VLOOKUP($A138,Filtro!$A$4:$AX$552,39,FALSE),0) -> 0 | AP138: =IFERROR(VLOOKUP($A138,Filtro!$A$4:$AX$552,40,FALSE),0) -> 0 | AQ138: =IFERROR(VLOOKUP($A138,Filtro!$A$4:$AX$552,41,FALSE),0) -> 0 | AR138: =IFERROR(VLOOKUP($A138,Filtro!$A$4:$AX$552,42,FALSE),0) -> 0
A139: P2501100 | B139: ENFERMEDADES DEL OJO | D139: =IFERROR(VLOOKUP($A139,Filtro!$A$4:$AX$552,2,FALSE),0) -> 16 | E139: =IFERROR(VLOOKUP($A139,Filtro!$A$4:$AX$552,3,FALSE),0) -> 12 | F139: =IFERROR(VLOOKUP($A139,Filtro!$A$4:$AX$552,4,FALSE),0) -> 4 | G139: =IFERROR(VLOOKUP($A139,Filtro!$A$4:$AX$552,5,FALSE),0) -> 0 | H139: =IFERROR(VLOOKUP($A139,Filtro!$A$4:$AX$552,6,FALSE),0) -> 0 | I139: =IFERROR(VLOOKUP($A139,Filtro!$A$4:$AX$552,7,FALSE),0) -> 0 | J139: =IFERROR(VLOOKUP($A139,Filtro!$A$4:$AX$552,8,FALSE),0) -> 0 | K139: =IFERROR(VLOOKUP($A139,Filtro!$A$4:$AX$552,9,FALSE),0) -> 0 | L139: =IFERROR(VLOOKUP($A139,Filtro!$A$4:$AX$552,10,FALSE),0) -> 0 | M139: =IFERROR(VLOOKUP($A139,Filtro!$A$4:$AX$552,11,FALSE),0) -> 0 | N139: =IFERROR(VLOOKUP($A139,Filtro!$A$4:$AX$552,12,FALSE),0) -> 0 | O139: =IFERROR(VLOOKUP($A139,Filtro!$A$4:$AX$552,13,FALSE),0) -> 0 | P139: =IFERROR(VLOOKUP($A139,Filtro!$A$4:$AX$552,14,FALSE),0) -> 0 | Q139: =IFERROR(VLOOKUP($A139,Filtro!$A$4:$AX$552,15,FALSE),0) -> 0 | R139: =IFERROR(VLOOKUP($A139,Filtro!$A$4:$AX$552,16,FALSE),0) -> 0 | S139: =IFERROR(VLOOKUP($A139,Filtro!$A$4:$AX$552,17,FALSE),0) -> 0 | T139: =IFERROR(VLOOKUP($A139,Filtro!$A$4:$AX$552,18,FALSE),0) -> 0 | U139: =IFERROR(VLOOKUP($A139,Filtro!$A$4:$AX$552,19,FALSE),0) -> 0 | V139: =IFERROR(VLOOKUP($A139,Filtro!$A$4:$AX$552,20,FALSE),0) -> 0 | W139: =IFERROR(VLOOKUP($A139,Filtro!$A$4:$AX$552,21,FALSE),0) -> 0 | X139: =IFERROR(VLOOKUP($A139,Filtro!$A$4:$AX$552,22,FALSE),0) -> 1 | Y139: =IFERROR(VLOOKUP($A139,Filtro!$A$4:$AX$552,23,FALSE),0) -> 0 | Z139: =IFERROR(VLOOKUP($A139,Filtro!$A$4:$AX$552,24,FALSE),0) -> 0 | AA139: =IFERROR(VLOOKUP($A139,Filtro!$A$4:$AX$552,25,FALSE),0) -> 2 | AB139: =IFERROR(VLOOKUP($A139,Filtro!$A$4:$AX$552,26,FALSE),0) -> 1 | AC139: =IFERROR(VLOOKUP($A139,Filtro!$A$4:$AX$552,27,FALSE),0) -> 3 | AD139: =IFERROR(VLOOKUP($A139,Filtro!$A$4:$AX$552,28,FALSE),0) -> 1 | AE139: =IFERROR(VLOOKUP($A139,Filtro!$A$4:$AX$552,29,FALSE),0) -> 0 | AF139: =IFERROR(VLOOKUP($A139,Filtro!$A$4:$AX$552,30,FALSE),0) -> 0 | AG139: =IFERROR(VLOOKUP($A139,Filtro!$A$4:$AX$552,31,FALSE),0) -> 3 | AH139: =IFERROR(VLOOKUP($A139,Filtro!$A$4:$AX$552,32,FALSE),0) -> 1 | AI139: =IFERROR(VLOOKUP($A139,Filtro!$A$4:$AX$552,33,FALSE),0) -> 2 | AJ139: =IFERROR(VLOOKUP($A139,Filtro!$A$4:$AX$552,34,FALSE),0) -> 0 | AK139: =IFERROR(VLOOKUP($A139,Filtro!$A$4:$AX$552,35,FALSE),0) -> 1 | AL139: =IFERROR(VLOOKUP($A139,Filtro!$A$4:$AX$552,36,FALSE),0) -> 0 | AM139: =IFERROR(VLOOKUP($A139,Filtro!$A$4:$AX$552,37,FALSE),0) -> 1 | AN139: =IFERROR(VLOOKUP($A139,Filtro!$A$4:$AX$552,38,FALSE),0) -> 0 | AO139: =IFERROR(VLOOKUP($A139,Filtro!$A$4:$AX$552,39,FALSE),0) -> 0 | AP139: =IFERROR(VLOOKUP($A139,Filtro!$A$4:$AX$552,40,FALSE),0) -> 0 | AQ139: =IFERROR(VLOOKUP($A139,Filtro!$A$4:$AX$552,41,FALSE),0) -> 1 | AR139: =IFERROR(VLOOKUP($A139,Filtro!$A$4:$AX$552,42,FALSE),0) -> 0
A140: P2501200 | B140: ENFERMEDADES DEL OÍDO | D140: =IFERROR(VLOOKUP($A140,Filtro!$A$4:$AX$552,2,FALSE),0) -> 20 | E140: =IFERROR(VLOOKUP($A140,Filtro!$A$4:$AX$552,3,FALSE),0) -> 12 | F140: =IFERROR(VLOOKUP($A140,Filtro!$A$4:$AX$552,4,FALSE),0) -> 8 | G140: =IFERROR(VLOOKUP($A140,Filtro!$A$4:$AX$552,5,FALSE),0) -> 0 | H140: =IFERROR(VLOOKUP($A140,Filtro!$A$4:$AX$552,6,FALSE),0) -> 0 | I140: =IFERROR(VLOOKUP($A140,Filtro!$A$4:$AX$552,7,FALSE),0) -> 1 | J140: =IFERROR(VLOOKUP($A140,Filtro!$A$4:$AX$552,8,FALSE),0) -> 0 | K140: =IFERROR(VLOOKUP($A140,Filtro!$A$4:$AX$552,9,FALSE),0) -> 0 | L140: =IFERROR(VLOOKUP($A140,Filtro!$A$4:$AX$552,10,FALSE),0) -> 0 | M140: =IFERROR(VLOOKUP($A140,Filtro!$A$4:$AX$552,11,FALSE),0) -> 0 | N140: =IFERROR(VLOOKUP($A140,Filtro!$A$4:$AX$552,12,FALSE),0) -> 1 | O140: =IFERROR(VLOOKUP($A140,Filtro!$A$4:$AX$552,13,FALSE),0) -> 0 | P140: =IFERROR(VLOOKUP($A140,Filtro!$A$4:$AX$552,14,FALSE),0) -> 0 | Q140: =IFERROR(VLOOKUP($A140,Filtro!$A$4:$AX$552,15,FALSE),0) -> 0 | R140: =IFERROR(VLOOKUP($A140,Filtro!$A$4:$AX$552,16,FALSE),0) -> 0 | S140: =IFERROR(VLOOKUP($A140,Filtro!$A$4:$AX$552,17,FALSE),0) -> 0 | T140: =IFERROR(VLOOKUP($A140,Filtro!$A$4:$AX$552,18,FALSE),0) -> 0 | U140: =IFERROR(VLOOKUP($A140,Filtro!$A$4:$AX$552,19,FALSE),0) -> 0 | V140: =IFERROR(VLOOKUP($A140,Filtro!$A$4:$AX$552,20,FALSE),0) -> 0 | W140: =IFERROR(VLOOKUP($A140,Filtro!$A$4:$AX$552,21,FALSE),0) -> 1 | X140: =IFERROR(VLOOKUP($A140,Filtro!$A$4:$AX$552,22,FALSE),0) -> 2 | Y140: =IFERROR(VLOOKUP($A140,Filtro!$A$4:$AX$552,23,FALSE),0) -> 0 | Z140: =IFERROR(VLOOKUP($A140,Filtro!$A$4:$AX$552,24,FALSE),0) -> 0 | AA140: =IFERROR(VLOOKUP($A140,Filtro!$A$4:$AX$552,25,FALSE),0) -> 2 | AB140: =IFERROR(VLOOKUP($A140,Filtro!$A$4:$AX$552,26,FALSE),0) -> 1 | AC140: =IFERROR(VLOOKUP($A140,Filtro!$A$4:$AX$552,27,FALSE),0) -> 3 | AD140: =IFERROR(VLOOKUP($A140,Filtro!$A$4:$AX$552,28,FALSE),0) -> 0 | AE140: =IFERROR(VLOOKUP($A140,Filtro!$A$4:$AX$552,29,FALSE),0) -> 0 | AF140: =IFERROR(VLOOKUP($A140,Filtro!$A$4:$AX$552,30,FALSE),0) -> 1 | AG140: =IFERROR(VLOOKUP($A140,Filtro!$A$4:$AX$552,31,FALSE),0) -> 1 | AH140: =IFERROR(VLOOKUP($A140,Filtro!$A$4:$AX$552,32,FALSE),0) -> 1 | AI140: =IFERROR(VLOOKUP($A140,Filtro!$A$4:$AX$552,33,FALSE),0) -> 0 | AJ140: =IFERROR(VLOOKUP($A140,Filtro!$A$4:$AX$552,34,FALSE),0) -> 1 | AK140: =IFERROR(VLOOKUP($A140,Filtro!$A$4:$AX$552,35,FALSE),0) -> 2 | AL140: =IFERROR(VLOOKUP($A140,Filtro!$A$4:$AX$552,36,FALSE),0) -> 1 | AM140: =IFERROR(VLOOKUP($A140,Filtro!$A$4:$AX$552,37,FALSE),0) -> 2 | AN140: =IFERROR(VLOOKUP($A140,Filtro!$A$4:$AX$552,38,FALSE),0) -> 0 | AO140: =IFERROR(VLOOKUP($A140,Filtro!$A$4:$AX$552,39,FALSE),0) -> 0 | AP140: =IFERROR(VLOOKUP($A140,Filtro!$A$4:$AX$552,40,FALSE),0) -> 0 | AQ140: =IFERROR(VLOOKUP($A140,Filtro!$A$4:$AX$552,41,FALSE),0) -> 0 | AR140: =IFERROR(VLOOKUP($A140,Filtro!$A$4:$AX$552,42,FALSE),0) -> 0
A141: P2501300 | B141: ENFERMEDADES DE LA PIEL | D141: =IFERROR(VLOOKUP($A141,Filtro!$A$4:$AX$552,2,FALSE),0) -> 9 | E141: =IFERROR(VLOOKUP($A141,Filtro!$A$4:$AX$552,3,FALSE),0) -> 8 | F141: =IFERROR(VLOOKUP($A141,Filtro!$A$4:$AX$552,4,FALSE),0) -> 1 | G141: =IFERROR(VLOOKUP($A141,Filtro!$A$4:$AX$552,5,FALSE),0) -> 0 | H141: =IFERROR(VLOOKUP($A141,Filtro!$A$4:$AX$552,6,FALSE),0) -> 0 | I141: =IFERROR(VLOOKUP($A141,Filtro!$A$4:$AX$552,7,FALSE),0) -> 0 | J141: =IFERROR(VLOOKUP($A141,Filtro!$A$4:$AX$552,8,FALSE),0) -> 0 | K141: =IFERROR(VLOOKUP($A141,Filtro!$A$4:$AX$552,9,FALSE),0) -> 0 | L141: =IFERROR(VLOOKUP($A141,Filtro!$A$4:$AX$552,10,FALSE),0) -> 1 | M141: =IFERROR(VLOOKUP($A141,Filtro!$A$4:$AX$552,11,FALSE),0) -> 0 | N141: =IFERROR(VLOOKUP($A141,Filtro!$A$4:$AX$552,12,FALSE),0) -> 0 | O141: =IFERROR(VLOOKUP($A141,Filtro!$A$4:$AX$552,13,FALSE),0) -> 0 | P141: =IFERROR(VLOOKUP($A141,Filtro!$A$4:$AX$552,14,FALSE),0) -> 0 | Q141: =IFERROR(VLOOKUP($A141,Filtro!$A$4:$AX$552,15,FALSE),0) -> 0 | R141: =IFERROR(VLOOKUP($A141,Filtro!$A$4:$AX$552,16,FALSE),0) -> 0 | S141: =IFERROR(VLOOKUP($A141,Filtro!$A$4:$AX$552,17,FALSE),0) -> 0 | T141: =IFERROR(VLOOKUP($A141,Filtro!$A$4:$AX$552,18,FALSE),0) -> 0 | U141: =IFERROR(VLOOKUP($A141,Filtro!$A$4:$AX$552,19,FALSE),0) -> 0 | V141: =IFERROR(VLOOKUP($A141,Filtro!$A$4:$AX$552,20,FALSE),0) -> 0 | W141: =IFERROR(VLOOKUP($A141,Filtro!$A$4:$AX$552,21,FALSE),0) -> 1 | X141: =IFERROR(VLOOKUP($A141,Filtro!$A$4:$AX$552,22,FALSE),0) -> 0 | Y141: =IFERROR(VLOOKUP($A141,Filtro!$A$4:$AX$552,23,FALSE),0) -> 1 | Z141: =IFERROR(VLOOKUP($A141,Filtro!$A$4:$AX$552,24,FALSE),0) -> 0 | AA141: =IFERROR(VLOOKUP($A141,Filtro!$A$4:$AX$552,25,FALSE),0) -> 4 | AB141: =IFERROR(VLOOKUP($A141,Filtro!$A$4:$AX$552,26,FALSE),0) -> 0 | AC141: =IFERROR(VLOOKUP($A141,Filtro!$A$4:$AX$552,27,FALSE),0) -> 0 | AD141: =IFERROR(VLOOKUP($A141,Filtro!$A$4:$AX$552,28,FALSE),0) -> 0 | AE141: =IFERROR(VLOOKUP($A141,Filtro!$A$4:$AX$552,29,FALSE),0) -> 0 | AF141: =IFERROR(VLOOKUP($A141,Filtro!$A$4:$AX$552,30,FALSE),0) -> 0 | AG141: =IFERROR(VLOOKUP($A141,Filtro!$A$4:$AX$552,31,FALSE),0) -> 1 | AH141: =IFERROR(VLOOKUP($A141,Filtro!$A$4:$AX$552,32,FALSE),0) -> 0 | AI141: =IFERROR(VLOOKUP($A141,Filtro!$A$4:$AX$552,33,FALSE),0) -> 1 | AJ141: =IFERROR(VLOOKUP($A141,Filtro!$A$4:$AX$552,34,FALSE),0) -> 0 | AK141: =IFERROR(VLOOKUP($A141,Filtro!$A$4:$AX$552,35,FALSE),0) -> 0 | AL141: =IFERROR(VLOOKUP($A141,Filtro!$A$4:$AX$552,36,FALSE),0) -> 0 | AM141: =IFERROR(VLOOKUP($A141,Filtro!$A$4:$AX$552,37,FALSE),0) -> 0 | AN141: =IFERROR(VLOOKUP($A141,Filtro!$A$4:$AX$552,38,FALSE),0) -> 0 | AO141: =IFERROR(VLOOKUP($A141,Filtro!$A$4:$AX$552,39,FALSE),0) -> 0 | AP141: =IFERROR(VLOOKUP($A141,Filtro!$A$4:$AX$552,40,FALSE),0) -> 0 | AQ141: =IFERROR(VLOOKUP($A141,Filtro!$A$4:$AX$552,41,FALSE),0) -> 0 | AR141: =IFERROR(VLOOKUP($A141,Filtro!$A$4:$AX$552,42,FALSE),0) -> 0
A142: P2501400 | B142: NEOPLASIAS | D142: =IFERROR(VLOOKUP($A142,Filtro!$A$4:$AX$552,2,FALSE),0) -> 3 | E142: =IFERROR(VLOOKUP($A142,Filtro!$A$4:$AX$552,3,FALSE),0) -> 0 | F142: =IFERROR(VLOOKUP($A142,Filtro!$A$4:$AX$552,4,FALSE),0) -> 3 | G142: =IFERROR(VLOOKUP($A142,Filtro!$A$4:$AX$552,5,FALSE),0) -> 0 | H142: =IFERROR(VLOOKUP($A142,Filtro!$A$4:$AX$552,6,FALSE),0) -> 0 | I142: =IFERROR(VLOOKUP($A142,Filtro!$A$4:$AX$552,7,FALSE),0) -> 0 | J142: =IFERROR(VLOOKUP($A142,Filtro!$A$4:$AX$552,8,FALSE),0) -> 0 | K142: =IFERROR(VLOOKUP($A142,Filtro!$A$4:$AX$552,9,FALSE),0) -> 0 | L142: =IFERROR(VLOOKUP($A142,Filtro!$A$4:$AX$552,10,FALSE),0) -> 0 | M142: =IFERROR(VLOOKUP($A142,Filtro!$A$4:$AX$552,11,FALSE),0) -> 0 | N142: =IFERROR(VLOOKUP($A142,Filtro!$A$4:$AX$552,12,FALSE),0) -> 0 | O142: =IFERROR(VLOOKUP($A142,Filtro!$A$4:$AX$552,13,FALSE),0) -> 0 | P142: =IFERROR(VLOOKUP($A142,Filtro!$A$4:$AX$552,14,FALSE),0) -> 0 | Q142: =IFERROR(VLOOKUP($A142,Filtro!$A$4:$AX$552,15,FALSE),0) -> 0 | R142: =IFERROR(VLOOKUP($A142,Filtro!$A$4:$AX$552,16,FALSE),0) -> 0 | S142: =IFERROR(VLOOKUP($A142,Filtro!$A$4:$AX$552,17,FALSE),0) -> 0 | T142: =IFERROR(VLOOKUP($A142,Filtro!$A$4:$AX$552,18,FALSE),0) -> 0 | U142: =IFERROR(VLOOKUP($A142,Filtro!$A$4:$AX$552,19,FALSE),0) -> 0 | V142: =IFERROR(VLOOKUP($A142,Filtro!$A$4:$AX$552,20,FALSE),0) -> 0 | W142: =IFERROR(VLOOKUP($A142,Filtro!$A$4:$AX$552,21,FALSE),0) -> 0 | X142: =IFERROR(VLOOKUP($A142,Filtro!$A$4:$AX$552,22,FALSE),0) -> 0 | Y142: =IFERROR(VLOOKUP($A142,Filtro!$A$4:$AX$552,23,FALSE),0) -> 0 | Z142: =IFERROR(VLOOKUP($A142,Filtro!$A$4:$AX$552,24,FALSE),0) -> 0 | AA142: =IFERROR(VLOOKUP($A142,Filtro!$A$4:$AX$552,25,FALSE),0) -> 0 | AB142: =IFERROR(VLOOKUP($A142,Filtro!$A$4:$AX$552,26,FALSE),0) -> 0 | AC142: =IFERROR(VLOOKUP($A142,Filtro!$A$4:$AX$552,27,FALSE),0) -> 0 | AD142: =IFERROR(VLOOKUP($A142,Filtro!$A$4:$AX$552,28,FALSE),0) -> 0 | AE142: =IFERROR(VLOOKUP($A142,Filtro!$A$4:$AX$552,29,FALSE),0) -> 0 | AF142: =IFERROR(VLOOKUP($A142,Filtro!$A$4:$AX$552,30,FALSE),0) -> 0 | AG142: =IFERROR(VLOOKUP($A142,Filtro!$A$4:$AX$552,31,FALSE),0) -> 0 | AH142: =IFERROR(VLOOKUP($A142,Filtro!$A$4:$AX$552,32,FALSE),0) -> 1 | AI142: =IFERROR(VLOOKUP($A142,Filtro!$A$4:$AX$552,33,FALSE),0) -> 0 | AJ142: =IFERROR(VLOOKUP($A142,Filtro!$A$4:$AX$552,34,FALSE),0) -> 2 | AK142: =IFERROR(VLOOKUP($A142,Filtro!$A$4:$AX$552,35,FALSE),0) -> 0 | AL142: =IFERROR(VLOOKUP($A142,Filtro!$A$4:$AX$552,36,FALSE),0) -> 0 | AM142: =IFERROR(VLOOKUP($A142,Filtro!$A$4:$AX$552,37,FALSE),0) -> 0 | AN142: =IFERROR(VLOOKUP($A142,Filtro!$A$4:$AX$552,38,FALSE),0) -> 0 | AO142: =IFERROR(VLOOKUP($A142,Filtro!$A$4:$AX$552,39,FALSE),0) -> 0 | AP142: =IFERROR(VLOOKUP($A142,Filtro!$A$4:$AX$552,40,FALSE),0) -> 0 | AQ142: =IFERROR(VLOOKUP($A142,Filtro!$A$4:$AX$552,41,FALSE),0) -> 0 | AR142: =IFERROR(VLOOKUP($A142,Filtro!$A$4:$AX$552,42,FALSE),0) -> 0
A143: P2501500 | B143: MALFORMACIONES CONGÉNITAS, DEFORMIDADES Y ANOMALÍAS CROMOSÓMICAS | D143: =IFERROR(VLOOKUP($A143,Filtro!$A$4:$AX$552,2,FALSE),0) -> 215 | E143: =IFERROR(VLOOKUP($A143,Filtro!$A$4:$AX$552,3,FALSE),0) -> 112 | F143: =IFERROR(VLOOKUP($A143,Filtro!$A$4:$AX$552,4,FALSE),0) -> 103 | G143: =IFERROR(VLOOKUP($A143,Filtro!$A$4:$AX$552,5,FALSE),0) -> 2 | H143: =IFERROR(VLOOKUP($A143,Filtro!$A$4:$AX$552,6,FALSE),0) -> 0 | I143: =IFERROR(VLOOKUP($A143,Filtro!$A$4:$AX$552,7,FALSE),0) -> 1 | J143: =IFERROR(VLOOKUP($A143,Filtro!$A$4:$AX$552,8,FALSE),0) -> 1 | K143: =IFERROR(VLOOKUP($A143,Filtro!$A$4:$AX$552,9,FALSE),0) -> 0 | L143: =IFERROR(VLOOKUP($A143,Filtro!$A$4:$AX$552,10,FALSE),0) -> 0 | M143: =IFERROR(VLOOKUP($A143,Filtro!$A$4:$AX$552,11,FALSE),0) -> 0 | N143: =IFERROR(VLOOKUP($A143,Filtro!$A$4:$AX$552,12,FALSE),0) -> 1 | O143: =IFERROR(VLOOKUP($A143,Filtro!$A$4:$AX$552,13,FALSE),0) -> 0 | P143: =IFERROR(VLOOKUP($A143,Filtro!$A$4:$AX$552,14,FALSE),0) -> 0 | Q143: =IFERROR(VLOOKUP($A143,Filtro!$A$4:$AX$552,15,FALSE),0) -> 0 | R143: =IFERROR(VLOOKUP($A143,Filtro!$A$4:$AX$552,16,FALSE),0) -> 1 | S143: =IFERROR(VLOOKUP($A143,Filtro!$A$4:$AX$552,17,FALSE),0) -> 1 | T143: =IFERROR(VLOOKUP($A143,Filtro!$A$4:$AX$552,18,FALSE),0) -> 2 | U143: =IFERROR(VLOOKUP($A143,Filtro!$A$4:$AX$552,19,FALSE),0) -> 2 | V143: =IFERROR(VLOOKUP($A143,Filtro!$A$4:$AX$552,20,FALSE),0) -> 4 | W143: =IFERROR(VLOOKUP($A143,Filtro!$A$4:$AX$552,21,FALSE),0) -> 12 | X143: =IFERROR(VLOOKUP($A143,Filtro!$A$4:$AX$552,22,FALSE),0) -> 13 | Y143: =IFERROR(VLOOKUP($A143,Filtro!$A$4:$AX$552,23,FALSE),0) -> 6 | Z143: =IFERROR(VLOOKUP($A143,Filtro!$A$4:$AX$552,24,FALSE),0) -> 7 | AA143: =IFERROR(VLOOKUP($A143,Filtro!$A$4:$AX$552,25,FALSE),0) -> 9 | AB143: =IFERROR(VLOOKUP($A143,Filtro!$A$4:$AX$552,26,FALSE),0) -> 15 | AC143: =IFERROR(VLOOKUP($A143,Filtro!$A$4:$AX$552,27,FALSE),0) -> 9 | AD143: =IFERROR(VLOOKUP($A143,Filtro!$A$4:$AX$552,28,FALSE),0) -> 7 | AE143: =IFERROR(VLOOKUP($A143,Filtro!$A$4:$AX$552,29,FALSE),0) -> 0 | AF143: =IFERROR(VLOOKUP($A143,Filtro!$A$4:$AX$552,30,FALSE),0) -> 1 | AG143: =IFERROR(VLOOKUP($A143,Filtro!$A$4:$AX$552,31,FALSE),0) -> 19 | AH143: =IFERROR(VLOOKUP($A143,Filtro!$A$4:$AX$552,32,FALSE),0) -> 16 | AI143: =IFERROR(VLOOKUP($A143,Filtro!$A$4:$AX$552,33,FALSE),0) -> 10 | AJ143: =IFERROR(VLOOKUP($A143,Filtro!$A$4:$AX$552,34,FALSE),0) -> 11 | AK143: =IFERROR(VLOOKUP($A143,Filtro!$A$4:$AX$552,35,FALSE),0) -> 17 | AL143: =IFERROR(VLOOKUP($A143,Filtro!$A$4:$AX$552,36,FALSE),0) -> 13 | AM143: =IFERROR(VLOOKUP($A143,Filtro!$A$4:$AX$552,37,FALSE),0) -> 24 | AN143: =IFERROR(VLOOKUP($A143,Filtro!$A$4:$AX$552,38,FALSE),0) -> 11 | AO143: =IFERROR(VLOOKUP($A143,Filtro!$A$4:$AX$552,39,FALSE),0) -> 1 | AP143: =IFERROR(VLOOKUP($A143,Filtro!$A$4:$AX$552,40,FALSE),0) -> 0 | AQ143: =IFERROR(VLOOKUP($A143,Filtro!$A$4:$AX$552,41,FALSE),0) -> 1 | AR143: =IFERROR(VLOOKUP($A143,Filtro!$A$4:$AX$552,42,FALSE),0) -> 2
A144: P2501600 | B144: PREMATUROS | D144: =IFERROR(VLOOKUP($A144,Filtro!$A$4:$AX$552,2,FALSE),0) -> 1563 | E144: =IFERROR(VLOOKUP($A144,Filtro!$A$4:$AX$552,3,FALSE),0) -> 866 | F144: =IFERROR(VLOOKUP($A144,Filtro!$A$4:$AX$552,4,FALSE),0) -> 697 | G144: =IFERROR(VLOOKUP($A144,Filtro!$A$4:$AX$552,5,FALSE),0) -> 4 | H144: =IFERROR(VLOOKUP($A144,Filtro!$A$4:$AX$552,6,FALSE),0) -> 2 | I144: =IFERROR(VLOOKUP($A144,Filtro!$A$4:$AX$552,7,FALSE),0) -> 7 | J144: =IFERROR(VLOOKUP($A144,Filtro!$A$4:$AX$552,8,FALSE),0) -> 7 | K144: =IFERROR(VLOOKUP($A144,Filtro!$A$4:$AX$552,9,FALSE),0) -> 16 | L144: =IFERROR(VLOOKUP($A144,Filtro!$A$4:$AX$552,10,FALSE),0) -> 7 | M144: =IFERROR(VLOOKUP($A144,Filtro!$A$4:$AX$552,11,FALSE),0) -> 8 | N144: =IFERROR(VLOOKUP($A144,Filtro!$A$4:$AX$552,12,FALSE),0) -> 14 | O144: =IFERROR(VLOOKUP($A144,Filtro!$A$4:$AX$552,13,FALSE),0) -> 15 | P144: =IFERROR(VLOOKUP($A144,Filtro!$A$4:$AX$552,14,FALSE),0) -> 13 | Q144: =IFERROR(VLOOKUP($A144,Filtro!$A$4:$AX$552,15,FALSE),0) -> 15 | R144: =IFERROR(VLOOKUP($A144,Filtro!$A$4:$AX$552,16,FALSE),0) -> 13 | S144: =IFERROR(VLOOKUP($A144,Filtro!$A$4:$AX$552,17,FALSE),0) -> 15 | T144: =IFERROR(VLOOKUP($A144,Filtro!$A$4:$AX$552,18,FALSE),0) -> 10 | U144: =IFERROR(VLOOKUP($A144,Filtro!$A$4:$AX$552,19,FALSE),0) -> 69 | V144: =IFERROR(VLOOKUP($A144,Filtro!$A$4:$AX$552,20,FALSE),0) -> 44 | W144: =IFERROR(VLOOKUP($A144,Filtro!$A$4:$AX$552,21,FALSE),0) -> 69 | X144: =IFERROR(VLOOKUP($A144,Filtro!$A$4:$AX$552,22,FALSE),0) -> 54 | Y144: =IFERROR(VLOOKUP($A144,Filtro!$A$4:$AX$552,23,FALSE),0) -> 71 | Z144: =IFERROR(VLOOKUP($A144,Filtro!$A$4:$AX$552,24,FALSE),0) -> 69 | AA144: =IFERROR(VLOOKUP($A144,Filtro!$A$4:$AX$552,25,FALSE),0) -> 114 | AB144: =IFERROR(VLOOKUP($A144,Filtro!$A$4:$AX$552,26,FALSE),0) -> 99 | AC144: =IFERROR(VLOOKUP($A144,Filtro!$A$4:$AX$552,27,FALSE),0) -> 64 | AD144: =IFERROR(VLOOKUP($A144,Filtro!$A$4:$AX$552,28,FALSE),0) -> 50 | AE144: =IFERROR(VLOOKUP($A144,Filtro!$A$4:$AX$552,29,FALSE),0) -> 47 | AF144: =IFERROR(VLOOKUP($A144,Filtro!$A$4:$AX$552,30,FALSE),0) -> 38 | AG144: =IFERROR(VLOOKUP($A144,Filtro!$A$4:$AX$552,31,FALSE),0) -> 98 | AH144: =IFERROR(VLOOKUP($A144,Filtro!$A$4:$AX$552,32,FALSE),0) -> 93 | AI144: =IFERROR(VLOOKUP($A144,Filtro!$A$4:$AX$552,33,FALSE),0) -> 86 | AJ144: =IFERROR(VLOOKUP($A144,Filtro!$A$4:$AX$552,34,FALSE),0) -> 67 | AK144: =IFERROR(VLOOKUP($A144,Filtro!$A$4:$AX$552,35,FALSE),0) -> 115 | AL144: =IFERROR(VLOOKUP($A144,Filtro!$A$4:$AX$552,36,FALSE),0) -> 78 | AM144: =IFERROR(VLOOKUP($A144,Filtro!$A$4:$AX$552,37,FALSE),0) -> 53 | AN144: =IFERROR(VLOOKUP($A144,Filtro!$A$4:$AX$552,38,FALSE),0) -> 39 | AO144: =IFERROR(VLOOKUP($A144,Filtro!$A$4:$AX$552,39,FALSE),0) -> 5 | AP144: =IFERROR(VLOOKUP($A144,Filtro!$A$4:$AX$552,40,FALSE),0) -> 4 | AQ144: =IFERROR(VLOOKUP($A144,Filtro!$A$4:$AX$552,41,FALSE),0) -> 2 | AR144: =IFERROR(VLOOKUP($A144,Filtro!$A$4:$AX$552,42,FALSE),0) -> 2
A145: P2501700 | B145: HOSPITALIZACIÓN DOMICILIARIA | D145: =IFERROR(VLOOKUP($A145,Filtro!$A$4:$AX$552,2,FALSE),0) -> 6 | E145: =IFERROR(VLOOKUP($A145,Filtro!$A$4:$AX$552,3,FALSE),0) -> 3 | F145: =IFERROR(VLOOKUP($A145,Filtro!$A$4:$AX$552,4,FALSE),0) -> 3 | G145: =IFERROR(VLOOKUP($A145,Filtro!$A$4:$AX$552,5,FALSE),0) -> 0 | H145: =IFERROR(VLOOKUP($A145,Filtro!$A$4:$AX$552,6,FALSE),0) -> 0 | I145: =IFERROR(VLOOKUP($A145,Filtro!$A$4:$AX$552,7,FALSE),0) -> 0 | J145: =IFERROR(VLOOKUP($A145,Filtro!$A$4:$AX$552,8,FALSE),0) -> 0 | K145: =IFERROR(VLOOKUP($A145,Filtro!$A$4:$AX$552,9,FALSE),0) -> 0 | L145: =IFERROR(VLOOKUP($A145,Filtro!$A$4:$AX$552,10,FALSE),0) -> 0 | M145: =IFERROR(VLOOKUP($A145,Filtro!$A$4:$AX$552,11,FALSE),0) -> 0 | N145: =IFERROR(VLOOKUP($A145,Filtro!$A$4:$AX$552,12,FALSE),0) -> 0 | O145: =IFERROR(VLOOKUP($A145,Filtro!$A$4:$AX$552,13,FALSE),0) -> 0 | P145: =IFERROR(VLOOKUP($A145,Filtro!$A$4:$AX$552,14,FALSE),0) -> 0 | Q145: =IFERROR(VLOOKUP($A145,Filtro!$A$4:$AX$552,15,FALSE),0) -> 0 | R145: =IFERROR(VLOOKUP($A145,Filtro!$A$4:$AX$552,16,FALSE),0) -> 0 | S145: =IFERROR(VLOOKUP($A145,Filtro!$A$4:$AX$552,17,FALSE),0) -> 0 | T145: =IFERROR(VLOOKUP($A145,Filtro!$A$4:$AX$552,18,FALSE),0) -> 0 | U145: =IFERROR(VLOOKUP($A145,Filtro!$A$4:$AX$552,19,FALSE),0) -> 0 | V145: =IFERROR(VLOOKUP($A145,Filtro!$A$4:$AX$552,20,FALSE),0) -> 0 | W145: =IFERROR(VLOOKUP($A145,Filtro!$A$4:$AX$552,21,FALSE),0) -> 1 | X145: =IFERROR(VLOOKUP($A145,Filtro!$A$4:$AX$552,22,FALSE),0) -> 0 | Y145: =IFERROR(VLOOKUP($A145,Filtro!$A$4:$AX$552,23,FALSE),0) -> 0 | Z145: =IFERROR(VLOOKUP($A145,Filtro!$A$4:$AX$552,24,FALSE),0) -> 0 | AA145: =IFERROR(VLOOKUP($A145,Filtro!$A$4:$AX$552,25,FALSE),0) -> 0 | AB145: =IFERROR(VLOOKUP($A145,Filtro!$A$4:$AX$552,26,FALSE),0) -> 0 | AC145: =IFERROR(VLOOKUP($A145,Filtro!$A$4:$AX$552,27,FALSE),0) -> 0 | AD145: =IFERROR(VLOOKUP($A145,Filtro!$A$4:$AX$552,28,FALSE),0) -> 0 | AE145: =IFERROR(VLOOKUP($A145,Filtro!$A$4:$AX$552,29,FALSE),0) -> 0 | AF145: =IFERROR(VLOOKUP($A145,Filtro!$A$4:$AX$552,30,FALSE),0) -> 0 | AG145: =IFERROR(VLOOKUP($A145,Filtro!$A$4:$AX$552,31,FALSE),0) -> 0 | AH145: =IFERROR(VLOOKUP($A145,Filtro!$A$4:$AX$552,32,FALSE),0) -> 0 | AI145: =IFERROR(VLOOKUP($A145,Filtro!$A$4:$AX$552,33,FALSE),0) -> 1 | AJ145: =IFERROR(VLOOKUP($A145,Filtro!$A$4:$AX$552,34,FALSE),0) -> 1 | AK145: =IFERROR(VLOOKUP($A145,Filtro!$A$4:$AX$552,35,FALSE),0) -> 0 | AL145: =IFERROR(VLOOKUP($A145,Filtro!$A$4:$AX$552,36,FALSE),0) -> 1 | AM145: =IFERROR(VLOOKUP($A145,Filtro!$A$4:$AX$552,37,FALSE),0) -> 1 | AN145: =IFERROR(VLOOKUP($A145,Filtro!$A$4:$AX$552,38,FALSE),0) -> 1 | AO145: =IFERROR(VLOOKUP($A145,Filtro!$A$4:$AX$552,39,FALSE),0) -> 0 | AP145: =IFERROR(VLOOKUP($A145,Filtro!$A$4:$AX$552,40,FALSE),0) -> 0 | AQ145: =IFERROR(VLOOKUP($A145,Filtro!$A$4:$AX$552,41,FALSE),0) -> 0 | AR145: =IFERROR(VLOOKUP($A145,Filtro!$A$4:$AX$552,42,FALSE),0) -> 0
B146: TOTAL | D146: =SUM(E146:F146) -> 2455 | E146: =SUM(E129:E145) -> 1388 | F146: =SUM(F129:F145) -> 1067 | G146: =SUM(G129:G145) -> 6 | H146: =SUM(H129:H145) -> 4 | I146: 11 | J146: 8 | K146: 17 | L146: 9 | M146: 8 | N146: 17 | O146: 15 | P146: 14 | Q146: 17 | R146: 15 | S146: 20 | T146: 17 | U146: 79 | V146: 53 | W146: 93 | X146: 79 | Y146: 93 | Z146: 89 | AA146: 162 | AB146: 136 | AC146: 115 | AD146: 90 | AE146: 60 | AF146: 47 | AG146: 170 | AH146: 147 | AI146: 150 | AJ146: 106 | AK146: 229 | AL146: 154 | AM146: 143 | AN146: 82 | AO146: 8 | AP146: 4 | AQ146: 7 | AR146: 5
A150: CODIGOS NUEVOS
A152: P2500100
A153: P2500200
A154: P2500300
A155: P2500400
A156: P2500500
A157: P2500600
A158: P2500700
A159: P2500800
A160: P2500900
A161: P2501000
A162: P2501100
A163: P2501200
A164: P2501300
A165: P2501400
A166: P2501500
A167: P2501600
A168: P2501700

Sheet P3
B7: REM-P3. POBLACIÓN EN CONTROL OTROS PROGRAMAS
B8: SECCIÓN A: EXISTENCIA DE POBLACIÓN EN CONTROL
B9: PROGRAMAS | D9: TOTAL | G9: GRUPOS DE EDAD (en años) Y SEXO | AO9: Con espirometría vigente | AP9: Población Migrantes
G10: 0 a 4 años | I10: 5 a 9 años | K10: 10 a 14 años | M10: 15 a 19 años | O10: 20 a 24 años | Q10: 25 a 29 años | S10: 30 a 34 años | U10: 35 a 39 años | W10: 40 a 44 años | Y10: 45 a 49 años | AA10: 50 a 54 años | AC10: 55 a 59 años | AE10: 60 a 64 años | AG10: 65 a 69 años | AI10: 70 a 74 años | AK10: 75 a 79 años | AM10: 80 y más años
D11: Ambos sexos | E11: Hombres | F11: Mujeres | G11: Hombres | H11: Mujeres | I11: Hombres | J11: Mujeres | K11: Hombres | L11: Mujeres | M11: Hombres | N11: Mujeres | O11: Hombres | P11: Mujeres | Q11: Hombres | R11: Mujeres | S11: Hombres | T11: Mujeres | U11: Hombres | V11: Mujeres | W11: Hombres | X11: Mujeres | Y11: Hombres | Z11: Mujeres | AA11: Hombres | AB11: Mujeres | AC11: Hombres | AD11: Mujeres | AE11: Hombres | AF11: Mujeres | AG11: Hombres | AH11: Mujeres | AI11: Hombres | AJ11: Mujeres | AK11: Hombres | AL11: Mujeres | AM11: Hombres | AN11: Mujeres | AP11: Hombres | AQ11: Mujeres
A12: P3160950 | B12: SÍNDROME BRONQUIAL OBSTRUCTIVA RECURRENTE (SBOR) | C12: LEVE | D12: =IFERROR(VLOOKUP($A12,Filtro!$A$4:$AX$552,2,FALSE),0) -> 732 | E12: =IFERROR(VLOOKUP($A12,Filtro!$A$4:$AX$552,3,FALSE),0) -> 410 | F12: =IFERROR(VLOOKUP($A12,Filtro!$A$4:$AX$552,4,FALSE),0) -> 322 | G12: =IFERROR(VLOOKUP($A12,Filtro!$A$4:$AX$552,5,FALSE),0) -> 410 | H12: =IFERROR(VLOOKUP($A12,Filtro!$A$4:$AX$552,6,FALSE),0) -> 322 | I12: =IFERROR(VLOOKUP($A12,Filtro!$A$4:$AX$552,7,FALSE),0) -> 0 | J12: =IFERROR(VLOOKUP($A12,Filtro!$A$4:$AX$552,8,FALSE),0) -> 0 | K12: =IFERROR(VLOOKUP($A12,Filtro!$A$4:$AX$552,9,FALSE),0) -> 0 | L12: =IFERROR(VLOOKUP($A12,Filtro!$A$4:$AX$552,10,FALSE),0) -> 0 | M12: =IFERROR(VLOOKUP($A12,Filtro!$A$4:$AX$552,11,FALSE),0) -> 0 | N12: =IFERROR(VLOOKUP($A12,Filtro!$A$4:$AX$552,12,FALSE),0) -> 0 | O12: =IFERROR(VLOOKUP($A12,Filtro!$A$4:$AX$552,13,FALSE),0) -> 0 | P12: =IFERROR(VLOOKUP($A12,Filtro!$A$4:$AX$552,14,FALSE),0) -> 0 | Q12: =IFERROR(VLOOKUP($A12,Filtro!$A$4:$AX$552,15,FALSE),0) -> 0 | R12: =IFERROR(VLOOKUP($A12,Filtro!$A$4:$AX$552,16,FALSE),0) -> 0 | S12: =IFERROR(VLOOKUP($A12,Filtro!$A$4:$AX$552,17,FALSE),0) -> 0 | T12: =IFERROR(VLOOKUP($A12,Filtro!$A$4:$AX$552,18,FALSE),0) -> 0 | U12: =IFERROR(VLOOKUP($A12,Filtro!$A$4:$AX$552,19,FALSE),0) -> 0 | V12: =IFERROR(VLOOKUP($A12,Filtro!$A$4:$AX$552,20,FALSE),0) -> 0 | W12: =IFERROR(VLOOKUP($A12,Filtro!$A$4:$AX$552,21,FALSE),0) -> 0 | X12: =IFERROR(VLOOKUP($A12,Filtro!$A$4:$AX$552,22,FALSE),0) -> 0 | Y12: =IFERROR(VLOOKUP($A12,Filtro!$A$4:$AX$552,23,FALSE),0) -> 0 | Z12: =IFERROR(VLOOKUP($A12,Filtro!$A$4:$AX$552,24,FALSE),0) -> 0 | AA12: =IFERROR(VLOOKUP($A12,Filtro!$A$4:$AX$552,25,FALSE),0) -> 0 | AB12: =IFERROR(VLOOKUP($A12,Filtro!$A$4:$AX$552,26,FALSE),0) -> 0 | AC12: =IFERROR(VLOOKUP($A12,Filtro!$A$4:$AX$552,27,FALSE),0) -> 0 | AD12: =IFERROR(VLOOKUP($A12,Filtro!$A$4:$AX$552,28,FALSE),0) -> 0 | AE12: =IFERROR(VLOOKUP($A12,Filtro!$A$4:$AX$552,29,FALSE),0) -> 0 | AF12: =IFERROR(VLOOKUP($A12,Filtro!$A$4:$AX$552,30,FALSE),0) -> 0 | AG12: =IFERROR(VLOOKUP($A12,Filtro!$A$4:$AX$552,31,FALSE),0) -> 0 | AH12: =IFERROR(VLOOKUP($A12,Filtro!$A$4:$AX$552,32,FALSE),0) -> 0 | AI12: =IFERROR(VLOOKUP($A12,Filtro!$A$4:$AX$552,33,FALSE),0) -> 0 | AJ12: =IFERROR(VLOOKUP($A12,Filtro!$A$4:$AX$552,34,FALSE),0) -> 0 | AK12: =IFERROR(VLOOKUP($A12,Filtro!$A$4:$AX$552,35,FALSE),0) -> 0 | AL12: =IFERROR(VLOOKUP($A12,Filtro!$A$4:$AX$552,36,FALSE),0) -> 0 | AM12: =IFERROR(VLOOKUP($A12,Filtro!$A$4:$AX$552,37,FALSE),0) -> 0 | AN12: =IFERROR(VLOOKUP($A12,Filtro!$A$4:$AX$552,38,FALSE),0) -> 0 | AO12: =IFERROR(VLOOKUP($A12,Filtro!$A$4:$AX$552,39,FALSE),0) -> 0 | AP12: =IFERROR(VLOOKUP($A12,Filtro!$A$4:$AX$552,40,FALSE),0) -> 27 | AQ12: =IFERROR(VLOOKUP($A12,Filtro!$A$4:$AX$552,41,FALSE),0) -> 13 | AR12: =IFERROR(VLOOKUP($A12,Filtro!$A$4:$AX$552,42,FALSE),0) -> 0 | CC12: =IF($AO12<=$G12+$H12,"","* La Población bajo control con Espirometría Vigente no debe ser mayor al Total de Población en Control. ") ->  | CD12: =IF($D12>=$AP12+$AQ12,"","* La Población Migrantes no debe ser mayor al Total de Población en Control. ") ->  | CF12: =IF(AND(E12<>0,AP12=""),"* No olvide escribir en la celda de Población Migrantes (Digite CERO si no tiene). ",IF(AND(F12<>0,AQ12=""),"* No olvide escribir en la celda de Población Migrantes (Digite CERO si no tiene). ","")) ->  | CK12: =IF($AO12<=$G12+$H12,0,1) -> 0 | CL12: =IF($D12>=$AP12+$AQ12,0,1) -> 0 | CN12: =IF(AND(E12<>0,AP12=""),1,IF(AND(F12<>0,AQ12=""),1,0)) -> 0
A13: P3160960 | C13: MODERADO | D13: =IFERROR(VLOOKUP($A13,Filtro!$A$4:$AX$552,2,FALSE),0) -> 439 | E13: =IFERROR(VLOOKUP($A13,Filtro!$A$4:$AX$552,3,FALSE),0) -> 261 | F13: =IFERROR(VLOOKUP($A13,Filtro!$A$4:$AX$552,4,FALSE),0) -> 178 | G13: =IFERROR(VLOOKUP($A13,Filtro!$A$4:$AX$552,5,FALSE),0) -> 261 | H13: =IFERROR(VLOOKUP($A13,Filtro!$A$4:$AX$552,6,FALSE),0) -> 178 | I13: =IFERROR(VLOOKUP($A13,Filtro!$A$4:$AX$552,7,FALSE),0) -> 0 | J13: =IFERROR(VLOOKUP($A13,Filtro!$A$4:$AX$552,8,FALSE),0) -> 0 | K13: =IFERROR(VLOOKUP($A13,Filtro!$A$4:$AX$552,9,FALSE),0) -> 0 | L13: =IFERROR(VLOOKUP($A13,Filtro!$A$4:$AX$552,10,FALSE),0) -> 0 | M13: =IFERROR(VLOOKUP($A13,Filtro!$A$4:$AX$552,11,FALSE),0) -> 0 | N13: =IFERROR(VLOOKUP($A13,Filtro!$A$4:$AX$552,12,FALSE),0) -> 0 | O13: =IFERROR(VLOOKUP($A13,Filtro!$A$4:$AX$552,13,FALSE),0) -> 0 | P13: =IFERROR(VLOOKUP($A13,Filtro!$A$4:$AX$552,14,FALSE),0) -> 0 | Q13: =IFERROR(VLOOKUP($A13,Filtro!$A$4:$AX$552,15,FALSE),0) -> 0 | R13: =IFERROR(VLOOKUP($A13,Filtro!$A$4:$AX$552,16,FALSE),0) -> 0 | S13: =IFERROR(VLOOKUP($A13,Filtro!$A$4:$AX$552,17,FALSE),0) -> 0 | T13: =IFERROR(VLOOKUP($A13,Filtro!$A$4:$AX$552,18,FALSE),0) -> 0 | U13: =IFERROR(VLOOKUP($A13,Filtro!$A$4:$AX$552,19,FALSE),0) -> 0 | V13: =IFERROR(VLOOKUP($A13,Filtro!$A$4:$AX$552,20,FALSE),0) -> 0 | W13: =IFERROR(VLOOKUP($A13,Filtro!$A$4:$AX$552,21,FALSE),0) -> 0 | X13: =IFERROR(VLOOKUP($A13,Filtro!$A$4:$AX$552,22,FALSE),0) -> 0 | Y13: =IFERROR(VLOOKUP($A13,Filtro!$A$4:$AX$552,23,FALSE),0) -> 0 | Z13: =IFERROR(VLOOKUP($A13,Filtro!$A$4:$AX$552,24,FALSE),0) -> 0 | AA13: =IFERROR(VLOOKUP($A13,Filtro!$A$4:$AX$552,25,FALSE),0) -> 0 | AB13: =IFERROR(VLOOKUP($A13,Filtro!$A$4:$AX$552,26,FALSE),0) -> 0 | AC13: =IFERROR(VLOOKUP($A13,Filtro!$A$4:$AX$552,27,FALSE),0) -> 0 | AD13: =IFERROR(VLOOKUP($A13,Filtro!$A$4:$AX$552,28,FALSE),0) -> 0 | AE13: =IFERROR(VLOOKUP($A13,Filtro!$A$4:$AX$552,29,FALSE),0) -> 0 | AF13: =IFERROR(VLOOKUP($A13,Filtro!$A$4:$AX$552,30,FALSE),0) -> 0 | AG13: =IFERROR(VLOOKUP($A13,Filtro!$A$4:$AX$552,31,FALSE),0) -> 0 | AH13: =IFERROR(VLOOKUP($A13,Filtro!$A$4:$AX$552,32,FALSE),0) -> 0 | AI13: =IFERROR(VLOOKUP($A13,Filtro!$A$4:$AX$552,33,FALSE),0) -> 0 | AJ13: =IFERROR(VLOOKUP($A13,Filtro!$A$4:$AX$552,34,FALSE),0) -> 0 | AK13: =IFERROR(VLOOKUP($A13,Filtro!$A$4:$AX$552,35,FALSE),0) -> 0 | AL13: =IFERROR(VLOOKUP($A13,Filtro!$A$4:$AX$552,36,FALSE),0) -> 0 | AM13: =IFERROR(VLOOKUP($A13,Filtro!$A$4:$AX$552,37,FALSE),0) -> 0 | AN13: =IFERROR(VLOOKUP($A13,Filtro!$A$4:$AX$552,38,FALSE),0) -> 0 | AO13: =IFERROR(VLOOKUP($A13,Filtro!$A$4:$AX$552,39,FALSE),0) -> 0 | AP13: =IFERROR(VLOOKUP($A13,Filtro!$A$4:$AX$552,40,FALSE),0) -> 34 | AQ13: =IFERROR(VLOOKUP($A13,Filtro!$A$4:$AX$552,41,FALSE),0) -> 29 | AR13: =IFERROR(VLOOKUP($A13,Filtro!$A$4:$AX$552,42,FALSE),0) -> 0 | CC13: =IF($AO13<=$G13+$H13,"","* La Población bajo control con Espirometría Vigente no debe ser mayor al Total de Población en Control. ") ->  | CK13: =IF($AO13<=$G13+$H13,0,1) -> 0 | CL13: =IF($D13>=$AP13+$AQ13,0,1) -> 0 | CN13: 0
A14: P3160970 | C14: SEVERO | D14: =IFERROR(VLOOKUP($A14,Filtro!$A$4:$AX$552,2,FALSE),0) -> 10 | E14: =IFERROR(VLOOKUP($A14,Filtro!$A$4:$AX$552,3,FALSE),0) -> 9 | F14: =IFERROR(VLOOKUP($A14,Filtro!$A$4:$AX$552,4,FALSE),0) -> 1 | G14: =IFERROR(VLOOKUP($A14,Filtro!$A$4:$AX$552,5,FALSE),0) -> 9 | H14: =IFERROR(VLOOKUP($A14,Filtro!$A$4:$AX$552,6,FALSE),0) -> 1 | I14: =IFERROR(VLOOKUP($A14,Filtro!$A$4:$AX$552,7,FALSE),0) -> 0 | J14: =IFERROR(VLOOKUP($A14,Filtro!$A$4:$AX$552,8,FALSE),0) -> 0 | K14: =IFERROR(VLOOKUP($A14,Filtro!$A$4:$AX$552,9,FALSE),0) -> 0 | L14: =IFERROR(VLOOKUP($A14,Filtro!$A$4:$AX$552,10,FALSE),0) -> 0 | M14: =IFERROR(VLOOKUP($A14,Filtro!$A$4:$AX$552,11,FALSE),0) -> 0 | N14: =IFERROR(VLOOKUP($A14,Filtro!$A$4:$AX$552,12,FALSE),0) -> 0 | O14: =IFERROR(VLOOKUP($A14,Filtro!$A$4:$AX$552,13,FALSE),0) -> 0 | P14: =IFERROR(VLOOKUP($A14,Filtro!$A$4:$AX$552,14,FALSE),0) -> 0 | Q14: =IFERROR(VLOOKUP($A14,Filtro!$A$4:$AX$552,15,FALSE),0) -> 0 | R14: =IFERROR(VLOOKUP($A14,Filtro!$A$4:$AX$552,16,FALSE),0) -> 0 | S14: =IFERROR(VLOOKUP($A14,Filtro!$A$4:$AX$552,17,FALSE),0) -> 0 | T14: =IFERROR(VLOOKUP($A14,Filtro!$A$4:$AX$552,18,FALSE),0) -> 0 | U14: =IFERROR(VLOOKUP($A14,Filtro!$A$4:$AX$552,19,FALSE),0) -> 0 | V14: =IFERROR(VLOOKUP($A14,Filtro!$A$4:$AX$552,20,FALSE),0) -> 0 | W14: =IFERROR(VLOOKUP($A14,Filtro!$A$4:$AX$552,21,FALSE),0) -> 0 | X14: =IFERROR(VLOOKUP($A14,Filtro!$A$4:$AX$552,22,FALSE),0) -> 0 | Y14: =IFERROR(VLOOKUP($A14,Filtro!$A$4:$AX$552,23,FALSE),0) -> 0 | Z14: =IFERROR(VLOOKUP($A14,Filtro!$A$4:$AX$552,24,FALSE),0) -> 0 | AA14: =IFERROR(VLOOKUP($A14,Filtro!$A$4:$AX$552,25,FALSE),0) -> 0 | AB14: =IFERROR(VLOOKUP($A14,Filtro!$A$4:$AX$552,26,FALSE),0) -> 0 | AC14: =IFERROR(VLOOKUP($A14,Filtro!$A$4:$AX$552,27,FALSE),0) -> 0 | AD14: =IFERROR(VLOOKUP($A14,Filtro!$A$4:$AX$552,28,FALSE),0) -> 0 | AE14: =IFERROR(VLOOKUP($A14,Filtro!$A$4:$AX$552,29,FALSE),0) -> 0 | AF14: =IFERROR(VLOOKUP($A14,Filtro!$A$4:$AX$552,30,FALSE),0) -> 0 | AG14: =IFERROR(VLOOKUP($A14,Filtro!$A$4:$AX$552,31,FALSE),0) -> 0 | AH14: =IFERROR(VLOOKUP($A14,Filtro!$A$4:$AX$552,32,FALSE),0) -> 0 | AI14: =IFERROR(VLOOKUP($A14,Filtro!$A$4:$AX$552,33,FALSE),0) -> 0 | AJ14: =IFERROR(VLOOKUP($A14,Filtro!$A$4:$AX$552,34,FALSE),0) -> 0 | AK14: =IFERROR(VLOOKUP($A14,Filtro!$A$4:$AX$552,35,FALSE),0) -> 0 | AL14: =IFERROR(VLOOKUP($A14,Filtro!$A$4:$AX$552,36,FALSE),0) -> 0 | AM14: =IFERROR(VLOOKUP($A14,Filtro!$A$4:$AX$552,37,FALSE),0) -> 0 | AN14: =IFERROR(VLOOKUP($A14,Filtro!$A$4:$AX$552,38,FALSE),0) -> 0 | AO14: =IFERROR(VLOOKUP($A14,Filtro!$A$4:$AX$552,39,FALSE),0) -> 0 | AP14: =IFERROR(VLOOKUP($A14,Filtro!$A$4:$AX$552,40,FALSE),0) -> 1 | AQ14: =IFERROR(VLOOKUP($A14,Filtro!$A$4:$AX$552,41,FALSE),0) -> 0 | AR14: =IFERROR(VLOOKUP($A14,Filtro!$A$4:$AX$552,42,FALSE),0) -> 0 | CC14: =IF($AO14<=$G14+$H14,"","* La Población bajo control con Espirometría Vigente no debe ser mayor al Total de Población en Control. ") ->  | CK14: =IF($AO14<=$G14+$H14,0,1) -> 0 | CL14: 0 | CN14: 0
A15: P3160980 | B15: ASMA BRONQUIAL | C15: LEVE | D15: =IFERROR(VLOOKUP($A15,Filtro!$A$4:$AX$552,2,FALSE),0) -> 7346 | E15: =IFERROR(VLOOKUP($A15,Filtro!$A$4:$AX$552,3,FALSE),0) -> 2670 | F15: =IFERROR(VLOOKUP($A15,Filtro!$A$4:$AX$552,4,FALSE),0) -> 4676 | G15: =IFERROR(VLOOKUP($A15,Filtro!$A$4:$AX$552,5,FALSE),0) -> 109 | H15: =IFERROR(VLOOKUP($A15,Filtro!$A$4:$AX$552,6,FALSE),0) -> 66 | I15: =IFERROR(VLOOKUP($A15,Filtro!$A$4:$AX$552,7,FALSE),0) -> 679 | J15: =IFERROR(VLOOKUP($A15,Filtro!$A$4:$AX$552,8,FALSE),0) -> 486 | K15: =IFERROR(VLOOKUP($A15,Filtro!$A$4:$AX$552,9,FALSE),0) -> 581 | L15: =IFERROR(VLOOKUP($A15,Filtro!$A$4:$AX$552,10,FALSE),0) -> 417 | M15: =IFERROR(VLOOKUP($A15,Filtro!$A$4:$AX$552,11,FALSE),0) -> 319 | N15: =IFERROR(VLOOKUP($A15,Filtro!$A$4:$AX$552,12,FALSE),0) -> 314 | O15: =IFERROR(VLOOKUP($A15,Filtro!$A$4:$AX$552,13,FALSE),0) -> 141 | P15: =IFERROR(VLOOKUP($A15,Filtro!$A$4:$AX$552,14,FALSE),0) -> 223 | Q15: =IFERROR(VLOOKUP($A15,Filtro!$A$4:$AX$552,15,FALSE),0) -> 82 | R15: =IFERROR(VLOOKUP($A15,Filtro!$A$4:$AX$552,16,FALSE),0) -> 213 | S15: =IFERROR(VLOOKUP($A15,Filtro!$A$4:$AX$552,17,FALSE),0) -> 57 | T15: =IFERROR(VLOOKUP($A15,Filtro!$A$4:$AX$552,18,FALSE),0) -> 234 | U15: =IFERROR(VLOOKUP($A15,Filtro!$A$4:$AX$552,19,FALSE),0) -> 42 | V15: =IFERROR(VLOOKUP($A15,Filtro!$A$4:$AX$552,20,FALSE),0) -> 189 | W15: =IFERROR(VLOOKUP($A15,Filtro!$A$4:$AX$552,21,FALSE),0) -> 56 | X15: =IFERROR(VLOOKUP($A15,Filtro!$A$4:$AX$552,22,FALSE),0) -> 220 | Y15: =IFERROR(VLOOKUP($A15,Filtro!$A$4:$AX$552,23,FALSE),0) -> 52 | Z15: =IFERROR(VLOOKUP($A15,Filtro!$A$4:$AX$552,24,FALSE),0) -> 267 | AA15: =IFERROR(VLOOKUP($A15,Filtro!$A$4:$AX$552,25,FALSE),0) -> 60 | AB15: =IFERROR(VLOOKUP($A15,Filtro!$A$4:$AX$552,26,FALSE),0) -> 301 | AC15: =IFERROR(VLOOKUP($A15,Filtro!$A$4:$AX$552,27,FALSE),0) -> 82 | AD15: =IFERROR(VLOOKUP($A15,Filtro!$A$4:$AX$552,28,FALSE),0) -> 312 | AE15: =IFERROR(VLOOKUP($A15,Filtro!$A$4:$AX$552,29,FALSE),0) -> 76 | AF15: =IFERROR(VLOOKUP($A15,Filtro!$A$4:$AX$552,30,FALSE),0) -> 321 | AG15: =IFERROR(VLOOKUP($A15,Filtro!$A$4:$AX$552,31,FALSE),0) -> 89 | AH15: =IFERROR(VLOOKUP($A15,Filtro!$A$4:$AX$552,32,FALSE),0) -> 333 | AI15: =IFERROR(VLOOKUP($A15,Filtro!$A$4:$AX$552,33,FALSE),0) -> 83 | AJ15: =IFERROR(VLOOKUP($A15,Filtro!$A$4:$AX$552,34,FALSE),0) -> 294 | AK15: =IFERROR(VLOOKUP($A15,Filtro!$A$4:$AX$552,35,FALSE),0) -> 81 | AL15: =IFERROR(VLOOKUP($A15,Filtro!$A$4:$AX$552,36,FALSE),0) -> 239 | AM15: =IFERROR(VLOOKUP($A15,Filtro!$A$4:$AX$552,37,FALSE),0) -> 80 | AN15: =IFERROR(VLOOKUP($A15,Filtro!$A$4:$AX$552,38,FALSE),0) -> 244 | AO15: =IFERROR(VLOOKUP($A15,Filtro!$A$4:$AX$552,39,FALSE),0) -> 1696 | AP15: =IFERROR(VLOOKUP($A15,Filtro!$A$4:$AX$552,40,FALSE),0) -> 82 | AQ15: =IFERROR(VLOOKUP($A15,Filtro!$A$4:$AX$552,41,FALSE),0) -> 107 | AR15: =IFERROR(VLOOKUP($A15,Filtro!$A$4:$AX$552,42,FALSE),0) -> 0 | CC15: =IF($AO15<=SUM($G15:$AN15),"","* La Población bajo control con Espirometría Vigente no debe ser mayor al Total de Población en Control. ") ->  | CK15: =IF($AO15<=SUM($G15:$AN15),0,1) -> 0 | CL15: 0 | CN15: 0
A16: P3160990 | C16: MODERADO | D16: =IFERROR(VLOOKUP($A16,Filtro!$A$4:$AX$552,2,FALSE),0) -> 4322 | E16: =IFERROR(VLOOKUP($A16,Filtro!$A$4:$AX$552,3,FALSE),0) -> 1601 | F16: =IFERROR(VLOOKUP($A16,Filtro!$A$4:$AX$552,4,FALSE),0) -> 2721 | G16: =IFERROR(VLOOKUP($A16,Filtro!$A$4:$AX$552,5,FALSE),0) -> 68 | H16: =IFERROR(VLOOKUP($A16,Filtro!$A$4:$AX$552,6,FALSE),0) -> 54 | I16: =IFERROR(VLOOKUP($A16,Filtro!$A$4:$AX$552,7,FALSE),0) -> 499 | J16: =IFERROR(VLOOKUP($A16,Filtro!$A$4:$AX$552,8,FALSE),0) -> 364 | K16: =IFERROR(VLOOKUP($A16,Filtro!$A$4:$AX$552,9,FALSE),0) -> 354 | L16: =IFERROR(VLOOKUP($A16,Filtro!$A$4:$AX$552,10,FALSE),0) -> 284 | M16: =IFERROR(VLOOKUP($A16,Filtro!$A$4:$AX$552,11,FALSE),0) -> 191 | N16: =IFERROR(VLOOKUP($A16,Filtro!$A$4:$AX$552,12,FALSE),0) -> 196 | O16: =IFERROR(VLOOKUP($A16,Filtro!$A$4:$AX$552,13,FALSE),0) -> 49 | P16: =IFERROR(VLOOKUP($A16,Filtro!$A$4:$AX$552,14,FALSE),0) -> 95 | Q16: =IFERROR(VLOOKUP($A16,Filtro!$A$4:$AX$552,15,FALSE),0) -> 33 | R16: =IFERROR(VLOOKUP($A16,Filtro!$A$4:$AX$552,16,FALSE),0) -> 99 | S16: =IFERROR(VLOOKUP($A16,Filtro!$A$4:$AX$552,17,FALSE),0) -> 23 | T16: =IFERROR(VLOOKUP($A16,Filtro!$A$4:$AX$552,18,FALSE),0) -> 95 | U16: =IFERROR(VLOOKUP($A16,Filtro!$A$4:$AX$552,19,FALSE),0) -> 26 | V16: =IFERROR(VLOOKUP($A16,Filtro!$A$4:$AX$552,20,FALSE),0) -> 79 | W16: =IFERROR(VLOOKUP($A16,Filtro!$A$4:$AX$552,21,FALSE),0) -> 14 | X16: =IFERROR(VLOOKUP($A16,Filtro!$A$4:$AX$552,22,FALSE),0) -> 107 | Y16: =IFERROR(VLOOKUP($A16,Filtro!$A$4:$AX$552,23,FALSE),0) -> 30 | Z16: =IFERROR(VLOOKUP($A16,Filtro!$A$4:$AX$552,24,FALSE),0) -> 136 | AA16: =IFERROR(VLOOKUP($A16,Filtro!$A$4:$AX$552,25,FALSE),0) -> 33 | AB16: =IFERROR(VLOOKUP($A16,Filtro!$A$4:$AX$552,26,FALSE),0) -> 158 | AC16: =IFERROR(VLOOKUP($A16,Filtro!$A$4:$AX$552,27,FALSE),0) -> 28 | AD16: =IFERROR(VLOOKUP($A16,Filtro!$A$4:$AX$552,28,FALSE),0) -> 151 | AE16: =IFERROR(VLOOKUP($A16,Filtro!$A$4:$AX$552,29,FALSE),0) -> 44 | AF16: =IFERROR(VLOOKUP($A16,Filtro!$A$4:$AX$552,30,FALSE),0) -> 184 | AG16: =IFERROR(VLOOKUP($A16,Filtro!$A$4:$AX$552,31,FALSE),0) -> 52 | AH16: =IFERROR(VLOOKUP($A16,Filtro!$A$4:$AX$552,32,FALSE),0) -> 167 | AI16: =IFERROR(VLOOKUP($A16,Filtro!$A$4:$AX$552,33,FALSE),0) -> 47 | AJ16: =IFERROR(VLOOKUP($A16,Filtro!$A$4:$AX$552,34,FALSE),0) -> 209 | AK16: =IFERROR(VLOOKUP($A16,Filtro!$A$4:$AX$552,35,FALSE),0) -> 46 | AL16: =IFERROR(VLOOKUP($A16,Filtro!$A$4:$AX$552,36,FALSE),0) -> 146 | AM16: =IFERROR(VLOOKUP($A16,Filtro!$A$4:$AX$552,37,FALSE),0) -> 64 | AN16: =IFERROR(VLOOKUP($A16,Filtro!$A$4:$AX$552,38,FALSE),0) -> 196 | AO16: =IFERROR(VLOOKUP($A16,Filtro!$A$4:$AX$552,39,FALSE),0) -> 989 | AP16: =IFERROR(VLOOKUP($A16,Filtro!$A$4:$AX$552,40,FALSE),0) -> 93 | AQ16: =IFERROR(VLOOKUP($A16,Filtro!$A$4:$AX$552,41,FALSE),0) -> 97 | AR16: =IFERROR(VLOOKUP($A16,Filtro!$A$4:$AX$552,42,FALSE),0) -> 0 | CC16: =IF($AO16<=SUM($G16:$AN16),"","* La Población bajo control con Espirometría Vigente no debe ser mayor al Total de Población en Control. ") ->  | CK16: =IF($AO16<=SUM($G16:$AN16),0,1) -> 0 | CL16: 0 | CN16: 0
A17: P3161000 | C17: SEVERO | D17: =IFERROR(VLOOKUP($A17,Filtro!$A$4:$AX$552,2,FALSE),0) -> 719 | E17: =IFERROR(VLOOKUP($A17,Filtro!$A$4:$AX$552,3,FALSE),0) -> 179 | F17: =IFERROR(VLOOKUP($A17,Filtro!$A$4:$AX$552,4,FALSE),0) -> 540 | G17: =IFERROR(VLOOKUP($A17,Filtro!$A$4:$AX$552,5,FALSE),0) -> 0 | H17: =IFERROR(VLOOKUP($A17,Filtro!$A$4:$AX$552,6,FALSE),0) -> 0 | I17: =IFERROR(VLOOKUP($A17,Filtro!$A$4:$AX$552,7,FALSE),0) -> 8 | J17: =IFERROR(VLOOKUP($A17,Filtro!$A$4:$AX$552,8,FALSE),0) -> 7 | K17: =IFERROR(VLOOKUP($A17,Filtro!$A$4:$AX$552,9,FALSE),0) -> 12 | L17: =IFERROR(VLOOKUP($A17,Filtro!$A$4:$AX$552,10,FALSE),0) -> 6 | M17: =IFERROR(VLOOKUP($A17,Filtro!$A$4:$AX$552,11,FALSE),0) -> 6 | N17: =IFERROR(VLOOKUP($A17,Filtro!$A$4:$AX$552,12,FALSE),0) -> 5 | O17: =IFERROR(VLOOKUP($A17,Filtro!$A$4:$AX$552,13,FALSE),0) -> 8 | P17: =IFERROR(VLOOKUP($A17,Filtro!$A$4:$AX$552,14,FALSE),0) -> 7 | Q17: =IFERROR(VLOOKUP($A17,Filtro!$A$4:$AX$552,15,FALSE),0) -> 4 | R17: =IFERROR(VLOOKUP($A17,Filtro!$A$4:$AX$552,16,FALSE),0) -> 19 | S17: =IFERROR(VLOOKUP($A17,Filtro!$A$4:$AX$552,17,FALSE),0) -> 7 | T17: =IFERROR(VLOOKUP($A17,Filtro!$A$4:$AX$552,18,FALSE),0) -> 16 | U17: =IFERROR(VLOOKUP($A17,Filtro!$A$4:$AX$552,19,FALSE),0) -> 3 | V17: =IFERROR(VLOOKUP($A17,Filtro!$A$4:$AX$552,20,FALSE),0) -> 21 | W17: =IFERROR(VLOOKUP($A17,Filtro!$A$4:$AX$552,21,FALSE),0) -> 0 | X17: =IFERROR(VLOOKUP($A17,Filtro!$A$4:$AX$552,22,FALSE),0) -> 30 | Y17: =IFERROR(VLOOKUP($A17,Filtro!$A$4:$AX$552,23,FALSE),0) -> 11 | Z17: =IFERROR(VLOOKUP($A17,Filtro!$A$4:$AX$552,24,FALSE),0) -> 36 | AA17: =IFERROR(VLOOKUP($A17,Filtro!$A$4:$AX$552,25,FALSE),0) -> 8 | AB17: =IFERROR(VLOOKUP($A17,Filtro!$A$4:$AX$552,26,FALSE),0) -> 26 | AC17: =IFERROR(VLOOKUP($A17,Filtro!$A$4:$AX$552,27,FALSE),0) -> 12 | AD17: =IFERROR(VLOOKUP($A17,Filtro!$A$4:$AX$552,28,FALSE),0) -> 52 | AE17: =IFERROR(VLOOKUP($A17,Filtro!$A$4:$AX$552,29,FALSE),0) -> 18 | AF17: =IFERROR(VLOOKUP($A17,Filtro!$A$4:$AX$552,30,FALSE),0) -> 61 | AG17: =IFERROR(VLOOKUP($A17,Filtro!$A$4:$AX$552,31,FALSE),0) -> 16 | AH17: =IFERROR(VLOOKUP($A17,Filtro!$A$4:$AX$552,32,FALSE),0) -> 60 | AI17: =IFERROR(VLOOKUP($A17,Filtro!$A$4:$AX$552,33,FALSE),0) -> 23 | AJ17: =IFERROR(VLOOKUP($A17,Filtro!$A$4:$AX$552,34,FALSE),0) -> 71 | AK17: =IFERROR(VLOOKUP($A17,Filtro!$A$4:$AX$552,35,FALSE),0) -> 18 | AL17: =IFERROR(VLOOKUP($A17,Filtro!$A$4:$AX$552,36,FALSE),0) -> 56 | AM17: =IFERROR(VLOOKUP($A17,Filtro!$A$4:$AX$552,37,FALSE),0) -> 25 | AN17: =IFERROR(VLOOKUP($A17,Filtro!$A$4:$AX$552,38,FALSE),0) -> 67 | AO17: =IFERROR(VLOOKUP($A17,Filtro!$A$4:$AX$552,39,FALSE),0) -> 241 | AP17: =IFERROR(VLOOKUP($A17,Filtro!$A$4:$AX$552,40,FALSE),0) -> 2 | AQ17: =IFERROR(VLOOKUP($A17,Filtro!$A$4:$AX$552,41,FALSE),0) -> 2 | AR17: =IFERROR(VLOOKUP($A17,Filtro!$A$4:$AX$552,42,FALSE),0) -> 0 | CC17: =IF($AO17<=SUM($G17:$AN17),"","* La Población bajo control con Espirometría Vigente no debe ser mayor al Total de Población en Control. ") ->  | CK17: =IF($AO17<=SUM($G17:$AN17),0,1) -> 0 | CL17: 0 | CN17: 0
A18: P3161010 | B18: ENFERMEDAD PULMONAR OBSTRUCTIVA CRÓNICA (EPOC) | C18: TIPO A | D18: =IFERROR(VLOOKUP($A18,Filtro!$A$4:$AX$552,2,FALSE),0) -> 3077 | E18: =IFERROR(VLOOKUP($A18,Filtro!$A$4:$AX$552,3,FALSE),0) -> 1506 | F18: =IFERROR(VLOOKUP($A18,Filtro!$A$4:$AX$552,4,FALSE),0) -> 1571 | G18: =IFERROR(VLOOKUP($A18,Filtro!$A$4:$AX$552,5,FALSE),0) -> 0 | H18: =IFERROR(VLOOKUP($A18,Filtro!$A$4:$AX$552,6,FALSE),0) -> 0 | I18: =IFERROR(VLOOKUP($A18,Filtro!$A$4:$AX$552,7,FALSE),0) -> 0 | J18: =IFERROR(VLOOKUP($A18,Filtro!$A$4:$AX$552,8,FALSE),0) -> 0 | K18: =IFERROR(VLOOKUP($A18,Filtro!$A$4:$AX$552,9,FALSE),0) -> 0 | L18: =IFERROR(VLOOKUP($A18,Filtro!$A$4:$AX$552,10,FALSE),0) -> 0 | M18: =IFERROR(VLOOKUP($A18,Filtro!$A$4:$AX$552,11,FALSE),0) -> 0 | N18: =IFERROR(VLOOKUP($A18,Filtro!$A$4:$AX$552,12,FALSE),0) -> 0 | O18: =IFERROR(VLOOKUP($A18,Filtro!$A$4:$AX$552,13,FALSE),0) -> 0 | P18: =IFERROR(VLOOKUP($A18,Filtro!$A$4:$AX$552,14,FALSE),0) -> 0 | Q18: =IFERROR(VLOOKUP($A18,Filtro!$A$4:$AX$552,15,FALSE),0) -> 0 | R18: =IFERROR(VLOOKUP($A18,Filtro!$A$4:$AX$552,16,FALSE),0) -> 0 | S18: =IFERROR(VLOOKUP($A18,Filtro!$A$4:$AX$552,17,FALSE),0) -> 0 | T18: =IFERROR(VLOOKUP($A18,Filtro!$A$4:$AX$552,18,FALSE),0) -> 0 | U18: =IFERROR(VLOOKUP($A18,Filtro!$A$4:$AX$552,19,FALSE),0) -> 0 | V18: =IFERROR(VLOOKUP($A18,Filtro!$A$4:$AX$552,20,FALSE),0) -> 0 | W18: =IFERROR(VLOOKUP($A18,Filtro!$A$4:$AX$552,21,FALSE),0) -> 7 | X18: =IFERROR(VLOOKUP($A18,Filtro!$A$4:$AX$552,22,FALSE),0) -> 7 | Y18: =IFERROR(VLOOKUP($A18,Filtro!$A$4:$AX$552,23,FALSE),0) -> 8 | Z18: =IFERROR(VLOOKUP($A18,Filtro!$A$4:$AX$552,24,FALSE),0) -> 22 | AA18: =IFERROR(VLOOKUP($A18,Filtro!$A$4:$AX$552,25,FALSE),0) -> 24 | AB18: =IFERROR(VLOOKUP($A18,Filtro!$A$4:$AX$552,26,FALSE),0) -> 42 | AC18: =IFERROR(VLOOKUP($A18,Filtro!$A$4:$AX$552,27,FALSE),0) -> 55 | AD18: =IFERROR(VLOOKUP($A18,Filtro!$A$4:$AX$552,28,FALSE),0) -> 87 | AE18: =IFERROR(VLOOKUP($A18,Filtro!$A$4:$AX$552,29,FALSE),0) -> 130 | AF18: =IFERROR(VLOOKUP($A18,Filtro!$A$4:$AX$552,30,FALSE),0) -> 164 | AG18: =IFERROR(VLOOKUP($A18,Filtro!$A$4:$AX$552,31,FALSE),0) -> 199 | AH18: =IFERROR(VLOOKUP($A18,Filtro!$A$4:$AX$552,32,FALSE),0) -> 237 | AI18: =IFERROR(VLOOKUP($A18,Filtro!$A$4:$AX$552,33,FALSE),0) -> 269 | AJ18: =IFERROR(VLOOKUP($A18,Filtro!$A$4:$AX$552,34,FALSE),0) -> 250 | AK18: =IFERROR(VLOOKUP($A18,Filtro!$A$4:$AX$552,35,FALSE),0) -> 325 | AL18: =IFERROR(VLOOKUP($A18,Filtro!$A$4:$AX$552,36,FALSE),0) -> 282 | AM18: =IFERROR(VLOOKUP($A18,Filtro!$A$4:$AX$552,37,FALSE),0) -> 487 | AN18: =IFERROR(VLOOKUP($A18,Filtro!$A$4:$AX$552,38,FALSE),0) -> 480 | AO18: =IFERROR(VLOOKUP($A18,Filtro!$A$4:$AX$552,39,FALSE),0) -> 988 | AP18: =IFERROR(VLOOKUP($A18,Filtro!$A$4:$AX$552,40,FALSE),0) -> 72 | AQ18: =IFERROR(VLOOKUP($A18,Filtro!$A$4:$AX$552,41,FALSE),0) -> 66 | AR18: =IFERROR(VLOOKUP($A18,Filtro!$A$4:$AX$552,42,FALSE),0) -> 0 | CC18: =IF($AO18<=SUM($W18:$AN18),"","* La Población bajo control con Espirometría Vigente no debe ser mayor al Total de Población en Control. ") ->  | CK18: =IF($AO18<=SUM($W18:$AN18),0,1) -> 0 | CL18: 0 | CN18: 0
A19: P3161020 | C19: TIPO B | D19: =IFERROR(VLOOKUP($A19,Filtro!$A$4:$AX$552,2,FALSE),0) -> 498 | E19: =IFERROR(VLOOKUP($A19,Filtro!$A$4:$AX$552,3,FALSE),0) -> 266 | F19: =IFERROR(VLOOKUP($A19,Filtro!$A$4:$AX$552,4,FALSE),0) -> 232 | G19: =IFERROR(VLOOKUP($A19,Filtro!$A$4:$AX$552,5,FALSE),0) -> 0 | H19: =IFERROR(VLOOKUP($A19,Filtro!$A$4:$AX$552,6,FALSE),0) -> 0 | I19: =IFERROR(VLOOKUP($A19,Filtro!$A$4:$AX$552,7,FALSE),0) -> 0 | J19: =IFERROR(VLOOKUP($A19,Filtro!$A$4:$AX$552,8,FALSE),0) -> 0 | K19: =IFERROR(VLOOKUP($A19,Filtro!$A$4:$AX$552,9,FALSE),0) -> 0 | L19: =IFERROR(VLOOKUP($A19,Filtro!$A$4:$AX$552,10,FALSE),0) -> 0 | M19: =IFERROR(VLOOKUP($A19,Filtro!$A$4:$AX$552,11,FALSE),0) -> 0 | N19: =IFERROR(VLOOKUP($A19,Filtro!$A$4:$AX$552,12,FALSE),0) -> 0 | O19: =IFERROR(VLOOKUP($A19,Filtro!$A$4:$AX$552,13,FALSE),0) -> 0 | P19: =IFERROR(VLOOKUP($A19,Filtro!$A$4:$AX$552,14,FALSE),0) -> 0 | Q19: =IFERROR(VLOOKUP($A19,Filtro!$A$4:$AX$552,15,FALSE),0) -> 0 | R19: =IFERROR(VLOOKUP($A19,Filtro!$A$4:$AX$552,16,FALSE),0) -> 0 | S19: =IFERROR(VLOOKUP($A19,Filtro!$A$4:$AX$552,17,FALSE),0) -> 0 | T19: =IFERROR(VLOOKUP($A19,Filtro!$A$4:$AX$552,18,FALSE),0) -> 0 | U19: =IFERROR(VLOOKUP($A19,Filtro!$A$4:$AX$552,19,FALSE),0) -> 0 | V19: =IFERROR(VLOOKUP($A19,Filtro!$A$4:$AX$552,20,FALSE),0) -> 0 | W19: =IFERROR(VLOOKUP($A19,Filtro!$A$4:$AX$552,21,FALSE),0) -> 0 | X19: =IFERROR(VLOOKUP($A19,Filtro!$A$4:$AX$552,22,FALSE),0) -> 0 | Y19: =IFERROR(VLOOKUP($A19,Filtro!$A$4:$AX$552,23,FALSE),0) -> 0 | Z19: =IFERROR(VLOOKUP($A19,Filtro!$A$4:$AX$552,24,FALSE),0) -> 1 | AA19: =IFERROR(VLOOKUP($A19,Filtro!$A$4:$AX$552,25,FALSE),0) -> 2 | AB19: =IFERROR(VLOOKUP($A19,Filtro!$A$4:$AX$552,26,FALSE),0) -> 3 | AC19: =IFERROR(VLOOKUP($A19,Filtro!$A$4:$AX$552,27,FALSE),0) -> 7 | AD19: =IFERROR(VLOOKUP($A19,Filtro!$A$4:$AX$552,28,FALSE),0) -> 7 | AE19: =IFERROR(VLOOKUP($A19,Filtro!$A$4:$AX$552,29,FALSE),0) -> 18 | AF19: =IFERROR(VLOOKUP($A19,Filtro!$A$4:$AX$552,30,FALSE),0) -> 13 | AG19: =IFERROR(VLOOKUP($A19,Filtro!$A$4:$AX$552,31,FALSE),0) -> 26 | AH19: =IFERROR(VLOOKUP($A19,Filtro!$A$4:$AX$552,32,FALSE),0) -> 30 | AI19: =IFERROR(VLOOKUP($A19,Filtro!$A$4:$AX$552,33,FALSE),0) -> 44 | AJ19: =IFERROR(VLOOKUP($A19,Filtro!$A$4:$AX$552,34,FALSE),0) -> 35 | AK19: =IFERROR(VLOOKUP($A19,Filtro!$A$4:$AX$552,35,FALSE),0) -> 65 | AL19: =IFERROR(VLOOKUP($A19,Filtro!$A$4:$AX$552,36,FALSE),0) -> 45 | AM19: =IFERROR(VLOOKUP($A19,Filtro!$A$4:$AX$552,37,FALSE),0) -> 104 | AN19: =IFERROR(VLOOKUP($A19,Filtro!$A$4:$AX$552,38,FALSE),0) -> 98 | AO19: =IFERROR(VLOOKUP($A19,Filtro!$A$4:$AX$552,39,FALSE),0) -> 73 | AP19: =IFERROR(VLOOKUP($A19,Filtro!$A$4:$AX$552,40,FALSE),0) -> 5 | AQ19: =IFERROR(VLOOKUP($A19,Filtro!$A$4:$AX$552,41,FALSE),0) -> 19 | AR19: =IFERROR(VLOOKUP($A19,Filtro!$A$4:$AX$552,42,FALSE),0) -> 0 | CC19: =IF($AO19<=SUM($W19:$AN19),"","* La Población bajo control con Espirometría Vigente no debe ser mayor al Total de Población en Control. ") ->  | CK19: =IF($AO19<=SUM($W19:$AN19),0,1) -> 0 | CL19: 0 | CN19: 0
A20: P3161030 | B20: OTRAS RESPIRATORIAS CRONICAS | D20: =IFERROR(VLOOKUP($A20,Filtro!$A$4:$AX$552,2,FALSE),0) -> 1183 | E20: =IFERROR(VLOOKUP($A20,Filtro!$A$4:$AX$552,3,FALSE),0) -> 649 | F20: =IFERROR(VLOOKUP($A20,Filtro!$A$4:$AX$552,4,FALSE),0) -> 534 | G20: =IFERROR(VLOOKUP($A20,Filtro!$A$4:$AX$552,5,FALSE),0) -> 15 | H20: =IFERROR(VLOOKUP($A20,Filtro!$A$4:$AX$552,6,FALSE),0) -> 15 | I20: =IFERROR(VLOOKUP($A20,Filtro!$A$4:$AX$552,7,FALSE),0) -> 62 | J20: =IFERROR(VLOOKUP($A20,Filtro!$A$4:$AX$552,8,FALSE),0) -> 48 | K20: =IFERROR(VLOOKUP($A20,Filtro!$A$4:$AX$552,9,FALSE),0) -> 9 | L20: =IFERROR(VLOOKUP($A20,Filtro!$A$4:$AX$552,10,FALSE),0) -> 12 | M20: =IFERROR(VLOOKUP($A20,Filtro!$A$4:$AX$552,11,FALSE),0) -> 4 | N20: =IFERROR(VLOOKUP($A20,Filtro!$A$4:$AX$552,12,FALSE),0) -> 3 | O20: =IFERROR(VLOOKUP($A20,Filtro!$A$4:$AX$552,13,FALSE),0) -> 3 | P20: =IFERROR(VLOOKUP($A20,Filtro!$A$4:$AX$552,14,FALSE),0) -> 4 | Q20: =IFERROR(VLOOKUP($A20,Filtro!$A$4:$AX$552,15,FALSE),0) -> 1 | R20: =IFERROR(VLOOKUP($A20,Filtro!$A$4:$AX$552,16,FALSE),0) -> 4 | S20: =IFERROR(VLOOKUP($A20,Filtro!$A$4:$AX$552,17,FALSE),0) -> 1 | T20: =IFERROR(VLOOKUP($A20,Filtro!$A$4:$AX$552,18,FALSE),0) -> 6 | U20: =IFERROR(VLOOKUP($A20,Filtro!$A$4:$AX$552,19,FALSE),0) -> 1 | V20: =IFERROR(VLOOKUP($A20,Filtro!$A$4:$AX$552,20,FALSE),0) -> 4 | W20: =IFERROR(VLOOKUP($A20,Filtro!$A$4:$AX$552,21,FALSE),0) -> 4 | X20: =IFERROR(VLOOKUP($A20,Filtro!$A$4:$AX$552,22,FALSE),0) -> 9 | Y20: =IFERROR(VLOOKUP($A20,Filtro!$A$4:$AX$552,23,FALSE),0) -> 10 | Z20: =IFERROR(VLOOKUP($A20,Filtro!$A$4:$AX$552,24,FALSE),0) -> 9 | AA20: =IFERROR(VLOOKUP($A20,Filtro!$A$4:$AX$552,25,FALSE),0) -> 15 | AB20: =IFERROR(VLOOKUP($A20,Filtro!$A$4:$AX$552,26,FALSE),0) -> 8 | AC20: =IFERROR(VLOOKUP($A20,Filtro!$A$4:$AX$552,27,FALSE),0) -> 36 | AD20: =IFERROR(VLOOKUP($A20,Filtro!$A$4:$AX$552,28,FALSE),0) -> 27 | AE20: =IFERROR(VLOOKUP($A20,Filtro!$A$4:$AX$552,29,FALSE),0) -> 42 | AF20: =IFERROR(VLOOKUP($A20,Filtro!$A$4:$AX$552,30,FALSE),0) -> 44 | AG20: =IFERROR(VLOOKUP($A20,Filtro!$A$4:$AX$552,31,FALSE),0) -> 82 | AH20: =IFERROR(VLOOKUP($A20,Filtro!$A$4:$AX$552,32,FALSE),0) -> 65 | AI20: =IFERROR(VLOOKUP($A20,Filtro!$A$4:$AX$552,33,FALSE),0) -> 93 | AJ20: =IFERROR(VLOOKUP($A20,Filtro!$A$4:$AX$552,34,FALSE),0) -> 56 | AK20: =IFERROR(VLOOKUP($A20,Filtro!$A$4:$AX$552,35,FALSE),0) -> 102 | AL20: =IFERROR(VLOOKUP($A20,Filtro!$A$4:$AX$552,36,FALSE),0) -> 90 | AM20: =IFERROR(VLOOKUP($A20,Filtro!$A$4:$AX$552,37,FALSE),0) -> 169 | AN20: =IFERROR(VLOOKUP($A20,Filtro!$A$4:$AX$552,38,FALSE),0) -> 130 | AO20: =IFERROR(VLOOKUP($A20,Filtro!$A$4:$AX$552,39,FALSE),0) -> 0 | AP20: =IFERROR(VLOOKUP($A20,Filtro!$A$4:$AX$552,40,FALSE),0) -> 22 | AQ20: =IFERROR(VLOOKUP($A20,Filtro!$A$4:$AX$552,41,FALSE),0) -> 31 | AR20: =IFERROR(VLOOKUP($A20,Filtro!$A$4:$AX$552,42,FALSE),0) -> 0 | CL20: 0 | CN20: 0
